Workbook

Sheet User Guide
B1: © Harry D. Saunders, 2018
C2: Return to Base Case
C4: User Guide
C6: Open-Source Protocol
C7: Although I have attached a copyright to this file, it is merely for the purpose of requesting acknowledgment from
C8: any users who may publish results derived from using it (or modifications thereof).
C9: But this model itself is offered as an open-source resource for anyone to use, modify, improve, or employ to audit results and equations reported in the article
C10: "Further toward a neoclassical theory of sustainable consumption: The eco-economy" and accompanying Appendices.
C11: Users are encouraged to try to "break" the model, and provide corrections/enhancements that advance its purpose.
C12: No worksheets or regions are password-protected; nor will be any Visual Basic code I may add in the future.
C13: An ancillary request is that any such improvements be sent to the author to build a repository of this open-source collaboration.
C14: Email: | D14: hsaunders@earthlink.net
C15: Of course, the application itself, Microsoft Excel® is the property of Microsoft Corporation.
C17: General
C18: This is designed as an "emulation model," one used for theoretical exploration of the eco-economy space.
C19: Links at the top of each tab (including this one) allow one-click navigation around the workbook:
C20: * these links take you immediately to Inputs, Outputs, and Calculation sections,
C21: and back and forth among Cases you devise, and back-and-forth to this User Guide
C22: (Depending on your screen resolution, you may need to zoom out to see the input arrays on each tab displayed conveniently.)
C23: There are three active tabs in this workbook: one labeled "Base Case"; one labeled "Test Case 1"; and the third labeled "Dummy tab."
C24: * The "Dummy tab" is there to allow you to create other various cases, as explained below.
C25: Throughout the model, the protocol is that white cells can be changed at will while colored cells contain calculations that should not be overwritten.
C26: The Base Case tab contains inputs and outputs reflecting a zero-population growth paradigm with no technology gains,
C27: and contains results reported for this case in the accompanying article "Further toward a neoclassical theory of sustainable consumption:
C28: The eco-economy."
C29: The Test Case 1 tab allows the user to modify any inputs relative to the Base Case to observe the effects.
C30: Other test cases (e.g., "Test Case 2," "Test Case 3," … "Test Case n") can be created by copying the "Dummy" tab and re-labeling the new tab.
C31: The Base Case can be used as a fixed reference for undertaking explorations related to changing model assumptions on the Test tabs.
C32: * it is advisable to make no changes to the Base Case tab so as to allow ready comparison to the scenario you are examining on the Test tabs.
C33: * as a fail-safe, the Base Case inputs are recorded separately on each tab, in cells CV6:DI16, if you need to recover these.
C34: (these arrays can be copied and pasted directly onto the corresponding arrays in the active inputs - all are values, not formulas.)
C35: The mathematical formulas used in the model (select cell and look at the formula bar) can be found in the accompanying article,
C36: "Toward a neoclassical theory of sustainableconsumption: eight Golden Age propositions" and accompanying Appendices,
C37: if you'd like to see their rationale(s).
C38: As you generate test cases, it's a good idea to color the inputs you've changed in yellow (say);
C39: this helps you quickly compare to the Base Case and to other test cases and is a reminder of what you are testing.
C41: Layout
C42: At the top of each tab in the section lableled "Inputs" are where input assumptions can be changed in the white cells:
C43: Inputs - parameters [use link at top of the tab to navigate here]
C44: * in the brown region are the utility function parameters for the Cobb-Douglas utility function reported in the article.
C45: - [white cells in rows 12:13 are inputs you may sometimes need that allow you to change the exponents of the utility function dynamically;
C46: this feature is used to replicate a consumption "satisficing" condition as described in the article.
C47: For any set of inputs you choose elsewhere in the model, you can do a "goal search" (described below)
C48: to find values that result in a fixed consumption level.]
C49: * in the dark green region are the production function parameters for the CES (Solow)-type production function reported in the article,
C50: including factor-augmenting technology gains, various factor substitution elasticities, and a waste production parameter
C51: * the light blue region contains the two exogenous inputs, workforce (population) growth rate and capital depreciation rate.
C52: * inputs in the dark blue region below this allow you to change the initial capital and labor conditions:
C53: - the multiplier values chosen multiply initial capital and labor (which are otherwise set to a golden age condition).
C54: - Selecting the checkbox activates the corresponding multiplier.
C55: * in the light green region are the natural capital production function parameters as reported in the article:
C56: - the parameters relate to natural capital absorption and replenisment behavior; also Ricardian rent from natural capital
C58: Inputs - initial conditions [use link at top of the tab to navigate here]
C59: While you are unlikely to need it, other inputs you can change (initial conditions) are found in this section.
C60: In the Human Economy dark green region are inputs related to starting capital and labor quantities, the initial state of the non-resource sector of the economy,
C61: and the initial state of various factor-augmenting technology- parameters.
C62: * these technology parameters will normally be set to unity except for the resource efficiency multiplier, tR0,
C63: which has been set to a value that normalizes all outputs for the Base Case.
C64: * likewise set here are the initial values of capital stock, KX, and labor LX, going to the non-resource sector, X,
C65: and the initial value of the contribution of the non-resource sector, X (all white cells).
C66: * also, the initial value of the unit cost function.
C67: In this region you will also see multiple colored cells, which calculate other initial conditions, both primal and dual,
C68: calculated to be internally consistent with all the inputs entered.
C69: Finally, in the blue section below this, you enter the initial value of the labor force available:
C70: (you can think of this as total person-hours theoretically available in the economy);
C71: This number will be greater than the "initial labor employed" showing below this;
C72: the difference must account for any initial unemployed workers, leisure time chosen by households against labor supplied,
C73: and the simple fact that all workers need time to eat, sleep, etc.
C75: Outputs
C76: At the top of the tab are two links to calculated outputs: "Outputs - numeric" and "Outputs -graphics"
C77: * the "Outputs - numeric" section provides calculated values for all the key parameters.
C78: This includes initial values, final values, and growth rates.
C79: To the right of these is a series of calculations designated "Golden Rule Conditions":
C80: these conditions are those specified by Edmund Phelps as those required for "golden rule" behavior.
C81: At the bottom of this section are calculations of resource "rebound" and "backfire" measures.
C82: [Note that it is possible to have a resource "backfire" condition by Period 11, even while natural capital grows;
C83: this can occur if resource use efficiency gains are sufficient to reduce resource use in early periods (less than 100% rebound),
C84: which allows natural capital to initially increase, bringing along with it increased replenishment and waste absorption.
C85: (This can be seen by looking at a test case where the only change from the base case
C86: is introduction of a 1% "R Efficiency" technology gain.) ]
C87: * The main point is you can change any of the inputs and instantly see their effect on these outputs.
C89: * Clicking on the "Outputs - graphics" link takes you to summary figures that may inform your judgment.
C90: These are intended to show you how your input choices affect key outputs:
C91: The first of these shows the final (period 100) values of the elements of the household utility function.
C92: - to the right are two charts showing the time evolution (sometimes useful to "zoom in" on the early period)
C93: - Remember that these values are physical quantities.
C94: The second below this shows the final (period 100) values of the quantities associated with production.
C95: - to the right are two charts showing the time evolution (sometimes useful to "zoom in" on the early period)
C96: - Remember that these values are physical quantities.
C97: The third below this shows the final (period 100) values of the dual prices associated with production
D98: (which also affect households via the budget constraint).
C99: - to the right are two charts showing the time evolution (sometimes useful to "zoom in" on the early period)
C100: - Remember that these values are unit prices.
C101: The final charts below this shows the final (period 100) values of the quantities associated with the natural economy.
C102: - to the right are two charts showing the time evolution (sometimes useful to "zoom in" on the early period)
C103: - Remember that these values are physical quantities.
C105: Calculations
C106: At the top of the tab is a link to "Calculations"
C107: * this section contains all the year-by-year calculations based on the inputs entered.
C108: * the equations employed here can all be found in the accompanying article,
C109: "Further toward a neoclassical theory of sustainable consumption: The eco-economy" and accompanying Appendices
C110: * links among variables can be traced here to see the logic.
C111: * note that there are no hidden "modeling tricks" used; all formulas are simply a pure instantiation of the neoclassical mathematics.
C112: * when exploring model behavior under different input conditions it is often useful to look at the results in this section
C113: to answer questions like "why does it do that when I do this"?
C114: ...and to track down how variables interact with each other when the pure neoclassical mathematical formalism is honored.
C116: Mimicking Satiation and other Conditions you Wish to Emulate
C117: Suppose you want to emulate what happens when, say, household consumption reaches a satiation level.
C118: Whatever the inputs you have chosen, you'll typically sene on-zero secular trends in the outputs.
C119: Once you have these, you can expore various ways to force various parameters to any desired/interesting outcome.
C120: * for example,click the "Outputs - numeric" link and look at the light blue cells to the right.
C121: * (you can replicate these cells elsewhere, but these ones allow you to play with the household utility components.)
C122: * these light blue cells contain formulas designed to assist in using Excel's "Goal seek" feature.
C123: (in Excel 2010, menu item Data/What-If Analysis/Goal seek…)
C124: * these cells take the difference between the period 100 value and the period 1 value (multiplied by a large number for greater" Goal seek" precision).
C125: * to force consumption satiation, I follow the following procedure:
C126: - select the light blue cell associated with Consumption growth.
C127: - invoke the Goal seek feature.
C128: - enter the value you wish the output cell to take in the "To value:" field (i.e., zero).
C129: - then select the "By changing cell" field and select the input you want to change.
C130: - for this emulation, you first select the cell in the "Input parameters - Human Economy" section, light brown cell "Gamma rate of change."
C131: - click OK
C132: - this will stabilize consumption at a fixed level; but you'll notice savings growth rate typically becomes non-zero.
C133: - to correct this, you need to do another Goal seek, but this time using a different "By changing cell" selection.
C134: - this time, select for "By changing cell" the light brown cell "Nu rate of change."
C135: - toggle back and forth between these two Goal seek searches until both consumption and savings rate of change are (near) zero.
C136: - when this is complete, you have a valid consumption satiation condition (where savings rate of change is likewise zero,
C137: i.e., satiated given the household budget).
C139: Crazy Results - #NUM! etc.
C140: Sometimes you will enter a combination of inputs that deliver #NUM! in the "Outputs - numeric" section;
C141: this will show in the "Outputs - graphics" section as output value trajectories collapsing to zero at some point along the trajectory.
C142: This is an indication that your eco-economy has collapsed, often because natural capital has fallen below its critical level.
C144: Insights Generation
C145: It is a safe prediction that, in playing with the emulation model, you will find counter-intuitive results.
C146: This can be explained in two ways:
C147: * you have discovered a flaw in the model (please tell me!).
C148: * there is a new insight lurking there that deserves ferreting out and reporting.
C149: Either way, I encourage you to dive deeply into the model mechanics to discover why it reports the results showing. An open mind here is an asset.
C151: Further Questions
C152: Contact Harry Saunders with any further questions:
C153: hsaunders@earthlink.net

Sheet Dummy tab
B1: © Harry D. Saunders, 2018
C2: Link to User Guide | E2: Return to Base Case | I2: Inputs - parameters | K2: Inputs - init. cond's | M2: Outputs - numeric | O2: Outputs - graphics | Q2: Calculations
C4: Inputs - parameters
D6: HUMAN ECONOMY Household Utility Function Parameters
E7: û | G7: g | I7: n | K7: w | M7: p | CW7: HUMAN ECONOMY Household Utility Function Parameters
E8: 0.96998104 | G8: 0.3 | I8: 0.1 | K8: =1-(gamma+nu+pi) -> 0.5 | M8: 0.1 | CX8: û | CZ8: g | DB8: n | DD8: w | DF8: p
E9: utility scalar | G9: consumption | I9: savings | K9: leisure time | M9: natural capital | CX9: 0.96998104 | CZ9: 0.3 | DB9: 0.1 | DD9: =1-(gamma+nu+pi) -> 0.5 | DF9: 0.1
CX10: utility scalar | CZ10: consumption | DB10: savings | DD10: leisure time | DF10: natural capital
F12: Gamma rate of change | G12: 0 | H12: %/period | L12: Pi rate of change | M12: 0 | N12: %/period
H13: Nu rate of change | I13: 0 | J13: %/period | CY13: Gamma rate of change | CZ13: 0 | DA13: %/period | DE13: Pi rate of change | DF13: 0 | DG13: %/period
DA14: Nu rate of change | DB14: 0 | DC14: %/period
D16: HUMAN ECONOMY Production Function Parameters | L16: Human Economy Growth Inputs | DN16: Initial Conditions Flag
E17: a | F17: a | G17: b | H17: s | I17: r | CW17: HUMAN ECONOMY Production Function Parameters | DE17: Human Economy Growth Inputs | DN17: 1 | DO17: 2 | DP17: 3 | DQ17: 4 | DR17: 1 | DU17: Initial K multiplier | DV17: FALSE
E18: 0.75 | F18: 0.25 | G18: 0.25 | H18: 0.675 | I18: =(sigma-1)/sigma -> -0.4814814815 | L18: n | M18: 0 | N18: Growth rate of workforce (or population proxy) | CX18: a | CY18: a | CZ18: b | DA18: s | DB18: r | DM18: KX0/LX0 | DN18: =1/(((1-alpha)/alpha)*( N47/N48)) -> 1 | DO18: =K_multiplier*DN18 -> 1.5 | DP18: =DN18/L_multiplier -> 2 | DQ18: =K_multiplier/L_multiplier -> 3 | DR18: 2 | DU18: Initial L multiplier | DV18: FALSE
H19: substitution elasticity | L19: d | M19: 0.25 | N19: Capital depreciation rate | CX19: 0.75 | CY19: 0.25 | CZ19: 0.25 | DA19: 0.675 | DB19: =(sigma-1)/sigma -> -0.4814814815 | DE19: n | DF19: 0 | DG19: Growth rate of workforce | DM19: KX0 | DN19: =DN20*DN28 -> 0.8235052131 | DO19: =K_multiplier*DN19 -> 1.23525782 | DP19: =DN19 -> 0.8235052131 | DQ19: =K_multiplier*DN19 -> 1.23525782 | DR19: 3
E20: lKx | F20: lLx | G20: lXR | H20: lKr | I20: lLr | DA20: substitution elasticity | DE20: d | DF20: 0.25 | DG20: Capital depreciation rate | DM20: LX0 | DN20: =DN27/(1+DN27) -> 0.8235052131 | DO20: =DN20 -> 0.8235052131 | DP20: =L_multiplier*DN20 -> 0.4117526066 | DQ20: =L_multiplier*DN20 -> 0.4117526066 | DR20: 4 | DU20: Initial conditions flag | DV20: =IF(AND(Initial_K_multiplier=FALSE,Initial_L_multiplier=FALSE),1,IF( AND(Initial_K_multiplier=TRUE,Initial_L_multiplier=FALSE),2,IF(AND(Initial_K_multiplier=FALSE,Initial_L_multiplier=TRUE),3,4))) -> 1
E21: 0 | F21: 0 | G21: 0 | H21: 0 | I21: 0 | CX21: lKx | CY21: lLx | CZ21: lXR | DA21: lKr | DB21: lLr | DM21: KR0 | DN21: =1-DN19 -> 0.1764947869 | DO21: =K_multiplier*DN21 -> 0.2647421803 | DP21: =DN21 -> 0.1764947869 | DQ21: =K_multiplier*DN21 -> 0.2647421803 | DR21: 5
D22: Tech gains: | E22: capital X | F22: labor X | G22: R efficiency | H22: capital R | I22: labor R | CX22: 0 | CY22: 0 | CZ22: 0 | DA22: 0 | DB22: 0 | DM22: LR0 | DN22: =1-DN20 -> 0.1764947869 | DO22: =DN22 -> 0.1764947869 | DP22: =L_multiplier*DN22 -> 0.08824739343 | DQ22: =L_multiplier*DN22 -> 0.08824739343 | DR22: 6
E23: e | G23: lW | L23: Initial Conditions Adjustors | CW23: Tech gains: | CX23: capital X | CY23: labor X | CZ23: R efficiency | DA23: capital R | DB23: labor R | DM23: X0 | DN23: =(H47*DN19)^alpha*(H48*DN20)^(1-alpha) -> 0.8235052131 | DO23: =(H47*DO19)^alpha*(H48*DO20)^(1-alpha) -> 0.9113583302 | DP23: =(H47*DP19)^alpha*(H48*DP20)^(1-alpha) -> 0.4896591294 | DQ23: =(H47*DQ19)^alpha*(H48*DQ20)^(1-alpha) -> 0.5418969053 | DR23: 7
E24: 0.1 | G24: 0 | M24: Initial K multiplier | N24: 1.5 | CX24: e | CZ24: lW | DE24: Initial Conditions Adjustors | DM24: Rs0 | DN24: =(1/tRbase)*(H46*H49*DN21)^beta*(H46*H50*DN22)^(1-beta) -> 2.060856002 | DO24: =(1/tRbase)*(H46*H49*DO21)^beta*(H46*H50*DO22)^(1-beta) -> 2.280712077 | DP24: =(1/tRbase)*(H46*H49*DP21)^beta*(H46*H50*DP22)^(1-beta) -> 1.22539231 | DQ24: =(1/tRbase)*(H46*H49*DQ21)^beta*(H46*H50*DQ22)^(1-beta) -> 1.356119515 | DR24: 8
E25: waste production | G25: waste improvement | M25: Initial L multiplier | N25: 0.5 | CX25: 0.1 | CZ25: 0 | DF25: Initial K multiplier | DG25: 1.5 | DM25: R0 | DN25: =(1/tRbase)*(H49*DN21)^beta*(H50*DN22)^(1-beta) -> 0.1764947869 | DO25: =(1/tRbase)*(H49*DO21)^beta*(H50*DO22)^(1-beta) -> 0.1953235895 | DP25: =(1/tRbase)*(H49*DP21)^beta*(H50*DP22)^(1-beta) -> 0.1049444281 | DQ25: =(1/tRbase)*(H49*DQ21)^beta*(H50*DQ22)^(1-beta) -> 0.1161401012 | DR25: 9
CX26: waste production | CZ26: waste improvement | DF26: Initial L multiplier | DG26: 0.5 | DM26: KX0/KR0 | DN26: =(â/b˄)*(alpha/beta)*(R46/R47)*(N47/N47)*(R47/R46)^(1/(1-rho)) -> 4.665889729 | DO26: =DO19/DO21 -> 4.665889729 | DP26: 4.665889729 | DQ26: 4.665889729 | DR26: 10
DM27: LX0/LR0 | DN27: =((1-alpha)/(1-beta))*(beta/alpha)*DN26 -> 4.665889729 | DO27: 4.665889729 | DP27: 4.665889729 | DQ27: 4.665889729 | DR27: 11
D28: NATURAL ECONOMY Production Function Parameters | DM28: KX0/LX0 | DN28: =1/(((1-alpha)/alpha)*(N47/N48)) -> 1 | DO28: =DO19/DO20 -> 1.5 | DP28: =DP19/DP20 -> 2 | DQ28: =DQ19/DQ20 -> 3 | DR28: 12
E29: x | H29: z | CW29: NATURAL ECONOMY Production Function Parameters | DM29: Rreference | DN29: =(H49*DN21)^beta*(H50*DN22)^(1-beta) -> 0.1764947869 | DO29: =(H49*DO21)^beta*(H50*DO22)^(1-beta) -> 0.1953235895 | DP29: =(H49*DP21)^beta*(H50*DP22)^(1-beta) -> 0.1049444281 | DQ29: =(H49*DQ21)^beta*(H50*DQ22)^(1-beta) -> 0.1161401012 | DR29: 13
E30: 0.01176631953 | H30: 0.1209685014 | CX30: x | DA30: z
E31: absorptive capacity multiplier | H31: replenishment capacity multiplier | CX31: 0.01176631953 | DA31: 0.1209685014
E32: (fraction of natural capital capacity) | H32: (fraction of natural capital capacity) | CX32: absorptive capacity multiplier | DA32: replenishment capacity multiplier
E33: fA | H33: fR | CX33: (fraction of natural capital capacity) | DA33: (fraction of natural capital capacity)
E34: 19.09468344 | H34: 4 | CX34: fA | DA34: fR
E35: Absorption curve shaping factor | H35: Replenishment curve shaping factor | CX35: 19.09468344 | DA35: 4
CX36: Absorption curve shaping factor | DA36: Replenishment curve shaping factor
D37: ϴ | E37: 0.2 | F37: Ricardian Resource supply curve shaping factor
CW38: ϴ | CX38: 0.2 | CY38: Ricardian Resource supply curve shaping factor
C40: Inputs - initial conditions
D42: Human Economy
E43: Primal (Production) | M43: Dual (Cost) | U43: Welfare
G44: LX-1 | H44: 0.8235052131 | I44: KX-1 | J44: 0.8235052131
E45: Y-1 | F45: 1 | I45: X-1 | J45: 0.8235052131 | M45: c-1 | N45: 1
E46: Y0 | F46: =(a*J46^rho+(1-a)*J47^rho)^(1/rho) -> 1 | G46: tXR0 | H46: 11.67658286 | I46: X0 | J46: =HLOOKUP(Initial_conditions_flag,$DN$17:$DQ$37,DR23) -> 0.8235052131 | M46: c0 | N46: =(â*R46^(rho/(rho-1))+b˄*R47^(rho/(rho-1)))^((rho-1)/rho) -> 1 | O46: share, KX | P46: =N47*F47 -> 0.2058763033 | Q46: Xc | R46: =((N47/H47)^alpha)*((N48/H48)^(1-alpha)) -> 0.5698767642 | U46: u0 | V46: =û*V49^gamma*V50^nu*V51^omega*V52^pi -> 1 | X46: u0/worker | Y46: =V46/$F$58 -> 1
E47: KX0 | F47: =HLOOKUP(Initial_conditions_flag,$DN$17:$DQ$37,DR19) -> 0.8235052131 | G47: tKX0 | H47: 1 | I47: Rs0 | J47: =HLOOKUP(Initial_conditions_flag,$DN$17:$DQ$37,DR24) -> 2.060856002 | M47: pk0 | N47: =N45*a*alpha*(J45/J44)*(F45/J45)^(1-rho) -> 0.25 | O47: share, LX | P47: =N48*F48 -> 0.6176289099 | Q47: Rc | R47: =((N47/(H46*H49))^beta)*((N48/(H46*H50))^(1-beta)) -> 0.04880509745 | U47: Wmax | V47: =N48*(Ł0)+N47*(F47+F49) -> 2.25 | X47: Budget0/worker | Y47: =V48/$F$58 -> 1
E48: LX0 | F48: =HLOOKUP(Initial_conditions_flag,$DN$17:$DQ$37,DR20) -> 0.8235052131 | G48: tLX0 | H48: 1 | I48: R0 | J48: =HLOOKUP(Initial_conditions_flag,$DN$17:$DQ$37,DR25) -> 0.1764947869 | M48: pL0 | N48: =N45*a*(1-alpha)*(J45/H44)*(F45/J45)^(1-rho) -> 0.75 | O48: share, KR | P48: =N47*F49 -> 0.04412369671 | U48: Budget0 | V48: =N48*(F48+F50)+N47*(F47+F49) -> 1 | X48: C0/worker | Y48: =V49/$F$58 -> 0.75
E49: KR0 | F49: =HLOOKUP(Initial_conditions_flag,$DN$17:$DQ$37,DR21) -> 0.1764947869 | G49: tKR0 | H49: 1 | O49: share, LR | P49: =N48*F50 -> 0.1323710901 | U49: C0 | V49: =(gamma/(1-pi))*V47/N46 -> 0.75 | X49: S0/worker | Y49: =V50/$F$58 -> 0.25
E50: LR0 | F50: =HLOOKUP(Initial_conditions_flag,$DN$17:$DQ$37,DR22) -> 0.1764947869 | G50: tLR0 | H50: 1 | I50: KX0/KR0 | J50: =HLOOKUP(Initial_conditions_flag,$DN$17:$DQ$37,DR26) -> 4.665889729 | M50: pR0 | N50: =(N47/$H$49)^beta*(N48/$H$50)^(1-beta)*beta^beta*(1-beta)^(1-beta) -> 0.3247595264 | U50: S0 | V50: =(nu/(1-pi))*V47/N46 -> 0.25 | X50: l0/worker | Y50: =V51/$F$58 -> 1.666666667
I51: LX0/LR0 | J51: =HLOOKUP(Initial_conditions_flag,$DN$17:$DQ$37,DR27) -> 4.665889729 | Q51: â | R51: =a^(1/(1-rho))*(alpha^alpha*(1-alpha)^(1-alpha))^(rho/(1-rho)) -> 0.9886385573 | U51: l0 | V51: =Ł0-(F48+F50) -> 1.666666667 | X51: N0/worker | Y51: =V52/$F$58 -> 1
E52: W | F52: =epsilon*J48 -> 0.01764947869 | I52: KX0/LX0 | J52: =HLOOKUP(Initial_conditions_flag,$DN$17:$DQ$37,DR28) -> 1 | Q52: b˄ | R52: =(1-a)^(1/(1-rho))*(beta^beta*(1-beta)^(1-beta))^(rho/(1-rho)) -> 0.4709563936 | U52: N0 | V52: =F71 -> 1
E55: Initial Labor Force & Employment | M55: Checks:
M56: pk0 | N56: =N46*a*alpha*J46/F47*(F46/J46)^(1-rho) -> 0.25 | P56: pk0 | Q56: =N46*(1-a)*beta*(J47/F49)*(F46/J47)^(1-rho) -> 0.25
E57: Ł0 | F57: 2.666666667 | G57: Initial labor force | M57: pL0 | N57: =N46*a*(1-alpha)*(J46/F48)*(F46/J46)^(1-rho) -> 0.75 | P57: pL0 | Q57: =N46*(1-a)*(1-beta)*(J47/F50)*(F46/J47)^(1-rho) -> 0.75
E58: L0 | F58: =Ł0-V51 -> 1 | G58: Initial labor employed
E62: Initial Shadow Price (Lagrange multiplier)
F64: =û*(gamma/N48)*((gamma/(1-pi))*(V47/N46))^pi*(V52^pi) -> 0.3769895943 | G64: Houshold budget constraint
D67: Natural Economy
E68: Natural Capital | M68: Natural Capital - Base Conditions
E70: N-1 | F70: 1 | G70: Pre-existing Stock of Natural Capital | M70: N-1 | N70: 1 | O70: Pre-existing Stock of Natural Capital
E71: N0 | F71: 1 | G71: Initial Stock of Natural Capital | M71: N0 | N71: 1 | O71: Steady-state Natural Capital Equilibrium Value
E72: Ncapacity | F72: 1.5 | G72: Maximum Capacity (Stock) of Natural Capital | M72: Ncapacity | N72: 1.5 | O72: Maximum Capacity (Stock) of Natural Capital
E73: Ncritical | F73: 0.1 | G73: Critical Threshold for Natural Capital | M73: Ncritical | N73: 0.1 | O73: Critical Threshold for Natural Capital
E75: cN | F75: 1 | G75: Natural capital unit cost function | M75: cN | N75: 1 | O75: Natural capital unit cost function
E77: R0 | F77: =zeta*Ncapacity*(1-EXP(-psi_Replen*(F71-Ncritical))) -> 0.1764947875 | G77: Replenishment | M77: R0 | N77: 0.1764947869 | O77: Replenishment | R77: ϴ | S77: =theta -> 0.2 | T77: Ricardian supply curve shaping factor
E78: R0 | F78: =J48 -> 0.1764947869 | G78: Raw Resource Use | M78: Rreference | N78: 0.1764947869 | O78: "Resources" (w/o tR) | R78: kbase | S78: =1/(N75+(1/S77)*LN((N72-N73)/(1-N73))) -> 0.3116076568
E79: A0 | F79: =MIN(xi*Ncapacity,F80)*(1-EXP(-psi_A*(F71-Ncritical))) -> 0.01764947808 | G79: Absorption | M79: A0 | N79: 0.03529895737 | O79: Absorption | R79: tRbase | S79: =kbase*(cN+(1/theta)*LN((N72-N73)/(N71-N73))) -> 1
E80: W0 | F80: =epsilon*F78 -> 0.01764947869 | G80: Waste Production | M80: W0 | N80: 0.03529895737 | O80: Waste Production
C84: Outputs - Numeric
D86: Period 1 Value | E86: Period 100 Value | F86: Growth rate, period 1 to 100 | G86: Growth rate, period 95 to 100 | I86: Per Worker, period 1 | J86: Per Person, period 1 | K86: Per Worker, period 100 | L86: Per Person, period 100 | N86: Golden Rule Condi-tions | R86: Search Targets
C87: Household Welfare
C88: u (utility) | D88: =D265 -> 1 | E88: =CY265 -> 1 | F88: =CZ265 -> -1.570012358e-17 | G88: =DA265 -> -3.330669074e-16 | I88: =D88/$D$221 -> 1 | J88: =E88/$D$220 -> 0.375 | K88: =E88/$CY$221 -> 1 | L88: =E88/$CY$220 -> 0.375 | N88: =E90/E94 -> 0.25 | O88: Savings rate | R88: =(E88-D88)*10^6 -> -1.554312234e-09
C89: C (consumption) | D89: =D271 -> 0.75 | E89: =CY271 -> 0.75 | F89: -5.270755773e-17 | G89: -5.329070518e-16 | I89: =D89/$D$221 -> 0.75 | J89: =E89/$D$220 -> 0.28125 | K89: =E89/$CY$221 -> 0.75 | L89: =E89/$CY$220 -> 0.28125 | N89: =(E103/E102)*E95/E94 -> 0.25 | O89: "Golden Rule" savings rate | R89: =(E89-D89)*10^6 -> -3.885780586e-09
C90: S (savings) | D90: =D272 -> 0.25 | E90: 0.25 | F90: -5.158612034e-17 | G90: -5.329070518e-16 | I90: =D90/$D$221 -> 0.25 | J90: =E90/$D$220 -> 0.09375 | K90: =E90/$CY$221 -> 0.25 | L90: =E90/$CY$220 -> 0.09375 | R90: -1.276756478e-09 | CX90: =F89*10^9 -> -5.270755773e-08
C91: l (leisure) | D91: =D273 -> 1.666666667 | E91: 1.666666667 | F91: 0 | G91: 4.440892099e-17 | I91: =D91/$D$221 -> 1.666666667 | J91: =E91/$D$220 -> 0.625 | K91: =E91/$CY$221 -> 1.666666667 | L91: =E91/$CY$220 -> 0.625 | N91: =(E103/E102)-d -> -4.996003611e-16 | O91: Real "social" return | R91: 0
C92: N (natural capital) | D92: =D300 -> 1 | E92: =CY300 -> 1 | F92: =CZ300 -> 5.607186993e-17 | G92: =DA300 -> -1.287858709e-15 | I92: =D92/$D$221 -> 1 | J92: =E92/$D$220 -> 0.375 | K92: =E92/$CY$221 -> 1 | L92: =E92/$CY$220 -> 0.375 | N92: =G94 -> -6.217248938e-16 | O92: Real output growth rate | R92: 5.551115123e-09
C93: Producers -Primal
C94: Y (value-added output) | D94: =D232 -> 1 | E94: =CY232 -> 1 | F94: =CZ232 -> -5.607186993e-17 | G94: =DA232 -> -6.217248938e-16 | I94: =D94/$D$221 -> 1 | J94: =E94/$D$220 -> 0.375 | K94: =E94/$CY$221 -> 1 | L94: =E94/$CY$220 -> 0.375 | N94: =E119 -> 0.75 | O94: Consume your wages | AU94: Y (value-added output) | AV94: =D94 -> 1 | CX94: 0.07846973355
C95: K (capital/wealth) | D95: =D223 -> 1 | E95: =CY223 -> 1 | F95: =CZ223 -> -2.826022245e-16 | G95: =DA223 -> -3.552713679e-16 | I95: 1 | J95: 0.375 | K95: 1 | L95: 0.375 | N95: =E120 -> 0.25 | O95: Invest your returns | AU95: K (capital/wealth) | AV95: =D95 -> 1 | CX95: =F94*10^9 -> -5.607186993e-08
C96: L (employed labor force) | D96: =D221 -> 1 | E96: =CY221 -> 1 | F96: =CZ221 -> 0 | G96: =DA221 -> -4.440892099e-17 | I96: 1 | J96: 0.375 | K96: 1 | L96: 0.375 | AU96: L (employed labor force) | AV96: 1
C97: Ł (available labor force) | D97: =D220 -> 2.666666667 | E97: =CY220 -> 2.666666667 | F97: =CZ220 -> 0 | G97: =DA220 -> 0 | I97: 2.666666667 | J97: 1 | K97: 2.666666667 | L97: 1 | AU97: I (investment) | AV97: =D98 -> 0.25
C98: I (investment) | D98: =D222 -> 0.25 | E98: =CY222 -> 0.25 | F98: =CZ222 -> -4.934324554e-17 | G98: =DA222 -> -5.773159728e-16 | I98: 0.25 | J98: 0.09375 | K98: 0.25 | L98: 0.09375 | M98: =E98/E95 -> 0.25 | N98: Investment fraction | AU98: R (raw resource use) | AV98: =D99 -> 0.1764947869
C99: R (raw resource use) | D99: =D315 -> 0.1764947869 | E99: =CY315 -> 0.1764947869 | F99: =CZ315 -> 1.121437399e-17 | G99: =DA315 -> -2.042810365e-15 | I99: 0.1764947869 | J99: 0.06618554507 | K99: 0.1764947869 | L99: 0.06618554507 | AU99: W (waste produced) | AV99: =D100 -> 0.01764947869
C100: W (waste produced) | D100: =D306 -> 0.01764947869 | E100: =CY306 -> 0.01764947869 | F100: =CZ306 -> 2.915737236e-17 | G100: =DA306 -> -2.309263891e-15 | I100: 0.01764947869 | J100: 0.006618554507 | K100: 0.01764947869 | L100: 0.006618554507
C101: Producers -Dual
C102: c (unit cost/price of value-added output) | D102: =D211 -> 1 | E102: =CY211 -> 1 | F102: -4.037174635e-17 | G102: 1.33226763e-16 | I102: =D102/$D$221 -> 1 | J102: =E102/$D$220 -> 0.375 | K102: =E102/$CY$221 -> 1 | L102: =E102/$CY$220 -> 0.375
C103: r=pK (price/cost of capital) | D103: =D212 -> 0.25 | E103: 0.25 | F103: 1.906443578e-16 | G103: -1.33226763e-16 | I103: =D103/$D$221 -> 0.25 | J103: =E103/$D$220 -> 0.09375 | K103: =E103/$CY$221 -> 0.25 | L103: =E103/$CY$220 -> 0.09375 | DA103: =-F102+F105 -> -5.382899513e-17
C104: r-d (net return to capital) | D104: =D215 -> 2.997602166e-15 | E104: =CY215 -> 7.716050021e-15 | F104: =CZ215 -> 0.009550402895 | G104: =DA215 -> -0.004270624894 | I104: =D104/$D$221 -> 2.997602166e-15 | J104: =E104/$D$220 -> 2.893518758e-15 | K104: =E104/$CY$221 -> 7.716050021e-15 | L104: =E104/$CY$220 -> 2.893518758e-15
C105: w=pL (price/cost of labor) | D105: =D213 -> 0.75 | E105: =CY213 -> 0.75 | F105: -9.420074148e-17 | G105: -4.440892099e-16 | I105: =D105/$D$221 -> 0.75 | J105: =E105/$D$220 -> 0.28125 | K105: =E105/$CY$221 -> 0.75 | L105: =E105/$CY$220 -> 0.28125
C106: pR (price/cost of raw resources) | D106: =D214 -> 0.3247595264 | E106: =CY214 -> 0.3247595264 | F106: =CZ214 -> -1.368153626e-16 | G106: =DA214 -> 2.26485497e-15 | I106: =D106/$D$221 -> 0.3247595264 | J106: =E106/$D$220 -> 0.1217848224 | K106: =E106/$CY$221 -> 0.3247595264 | L106: =E106/$CY$220 -> 0.1217848224
C107: Natural Economy
C108: N (natural capital) | D108: =D300 -> 1 | E108: =CY300 -> 1 | F108: =CZ300 -> 5.607186993e-17 | G108: =DA300 -> -1.287858709e-15 | I108: =D108/$D$221 -> 1 | J108: =E108/$D$220 -> 0.375 | K108: =E108/$CY$221 -> 1 | L108: =E108/$CY$220 -> 0.375
C109: *R* (natural capital replenishment) | D109: =E302 -> 0.1764947875 | E109: =CY302 -> 0.1764947875 | F109: =CZ302 -> 6.728624392e-18 | G109: =DA302 -> -1.776356839e-16 | I109: =D109/$D$221 -> 0.1764947875 | J109: =E109/$D$220 -> 0.0661855453 | K109: =E109/$CY$221 -> 0.1764947875 | L109: =E109/$CY$220 -> 0.0661855453
C110: R (raw resource use) | D110: =D99 -> 0.1764947869 | E110: =E99 -> 0.1764947869 | F110: =F99 -> 1.121437399e-17 | G110: =G99 -> -2.042810365e-15 | I110: =D110/$D$221 -> 0.1764947869 | J110: =E110/$D$220 -> 0.06618554507 | K110: =K99 -> 0.1764947869 | L110: =L99 -> 0.06618554507
C111: A (natural capital absorption of waste) | D111: =D305 -> 0.01764947869 | E111: =CY305 -> 0.01764947869 | F111: =CZ305 -> 0 | G111: =DA305 -> 0 | I111: =D111/$D$221 -> 0.01764947869 | J111: =E111/$D$220 -> 0.006618554507 | K111: =E111/$CY$221 -> 0.01764947869 | L111: =E111/$CY$220 -> 0.006618554507
C112: W (waste produced) | D112: =D100 -> 0.01764947869 | E112: =E100 -> 0.01764947869 | F112: =F100 -> 2.915737236e-17 | G112: =G100 -> -2.309263891e-15 | I112: =D112/$D$221 -> 0.01764947869 | J112: =E112/$D$220 -> 0.006618554507 | K112: =K100 -> 0.01764947869 | L112: =L100 -> 0.006618554507
C113: Household Earnings (wages and investment returns)
C114: E (Earnings/Income) | D114: =D266 -> 1 | E114: =CY266 -> 1 | F114: =CZ266 -> -9.420074148e-17 | G114: =DA266 -> -4.884981308e-16 | I114: =D114/$D$221 -> 1 | J114: =E114/$D$220 -> 0.375 | K114: =E114/$CY$221 -> 1 | L114: =E114/$CY$220 -> 0.375
C115: wL (wages) | D115: =D105*D96 -> 0.75 | E115: =E105*E96 -> 0.75 | F115: =F105*F96 -> 0 | G115: =G105*G96 -> 1.972152263e-32 | I115: 0.75 | J115: 0.28125 | K115: 0.75 | L115: 0.28125
C116: rK (returns) | D116: =D103*D95 -> 0.25 | E116: =E103*E95 -> 0.25 | F116: =F103*F95 -> -5.387651958e-32 | G116: =G103*G95 -> 4.733165431e-32 | I116: 0.25 | J116: 0.09375 | K116: 0.25 | L116: 0.09375
C117: Household Budget | D117: =D269 -> 1 | E117: =CY269 -> 1 | F117: =CZ269 -> -9.420074148e-17 | G117: =DA269 -> -4.884981308e-16 | I117: 1 | J117: 0.375 | K117: 1 | L117: 0.375
C118: E/c (real earnings/income) | D118: =D275 -> 1 | E118: =CY275 -> 1 | F118: =CZ275 -> -5.382899513e-17 | G118: =DA275 -> -6.217248938e-16 | I118: 1 | J118: 0.375 | K118: 1 | L118: 0.375 | CY118: =G94 -> -6.217248938e-16
C119: wL/c (real wages) | D119: =D115/$D$102 -> 0.75 | E119: =E115/$E$102 -> 0.75 | F119: 0 | G119: 1.972152263e-32 | I119: 0.75 | J119: 0.28125 | K119: 0.75 | L119: 0.28125
C120: rK/c (real returns) | D120: 0.25 | E120: =E116/$E$102 -> 0.25 | F120: -5.387651958e-32 | G120: 4.733165431e-32 | I120: 0.25 | J120: 0.09375 | K120: 0.25 | L120: 0.09375
C121: cC (consumption, monetary terms) | D121: =D89*D102 -> 0.75 | E121: =E89*E102 -> 0.75 | F121: =CZ271 -> -5.270755773e-17 | G121: =DA271 -> -5.329070518e-16 | I121: 0.75 | J121: 0.28125 | K121: 0.75 | L121: 0.28125
C122: Shadow price of Budget Constraint | D122: =D296 -> 0.3769895943 | E122: =CY296 -> 0.3769895943 | F122: =CZ296 -> 9.420074148e-17 | G122: =DA296 -> 2.664535259e-16 | I122: 0.3769895943 | J122: 0.1413710979 | K122: 0.3769895943 | L122: 0.1413710979
C123: Marginal Utilities and Prices
C124: Marginal utility of Consumption | D124: =D$122*D$102 -> 0.3769895943 | E124: =E$122*E$102 -> 0.3769895943
C125: Marginal utility of Savings | D125: =D$122*D$102 -> 0.3769895943 | E125: =E$122*E$102 -> 0.3769895943
C126: Marginal utility of Leisure | D126: =D$122*D$105 -> 0.2827421957 | E126: =E$122*E$105 -> 0.2827421957
C127: Marginal utility of Natural Capital | D127: =pi*D$88/D$108 -> 0.1 | E127: =pi*E$88/E$108 -> 0.1
C128: Resource Rebound
C129: Rs (resource services) | D129: =D314 -> 2.060856002 | E129: =CY314 -> 2.060856002 | F129: =CZ314 -> 1.345724878e-17 | G129: =DA314 -> -1.976196984e-15 | J129: Relative to Period 1
C130: Ractual (actual raw resource use) | D130: =D99 -> 0.1764947869 | E130: =E99 -> 0.1764947869 | F130: =F99 -> 1.121437399e-17 | G130: =G99 -> -2.042810365e-15 | J130: Period 10 | K130: Period 100
C131: R0 (zero rebound inferred from Leontief production) | D131: =D316 -> 0.1764947869 | E131: =CY316 -> 0.1764947869 | F131: 0 | G131: 0 | I131: Rebound | J131: =IF((M317-M316)=0,"N/A",1-(M317-M315)/(M317-M316)) -> N/A | K131: =IF((E132-E131)=0,"N/A",1-(E132-E130)/(E132-E131)) -> N/A
C132: R100 (100% rebound) | D132: =D317 -> 0.1764947869 | E132: 0.1764947869 | F132: 0 | G132: 0 | I132: Backfire | J132: =IF(M315>M317,"Backfire","N/A") -> Backfire | K132: =IF(E99>E132,"Backfire","N/A") -> N/A
C138: Outputs - Graphic
C204: Calculations
D206: Initial Technologies | G206: tKx | H206: tLx | I206: tR | J206: tKr | K206: tLr | M206: tR | N206: tW
G207: =EXP(lambdaKx) -> 1 | H207: =EXP(lambdaLx) -> 1 | I207: =EXP(lambdaR) -> 1 | J207: =EXP(lambdaKr) -> 1 | K207: =EXP(lambdaLr) -> 1 | M207: =tRbase -> 1 | N207: =EXP(lambdaW) -> 1
C209: Dual-side Calculations
C210: Unit Price Measures | D210: 1 | E210: 2 | F210: 3 | G210: 4 | H210: 5 | I210: 6 | J210: 7 | K210: 8 | L210: 9 | M210: 10 | N210: 11 | O210: 12 | P210: 13 | Q210: 14 | R210: 15 | S210: 16 | T210: 17 | U210: 18 | V210: 19 | W210: 20 | X210: 21 | Y210: 22 | Z210: 23 | AA210: 24 | AB210: 25 | AC210: 26 | AD210: 27 | AE210: 28 | AF210: 29 | AG210: 30 | AH210: 31 | AI210: 32 | AJ210: 33 | AK210: 34 | AL210: 35 | AM210: 36 | AN210: 37 | AO210: 38 | AP210: 39 | AQ210: 40 | AR210: 41 | AS210: 42 | AT210: 43 | AU210: 44 | AV210: 45 | AW210: 46 | AX210: 47 | AY210: 48 | AZ210: 49 | BA210: 50 | BB210: 51 | BC210: 52 | BD210: 53 | BE210: 54 | BF210: 55 | BG210: 56 | BH210: 57 | BI210: 58 | BJ210: 59 | BK210: 60 | BL210: 61 | BM210: 62 | BN210: 63 | BO210: 64 | BP210: 65 | BQ210: 66 | BR210: 67 | BS210: 68 | BT210: 69 | BU210: 70 | BV210: 71 | BW210: 72 | BX210: 73 | BY210: 74 | BZ210: 75 | CA210: 76 | CB210: 77 | CC210: 78 | CD210: 79 | CE210: 80 | CF210: 81 | CG210: 82 | CH210: 83 | CI210: 84 | CJ210: 85 | CK210: 86 | CL210: 87 | CM210: 88 | CN210: 89 | CO210: 90 | CP210: 91 | CQ210: 92 | CR210: 93 | CS210: 94 | CT210: 95 | CU210: 96 | CV210: 97 | CW210: 98 | CX210: 99 | CY210: 100 | CZ210: Growth, 1-100 | DA210: Growth, 95-100
C211: c | D211: =N46 -> 1 | E211: =(â*E318^(rho/(rho-1))+b˄*E319^(rho/(rho-1)))^((rho-1)/rho) -> 1 | F211: =(â*F318^(rho/(rho-1))+b˄*F319^(rho/(rho-1)))^((rho-1)/rho) -> 0.9999999998 | G211: 0.9999999996 | H211: 0.9999999995 | I211: 0.9999999994 | J211: 0.9999999993 | K211: 0.9999999993 | L211: =(â*L318^(rho/(rho-1))+b˄*L319^(rho/(rho-1)))^((rho-1)/rho) -> 0.9999999993 | M211: 0.9999999993 | N211: 0.9999999994 | O211: 0.9999999995 | P211: 0.9999999995 | Q211: 0.9999999996 | R211: 0.9999999996 | S211: 0.9999999997 | T211: 0.9999999998 | U211: 0.9999999998 | V211: 0.9999999999 | W211: 0.9999999999 | X211: 0.9999999999 | Y211: 1 | Z211: 1 | AA211: 1 | AB211: 1 | AC211: 1 | AD211: 1 | AE211: 1 | AF211: 1 | AG211: 1 | AH211: 1 | AI211: 1 | AJ211: 1 | AK211: =(â*AK318^(rho/(rho-1))+b˄*AK319^(rho/(rho-1)))^((rho-1)/rho) -> 1 | AL211: 1 | AM211: 1 | AN211: 1 | AO211: 1 | AP211: 1 | AQ211: 1 | AR211: 1 | AS211: 1 | AT211: 1 | AU211: 1 | AV211: 1 | AW211: 1 | AX211: 1 | AY211: 1 | AZ211: 1 | BA211: 1 | BB211: 1 | BC211: 1 | BD211: 1 | BE211: 1 | BF211: 1 | BG211: 1 | BH211: 1 | BI211: 1 | BJ211: 1 | BK211: 1 | BL211: 1 | BM211: 1 | BN211: 1 | BO211: 1 | BP211: 1 | BQ211: =(â*BQ318^(rho/(rho-1))+b˄*BQ319^(rho/(rho-1)))^((rho-1)/rho) -> 1 | BR211: 1 | BS211: 1 | BT211: 1 | BU211: 1 | BV211: 1 | BW211: 1 | BX211: 1 | BY211: 1 | BZ211: 1 | CA211: 1 | CB211: 1 | CC211: 1 | CD211: 1 | CE211: 1 | CF211: 1 | CG211: 1 | CH211: 1 | CI211: 1 | CJ211: 1 | CK211: 1 | CL211: 1 | CM211: 1 | CN211: 1 | CO211: 1 | CP211: 1 | CQ211: 1 | CR211: 1 | CS211: 1 | CT211: 1 | CU211: 1 | CV211: 1 | CW211: 1 | CX211: 1 | CY211: 1 | CZ211: =IF(OR(D211=0,CY$210-D$210=0),0,LN(CY211/D211)/(CY$210-D$210)) -> -4.037174635e-17 | DA211: =IF(OR(CT211=0,CY$210-CT$210=0),0,LN(CY211/CT211)/(CY$210-CT$210)) -> 1.33226763e-16
C212: pK | D212: =N47 -> 0.25 | E212: =D211*a*alpha*(D313/D225)*(D219/D313)^(1-rho) -> 0.25 | F212: 0.25 | G212: 0.25 | H212: 0.25 | I212: 0.25 | J212: 0.25 | K212: 0.2499999999 | L212: 0.2499999999 | M212: 0.2499999999 | N212: 0.2499999999 | O212: 0.2499999999 | P212: 0.2499999999 | Q212: 0.2499999999 | R212: 0.2499999999 | S212: 0.2499999999 | T212: 0.2499999999 | U212: 0.2499999999 | V212: 0.2499999999 | W212: 0.2499999999 | X212: 0.2499999999 | Y212: 0.2499999999 | Z212: 0.2499999999 | AA212: 0.25 | AB212: 0.25 | AC212: 0.25 | AD212: 0.25 | AE212: 0.25 | AF212: 0.25 | AG212: 0.25 | AH212: 0.25 | AI212: 0.25 | AJ212: 0.25 | AK212: =AJ211*a*alpha*(AJ313/AJ225)*(AJ219/AJ313)^(1-rho) -> 0.25 | AL212: 0.25 | AM212: 0.25 | AN212: 0.25 | AO212: 0.25 | AP212: 0.25 | AQ212: 0.25 | AR212: 0.25 | AS212: 0.25 | AT212: 0.25 | AU212: 0.25 | AV212: 0.25 | AW212: 0.25 | AX212: 0.25 | AY212: 0.25 | AZ212: 0.25 | BA212: 0.25 | BB212: 0.25 | BC212: 0.25 | BD212: 0.25 | BE212: 0.25 | BF212: 0.25 | BG212: 0.25 | BH212: 0.25 | BI212: 0.25 | BJ212: 0.25 | BK212: 0.25 | BL212: 0.25 | BM212: 0.25 | BN212: 0.25 | BO212: 0.25 | BP212: 0.25 | BQ212: =BP211*a*alpha*(BP313/BP225)*(BP219/BP313)^(1-rho) -> 0.25 | BR212: 0.25 | BS212: 0.25 | BT212: 0.25 | BU212: 0.25 | BV212: 0.25 | BW212: 0.25 | BX212: 0.25 | BY212: 0.25 | BZ212: 0.25 | CA212: 0.25 | CB212: 0.25 | CC212: 0.25 | CD212: 0.25 | CE212: 0.25 | CF212: 0.25 | CG212: 0.25 | CH212: 0.25 | CI212: 0.25 | CJ212: 0.25 | CK212: 0.25 | CL212: 0.25 | CM212: 0.25 | CN212: 0.25 | CO212: 0.25 | CP212: 0.25 | CQ212: 0.25 | CR212: 0.25 | CS212: 0.25 | CT212: 0.25 | CU212: 0.25 | CV212: 0.25 | CW212: 0.25 | CX212: 0.25 | CY212: 0.25 | CZ212: =IF(OR(D212=0,CY$210-D$210=0),0,LN(CY212/D212)/(CY$210-D$210)) -> 1.906443578e-16 | DA212: =IF(OR(CT212=0,CY$210-CT$210=0),0,LN(CY212/CT212)/(CY$210-CT$210)) -> -1.33226763e-16
C213: pL | D213: =N48 -> 0.75 | E213: =D211*a*(1-alpha)*(D313/D226)*(D219/D313)^(1-rho) -> 0.75 | F213: 0.75 | G213: 0.75 | H213: 0.75 | I213: 0.75 | J213: 0.75 | K213: 0.7500000001 | L213: 0.7500000001 | M213: 0.7500000001 | N213: 0.7500000001 | O213: 0.7500000001 | P213: 0.7500000001 | Q213: 0.7500000001 | R213: 0.7500000001 | S213: 0.7500000001 | T213: 0.7500000001 | U213: 0.7500000001 | V213: 0.7500000001 | W213: 0.7500000001 | X213: 0.7500000001 | Y213: 0.7500000001 | Z213: 0.7500000001 | AA213: 0.75 | AB213: 0.75 | AC213: 0.75 | AD213: 0.75 | AE213: 0.75 | AF213: 0.75 | AG213: 0.75 | AH213: 0.75 | AI213: 0.75 | AJ213: 0.75 | AK213: =AJ211*a*(1-alpha)*(AJ313/AJ226)*(AJ219/AJ313)^(1-rho) -> 0.75 | AL213: 0.75 | AM213: 0.75 | AN213: 0.75 | AO213: 0.75 | AP213: 0.75 | AQ213: 0.75 | AR213: 0.75 | AS213: 0.75 | AT213: 0.75 | AU213: 0.75 | AV213: 0.75 | AW213: 0.75 | AX213: 0.75 | AY213: 0.75 | AZ213: 0.75 | BA213: 0.75 | BB213: 0.75 | BC213: 0.75 | BD213: 0.75 | BE213: 0.75 | BF213: 0.75 | BG213: 0.75 | BH213: 0.75 | BI213: 0.75 | BJ213: 0.75 | BK213: 0.75 | BL213: 0.75 | BM213: 0.75 | BN213: 0.75 | BO213: 0.75 | BP213: 0.75 | BQ213: =BP211*a*(1-alpha)*(BP313/BP226)*(BP219/BP313)^(1-rho) -> 0.75 | BR213: 0.75 | BS213: 0.75 | BT213: 0.75 | BU213: 0.75 | BV213: 0.75 | BW213: 0.75 | BX213: 0.75 | BY213: 0.75 | BZ213: 0.75 | CA213: 0.75 | CB213: 0.75 | CC213: 0.75 | CD213: 0.75 | CE213: 0.75 | CF213: 0.75 | CG213: 0.75 | CH213: 0.75 | CI213: 0.75 | CJ213: 0.75 | CK213: 0.75 | CL213: 0.75 | CM213: 0.75 | CN213: 0.75 | CO213: 0.75 | CP213: 0.75 | CQ213: 0.75 | CR213: 0.75 | CS213: 0.75 | CT213: 0.75 | CU213: 0.75 | CV213: 0.75 | CW213: 0.75 | CX213: 0.75 | CY213: 0.75 | CZ213: =IF(OR(D213=0,CY$210-D$210=0),0,LN(CY213/D213)/(CY$210-D$210)) -> -9.420074148e-17 | DA213: =IF(OR(CT213=0,CY$210-CT$210=0),0,LN(CY213/CT213)/(CY$210-CT$210)) -> -4.440892099e-16
C214: pR | D214: =N50 -> 0.3247595264 | E214: =E331*(E212/E328)^beta*(E213/E329)^(1-beta)*beta^beta*(1-beta)^(1-beta) -> 0.3247595264 | F214: 0.3247595261 | G214: 0.3247595257 | H214: 0.3247595255 | I214: 0.3247595253 | J214: 0.3247595252 | K214: 0.3247595251 | L214: 0.3247595252 | M214: 0.3247595252 | N214: 0.3247595253 | O214: 0.3247595254 | P214: 0.3247595255 | Q214: 0.3247595256 | R214: 0.3247595258 | S214: 0.3247595259 | T214: 0.324759526 | U214: 0.3247595261 | V214: 0.3247595262 | W214: 0.3247595262 | X214: 0.3247595263 | Y214: 0.3247595263 | Z214: 0.3247595264 | AA214: 0.3247595264 | AB214: 0.3247595264 | AC214: 0.3247595265 | AD214: 0.3247595265 | AE214: 0.3247595265 | AF214: 0.3247595265 | AG214: 0.3247595265 | AH214: 0.3247595265 | AI214: 0.3247595265 | AJ214: 0.3247595265 | AK214: =AK331*(AK212/AK328)^beta*(AK213/AK329)^(1-beta)*beta^beta*(1-beta)^(1-beta) -> 0.3247595265 | AL214: 0.3247595264 | AM214: 0.3247595264 | AN214: 0.3247595264 | AO214: 0.3247595264 | AP214: 0.3247595264 | AQ214: 0.3247595264 | AR214: 0.3247595264 | AS214: 0.3247595264 | AT214: 0.3247595264 | AU214: 0.3247595264 | AV214: 0.3247595264 | AW214: 0.3247595264 | AX214: 0.3247595264 | AY214: 0.3247595264 | AZ214: 0.3247595264 | BA214: 0.3247595264 | BB214: 0.3247595264 | BC214: 0.3247595264 | BD214: 0.3247595264 | BE214: 0.3247595264 | BF214: 0.3247595264 | BG214: 0.3247595264 | BH214: 0.3247595264 | BI214: 0.3247595264 | BJ214: 0.3247595264 | BK214: 0.3247595264 | BL214: 0.3247595264 | BM214: 0.3247595264 | BN214: 0.3247595264 | BO214: 0.3247595264 | BP214: 0.3247595264 | BQ214: =BQ331*(BQ212/BQ328)^beta*(BQ213/BQ329)^(1-beta)*beta^beta*(1-beta)^(1-beta) -> 0.3247595264 | BR214: 0.3247595264 | BS214: 0.3247595264 | BT214: 0.3247595264 | BU214: 0.3247595264 | BV214: 0.3247595264 | BW214: 0.3247595264 | BX214: 0.3247595264 | BY214: 0.3247595264 | BZ214: 0.3247595264 | CA214: 0.3247595264 | CB214: 0.3247595264 | CC214: 0.3247595264 | CD214: 0.3247595264 | CE214: 0.3247595264 | CF214: 0.3247595264 | CG214: 0.3247595264 | CH214: 0.3247595264 | CI214: 0.3247595264 | CJ214: 0.3247595264 | CK214: 0.3247595264 | CL214: 0.3247595264 | CM214: 0.3247595264 | CN214: 0.3247595264 | CO214: 0.3247595264 | CP214: 0.3247595264 | CQ214: 0.3247595264 | CR214: 0.3247595264 | CS214: 0.3247595264 | CT214: 0.3247595264 | CU214: 0.3247595264 | CV214: 0.3247595264 | CW214: =CW331*(CW212/CW328)^beta*(CW213/CW329)^(1-beta)*beta^beta*(1-beta)^(1-beta) -> 0.3247595264 | CX214: 0.3247595264 | CY214: 0.3247595264 | CZ214: =IF(OR(D214=0,CY$210-D$210=0),0,LN(CY214/D214)/(CY$210-D$210)) -> -1.368153626e-16 | DA214: =IF(OR(CT214=0,CY$210-CT$210=0),0,LN(CY214/CT214)/(CY$210-CT$210)) -> 2.26485497e-15
C215: pK - d | D215: =D212-d -> 2.997602166e-15 | E215: 3.053113318e-15 | F215: 4.607425552e-15 | G215: 5.495603972e-15 | H215: -1.029956676e-11 | I215: -2.691624701e-11 | J215: -4.685352106e-11 | K215: -6.725503487e-11 | L215: -8.611866775e-11 | M215: -1.021282503e-10 | N215: -1.145496475e-10 | O215: -1.230958946e-10 | P215: -1.278112061e-10 | Q215: -1.289704454e-10 | R215: -1.26998273e-10 | S215: -1.22402255e-10 | T215: -1.157230978e-10 | U215: -1.074957068e-10 | V215: -9.822190283e-11 | W215: -8.835371323e-11 | X215: -7.828132587e-11 | Y215: -6.832928667e-11 | Z215: -5.875622211e-11 | AA215: -4.975739265e-11 | AB215: -4.147052146e-11 | AC215: -3.398270554e-11 | AD215: -2.733691051e-11 | AE215: -2.154038059e-11 | AF215: -1.657163295e-11 | AG215: -1.238747993e-11 | AH215: -8.929301742e-12 | AI215: -6.128764163e-12 | AJ215: =AJ212-d -> -3.911315716e-12 | AK215: -2.20168328e-12 | AL215: -9.249268018e-13 | AM215: -1.046385201e-14 | AN215: 6.072919945e-13 | AO215: 9.880429808e-13 | AP215: 1.184663478e-12 | AQ215: 1.242339565e-12 | AR215: 1.200040067e-12 | AS215: 1.089961454e-12 | AT215: 9.378609001e-13 | AU215: 7.643330413e-13 | AV215: 5.853095786e-13 | AW215: 4.121702979e-13 | AX215: 2.527977827e-13 | AY215: 1.120215032e-13 | AZ215: -7.299716387e-15 | BA215: -1.040834086e-13 | BB215: -1.789957071e-13 | BC215: -2.335909244e-13 | BD215: -2.695066392e-13 | BE215: -2.895184092e-13 | BF215: -2.960132139e-13 | BG215: -2.914890551e-13 | BH215: -2.78610468e-13 | BI215: -2.594591209e-13 | BJ215: -2.360056595e-13 | BK215: -2.100541963e-13 | BL215: -1.831035323e-13 | BM215: -1.561528684e-13 | BN215: -1.302291608e-13 | BO215: -1.059985433e-13 | BP215: =BP212-d -> -8.382183836e-14 | BQ215: -6.394884622e-14 | BR215: -4.657385588e-14 | BS215: -3.161360063e-14 | BT215: -1.91235916e-14 | BU215: -9.131584378e-15 | BV215: -1.165734176e-15 | BW215: 4.996003611e-15 | BX215: 9.603429163e-15 | BY215: 1.310063169e-14 | BZ215: 1.537658889e-14 | CA215: 1.665334537e-14 | CB215: 1.743050149e-14 | CC215: 1.759703494e-14 | CD215: 1.709743458e-14 | CE215: 1.632027846e-14 | CF215: 1.55986335e-14 | CG215: 1.454392162e-14 | CH215: 1.35447209e-14 | CI215: 1.265654248e-14 | CJ215: 1.210143097e-14 | CK215: 1.10467191e-14 | CL215: 1.032507413e-14 | CM215: 9.603429163e-15 | CN215: 9.159339953e-15 | CO215: 8.770761895e-15 | CP215: 8.271161533e-15 | CQ215: 8.215650382e-15 | CR215: 7.771561172e-15 | CS215: 7.605027719e-15 | CT215: 7.882583475e-15 | CU215: 7.827072324e-15 | CV215: 7.771561172e-15 | CW215: 7.716050021e-15 | CX215: 7.549516567e-15 | CY215: 7.716050021e-15 | CZ215: =IF(OR(D215=0,CY$210-D$210=0),0,LN(7.71605002114484E-15/2.99760216648792E-15)/(CY$210-D$210)) -> 0.009550402895 | DA215: =IF(OR(CT215=0,CY$210-CT$210=0),0,LN(CY215/CT215)/(CY$210-CT$210)) -> -0.004270624894
C217: Primal-side Calculations
C218: Physical Measures | D218: =D$210 -> 1 | E218: =E$210 -> 2 | F218: 3 | G218: 4 | H218: 5 | I218: 6 | J218: 7 | K218: 8 | L218: 9 | M218: 10 | N218: 11 | O218: 12 | P218: 13 | Q218: 14 | R218: 15 | S218: 16 | T218: 17 | U218: 18 | V218: 19 | W218: 20 | X218: 21 | Y218: 22 | Z218: 23 | AA218: 24 | AB218: 25 | AC218: 26 | AD218: 27 | AE218: 28 | AF218: 29 | AG218: 30 | AH218: 31 | AI218: 32 | AJ218: 33 | AK218: 34 | AL218: 35 | AM218: 36 | AN218: 37 | AO218: 38 | AP218: 39 | AQ218: 40 | AR218: 41 | AS218: 42 | AT218: 43 | AU218: 44 | AV218: 45 | AW218: 46 | AX218: 47 | AY218: 48 | AZ218: 49 | BA218: 50 | BB218: 51 | BC218: 52 | BD218: 53 | BE218: 54 | BF218: 55 | BG218: 56 | BH218: 57 | BI218: 58 | BJ218: 59 | BK218: 60 | BL218: 61 | BM218: 62 | BN218: 63 | BO218: 64 | BP218: 65 | BQ218: =BQ$210 -> 66 | BR218: 67 | BS218: 68 | BT218: 69 | BU218: 70 | BV218: 71 | BW218: 72 | BX218: 73 | BY218: 74 | BZ218: 75 | CA218: 76 | CB218: 77 | CC218: 78 | CD218: 79 | CE218: 80 | CF218: 81 | CG218: 82 | CH218: 83 | CI218: 84 | CJ218: 85 | CK218: 86 | CL218: 87 | CM218: 88 | CN218: 89 | CO218: 90 | CP218: 91 | CQ218: 92 | CR218: 93 | CS218: 94 | CT218: 95 | CU218: 96 | CV218: 97 | CW218: 98 | CX218: 99 | CY218: 100
C219: Real final output, Y | D219: =F46 -> 1 | E219: =(a*E313^rho+(1-a)*E314^rho)^(1/rho) -> 1 | F219: =(a*F313^rho+(1-a)*F314^rho)^(1/rho) -> 1 | G219: 1 | H219: 1.000000001 | I219: 1.000000001 | J219: 1.000000001 | K219: 1.000000001 | L219: 1.000000001 | M219: 1.000000001 | N219: 1.000000001 | O219: 1.000000001 | P219: 1.000000001 | Q219: 1.000000001 | R219: 1.000000001 | S219: 1 | T219: 1 | U219: 1 | V219: 1 | W219: 1 | X219: 1 | Y219: 1 | Z219: 1 | AA219: 1 | AB219: 1 | AC219: 1 | AD219: 1 | AE219: 1 | AF219: 1 | AG219: 1 | AH219: 1 | AI219: 1 | AJ219: 1 | AK219: =(a*AK313^rho+(1-a)*AK314^rho)^(1/rho) -> 1 | AL219: 1 | AM219: 1 | AN219: 1 | AO219: 1 | AP219: 1 | AQ219: 1 | AR219: 1 | AS219: 1 | AT219: 1 | AU219: 1 | AV219: 1 | AW219: 1 | AX219: 1 | AY219: 1 | AZ219: 1 | BA219: 1 | BB219: 1 | BC219: 1 | BD219: 1 | BE219: 1 | BF219: 1 | BG219: 1 | BH219: 1 | BI219: 1 | BJ219: 1 | BK219: 1 | BL219: 1 | BM219: 1 | BN219: 1 | BO219: 1 | BP219: 1 | BQ219: =(a*BQ313^rho+(1-a)*BQ314^rho)^(1/rho) -> 1 | BR219: 1 | BS219: 1 | BT219: 1 | BU219: 1 | BV219: 1 | BW219: 1 | BX219: 1 | BY219: 1 | BZ219: 1 | CA219: 1 | CB219: 1 | CC219: 1 | CD219: 1 | CE219: 1 | CF219: 1 | CG219: 1 | CH219: 1 | CI219: 1 | CJ219: 1 | CK219: 1 | CL219: 1 | CM219: 1 | CN219: 1 | CO219: 1 | CP219: 1 | CQ219: 1 | CR219: 1 | CS219: 1 | CT219: 1 | CU219: 1 | CV219: 1 | CW219: 1 | CX219: 1 | CY219: 1 | CZ219: =IF(OR(D219=0,CY$210-D$210=0),0,LN(CY219/D219)/(CY$210-D$210)) -> -5.607186993e-17 | DA219: =IF(OR(CT219=0,CY$210-CT$210=0),0,LN(CY219/CT219)/(CY$210-CT$210)) -> -6.217248938e-16
C220: Workforce, Ł | D220: =Ł0 -> 2.666666667 | E220: =$D$220*EXP(n*E218) -> 2.666666667 | F220: 2.666666667 | G220: 2.666666667 | H220: 2.666666667 | I220: 2.666666667 | J220: 2.666666667 | K220: 2.666666667 | L220: 2.666666667 | M220: 2.666666667 | N220: 2.666666667 | O220: 2.666666667 | P220: 2.666666667 | Q220: 2.666666667 | R220: 2.666666667 | S220: 2.666666667 | T220: 2.666666667 | U220: 2.666666667 | V220: 2.666666667 | W220: 2.666666667 | X220: 2.666666667 | Y220: 2.666666667 | Z220: 2.666666667 | AA220: 2.666666667 | AB220: 2.666666667 | AC220: 2.666666667 | AD220: 2.666666667 | AE220: 2.666666667 | AF220: 2.666666667 | AG220: 2.666666667 | AH220: 2.666666667 | AI220: 2.666666667 | AJ220: 2.666666667 | AK220: =$D$220*EXP(n*AK218) -> 2.666666667 | AL220: 2.666666667 | AM220: 2.666666667 | AN220: 2.666666667 | AO220: 2.666666667 | AP220: 2.666666667 | AQ220: 2.666666667 | AR220: 2.666666667 | AS220: 2.666666667 | AT220: 2.666666667 | AU220: 2.666666667 | AV220: 2.666666667 | AW220: 2.666666667 | AX220: 2.666666667 | AY220: 2.666666667 | AZ220: 2.666666667 | BA220: 2.666666667 | BB220: 2.666666667 | BC220: 2.666666667 | BD220: 2.666666667 | BE220: 2.666666667 | BF220: 2.666666667 | BG220: 2.666666667 | BH220: 2.666666667 | BI220: 2.666666667 | BJ220: 2.666666667 | BK220: 2.666666667 | BL220: 2.666666667 | BM220: 2.666666667 | BN220: 2.666666667 | BO220: 2.666666667 | BP220: 2.666666667 | BQ220: =$D$220*EXP(n*BQ218) -> 2.666666667 | BR220: 2.666666667 | BS220: 2.666666667 | BT220: 2.666666667 | BU220: 2.666666667 | BV220: 2.666666667 | BW220: 2.666666667 | BX220: 2.666666667 | BY220: 2.666666667 | BZ220: 2.666666667 | CA220: 2.666666667 | CB220: 2.666666667 | CC220: 2.666666667 | CD220: 2.666666667 | CE220: 2.666666667 | CF220: 2.666666667 | CG220: 2.666666667 | CH220: 2.666666667 | CI220: 2.666666667 | CJ220: 2.666666667 | CK220: 2.666666667 | CL220: 2.666666667 | CM220: 2.666666667 | CN220: 2.666666667 | CO220: 2.666666667 | CP220: 2.666666667 | CQ220: 2.666666667 | CR220: 2.666666667 | CS220: 2.666666667 | CT220: 2.666666667 | CU220: 2.666666667 | CV220: 2.666666667 | CW220: 2.666666667 | CX220: 2.666666667 | CY220: 2.666666667 | CZ220: =IF(OR(D220=0,CY$210-D$210=0),0,LN(CY220/D220)/(CY$210-D$210)) -> 0 | DA220: =IF(OR(CT220=0,CY$210-CT$210=0),0,LN(CY220/CT220)/(CY$210-CT$210)) -> 0
C221: Employed workforce, L | D221: =L0 -> 1 | E221: =E220-E273 -> 1 | F221: 1 | G221: 1 | H221: 1 | I221: 1 | J221: 1 | K221: 1 | L221: 1 | M221: 1 | N221: 1 | O221: 1 | P221: 1 | Q221: 1 | R221: 1 | S221: 1 | T221: 1 | U221: 1 | V221: 1 | W221: 1 | X221: 1 | Y221: 1 | Z221: 1 | AA221: 1 | AB221: 1 | AC221: 1 | AD221: 1 | AE221: 1 | AF221: 1 | AG221: 1 | AH221: 1 | AI221: 1 | AJ221: 1 | AK221: =AK220-AK273 -> 1 | AL221: 1 | AM221: 1 | AN221: 1 | AO221: 1 | AP221: 1 | AQ221: 1 | AR221: 1 | AS221: 1 | AT221: 1 | AU221: 1 | AV221: 1 | AW221: 1 | AX221: 1 | AY221: 1 | AZ221: 1 | BA221: 1 | BB221: 1 | BC221: 1 | BD221: 1 | BE221: 1 | BF221: 1 | BG221: 1 | BH221: 1 | BI221: 1 | BJ221: 1 | BK221: 1 | BL221: 1 | BM221: 1 | BN221: 1 | BO221: 1 | BP221: 1 | BQ221: =BQ220-BQ273 -> 1 | BR221: 1 | BS221: 1 | BT221: 1 | BU221: 1 | BV221: 1 | BW221: 1 | BX221: 1 | BY221: 1 | BZ221: 1 | CA221: 1 | CB221: 1 | CC221: 1 | CD221: 1 | CE221: 1 | CF221: 1 | CG221: 1 | CH221: 1 | CI221: 1 | CJ221: 1 | CK221: 1 | CL221: 1 | CM221: 1 | CN221: 1 | CO221: 1 | CP221: 1 | CQ221: 1 | CR221: 1 | CS221: 1 | CT221: 1 | CU221: 1 | CV221: 1 | CW221: =CW220-CW273 -> 1 | CX221: 1 | CY221: 1 | CZ221: =IF(OR(D221=0,CY$210-D$210=0),0,LN(CY221/D221)/(CY$210-D$210)) -> 0 | DA221: =IF(OR(CT221=0,CY$210-CT$210=0),0,LN(CY221/CT221)/(CY$210-CT$210)) -> -4.440892099e-17
C222: Investment, I | D222: =D272 -> 0.25 | E222: =D272 -> 0.25 | F222: 0.25 | G222: 0.25 | H222: 0.2500000001 | I222: 0.2500000001 | J222: 0.2500000002 | K222: 0.2500000002 | L222: 0.2500000002 | M222: 0.2500000002 | N222: =M272 -> 0.2500000002 | O222: 0.2500000002 | P222: 0.2500000002 | Q222: 0.2500000002 | R222: =Q272 -> 0.2500000001 | S222: 0.2500000001 | T222: 0.2500000001 | U222: 0.2500000001 | V222: 0.2500000001 | W222: 0.2500000001 | X222: 0.2500000001 | Y222: 0.25 | Z222: 0.25 | AA222: 0.25 | AB222: 0.25 | AC222: 0.25 | AD222: 0.25 | AE222: 0.25 | AF222: 0.25 | AG222: 0.25 | AH222: 0.25 | AI222: 0.25 | AJ222: 0.25 | AK222: 0.25 | AL222: 0.25 | AM222: 0.25 | AN222: 0.25 | AO222: 0.25 | AP222: 0.25 | AQ222: 0.25 | AR222: 0.25 | AS222: 0.25 | AT222: 0.25 | AU222: 0.25 | AV222: 0.25 | AW222: 0.25 | AX222: 0.25 | AY222: 0.25 | AZ222: 0.25 | BA222: 0.25 | BB222: 0.25 | BC222: 0.25 | BD222: 0.25 | BE222: 0.25 | BF222: 0.25 | BG222: 0.25 | BH222: 0.25 | BI222: 0.25 | BJ222: 0.25 | BK222: 0.25 | BL222: 0.25 | BM222: 0.25 | BN222: 0.25 | BO222: 0.25 | BP222: 0.25 | BQ222: =BP272 -> 0.25 | BR222: 0.25 | BS222: 0.25 | BT222: 0.25 | BU222: 0.25 | BV222: 0.25 | BW222: 0.25 | BX222: 0.25 | BY222: 0.25 | BZ222: 0.25 | CA222: 0.25 | CB222: 0.25 | CC222: 0.25 | CD222: 0.25 | CE222: 0.25 | CF222: 0.25 | CG222: 0.25 | CH222: 0.25 | CI222: 0.25 | CJ222: 0.25 | CK222: 0.25 | CL222: 0.25 | CM222: 0.25 | CN222: 0.25 | CO222: 0.25 | CP222: 0.25 | CQ222: 0.25 | CR222: 0.25 | CS222: 0.25 | CT222: 0.25 | CU222: 0.25 | CV222: 0.25 | CW222: 0.25 | CX222: 0.25 | CY222: 0.25 | CZ222: =IF(OR(D222=0,CY$210-D$210=0),0,LN(CY222/D222)/(CY$210-D$210)) -> -4.934324554e-17 | DA222: =IF(OR(CT222=0,CY$210-CT$210=0),0,LN(CY222/CT222)/(CY$210-CT$210)) -> -5.773159728e-16
C223: K | D223: =D225+D228 -> 1 | E223: =(1-d)*D223+E222 -> 1 | F223: 1 | G223: 1 | H223: 1 | I223: 1 | J223: 1 | K223: 1 | L223: 1.000000001 | M223: 1.000000001 | N223: =(1-d)*M223+N222 -> 1.000000001 | O223: 1.000000001 | P223: 1.000000001 | Q223: 1.000000001 | R223: =(1-d)*Q223+R222 -> 1.000000001 | S223: 1.000000001 | T223: 1.000000001 | U223: 1.000000001 | V223: 1 | W223: 1 | X223: 1 | Y223: 1 | Z223: 1 | AA223: 1 | AB223: 1 | AC223: 1 | AD223: 1 | AE223: 1 | AF223: 1 | AG223: 1 | AH223: 1 | AI223: 1 | AJ223: 1 | AK223: =(1-d)*AJ223+AK222 -> 1 | AL223: 1 | AM223: 1 | AN223: 1 | AO223: 1 | AP223: 1 | AQ223: 1 | AR223: 1 | AS223: 1 | AT223: 1 | AU223: 1 | AV223: 1 | AW223: 1 | AX223: 1 | AY223: 1 | AZ223: 1 | BA223: 1 | BB223: 1 | BC223: 1 | BD223: 1 | BE223: 1 | BF223: 1 | BG223: 1 | BH223: 1 | BI223: 1 | BJ223: 1 | BK223: 1 | BL223: 1 | BM223: 1 | BN223: 1 | BO223: 1 | BP223: 1 | BQ223: =(1-d)*BP223+BQ222 -> 1 | BR223: 1 | BS223: 1 | BT223: 1 | BU223: 1 | BV223: 1 | BW223: 1 | BX223: 1 | BY223: 1 | BZ223: 1 | CA223: 1 | CB223: 1 | CC223: 1 | CD223: 1 | CE223: 1 | CF223: 1 | CG223: 1 | CH223: 1 | CI223: 1 | CJ223: 1 | CK223: 1 | CL223: 1 | CM223: 1 | CN223: 1 | CO223: 1 | CP223: 1 | CQ223: 1 | CR223: 1 | CS223: 1 | CT223: 1 | CU223: 1 | CV223: 1 | CW223: =(1-d)*CV223+CW222 -> 1 | CX223: =(1-d)*CW223+CX222 -> 1 | CY223: =(1-d)*CX223+CY222 -> 1 | CZ223: =IF(OR(D223=0,CY$210-D$210=0),0,LN(CY223/D223)/(CY$210-D$210)) -> -2.826022245e-16 | DA223: =IF(OR(CT223=0,CY$210-CT$210=0),0,LN(CY223/CT223)/(CY$210-CT$210)) -> -3.552713679e-16
C225: KX | D225: =F47 -> 0.8235052131 | E225: =(E322/(1+E322))*E223 -> 0.8235052131 | F225: 0.8235052132 | G225: 0.8235052133 | H225: 0.8235052134 | I225: 0.8235052135 | J225: 0.8235052136 | K225: 0.8235052137 | L225: 0.8235052138 | M225: 0.8235052138 | N225: 0.8235052138 | O225: 0.8235052139 | P225: 0.8235052138 | Q225: 0.8235052138 | R225: 0.8235052138 | S225: 0.8235052137 | T225: 0.8235052137 | U225: 0.8235052136 | V225: 0.8235052136 | W225: 0.8235052135 | X225: 0.8235052135 | Y225: 0.8235052134 | Z225: 0.8235052134 | AA225: 0.8235052133 | AB225: 0.8235052133 | AC225: 0.8235052133 | AD225: 0.8235052132 | AE225: 0.8235052132 | AF225: 0.8235052132 | AG225: 0.8235052132 | AH225: 0.8235052132 | AI225: 0.8235052132 | AJ225: 0.8235052132 | AK225: =(AK322/(1+AK322))*AK223 -> 0.8235052132 | AL225: 0.8235052131 | AM225: 0.8235052131 | AN225: 0.8235052131 | AO225: 0.8235052131 | AP225: 0.8235052131 | AQ225: 0.8235052131 | AR225: 0.8235052131 | AS225: 0.8235052131 | AT225: 0.8235052131 | AU225: 0.8235052131 | AV225: 0.8235052131 | AW225: 0.8235052131 | AX225: 0.8235052131 | AY225: 0.8235052132 | AZ225: 0.8235052132 | BA225: 0.8235052132 | BB225: 0.8235052132 | BC225: 0.8235052132 | BD225: 0.8235052132 | BE225: 0.8235052132 | BF225: 0.8235052132 | BG225: 0.8235052132 | BH225: 0.8235052132 | BI225: 0.8235052132 | BJ225: 0.8235052132 | BK225: 0.8235052132 | BL225: 0.8235052132 | BM225: 0.8235052132 | BN225: 0.8235052132 | BO225: 0.8235052132 | BP225: 0.8235052132 | BQ225: =(BQ322/(1+BQ322))*BQ223 -> 0.8235052132 | BR225: 0.8235052132 | BS225: 0.8235052131 | BT225: 0.8235052131 | BU225: 0.8235052131 | BV225: 0.8235052131 | BW225: 0.8235052131 | BX225: 0.8235052131 | BY225: 0.8235052131 | BZ225: 0.8235052131 | CA225: 0.8235052131 | CB225: 0.8235052131 | CC225: 0.8235052131 | CD225: 0.8235052131 | CE225: 0.8235052131 | CF225: 0.8235052131 | CG225: 0.8235052131 | CH225: 0.8235052131 | CI225: 0.8235052131 | CJ225: 0.8235052131 | CK225: 0.8235052131 | CL225: 0.8235052131 | CM225: 0.8235052131 | CN225: 0.8235052131 | CO225: 0.8235052131 | CP225: 0.8235052131 | CQ225: 0.8235052131 | CR225: 0.8235052131 | CS225: 0.8235052131 | CT225: 0.8235052131 | CU225: 0.8235052131 | CV225: 0.8235052131 | CW225: 0.8235052131 | CX225: 0.8235052131 | CY225: 0.8235052131 | CZ225: =IF(OR(D225=0,CY$210-D$210=0),0,LN(CY225/D225)/(CY$210-D$210)) -> -2.769950375e-16 | DA225: =IF(OR(CT225=0,CY$210-CT$210=0),0,LN(CY225/CT225)/(CY$210-CT$210)) -> -5.107025913e-16
C226: LX | D226: =F48 -> 0.8235052131 | E226: =(E321/(1+E321))*E221 -> 0.8235052131 | F226: 0.8235052132 | G226: 0.8235052132 | H226: 0.8235052133 | I226: 0.8235052133 | J226: 0.8235052133 | K226: 0.8235052133 | L226: 0.8235052133 | M226: 0.8235052133 | N226: 0.8235052133 | O226: 0.8235052133 | P226: 0.8235052133 | Q226: 0.8235052133 | R226: 0.8235052132 | S226: 0.8235052132 | T226: 0.8235052132 | U226: 0.8235052132 | V226: 0.8235052132 | W226: 0.8235052132 | X226: 0.8235052132 | Y226: 0.8235052132 | Z226: 0.8235052132 | AA226: 0.8235052132 | AB226: 0.8235052132 | AC226: 0.8235052131 | AD226: 0.8235052131 | AE226: 0.8235052131 | AF226: 0.8235052131 | AG226: 0.8235052131 | AH226: 0.8235052131 | AI226: 0.8235052131 | AJ226: 0.8235052131 | AK226: =(AK321/(1+AK321))*AK221 -> 0.8235052131 | AL226: 0.8235052131 | AM226: 0.8235052131 | AN226: 0.8235052131 | AO226: 0.8235052131 | AP226: 0.8235052131 | AQ226: 0.8235052131 | AR226: 0.8235052131 | AS226: 0.8235052131 | AT226: 0.8235052131 | AU226: 0.8235052132 | AV226: 0.8235052132 | AW226: 0.8235052132 | AX226: 0.8235052132 | AY226: 0.8235052132 | AZ226: 0.8235052132 | BA226: 0.8235052132 | BB226: 0.8235052132 | BC226: 0.8235052132 | BD226: 0.8235052132 | BE226: 0.8235052132 | BF226: 0.8235052132 | BG226: 0.8235052132 | BH226: 0.8235052132 | BI226: 0.8235052132 | BJ226: 0.8235052131 | BK226: 0.8235052131 | BL226: 0.8235052131 | BM226: 0.8235052131 | BN226: 0.8235052131 | BO226: 0.8235052131 | BP226: 0.8235052131 | BQ226: =(BQ321/(1+BQ321))*BQ221 -> 0.8235052131 | BR226: 0.8235052131 | BS226: 0.8235052131 | BT226: 0.8235052131 | BU226: 0.8235052131 | BV226: 0.8235052131 | BW226: 0.8235052131 | BX226: 0.8235052131 | BY226: 0.8235052131 | BZ226: 0.8235052131 | CA226: 0.8235052131 | CB226: 0.8235052131 | CC226: 0.8235052131 | CD226: 0.8235052131 | CE226: 0.8235052131 | CF226: 0.8235052131 | CG226: 0.8235052131 | CH226: 0.8235052131 | CI226: 0.8235052131 | CJ226: 0.8235052131 | CK226: 0.8235052131 | CL226: 0.8235052131 | CM226: 0.8235052131 | CN226: 0.8235052131 | CO226: 0.8235052131 | CP226: 0.8235052131 | CQ226: 0.8235052131 | CR226: 0.8235052131 | CS226: 0.8235052131 | CT226: 0.8235052131 | CU226: 0.8235052131 | CV226: 0.8235052131 | CW226: 0.8235052131 | CX226: 0.8235052131 | CY226: 0.8235052131 | CZ226: =IF(OR(D226=0,CY$210-D$210=0),0,LN(CY226/D226)/(CY$210-D$210)) -> 6.728624392e-18 | DA226: =IF(OR(CT226=0,CY$210-CT$210=0),0,LN(CY226/CT226)/(CY$210-CT$210)) -> -1.998401444e-16
C228: KR | D228: =F49 -> 0.1764947869 | E228: =(1/(1+E322))*E223 -> 0.1764947869 | F228: 0.1764947868 | G228: 0.1764947868 | H228: 0.1764947867 | I228: 0.1764947867 | J228: 0.1764947867 | K228: 0.1764947867 | L228: 0.1764947868 | M228: 0.1764947868 | N228: 0.1764947868 | O228: 0.1764947868 | P228: 0.1764947868 | Q228: 0.1764947869 | R228: 0.1764947869 | S228: 0.1764947869 | T228: 0.1764947869 | U228: 0.1764947869 | V228: 0.1764947869 | W228: 0.1764947869 | X228: 0.1764947869 | Y228: 0.1764947869 | Z228: 0.1764947869 | AA228: 0.1764947869 | AB228: 0.1764947869 | AC228: 0.1764947869 | AD228: 0.1764947869 | AE228: 0.1764947869 | AF228: 0.1764947869 | AG228: 0.1764947869 | AH228: 0.1764947869 | AI228: 0.1764947869 | AJ228: 0.1764947869 | AK228: =(1/(1+AK322))*AK223 -> 0.1764947869 | AL228: 0.1764947869 | AM228: 0.1764947869 | AN228: 0.1764947869 | AO228: 0.1764947869 | AP228: 0.1764947869 | AQ228: 0.1764947868 | AR228: 0.1764947868 | AS228: 0.1764947868 | AT228: 0.1764947868 | AU228: 0.1764947868 | AV228: 0.1764947868 | AW228: 0.1764947868 | AX228: 0.1764947868 | AY228: 0.1764947868 | AZ228: 0.1764947868 | BA228: 0.1764947868 | BB228: 0.1764947868 | BC228: 0.1764947868 | BD228: 0.1764947869 | BE228: 0.1764947869 | BF228: 0.1764947869 | BG228: 0.1764947869 | BH228: 0.1764947869 | BI228: 0.1764947869 | BJ228: 0.1764947869 | BK228: 0.1764947869 | BL228: 0.1764947869 | BM228: 0.1764947869 | BN228: 0.1764947869 | BO228: 0.1764947869 | BP228: 0.1764947869 | BQ228: =(1/(1+BQ322))*BQ223 -> 0.1764947869 | BR228: 0.1764947869 | BS228: 0.1764947869 | BT228: 0.1764947869 | BU228: 0.1764947869 | BV228: 0.1764947869 | BW228: 0.1764947869 | BX228: 0.1764947869 | BY228: 0.1764947869 | BZ228: 0.1764947869 | CA228: 0.1764947869 | CB228: 0.1764947869 | CC228: 0.1764947869 | CD228: 0.1764947869 | CE228: 0.1764947869 | CF228: 0.1764947869 | CG228: 0.1764947869 | CH228: 0.1764947869 | CI228: 0.1764947869 | CJ228: 0.1764947869 | CK228: 0.1764947869 | CL228: 0.1764947869 | CM228: 0.1764947869 | CN228: 0.1764947869 | CO228: 0.1764947869 | CP228: 0.1764947869 | CQ228: 0.1764947869 | CR228: 0.1764947869 | CS228: 0.1764947869 | CT228: 0.1764947869 | CU228: 0.1764947869 | CV228: 0.1764947869 | CW228: 0.1764947869 | CX228: 0.1764947869 | CY228: 0.1764947869 | CZ228: =IF(OR(D228=0,CY$210-D$210=0),0,LN(CY228/D228)/(CY$210-D$210)) -> -3.128810342e-16 | DA228: =IF(OR(CT228=0,CY$210-CT$210=0),0,LN(CY228/CT228)/(CY$210-CT$210)) -> 3.552713679e-16
C229: LR | D229: =F50 -> 0.1764947869 | E229: =(1/(1+E321))*E221 -> 0.1764947869 | F229: 0.1764947868 | G229: 0.1764947867 | H229: 0.1764947867 | I229: 0.1764947867 | J229: 0.1764947867 | K229: 0.1764947867 | L229: 0.1764947867 | M229: 0.1764947867 | N229: 0.1764947867 | O229: 0.1764947867 | P229: 0.1764947867 | Q229: 0.1764947867 | R229: 0.1764947868 | S229: 0.1764947868 | T229: 0.1764947868 | U229: 0.1764947868 | V229: 0.1764947868 | W229: 0.1764947868 | X229: 0.1764947868 | Y229: 0.1764947868 | Z229: 0.1764947868 | AA229: 0.1764947869 | AB229: 0.1764947869 | AC229: 0.1764947869 | AD229: 0.1764947869 | AE229: 0.1764947869 | AF229: 0.1764947869 | AG229: 0.1764947869 | AH229: 0.1764947869 | AI229: 0.1764947869 | AJ229: 0.1764947869 | AK229: =(1/(1+AK321))*AK221 -> 0.1764947869 | AL229: 0.1764947869 | AM229: 0.1764947869 | AN229: 0.1764947869 | AO229: 0.1764947869 | AP229: 0.1764947869 | AQ229: 0.1764947869 | AR229: 0.1764947869 | AS229: 0.1764947869 | AT229: 0.1764947868 | AU229: 0.1764947868 | AV229: 0.1764947868 | AW229: 0.1764947868 | AX229: 0.1764947868 | AY229: 0.1764947868 | AZ229: 0.1764947868 | BA229: 0.1764947868 | BB229: 0.1764947868 | BC229: 0.1764947868 | BD229: 0.1764947868 | BE229: 0.1764947868 | BF229: 0.1764947868 | BG229: 0.1764947868 | BH229: 0.1764947868 | BI229: 0.1764947869 | BJ229: 0.1764947869 | BK229: 0.1764947869 | BL229: 0.1764947869 | BM229: 0.1764947869 | BN229: 0.1764947869 | BO229: 0.1764947869 | BP229: 0.1764947869 | BQ229: =(1/(1+BQ321))*BQ221 -> 0.1764947869 | BR229: 0.1764947869 | BS229: 0.1764947869 | BT229: 0.1764947869 | BU229: 0.1764947869 | BV229: 0.1764947869 | BW229: 0.1764947869 | BX229: 0.1764947869 | BY229: 0.1764947869 | BZ229: 0.1764947869 | CA229: 0.1764947869 | CB229: 0.1764947869 | CC229: 0.1764947869 | CD229: 0.1764947869 | CE229: 0.1764947869 | CF229: 0.1764947869 | CG229: 0.1764947869 | CH229: 0.1764947869 | CI229: 0.1764947869 | CJ229: 0.1764947869 | CK229: 0.1764947869 | CL229: 0.1764947869 | CM229: 0.1764947869 | CN229: 0.1764947869 | CO229: 0.1764947869 | CP229: 0.1764947869 | CQ229: 0.1764947869 | CR229: 0.1764947869 | CS229: 0.1764947869 | CT229: 0.1764947869 | CU229: 0.1764947869 | CV229: 0.1764947869 | CW229: 0.1764947869 | CX229: 0.1764947869 | CY229: 0.1764947869 | CZ229: =IF(OR(D229=0,CY$210-D$210=0),0,LN(CY229/D229)/(CY$210-D$210)) -> -3.027880976e-17 | DA229: =IF(OR(CT229=0,CY$210-CT$210=0),0,LN(CY229/CT229)/(CY$210-CT$210)) -> 6.661338148e-16
C232: Real final output, Y | D232: =D219 -> 1 | E232: =E219 -> 1 | F232: 1 | G232: 1 | H232: 1.000000001 | I232: 1.000000001 | J232: 1.000000001 | K232: 1.000000001 | L232: 1.000000001 | M232: 1.000000001 | N232: 1.000000001 | O232: 1.000000001 | P232: 1.000000001 | Q232: 1.000000001 | R232: 1.000000001 | S232: 1 | T232: 1 | U232: 1 | V232: 1 | W232: 1 | X232: 1 | Y232: 1 | Z232: 1 | AA232: 1 | AB232: 1 | AC232: 1 | AD232: 1 | AE232: 1 | AF232: 1 | AG232: 1 | AH232: 1 | AI232: 1 | AJ232: 1 | AK232: 1 | AL232: 1 | AM232: 1 | AN232: 1 | AO232: 1 | AP232: 1 | AQ232: 1 | AR232: 1 | AS232: 1 | AT232: 1 | AU232: 1 | AV232: 1 | AW232: 1 | AX232: 1 | AY232: 1 | AZ232: 1 | BA232: 1 | BB232: 1 | BC232: 1 | BD232: 1 | BE232: 1 | BF232: 1 | BG232: 1 | BH232: 1 | BI232: 1 | BJ232: 1 | BK232: 1 | BL232: 1 | BM232: 1 | BN232: 1 | BO232: 1 | BP232: =BP219 -> 1 | BQ232: 1 | BR232: 1 | BS232: 1 | BT232: 1 | BU232: 1 | BV232: 1 | BW232: 1 | BX232: 1 | BY232: 1 | BZ232: 1 | CA232: 1 | CB232: 1 | CC232: 1 | CD232: 1 | CE232: 1 | CF232: 1 | CG232: 1 | CH232: 1 | CI232: 1 | CJ232: 1 | CK232: 1 | CL232: 1 | CM232: 1 | CN232: 1 | CO232: 1 | CP232: 1 | CQ232: 1 | CR232: 1 | CS232: 1 | CT232: 1 | CU232: 1 | CV232: 1 | CW232: 1 | CX232: 1 | CY232: 1 | CZ232: =IF(OR(D232=0,CY$210-D$210=0),0,LN(CY232/D232)/(CY$210-D$210)) -> -5.607186993e-17 | DA232: =IF(OR(CT232=0,CY$210-CT$210=0),0,LN(CY232/CT232)/(CY$210-CT$210)) -> -6.217248938e-16
C233: Output dedicated to Consumption, C (physical terms) | D233: =D271 -> 0.75 | E233: 0.75 | F233: 0.7500000001 | G233: 0.7500000003 | H233: 0.7500000004 | I233: 0.7500000005 | J233: 0.7500000006 | K233: 0.7500000006 | L233: 0.7500000006 | M233: 0.7500000006 | N233: 0.7500000006 | O233: 0.7500000005 | P233: 0.7500000005 | Q233: 0.7500000004 | R233: 0.7500000004 | S233: 0.7500000003 | T233: 0.7500000003 | U233: 0.7500000002 | V233: 0.7500000002 | W233: 0.7500000002 | X233: 0.7500000001 | Y233: 0.7500000001 | Z233: 0.7500000001 | AA233: 0.75 | AB233: 0.75 | AC233: 0.75 | AD233: 0.75 | AE233: 0.75 | AF233: 0.75 | AG233: 0.75 | AH233: 0.75 | AI233: 0.75 | AJ233: 0.75 | AK233: 0.75 | AL233: 0.75 | AM233: 0.75 | AN233: 0.75 | AO233: 0.75 | AP233: 0.75 | AQ233: 0.75 | AR233: 0.75 | AS233: 0.75 | AT233: 0.75 | AU233: 0.75 | AV233: 0.75 | AW233: 0.75 | AX233: 0.75 | AY233: 0.75 | AZ233: 0.75 | BA233: 0.75 | BB233: 0.75 | BC233: 0.75 | BD233: 0.75 | BE233: 0.75 | BF233: 0.75 | BG233: 0.75 | BH233: 0.75 | BI233: 0.75 | BJ233: 0.75 | BK233: 0.75 | BL233: 0.75 | BM233: 0.75 | BN233: 0.75 | BO233: 0.75 | BP233: =BP271 -> 0.75 | BQ233: 0.75 | BR233: 0.75 | BS233: 0.75 | BT233: 0.75 | BU233: 0.75 | BV233: 0.75 | BW233: 0.75 | BX233: 0.75 | BY233: 0.75 | BZ233: 0.75 | CA233: 0.75 | CB233: 0.75 | CC233: 0.75 | CD233: 0.75 | CE233: 0.75 | CF233: 0.75 | CG233: 0.75 | CH233: 0.75 | CI233: 0.75 | CJ233: 0.75 | CK233: 0.75 | CL233: 0.75 | CM233: 0.75 | CN233: 0.75 | CO233: 0.75 | CP233: 0.75 | CQ233: 0.75 | CR233: 0.75 | CS233: 0.75 | CT233: 0.75 | CU233: 0.75 | CV233: 0.75 | CW233: 0.75 | CX233: 0.75 | CY233: 0.75 | CZ233: =IF(OR(D233=0,CY$210-D$210=0),0,LN(CY233/D233)/(CY$210-D$210)) -> -5.270755773e-17 | DA233: =IF(OR(CT233=0,CY$210-CT$210=0),0,LN(CY233/CT233)/(CY$210-CT$210)) -> -5.329070518e-16
C234: Output dedicated to reinvestment, I (physical terms) | D234: 0.25 | E234: 0.25 | F234: 0.25 | G234: 0.2500000001 | H234: 0.2500000001 | I234: 0.2500000002 | J234: 0.2500000002 | K234: 0.2500000002 | L234: 0.2500000002 | M234: 0.2500000002 | N234: 0.2500000002 | O234: 0.2500000002 | P234: 0.2500000002 | Q234: 0.2500000001 | R234: 0.2500000001 | S234: 0.2500000001 | T234: 0.2500000001 | U234: 0.2500000001 | V234: 0.2500000001 | W234: 0.2500000001 | X234: 0.25 | Y234: 0.25 | Z234: 0.25 | AA234: 0.25 | AB234: 0.25 | AC234: 0.25 | AD234: 0.25 | AE234: 0.25 | AF234: 0.25 | AG234: 0.25 | AH234: 0.25 | AI234: 0.25 | AJ234: 0.25 | AK234: 0.25 | AL234: 0.25 | AM234: 0.25 | AN234: 0.25 | AO234: 0.25 | AP234: 0.25 | AQ234: 0.25 | AR234: 0.25 | AS234: 0.25 | AT234: 0.25 | AU234: 0.25 | AV234: 0.25 | AW234: 0.25 | AX234: 0.25 | AY234: 0.25 | AZ234: 0.25 | BA234: 0.25 | BB234: 0.25 | BC234: 0.25 | BD234: 0.25 | BE234: 0.25 | BF234: 0.25 | BG234: 0.25 | BH234: 0.25 | BI234: 0.25 | BJ234: 0.25 | BK234: 0.25 | BL234: 0.25 | BM234: 0.25 | BN234: 0.25 | BO234: 0.25 | BP234: 0.25 | BQ234: 0.25 | BR234: 0.25 | BS234: 0.25 | BT234: 0.25 | BU234: 0.25 | BV234: 0.25 | BW234: 0.25 | BX234: 0.25 | BY234: 0.25 | BZ234: 0.25 | CA234: 0.25 | CB234: 0.25 | CC234: 0.25 | CD234: 0.25 | CE234: 0.25 | CF234: 0.25 | CG234: 0.25 | CH234: 0.25 | CI234: 0.25 | CJ234: 0.25 | CK234: 0.25 | CL234: 0.25 | CM234: 0.25 | CN234: 0.25 | CO234: 0.25 | CP234: 0.25 | CQ234: 0.25 | CR234: 0.25 | CS234: 0.25 | CT234: 0.25 | CU234: 0.25 | CV234: 0.25 | CW234: 0.25 | CX234: 0.25 | CY234: 0.25 | CZ234: =IF(OR(D234=0,CY$210-D$210=0),0,LN(CY234/D234)/(CY$210-D$210)) -> -5.158612034e-17 | DA234: =IF(OR(CT234=0,CY$210-CT$210=0),0,LN(CY234/CT234)/(CY$210-CT$210)) -> -5.329070518e-16
C235: Surplus Production | D235: =D232-SUM(D233:D234) -> 0 | E235: 0 | F235: 0 | G235: 0 | H235: 0 | I235: 0 | J235: 0 | K235: 0 | L235: 0 | M235: 0 | N235: 0 | O235: 0 | P235: 0 | Q235: 0 | R235: 0 | S235: 0 | T235: 0 | U235: 0 | V235: 0 | W235: 0 | X235: 0 | Y235: 0 | Z235: 0 | AA235: 0 | AB235: 0 | AC235: 0 | AD235: 0 | AE235: 0 | AF235: 0 | AG235: 0 | AH235: 0 | AI235: 0 | AJ235: 0 | AK235: 0 | AL235: 0 | AM235: 0 | AN235: 0 | AO235: 0 | AP235: 0 | AQ235: 0 | AR235: 0 | AS235: 0 | AT235: 0 | AU235: 0 | AV235: 0 | AW235: 0 | AX235: 0 | AY235: 0 | AZ235: 0 | BA235: 0 | BB235: 0 | BC235: 0 | BD235: 0 | BE235: 0 | BF235: 0 | BG235: 0 | BH235: 0 | BI235: 0 | BJ235: 0 | BK235: 0 | BL235: 0 | BM235: 0 | BN235: 0 | BO235: 0 | BP235: =BP232-SUM(BP233:BP234) -> 0 | BQ235: 0 | BR235: 0 | BS235: 0 | BT235: 0 | BU235: 0 | BV235: 0 | BW235: 0 | BX235: 0 | BY235: 0 | BZ235: 0 | CA235: 0 | CB235: 0 | CC235: -8.881784197e-16 | CD235: 0 | CE235: 0 | CF235: 0 | CG235: 0 | CH235: 0 | CI235: 0 | CJ235: -1.110223025e-15 | CK235: 0 | CL235: 0 | CM235: 0 | CN235: 0 | CO235: -8.881784197e-16 | CP235: 0 | CQ235: -1.110223025e-15 | CR235: 0 | CS235: 0 | CT235: 0 | CU235: 0 | CV235: =CV232-SUM(CV233:CV234) -> 0 | CW235: =CW232-SUM(CW233:CW234) -> -8.881784197e-16 | CX235: =CX232-SUM(CX233:CX234) -> 0 | CY235: =CY232-SUM(CY233:CY234) -> 0 | CZ235: =IF(OR(D235=0,CY235/D235=0,CY$210-D$210=0),0,LN(CY235/D235)/(CY$210-D$210)) ->  | DA235: =IF(OR(CT235=0,CY$210-CT$210=0),0,LN(CY235/CT235)/(CY$210-CT$210)) -> 0
C237: Resources dedicated directly to value-adding production | D237: =D225+D226 -> 1.647010426 | E237: 1.647010426 | F237: 1.647010426 | G237: 1.647010427 | H237: 1.647010427 | I237: 1.647010427 | J237: 1.647010427 | K237: 1.647010427 | L237: 1.647010427 | M237: 1.647010427 | N237: 1.647010427 | O237: 1.647010427 | P237: 1.647010427 | Q237: 1.647010427 | R237: 1.647010427 | S237: 1.647010427 | T237: 1.647010427 | U237: 1.647010427 | V237: 1.647010427 | W237: 1.647010427 | X237: 1.647010427 | Y237: 1.647010427 | Z237: 1.647010427 | AA237: 1.647010426 | AB237: 1.647010426 | AC237: 1.647010426 | AD237: 1.647010426 | AE237: 1.647010426 | AF237: 1.647010426 | AG237: 1.647010426 | AH237: 1.647010426 | AI237: 1.647010426 | AJ237: 1.647010426 | AK237: 1.647010426 | AL237: 1.647010426 | AM237: 1.647010426 | AN237: 1.647010426 | AO237: 1.647010426 | AP237: 1.647010426 | AQ237: 1.647010426 | AR237: 1.647010426 | AS237: 1.647010426 | AT237: 1.647010426 | AU237: 1.647010426 | AV237: 1.647010426 | AW237: 1.647010426 | AX237: 1.647010426 | AY237: 1.647010426 | AZ237: 1.647010426 | BA237: 1.647010426 | BB237: 1.647010426 | BC237: 1.647010426 | BD237: 1.647010426 | BE237: 1.647010426 | BF237: 1.647010426 | BG237: 1.647010426 | BH237: 1.647010426 | BI237: 1.647010426 | BJ237: 1.647010426 | BK237: 1.647010426 | BL237: 1.647010426 | BM237: 1.647010426 | BN237: 1.647010426 | BO237: 1.647010426 | BP237: =BP225+BP226 -> 1.647010426 | BQ237: 1.647010426 | BR237: 1.647010426 | BS237: 1.647010426 | BT237: 1.647010426 | BU237: 1.647010426 | BV237: 1.647010426 | BW237: 1.647010426 | BX237: 1.647010426 | BY237: 1.647010426 | BZ237: 1.647010426 | CA237: 1.647010426 | CB237: 1.647010426 | CC237: 1.647010426 | CD237: 1.647010426 | CE237: 1.647010426 | CF237: 1.647010426 | CG237: 1.647010426 | CH237: 1.647010426 | CI237: 1.647010426 | CJ237: 1.647010426 | CK237: 1.647010426 | CL237: 1.647010426 | CM237: 1.647010426 | CN237: 1.647010426 | CO237: 1.647010426 | CP237: 1.647010426 | CQ237: 1.647010426 | CR237: 1.647010426 | CS237: 1.647010426 | CT237: 1.647010426 | CU237: 1.647010426 | CV237: 1.647010426 | CW237: 1.647010426 | CX237: 1.647010426 | CY237: 1.647010426 | CZ237: =IF(OR(D237=0,CY$210-D$210=0),0,LN(CY237/D237)/(CY$210-D$210)) -> -1.345724878e-16 | DA237: =IF(OR(CT237=0,CY$210-CT$210=0),0,LN(CY237/CT237)/(CY$210-CT$210)) -> -3.552713679e-16
C238: Resources dedicated to raw resource extraction | D238: =D228+D229 -> 0.3529895737 | E238: 0.3529895737 | F238: 0.3529895736 | G238: 0.3529895735 | H238: 0.3529895734 | I238: 0.3529895734 | J238: 0.3529895734 | K238: 0.3529895734 | L238: 0.3529895734 | M238: 0.3529895735 | N238: 0.3529895735 | O238: 0.3529895735 | P238: 0.3529895736 | Q238: 0.3529895736 | R238: 0.3529895736 | S238: 0.3529895737 | T238: 0.3529895737 | U238: 0.3529895737 | V238: 0.3529895737 | W238: 0.3529895737 | X238: 0.3529895737 | Y238: 0.3529895737 | Z238: 0.3529895737 | AA238: 0.3529895737 | AB238: 0.3529895737 | AC238: 0.3529895737 | AD238: 0.3529895737 | AE238: 0.3529895737 | AF238: 0.3529895737 | AG238: 0.3529895737 | AH238: 0.3529895737 | AI238: 0.3529895737 | AJ238: 0.3529895737 | AK238: 0.3529895737 | AL238: 0.3529895737 | AM238: 0.3529895737 | AN238: 0.3529895737 | AO238: 0.3529895737 | AP238: 0.3529895737 | AQ238: 0.3529895737 | AR238: 0.3529895737 | AS238: 0.3529895737 | AT238: 0.3529895737 | AU238: 0.3529895737 | AV238: 0.3529895737 | AW238: 0.3529895737 | AX238: 0.3529895737 | AY238: 0.3529895737 | AZ238: 0.3529895737 | BA238: 0.3529895737 | BB238: 0.3529895737 | BC238: 0.3529895737 | BD238: 0.3529895737 | BE238: 0.3529895737 | BF238: 0.3529895737 | BG238: 0.3529895737 | BH238: 0.3529895737 | BI238: 0.3529895737 | BJ238: 0.3529895737 | BK238: 0.3529895737 | BL238: 0.3529895737 | BM238: 0.3529895737 | BN238: 0.3529895737 | BO238: 0.3529895737 | BP238: =BP228+BP229 -> 0.3529895737 | BQ238: 0.3529895737 | BR238: 0.3529895737 | BS238: 0.3529895737 | BT238: 0.3529895737 | BU238: 0.3529895737 | BV238: 0.3529895737 | BW238: 0.3529895737 | BX238: 0.3529895737 | BY238: 0.3529895737 | BZ238: 0.3529895737 | CA238: 0.3529895737 | CB238: 0.3529895737 | CC238: 0.3529895737 | CD238: 0.3529895737 | CE238: 0.3529895737 | CF238: 0.3529895737 | CG238: 0.3529895737 | CH238: 0.3529895737 | CI238: 0.3529895737 | CJ238: 0.3529895737 | CK238: 0.3529895737 | CL238: 0.3529895737 | CM238: 0.3529895737 | CN238: 0.3529895737 | CO238: 0.3529895737 | CP238: 0.3529895737 | CQ238: 0.3529895737 | CR238: 0.3529895737 | CS238: 0.3529895737 | CT238: 0.3529895737 | CU238: 0.3529895737 | CV238: 0.3529895737 | CW238: 0.3529895737 | CX238: 0.3529895737 | CY238: 0.3529895737 | CZ238: =IF(OR(D238=0,CY$210-D$210=0),0,LN(CY238/D238)/(CY$210-D$210)) -> -1.71579922e-16 | DA238: =IF(OR(CT238=0,CY$210-CT$210=0),0,LN(CY238/CT238)/(CY$210-CT$210)) -> 4.884981308e-16
C239: Total resources dedicated to production | D239: =SUM(D237:D238) -> 2 | E239: 2 | F239: 2 | G239: 2 | H239: 2 | I239: 2 | J239: 2 | K239: 2 | L239: 2.000000001 | M239: 2.000000001 | N239: 2.000000001 | O239: 2.000000001 | P239: 2.000000001 | Q239: 2.000000001 | R239: 2.000000001 | S239: 2.000000001 | T239: 2.000000001 | U239: 2.000000001 | V239: 2 | W239: 2 | X239: 2 | Y239: 2 | Z239: 2 | AA239: 2 | AB239: 2 | AC239: 2 | AD239: 2 | AE239: 2 | AF239: 2 | AG239: 2 | AH239: 2 | AI239: 2 | AJ239: 2 | AK239: 2 | AL239: 2 | AM239: 2 | AN239: 2 | AO239: 2 | AP239: 2 | AQ239: 2 | AR239: 2 | AS239: 2 | AT239: 2 | AU239: 2 | AV239: 2 | AW239: 2 | AX239: 2 | AY239: 2 | AZ239: 2 | BA239: 2 | BB239: 2 | BC239: 2 | BD239: 2 | BE239: 2 | BF239: 2 | BG239: 2 | BH239: 2 | BI239: 2 | BJ239: 2 | BK239: 2 | BL239: 2 | BM239: 2 | BN239: 2 | BO239: 2 | BP239: =SUM(BP237:BP238) -> 2 | BQ239: 2 | BR239: 2 | BS239: 2 | BT239: 2 | BU239: 2 | BV239: 2 | BW239: 2 | BX239: 2 | BY239: 2 | BZ239: 2 | CA239: 2 | CB239: 2 | CC239: 2 | CD239: 2 | CE239: 2 | CF239: 2 | CG239: 2 | CH239: 2 | CI239: 2 | CJ239: 2 | CK239: 2 | CL239: 2 | CM239: 2 | CN239: 2 | CO239: 2 | CP239: 2 | CQ239: 2 | CR239: 2 | CS239: 2 | CT239: 2 | CU239: 2 | CV239: =SUM(CV237:CV238) -> 2 | CW239: =SUM(CW237:CW238) -> 2 | CX239: =SUM(CX237:CX238) -> 2 | CY239: =SUM(CY237:CY238) -> 2 | CZ239: =LN(CY239/D239)/(CY$210-D$210) -> -1.413011122e-16 | DA239: =IF(OR(CT239=0,CY$210-CT$210=0),0,LN(CY239/CT239)/(CY$210-CT$210)) -> -1.998401444e-16
C241: Factor Value Shares
D242: =D$210 -> 1 | E242: =E$210 -> 2 | F242: 3 | G242: 4 | H242: 5 | I242: 6 | J242: 7 | K242: 8 | L242: 9 | M242: 10 | N242: 11 | O242: 12 | P242: 13 | Q242: 14 | R242: 15 | S242: 16 | T242: 17 | U242: 18 | V242: 19 | W242: 20 | X242: 21 | Y242: 22 | Z242: 23 | AA242: 24 | AB242: 25 | AC242: 26 | AD242: 27 | AE242: 28 | AF242: 29 | AG242: 30 | AH242: 31 | AI242: 32 | AJ242: 33 | AK242: 34 | AL242: 35 | AM242: 36 | AN242: 37 | AO242: 38 | AP242: 39 | AQ242: 40 | AR242: 41 | AS242: 42 | AT242: 43 | AU242: 44 | AV242: 45 | AW242: 46 | AX242: 47 | AY242: 48 | AZ242: 49 | BA242: 50 | BB242: 51 | BC242: 52 | BD242: 53 | BE242: 54 | BF242: 55 | BG242: 56 | BH242: 57 | BI242: 58 | BJ242: 59 | BK242: 60 | BL242: 61 | BM242: 62 | BN242: 63 | BO242: 64 | BP242: 65 | BQ242: =BQ$210 -> 66 | BR242: 67 | BS242: 68 | BT242: 69 | BU242: 70 | BV242: 71 | BW242: 72 | BX242: 73 | BY242: 74 | BZ242: 75 | CA242: 76 | CB242: 77 | CC242: 78 | CD242: 79 | CE242: 80 | CF242: 81 | CG242: 82 | CH242: 83 | CI242: 84 | CJ242: 85 | CK242: 86 | CL242: 87 | CM242: 88 | CN242: 89 | CO242: 90 | CP242: 91 | CQ242: 92 | CR242: 93 | CS242: 94 | CT242: 95 | CU242: 96 | CV242: 97 | CW242: 98 | CX242: 99 | CY242: 100
C243: pKK | D243: =D212*D223 -> 0.25 | E243: 0.25 | F243: 0.25 | G243: 0.25 | H243: 0.25 | I243: 0.25 | J243: 0.25 | K243: 0.25 | L243: 0.25 | M243: 0.25 | N243: 0.25 | O243: 0.25 | P243: 0.25 | Q243: 0.25 | R243: 0.25 | S243: 0.25 | T243: 0.25 | U243: 0.25 | V243: 0.25 | W243: 0.25 | X243: 0.25 | Y243: 0.25 | Z243: 0.25 | AA243: 0.25 | AB243: 0.25 | AC243: 0.25 | AD243: 0.25 | AE243: 0.25 | AF243: 0.25 | AG243: 0.25 | AH243: 0.25 | AI243: 0.25 | AJ243: =AJ212*AJ223 -> 0.25 | AK243: 0.25 | AL243: 0.25 | AM243: 0.25 | AN243: 0.25 | AO243: 0.25 | AP243: 0.25 | AQ243: 0.25 | AR243: 0.25 | AS243: 0.25 | AT243: 0.25 | AU243: 0.25 | AV243: 0.25 | AW243: 0.25 | AX243: 0.25 | AY243: 0.25 | AZ243: 0.25 | BA243: 0.25 | BB243: 0.25 | BC243: 0.25 | BD243: 0.25 | BE243: 0.25 | BF243: 0.25 | BG243: 0.25 | BH243: 0.25 | BI243: 0.25 | BJ243: 0.25 | BK243: 0.25 | BL243: 0.25 | BM243: 0.25 | BN243: 0.25 | BO243: 0.25 | BP243: =BP212*BP223 -> 0.25 | BQ243: 0.25 | BR243: 0.25 | BS243: 0.25 | BT243: 0.25 | BU243: 0.25 | BV243: 0.25 | BW243: 0.25 | BX243: 0.25 | BY243: 0.25 | BZ243: 0.25 | CA243: 0.25 | CB243: 0.25 | CC243: 0.25 | CD243: 0.25 | CE243: 0.25 | CF243: 0.25 | CG243: 0.25 | CH243: 0.25 | CI243: 0.25 | CJ243: 0.25 | CK243: 0.25 | CL243: 0.25 | CM243: 0.25 | CN243: 0.25 | CO243: 0.25 | CP243: 0.25 | CQ243: 0.25 | CR243: 0.25 | CS243: 0.25 | CT243: 0.25 | CU243: 0.25 | CV243: 0.25 | CW243: 0.25 | CX243: 0.25 | CY243: 0.25 | CZ243: =IF(OR(D243=0,CY$210-D$210=0),0,LN(CY243/D243)/(CY$210-D$210)) -> -9.195786669e-17 | DA243: =IF(OR(CT243=0,CY$210-CT$210=0),0,LN(CY243/CT243)/(CY$210-CT$210)) -> -4.884981308e-16
C244: pLL | D244: =D213*D221 -> 0.75 | E244: 0.75 | F244: 0.75 | G244: 0.75 | H244: 0.75 | I244: 0.75 | J244: 0.75 | K244: 0.7500000001 | L244: 0.7500000001 | M244: 0.7500000001 | N244: 0.7500000001 | O244: 0.7500000001 | P244: 0.7500000001 | Q244: 0.7500000001 | R244: 0.7500000001 | S244: 0.7500000001 | T244: 0.7500000001 | U244: 0.7500000001 | V244: 0.7500000001 | W244: 0.7500000001 | X244: 0.7500000001 | Y244: 0.7500000001 | Z244: 0.7500000001 | AA244: 0.7500000001 | AB244: 0.75 | AC244: 0.75 | AD244: 0.75 | AE244: 0.75 | AF244: 0.75 | AG244: 0.75 | AH244: 0.75 | AI244: 0.75 | AJ244: =AJ213*AJ221 -> 0.75 | AK244: 0.75 | AL244: 0.75 | AM244: 0.75 | AN244: 0.75 | AO244: 0.75 | AP244: 0.75 | AQ244: 0.75 | AR244: 0.75 | AS244: 0.75 | AT244: 0.75 | AU244: 0.75 | AV244: 0.75 | AW244: 0.75 | AX244: 0.75 | AY244: 0.75 | AZ244: 0.75 | BA244: 0.75 | BB244: 0.75 | BC244: 0.75 | BD244: 0.75 | BE244: 0.75 | BF244: 0.75 | BG244: 0.75 | BH244: 0.75 | BI244: 0.75 | BJ244: 0.75 | BK244: 0.75 | BL244: 0.75 | BM244: 0.75 | BN244: 0.75 | BO244: 0.75 | BP244: =BP213*BP221 -> 0.75 | BQ244: 0.75 | BR244: 0.75 | BS244: 0.75 | BT244: 0.75 | BU244: 0.75 | BV244: 0.75 | BW244: 0.75 | BX244: 0.75 | BY244: 0.75 | BZ244: 0.75 | CA244: 0.75 | CB244: 0.75 | CC244: 0.75 | CD244: 0.75 | CE244: 0.75 | CF244: 0.75 | CG244: 0.75 | CH244: 0.75 | CI244: 0.75 | CJ244: 0.75 | CK244: 0.75 | CL244: 0.75 | CM244: 0.75 | CN244: 0.75 | CO244: 0.75 | CP244: 0.75 | CQ244: 0.75 | CR244: 0.75 | CS244: 0.75 | CT244: 0.75 | CU244: 0.75 | CV244: 0.75 | CW244: 0.75 | CX244: 0.75 | CY244: 0.75 | CZ244: =IF(OR(D244=0,CY$210-D$210=0),0,LN(CY244/D244)/(CY$210-D$210)) -> -9.420074148e-17 | DA244: =IF(OR(CT244=0,CY$210-CT$210=0),0,LN(CY244/CT244)/(CY$210-CT$210)) -> -4.662936703e-16
C246: pKKX | D246: =D212*D225 -> 0.2058763033 | E246: 0.2058763033 | F246: 0.2058763033 | G246: 0.2058763033 | H246: 0.2058763033 | I246: 0.2058763034 | J246: 0.2058763034 | K246: 0.2058763034 | L246: 0.2058763034 | M246: 0.2058763034 | N246: 0.2058763034 | O246: 0.2058763034 | P246: 0.2058763034 | Q246: 0.2058763033 | R246: 0.2058763033 | S246: 0.2058763033 | T246: 0.2058763033 | U246: 0.2058763033 | V246: 0.2058763033 | W246: 0.2058763033 | X246: 0.2058763033 | Y246: 0.2058763033 | Z246: 0.2058763033 | AA246: 0.2058763033 | AB246: 0.2058763033 | AC246: 0.2058763033 | AD246: 0.2058763033 | AE246: 0.2058763033 | AF246: 0.2058763033 | AG246: 0.2058763033 | AH246: 0.2058763033 | AI246: 0.2058763033 | AJ246: =AJ212*AJ225 -> 0.2058763033 | AK246: 0.2058763033 | AL246: 0.2058763033 | AM246: 0.2058763033 | AN246: 0.2058763033 | AO246: 0.2058763033 | AP246: 0.2058763033 | AQ246: 0.2058763033 | AR246: 0.2058763033 | AS246: 0.2058763033 | AT246: 0.2058763033 | AU246: 0.2058763033 | AV246: 0.2058763033 | AW246: 0.2058763033 | AX246: 0.2058763033 | AY246: 0.2058763033 | AZ246: 0.2058763033 | BA246: 0.2058763033 | BB246: 0.2058763033 | BC246: 0.2058763033 | BD246: 0.2058763033 | BE246: 0.2058763033 | BF246: 0.2058763033 | BG246: 0.2058763033 | BH246: 0.2058763033 | BI246: 0.2058763033 | BJ246: 0.2058763033 | BK246: 0.2058763033 | BL246: 0.2058763033 | BM246: 0.2058763033 | BN246: 0.2058763033 | BO246: 0.2058763033 | BP246: =BP212*BP225 -> 0.2058763033 | BQ246: 0.2058763033 | BR246: 0.2058763033 | BS246: 0.2058763033 | BT246: 0.2058763033 | BU246: 0.2058763033 | BV246: 0.2058763033 | BW246: 0.2058763033 | BX246: 0.2058763033 | BY246: 0.2058763033 | BZ246: 0.2058763033 | CA246: 0.2058763033 | CB246: 0.2058763033 | CC246: 0.2058763033 | CD246: 0.2058763033 | CE246: 0.2058763033 | CF246: 0.2058763033 | CG246: 0.2058763033 | CH246: 0.2058763033 | CI246: 0.2058763033 | CJ246: 0.2058763033 | CK246: 0.2058763033 | CL246: 0.2058763033 | CM246: 0.2058763033 | CN246: 0.2058763033 | CO246: 0.2058763033 | CP246: 0.2058763033 | CQ246: 0.2058763033 | CR246: 0.2058763033 | CS246: 0.2058763033 | CT246: 0.2058763033 | CU246: 0.2058763033 | CV246: 0.2058763033 | CW246: 0.2058763033 | CX246: 0.2058763033 | CY246: 0.2058763033 | CZ246: =IF(OR(D246=0,CY$210-D$210=0),0,LN(CY246/D246)/(CY$210-D$210)) -> -8.635067969e-17 | DA246: =IF(OR(CT246=0,CY$210-CT$210=0),0,LN(CY246/CT246)/(CY$210-CT$210)) -> -6.439293543e-16
C247: pLLX | D247: =D213*D226 -> 0.6176289099 | E247: 0.6176289099 | F247: 0.6176289099 | G247: 0.6176289099 | H247: 0.61762891 | I247: 0.61762891 | J247: 0.61762891 | K247: 0.61762891 | L247: 0.6176289101 | M247: 0.6176289101 | N247: 0.6176289101 | O247: 0.6176289101 | P247: 0.6176289101 | Q247: 0.6176289101 | R247: 0.61762891 | S247: 0.61762891 | T247: 0.61762891 | U247: 0.61762891 | V247: 0.61762891 | W247: 0.61762891 | X247: 0.6176289099 | Y247: 0.6176289099 | Z247: 0.6176289099 | AA247: 0.6176289099 | AB247: 0.6176289099 | AC247: 0.6176289099 | AD247: 0.6176289099 | AE247: 0.6176289099 | AF247: 0.6176289099 | AG247: 0.6176289099 | AH247: 0.6176289099 | AI247: 0.6176289099 | AJ247: =AJ213*AJ226 -> 0.6176289099 | AK247: 0.6176289099 | AL247: 0.6176289099 | AM247: 0.6176289099 | AN247: 0.6176289099 | AO247: 0.6176289099 | AP247: 0.6176289099 | AQ247: 0.6176289099 | AR247: 0.6176289099 | AS247: 0.6176289099 | AT247: 0.6176289099 | AU247: 0.6176289099 | AV247: 0.6176289099 | AW247: 0.6176289099 | AX247: 0.6176289099 | AY247: 0.6176289099 | AZ247: 0.6176289099 | BA247: 0.6176289099 | BB247: 0.6176289099 | BC247: 0.6176289099 | BD247: 0.6176289099 | BE247: 0.6176289099 | BF247: 0.6176289099 | BG247: 0.6176289099 | BH247: 0.6176289099 | BI247: 0.6176289099 | BJ247: 0.6176289099 | BK247: 0.6176289099 | BL247: 0.6176289099 | BM247: 0.6176289099 | BN247: 0.6176289099 | BO247: 0.6176289099 | BP247: =BP213*BP226 -> 0.6176289099 | BQ247: 0.6176289099 | BR247: 0.6176289099 | BS247: 0.6176289099 | BT247: 0.6176289099 | BU247: 0.6176289099 | BV247: 0.6176289099 | BW247: 0.6176289099 | BX247: 0.6176289099 | BY247: 0.6176289099 | BZ247: 0.6176289099 | CA247: 0.6176289099 | CB247: 0.6176289099 | CC247: 0.6176289099 | CD247: 0.6176289099 | CE247: 0.6176289099 | CF247: 0.6176289099 | CG247: 0.6176289099 | CH247: 0.6176289099 | CI247: 0.6176289099 | CJ247: 0.6176289099 | CK247: 0.6176289099 | CL247: 0.6176289099 | CM247: 0.6176289099 | CN247: 0.6176289099 | CO247: 0.6176289099 | CP247: 0.6176289099 | CQ247: 0.6176289099 | CR247: 0.6176289099 | CS247: 0.6176289099 | CT247: 0.6176289099 | CU247: 0.6176289099 | CV247: 0.6176289099 | CW247: 0.6176289099 | CX247: 0.6176289099 | CY247: 0.6176289099 | CZ247: =IF(OR(D247=0,CY$210-D$210=0),0,LN(CY247/D247)/(CY$210-D$210)) -> -8.747211709e-17 | DA247: =IF(OR(CT247=0,CY$210-CT$210=0),0,LN(CY247/CT247)/(CY$210-CT$210)) -> -6.439293543e-16
C249: pKKR | D249: =D212*D228 -> 0.04412369671 | E249: 0.04412369671 | F249: 0.0441236967 | G249: 0.04412369669 | H249: 0.04412369668 | I249: 0.04412369668 | J249: 0.04412369667 | K249: 0.04412369667 | L249: 0.04412369667 | M249: 0.04412369668 | N249: 0.04412369668 | O249: 0.04412369668 | P249: 0.04412369669 | Q249: 0.04412369669 | R249: 0.0441236967 | S249: 0.0441236967 | T249: 0.0441236967 | U249: 0.0441236967 | V249: 0.04412369671 | W249: 0.04412369671 | X249: 0.04412369671 | Y249: 0.04412369671 | Z249: 0.04412369671 | AA249: 0.04412369671 | AB249: 0.04412369671 | AC249: 0.04412369671 | AD249: 0.04412369671 | AE249: 0.04412369671 | AF249: 0.04412369671 | AG249: 0.04412369671 | AH249: 0.04412369671 | AI249: 0.04412369671 | AJ249: =AJ212*AJ228 -> 0.04412369671 | AK249: 0.04412369671 | AL249: 0.04412369671 | AM249: 0.04412369671 | AN249: 0.04412369671 | AO249: 0.04412369671 | AP249: 0.04412369671 | AQ249: 0.04412369671 | AR249: 0.04412369671 | AS249: 0.04412369671 | AT249: 0.04412369671 | AU249: 0.04412369671 | AV249: 0.04412369671 | AW249: 0.04412369671 | AX249: 0.04412369671 | AY249: 0.04412369671 | AZ249: 0.04412369671 | BA249: 0.04412369671 | BB249: 0.04412369671 | BC249: 0.04412369671 | BD249: 0.04412369671 | BE249: 0.04412369671 | BF249: 0.04412369671 | BG249: 0.04412369671 | BH249: 0.04412369671 | BI249: 0.04412369671 | BJ249: 0.04412369671 | BK249: 0.04412369671 | BL249: 0.04412369671 | BM249: 0.04412369671 | BN249: 0.04412369671 | BO249: 0.04412369671 | BP249: =BP212*BP228 -> 0.04412369671 | BQ249: 0.04412369671 | BR249: 0.04412369671 | BS249: 0.04412369671 | BT249: 0.04412369671 | BU249: 0.04412369671 | BV249: 0.04412369671 | BW249: 0.04412369671 | BX249: 0.04412369671 | BY249: 0.04412369671 | BZ249: 0.04412369671 | CA249: 0.04412369671 | CB249: 0.04412369671 | CC249: 0.04412369671 | CD249: 0.04412369671 | CE249: 0.04412369671 | CF249: 0.04412369671 | CG249: 0.04412369671 | CH249: 0.04412369671 | CI249: 0.04412369671 | CJ249: 0.04412369671 | CK249: 0.04412369671 | CL249: 0.04412369671 | CM249: 0.04412369671 | CN249: 0.04412369671 | CO249: 0.04412369671 | CP249: 0.04412369671 | CQ249: 0.04412369671 | CR249: 0.04412369671 | CS249: 0.04412369671 | CT249: 0.04412369671 | CU249: 0.04412369671 | CV249: 0.04412369671 | CW249: 0.04412369671 | CX249: 0.04412369671 | CY249: 0.04412369671 | CZ249: =IF(OR(D249=0,CY$210-D$210=0),0,LN(CY249/D249)/(CY$210-D$210)) -> -1.222366764e-16 | DA249: =IF(OR(CT249=0,CY$210-CT$210=0),0,LN(CY249/CT249)/(CY$210-CT$210)) -> 2.220446049e-16
C250: pLLR | D250: =D213*D229 -> 0.1323710901 | E250: 0.1323710901 | F250: 0.1323710901 | G250: 0.1323710901 | H250: 0.13237109 | I250: 0.13237109 | J250: 0.13237109 | K250: 0.13237109 | L250: 0.13237109 | M250: 0.13237109 | N250: 0.13237109 | O250: 0.13237109 | P250: 0.1323710901 | Q250: 0.1323710901 | R250: 0.1323710901 | S250: 0.1323710901 | T250: 0.1323710901 | U250: 0.1323710901 | V250: 0.1323710901 | W250: 0.1323710901 | X250: 0.1323710901 | Y250: 0.1323710901 | Z250: 0.1323710901 | AA250: 0.1323710901 | AB250: 0.1323710901 | AC250: 0.1323710901 | AD250: 0.1323710901 | AE250: 0.1323710901 | AF250: 0.1323710901 | AG250: 0.1323710901 | AH250: 0.1323710901 | AI250: 0.1323710901 | AJ250: =AJ213*AJ229 -> 0.1323710901 | AK250: 0.1323710901 | AL250: 0.1323710901 | AM250: 0.1323710901 | AN250: 0.1323710901 | AO250: 0.1323710901 | AP250: 0.1323710901 | AQ250: 0.1323710901 | AR250: 0.1323710901 | AS250: 0.1323710901 | AT250: 0.1323710901 | AU250: 0.1323710901 | AV250: 0.1323710901 | AW250: 0.1323710901 | AX250: 0.1323710901 | AY250: 0.1323710901 | AZ250: 0.1323710901 | BA250: 0.1323710901 | BB250: 0.1323710901 | BC250: 0.1323710901 | BD250: 0.1323710901 | BE250: 0.1323710901 | BF250: 0.1323710901 | BG250: 0.1323710901 | BH250: 0.1323710901 | BI250: 0.1323710901 | BJ250: 0.1323710901 | BK250: 0.1323710901 | BL250: 0.1323710901 | BM250: 0.1323710901 | BN250: 0.1323710901 | BO250: 0.1323710901 | BP250: =BP213*BP229 -> 0.1323710901 | BQ250: 0.1323710901 | BR250: 0.1323710901 | BS250: 0.1323710901 | BT250: 0.1323710901 | BU250: 0.1323710901 | BV250: 0.1323710901 | BW250: 0.1323710901 | BX250: 0.1323710901 | BY250: 0.1323710901 | BZ250: 0.1323710901 | CA250: 0.1323710901 | CB250: 0.1323710901 | CC250: 0.1323710901 | CD250: 0.1323710901 | CE250: 0.1323710901 | CF250: 0.1323710901 | CG250: 0.1323710901 | CH250: 0.1323710901 | CI250: 0.1323710901 | CJ250: 0.1323710901 | CK250: 0.1323710901 | CL250: 0.1323710901 | CM250: 0.1323710901 | CN250: 0.1323710901 | CO250: 0.1323710901 | CP250: 0.1323710901 | CQ250: 0.1323710901 | CR250: 0.1323710901 | CS250: 0.1323710901 | CT250: 0.1323710901 | CU250: 0.1323710901 | CV250: 0.1323710901 | CW250: 0.1323710901 | CX250: 0.1323710901 | CY250: 0.1323710901 | CZ250: =IF(OR(D250=0,CY$210-D$210=0),0,LN(CY250/D250)/(CY$210-D$210)) -> -1.244795512e-16 | DA250: =IF(OR(CT250=0,CY$210-CT$210=0),0,LN(CY250/CT250)/(CY$210-CT$210)) -> 2.220446049e-16
C252: Wealth, Consumption, Savings and Leisure
C253: Utility function dynamic parameter multipliers | D253: =D$210 -> 1 | E253: =E$210 -> 2 | F253: 3 | G253: 4 | H253: 5 | I253: 6 | J253: 7 | K253: 8 | L253: 9 | M253: 10 | N253: 11 | O253: 12 | P253: 13 | Q253: 14 | R253: 15 | S253: 16 | T253: 17 | U253: 18 | V253: 19 | W253: 20 | X253: 21 | Y253: 22 | Z253: 23 | AA253: 24 | AB253: 25 | AC253: 26 | AD253: 27 | AE253: 28 | AF253: 29 | AG253: 30 | AH253: 31 | AI253: 32 | AJ253: 33 | AK253: 34 | AL253: 35 | AM253: 36 | AN253: 37 | AO253: 38 | AP253: 39 | AQ253: 40 | AR253: 41 | AS253: 42 | AT253: 43 | AU253: 44 | AV253: 45 | AW253: 46 | AX253: 47 | AY253: 48 | AZ253: 49 | BA253: 50 | BB253: 51 | BC253: 52 | BD253: 53 | BE253: 54 | BF253: 55 | BG253: 56 | BH253: 57 | BI253: 58 | BJ253: 59 | BK253: 60 | BL253: 61 | BM253: 62 | BN253: 63 | BO253: 64 | BP253: 65 | BQ253: =BQ$210 -> 66 | BR253: 67 | BS253: 68 | BT253: 69 | BU253: 70 | BV253: 71 | BW253: 72 | BX253: 73 | BY253: 74 | BZ253: 75 | CA253: 76 | CB253: 77 | CC253: 78 | CD253: 79 | CE253: 80 | CF253: 81 | CG253: 82 | CH253: 83 | CI253: 84 | CJ253: 85 | CK253: 86 | CL253: 87 | CM253: 88 | CN253: 89 | CO253: 90 | CP253: 91 | CQ253: 92 | CR253: 93 | CS253: 94 | CT253: 95 | CU253: 96 | CV253: 97 | CW253: 98 | CX253: 99 | CY253: 100
C254: Gamma | D254: =gamma -> 0.3 | E254: =gamma*E260 -> 0.3 | F254: 0.3 | G254: 0.3 | H254: 0.3 | I254: 0.3 | J254: 0.3 | K254: 0.3 | L254: 0.3 | M254: 0.3 | N254: 0.3 | O254: 0.3 | P254: 0.3 | Q254: 0.3 | R254: 0.3 | S254: 0.3 | T254: 0.3 | U254: 0.3 | V254: 0.3 | W254: 0.3 | X254: 0.3 | Y254: 0.3 | Z254: 0.3 | AA254: 0.3 | AB254: 0.3 | AC254: 0.3 | AD254: 0.3 | AE254: 0.3 | AF254: 0.3 | AG254: 0.3 | AH254: 0.3 | AI254: 0.3 | AJ254: 0.3 | AK254: =gamma*AK260 -> 0.3 | AL254: 0.3 | AM254: 0.3 | AN254: 0.3 | AO254: 0.3 | AP254: 0.3 | AQ254: 0.3 | AR254: 0.3 | AS254: 0.3 | AT254: 0.3 | AU254: 0.3 | AV254: 0.3 | AW254: 0.3 | AX254: 0.3 | AY254: 0.3 | AZ254: 0.3 | BA254: 0.3 | BB254: 0.3 | BC254: 0.3 | BD254: 0.3 | BE254: 0.3 | BF254: 0.3 | BG254: 0.3 | BH254: 0.3 | BI254: 0.3 | BJ254: 0.3 | BK254: 0.3 | BL254: 0.3 | BM254: 0.3 | BN254: 0.3 | BO254: 0.3 | BP254: 0.3 | BQ254: =gamma*BQ260 -> 0.3 | BR254: 0.3 | BS254: 0.3 | BT254: 0.3 | BU254: 0.3 | BV254: 0.3 | BW254: 0.3 | BX254: 0.3 | BY254: 0.3 | BZ254: 0.3 | CA254: 0.3 | CB254: 0.3 | CC254: 0.3 | CD254: 0.3 | CE254: 0.3 | CF254: 0.3 | CG254: 0.3 | CH254: 0.3 | CI254: 0.3 | CJ254: 0.3 | CK254: 0.3 | CL254: 0.3 | CM254: 0.3 | CN254: 0.3 | CO254: 0.3 | CP254: 0.3 | CQ254: 0.3 | CR254: 0.3 | CS254: 0.3 | CT254: 0.3 | CU254: 0.3 | CV254: 0.3 | CW254: 0.3 | CX254: 0.3 | CY254: 0.3 | CZ254: =LN(CY254/D254)/(CY$210-D$210) -> 0 | DA254: =IF(OR(CT254=0,CY$210-CT$210=0),0,LN(CY254/CT254)/(CY$210-CT$210)) -> 0
C255: Nu | D255: =nu -> 0.1 | E255: =nu*E261 -> 0.1 | F255: 0.1 | G255: 0.1 | H255: 0.1 | I255: 0.1 | J255: 0.1 | K255: 0.1 | L255: 0.1 | M255: 0.1 | N255: 0.1 | O255: 0.1 | P255: 0.1 | Q255: 0.1 | R255: 0.1 | S255: 0.1 | T255: 0.1 | U255: 0.1 | V255: 0.1 | W255: 0.1 | X255: 0.1 | Y255: 0.1 | Z255: 0.1 | AA255: 0.1 | AB255: 0.1 | AC255: 0.1 | AD255: 0.1 | AE255: 0.1 | AF255: 0.1 | AG255: 0.1 | AH255: 0.1 | AI255: 0.1 | AJ255: 0.1 | AK255: =nu*AK261 -> 0.1 | AL255: 0.1 | AM255: 0.1 | AN255: 0.1 | AO255: 0.1 | AP255: 0.1 | AQ255: 0.1 | AR255: 0.1 | AS255: 0.1 | AT255: 0.1 | AU255: 0.1 | AV255: 0.1 | AW255: 0.1 | AX255: 0.1 | AY255: 0.1 | AZ255: 0.1 | BA255: 0.1 | BB255: 0.1 | BC255: 0.1 | BD255: 0.1 | BE255: 0.1 | BF255: 0.1 | BG255: 0.1 | BH255: 0.1 | BI255: 0.1 | BJ255: 0.1 | BK255: 0.1 | BL255: 0.1 | BM255: 0.1 | BN255: 0.1 | BO255: 0.1 | BP255: 0.1 | BQ255: =nu*BQ261 -> 0.1 | BR255: 0.1 | BS255: 0.1 | BT255: 0.1 | BU255: 0.1 | BV255: 0.1 | BW255: 0.1 | BX255: 0.1 | BY255: 0.1 | BZ255: 0.1 | CA255: 0.1 | CB255: 0.1 | CC255: 0.1 | CD255: 0.1 | CE255: 0.1 | CF255: 0.1 | CG255: 0.1 | CH255: 0.1 | CI255: 0.1 | CJ255: 0.1 | CK255: 0.1 | CL255: 0.1 | CM255: 0.1 | CN255: 0.1 | CO255: 0.1 | CP255: 0.1 | CQ255: 0.1 | CR255: 0.1 | CS255: 0.1 | CT255: 0.1 | CU255: 0.1 | CV255: 0.1 | CW255: 0.1 | CX255: 0.1 | CY255: 0.1 | CZ255: 0 | DA255: 0
C256: Omega | D256: =omega -> 0.5 | E256: =1-SUM(E254:E255)-E257 -> 0.5 | F256: =1-SUM(F254:F255)-F257 -> 0.5 | G256: 0.5 | H256: 0.5 | I256: 0.5 | J256: 0.5 | K256: 0.5 | L256: 0.5 | M256: 0.5 | N256: 0.5 | O256: 0.5 | P256: 0.5 | Q256: 0.5 | R256: 0.5 | S256: 0.5 | T256: 0.5 | U256: 0.5 | V256: 0.5 | W256: 0.5 | X256: 0.5 | Y256: 0.5 | Z256: 0.5 | AA256: 0.5 | AB256: 0.5 | AC256: 0.5 | AD256: 0.5 | AE256: 0.5 | AF256: 0.5 | AG256: 0.5 | AH256: 0.5 | AI256: 0.5 | AJ256: 0.5 | AK256: 0.5 | AL256: 0.5 | AM256: 0.5 | AN256: 0.5 | AO256: 0.5 | AP256: 0.5 | AQ256: 0.5 | AR256: 0.5 | AS256: 0.5 | AT256: 0.5 | AU256: 0.5 | AV256: 0.5 | AW256: 0.5 | AX256: 0.5 | AY256: 0.5 | AZ256: 0.5 | BA256: 0.5 | BB256: 0.5 | BC256: 0.5 | BD256: 0.5 | BE256: 0.5 | BF256: 0.5 | BG256: 0.5 | BH256: 0.5 | BI256: 0.5 | BJ256: 0.5 | BK256: 0.5 | BL256: 0.5 | BM256: 0.5 | BN256: 0.5 | BO256: 0.5 | BP256: 0.5 | BQ256: 0.5 | BR256: =1-SUM(BR254:BR255)-BR257 -> 0.5 | BS256: 0.5 | BT256: 0.5 | BU256: 0.5 | BV256: 0.5 | BW256: 0.5 | BX256: 0.5 | BY256: 0.5 | BZ256: 0.5 | CA256: 0.5 | CB256: 0.5 | CC256: 0.5 | CD256: 0.5 | CE256: 0.5 | CF256: 0.5 | CG256: 0.5 | CH256: 0.5 | CI256: 0.5 | CJ256: 0.5 | CK256: 0.5 | CL256: 0.5 | CM256: 0.5 | CN256: 0.5 | CO256: 0.5 | CP256: 0.5 | CQ256: 0.5 | CR256: 0.5 | CS256: 0.5 | CT256: 0.5 | CU256: 0.5 | CV256: 0.5 | CW256: 0.5 | CX256: 0.5 | CY256: 0.5 | CZ256: 0 | DA256: 0
C257: Pi | D257: =pi -> 0.1 | E257: =pi*E262 -> 0.1 | F257: 0.1 | G257: 0.1 | H257: 0.1 | I257: 0.1 | J257: 0.1 | K257: 0.1 | L257: 0.1 | M257: 0.1 | N257: 0.1 | O257: 0.1 | P257: 0.1 | Q257: 0.1 | R257: 0.1 | S257: 0.1 | T257: 0.1 | U257: 0.1 | V257: 0.1 | W257: 0.1 | X257: 0.1 | Y257: 0.1 | Z257: 0.1 | AA257: 0.1 | AB257: 0.1 | AC257: 0.1 | AD257: 0.1 | AE257: 0.1 | AF257: 0.1 | AG257: 0.1 | AH257: 0.1 | AI257: 0.1 | AJ257: 0.1 | AK257: =pi*AK262 -> 0.1 | AL257: 0.1 | AM257: 0.1 | AN257: 0.1 | AO257: 0.1 | AP257: 0.1 | AQ257: 0.1 | AR257: 0.1 | AS257: 0.1 | AT257: 0.1 | AU257: 0.1 | AV257: 0.1 | AW257: 0.1 | AX257: 0.1 | AY257: 0.1 | AZ257: 0.1 | BA257: 0.1 | BB257: 0.1 | BC257: 0.1 | BD257: 0.1 | BE257: 0.1 | BF257: 0.1 | BG257: 0.1 | BH257: 0.1 | BI257: 0.1 | BJ257: 0.1 | BK257: 0.1 | BL257: 0.1 | BM257: 0.1 | BN257: 0.1 | BO257: 0.1 | BP257: 0.1 | BQ257: =pi*BQ262 -> 0.1 | BR257: 0.1 | BS257: 0.1 | BT257: 0.1 | BU257: 0.1 | BV257: 0.1 | BW257: 0.1 | BX257: 0.1 | BY257: 0.1 | BZ257: 0.1 | CA257: 0.1 | CB257: 0.1 | CC257: 0.1 | CD257: 0.1 | CE257: 0.1 | CF257: 0.1 | CG257: 0.1 | CH257: 0.1 | CI257: 0.1 | CJ257: 0.1 | CK257: 0.1 | CL257: 0.1 | CM257: 0.1 | CN257: 0.1 | CO257: 0.1 | CP257: 0.1 | CQ257: 0.1 | CR257: 0.1 | CS257: 0.1 | CT257: 0.1 | CU257: 0.1 | CV257: 0.1 | CW257: 0.1 | CX257: 0.1 | CY257: 0.1 | CZ257: 0 | DA257: 0
C258: Sum (= unity for CRS) | D258: =SUM(D254:D257) -> 1 | E258: =SUM(E254:E257) -> 1 | F258: =SUM(F254:F257) -> 1 | G258: 1 | H258: 1 | I258: 1 | J258: 1 | K258: 1 | L258: 1 | M258: 1 | N258: 1 | O258: 1 | P258: 1 | Q258: 1 | R258: 1 | S258: 1 | T258: 1 | U258: 1 | V258: 1 | W258: 1 | X258: 1 | Y258: 1 | Z258: 1 | AA258: 1 | AB258: 1 | AC258: 1 | AD258: 1 | AE258: 1 | AF258: 1 | AG258: 1 | AH258: 1 | AI258: 1 | AJ258: 1 | AK258: 1 | AL258: 1 | AM258: 1 | AN258: 1 | AO258: 1 | AP258: 1 | AQ258: 1 | AR258: 1 | AS258: 1 | AT258: 1 | AU258: 1 | AV258: 1 | AW258: 1 | AX258: 1 | AY258: 1 | AZ258: 1 | BA258: 1 | BB258: 1 | BC258: 1 | BD258: 1 | BE258: 1 | BF258: 1 | BG258: 1 | BH258: 1 | BI258: 1 | BJ258: 1 | BK258: 1 | BL258: 1 | BM258: 1 | BN258: 1 | BO258: 1 | BP258: 1 | BQ258: 1 | BR258: =SUM(BR254:BR257) -> 1 | BS258: 1 | BT258: 1 | BU258: 1 | BV258: 1 | BW258: 1 | BX258: 1 | BY258: 1 | BZ258: 1 | CA258: 1 | CB258: 1 | CC258: 1 | CD258: 1 | CE258: 1 | CF258: 1 | CG258: 1 | CH258: 1 | CI258: 1 | CJ258: 1 | CK258: 1 | CL258: 1 | CM258: 1 | CN258: 1 | CO258: 1 | CP258: 1 | CQ258: 1 | CR258: 1 | CS258: 1 | CT258: 1 | CU258: 1 | CV258: 1 | CW258: 1 | CX258: 1 | CY258: 1
C260: Gamma multiplier | D260: 1 | E260: 1 | F260: =E260*EXP(Gamma_rate_of_change) -> 1 | G260: 1 | H260: 1 | I260: 1 | J260: 1 | K260: 1 | L260: 1 | M260: 1 | N260: =M260*EXP(Gamma_rate_of_change) -> 1 | O260: 1 | P260: 1 | Q260: 1 | R260: =Q260*EXP(Gamma_rate_of_change) -> 1 | S260: 1 | T260: 1 | U260: 1 | V260: 1 | W260: 1 | X260: 1 | Y260: 1 | Z260: 1 | AA260: 1 | AB260: 1 | AC260: 1 | AD260: 1 | AE260: 1 | AF260: 1 | AG260: 1 | AH260: 1 | AI260: 1 | AJ260: 1 | AK260: =AJ260*EXP(Gamma_rate_of_change) -> 1 | AL260: 1 | AM260: 1 | AN260: 1 | AO260: 1 | AP260: 1 | AQ260: 1 | AR260: 1 | AS260: 1 | AT260: 1 | AU260: 1 | AV260: 1 | AW260: 1 | AX260: 1 | AY260: 1 | AZ260: 1 | BA260: 1 | BB260: 1 | BC260: 1 | BD260: 1 | BE260: 1 | BF260: 1 | BG260: 1 | BH260: 1 | BI260: 1 | BJ260: 1 | BK260: 1 | BL260: 1 | BM260: 1 | BN260: 1 | BO260: 1 | BP260: 1 | BQ260: =BP260*EXP(Gamma_rate_of_change) -> 1 | BR260: 1 | BS260: 1 | BT260: 1 | BU260: 1 | BV260: 1 | BW260: 1 | BX260: 1 | BY260: 1 | BZ260: 1 | CA260: 1 | CB260: 1 | CC260: 1 | CD260: 1 | CE260: 1 | CF260: 1 | CG260: 1 | CH260: 1 | CI260: 1 | CJ260: 1 | CK260: 1 | CL260: 1 | CM260: 1 | CN260: 1 | CO260: 1 | CP260: 1 | CQ260: 1 | CR260: 1 | CS260: 1 | CT260: 1 | CU260: 1 | CV260: 1 | CW260: 1 | CX260: 1 | CY260: 1 | CZ260: =LN(CY260/D260)/(CY$210-D$210) -> 0 | DA260: =IF(OR(CT260=0,CY$210-CT$210=0),0,LN(CY260/CT260)/(CY$210-CT$210)) -> 0
C261: Nu multiplier | D261: 1 | E261: =D261*EXP(Nu_rate_of_change) -> 1 | F261: 1 | G261: 1 | H261: 1 | I261: 1 | J261: 1 | K261: 1 | L261: 1 | M261: 1 | N261: =M261*EXP(Nu_rate_of_change) -> 1 | O261: 1 | P261: 1 | Q261: 1 | R261: =Q261*EXP(Nu_rate_of_change) -> 1 | S261: 1 | T261: 1 | U261: 1 | V261: 1 | W261: 1 | X261: 1 | Y261: 1 | Z261: 1 | AA261: 1 | AB261: 1 | AC261: 1 | AD261: 1 | AE261: 1 | AF261: 1 | AG261: 1 | AH261: 1 | AI261: 1 | AJ261: 1 | AK261: =AJ261*EXP(Nu_rate_of_change) -> 1 | AL261: 1 | AM261: 1 | AN261: 1 | AO261: 1 | AP261: 1 | AQ261: 1 | AR261: 1 | AS261: 1 | AT261: 1 | AU261: 1 | AV261: 1 | AW261: 1 | AX261: 1 | AY261: 1 | AZ261: 1 | BA261: 1 | BB261: 1 | BC261: 1 | BD261: 1 | BE261: 1 | BF261: 1 | BG261: 1 | BH261: 1 | BI261: 1 | BJ261: 1 | BK261: 1 | BL261: 1 | BM261: 1 | BN261: 1 | BO261: 1 | BP261: 1 | BQ261: =BP261*EXP(Nu_rate_of_change) -> 1 | BR261: 1 | BS261: 1 | BT261: 1 | BU261: 1 | BV261: 1 | BW261: 1 | BX261: 1 | BY261: 1 | BZ261: 1 | CA261: 1 | CB261: 1 | CC261: 1 | CD261: 1 | CE261: 1 | CF261: 1 | CG261: 1 | CH261: 1 | CI261: 1 | CJ261: 1 | CK261: 1 | CL261: 1 | CM261: 1 | CN261: 1 | CO261: 1 | CP261: 1 | CQ261: 1 | CR261: 1 | CS261: 1 | CT261: 1 | CU261: 1 | CV261: 1 | CW261: 1 | CX261: 1 | CY261: 1 | CZ261: 0 | DA261: 0
C262: Pi multiplier | D262: 1 | E262: =D262*EXP(Pi_rate_of_change) -> 1 | F262: 1 | G262: 1 | H262: 1 | I262: 1 | J262: 1 | K262: 1 | L262: 1 | M262: 1 | N262: 1 | O262: 1 | P262: 1 | Q262: 1 | R262: 1 | S262: 1 | T262: 1 | U262: 1 | V262: 1 | W262: 1 | X262: 1 | Y262: 1 | Z262: 1 | AA262: 1 | AB262: 1 | AC262: 1 | AD262: 1 | AE262: 1 | AF262: 1 | AG262: 1 | AH262: 1 | AI262: 1 | AJ262: 1 | AK262: =AJ262*EXP(Pi_rate_of_change) -> 1 | AL262: 1 | AM262: 1 | AN262: 1 | AO262: 1 | AP262: 1 | AQ262: 1 | AR262: 1 | AS262: 1 | AT262: 1 | AU262: 1 | AV262: 1 | AW262: 1 | AX262: 1 | AY262: 1 | AZ262: 1 | BA262: 1 | BB262: 1 | BC262: 1 | BD262: 1 | BE262: 1 | BF262: 1 | BG262: 1 | BH262: 1 | BI262: 1 | BJ262: 1 | BK262: 1 | BL262: 1 | BM262: 1 | BN262: 1 | BO262: 1 | BP262: 1 | BQ262: =BP262*EXP(Pi_rate_of_change) -> 1 | BR262: 1 | BS262: 1 | BT262: 1 | BU262: 1 | BV262: 1 | BW262: 1 | BX262: 1 | BY262: 1 | BZ262: 1 | CA262: 1 | CB262: 1 | CC262: 1 | CD262: 1 | CE262: 1 | CF262: 1 | CG262: 1 | CH262: 1 | CI262: 1 | CJ262: 1 | CK262: 1 | CL262: 1 | CM262: 1 | CN262: 1 | CO262: 1 | CP262: 1 | CQ262: 1 | CR262: 1 | CS262: 1 | CT262: 1 | CU262: 1 | CV262: 1 | CW262: 1 | CX262: 1 | CY262: 1 | CZ262: 0 | DA262: 0
D264: =D$210 -> 1 | E264: =E$210 -> 2 | F264: 3 | G264: 4 | H264: 5 | I264: 6 | J264: 7 | K264: 8 | L264: 9 | M264: 10 | N264: 11 | O264: 12 | P264: 13 | Q264: 14 | R264: 15 | S264: 16 | T264: 17 | U264: 18 | V264: 19 | W264: 20 | X264: 21 | Y264: 22 | Z264: 23 | AA264: 24 | AB264: 25 | AC264: 26 | AD264: 27 | AE264: 28 | AF264: 29 | AG264: 30 | AH264: 31 | AI264: 32 | AJ264: 33 | AK264: 34 | AL264: 35 | AM264: 36 | AN264: 37 | AO264: 38 | AP264: 39 | AQ264: 40 | AR264: 41 | AS264: 42 | AT264: 43 | AU264: 44 | AV264: 45 | AW264: 46 | AX264: 47 | AY264: 48 | AZ264: 49 | BA264: 50 | BB264: 51 | BC264: 52 | BD264: 53 | BE264: 54 | BF264: 55 | BG264: 56 | BH264: 57 | BI264: 58 | BJ264: 59 | BK264: 60 | BL264: 61 | BM264: 62 | BN264: 63 | BO264: 64 | BP264: 65 | BQ264: =BQ$210 -> 66 | BR264: 67 | BS264: 68 | BT264: 69 | BU264: 70 | BV264: 71 | BW264: 72 | BX264: 73 | BY264: 74 | BZ264: 75 | CA264: 76 | CB264: 77 | CC264: 78 | CD264: 79 | CE264: 80 | CF264: 81 | CG264: 82 | CH264: 83 | CI264: 84 | CJ264: 85 | CK264: 86 | CL264: 87 | CM264: 88 | CN264: 89 | CO264: 90 | CP264: 91 | CQ264: 92 | CR264: 93 | CS264: 94 | CT264: 95 | CU264: 96 | CV264: 97 | CW264: 98 | CX264: 99 | CY264: 100
C265: Utility, u | D265: =V46 -> 1 | E265: =û*E271^(E254)*E272^(E255)*E273^(E256)*E300^E257 -> 1 | F265: 1 | G265: 1 | H265: 1 | I265: 1 | J265: 1.000000001 | K265: 1.000000001 | L265: 1.000000001 | M265: 1.000000001 | N265: 1 | O265: 1 | P265: 1 | Q265: 1 | R265: 1 | S265: 1 | T265: 1 | U265: 1 | V265: 1 | W265: 1 | X265: 1 | Y265: 1 | Z265: 1 | AA265: 1 | AB265: 1 | AC265: 1 | AD265: 1 | AE265: 1 | AF265: 1 | AG265: 1 | AH265: 1 | AI265: 1 | AJ265: 1 | AK265: =û*AK271^(AK254)*AK272^(AK255)*AK273^(AK256)*AK300^AK257 -> 1 | AL265: 1 | AM265: 1 | AN265: 1 | AO265: 1 | AP265: 1 | AQ265: 1 | AR265: 1 | AS265: 1 | AT265: 1 | AU265: 1 | AV265: 1 | AW265: 1 | AX265: 1 | AY265: 1 | AZ265: 1 | BA265: 1 | BB265: 1 | BC265: 1 | BD265: 1 | BE265: 1 | BF265: 1 | BG265: 1 | BH265: 1 | BI265: 1 | BJ265: 1 | BK265: 1 | BL265: 1 | BM265: 1 | BN265: 1 | BO265: 1 | BP265: 1 | BQ265: =û*BQ271^(BQ254)*BQ272^(BQ255)*BQ273^(BQ256)*BQ300^BQ257 -> 1 | BR265: 1 | BS265: 1 | BT265: 1 | BU265: 1 | BV265: 1 | BW265: 1 | BX265: 1 | BY265: 1 | BZ265: 1 | CA265: 1 | CB265: 1 | CC265: 1 | CD265: 1 | CE265: 1 | CF265: 1 | CG265: 1 | CH265: 1 | CI265: 1 | CJ265: 1 | CK265: 1 | CL265: 1 | CM265: 1 | CN265: 1 | CO265: 1 | CP265: 1 | CQ265: 1 | CR265: 1 | CS265: 1 | CT265: 1 | CU265: 1 | CV265: 1 | CW265: 1 | CX265: 1 | CY265: 1 | CZ265: =IF(OR(D265=0,CY$210-D$210=0),0,LN(CY265/D265)/(CY$210-D$210)) -> -1.570012358e-17 | DA265: =IF(OR(CT265=0,CY$210-CT$210=0),0,LN(CY265/CT265)/(CY$210-CT$210)) -> -3.330669074e-16
C266: Earnings/Income, E | D266: =V48 -> 1 | E266: =E212*E223+E213*E221 -> 1 | F266: 1 | G266: 1 | H266: 1 | I266: 1 | J266: 1 | K266: 1 | L266: 1 | M266: 1 | N266: 1 | O266: 1 | P266: 1 | Q266: 1 | R266: 1 | S266: 1 | T266: 1 | U266: 1 | V266: 1 | W266: 1 | X266: 1 | Y266: 1 | Z266: 1 | AA266: 1 | AB266: 1 | AC266: 1 | AD266: 1 | AE266: 1 | AF266: 1 | AG266: 1 | AH266: 1 | AI266: 1 | AJ266: 1 | AK266: =AK212*AK223+AK213*AK221 -> 1 | AL266: 1 | AM266: 1 | AN266: 1 | AO266: 1 | AP266: 1 | AQ266: 1 | AR266: 1 | AS266: 1 | AT266: 1 | AU266: 1 | AV266: 1 | AW266: 1 | AX266: 1 | AY266: 1 | AZ266: 1 | BA266: 1 | BB266: 1 | BC266: 1 | BD266: 1 | BE266: 1 | BF266: 1 | BG266: 1 | BH266: 1 | BI266: 1 | BJ266: 1 | BK266: 1 | BL266: 1 | BM266: 1 | BN266: 1 | BO266: 1 | BP266: 1 | BQ266: =BQ212*BQ223+BQ213*BQ221 -> 1 | BR266: 1 | BS266: 1 | BT266: 1 | BU266: 1 | BV266: 1 | BW266: 1 | BX266: 1 | BY266: 1 | BZ266: 1 | CA266: 1 | CB266: 1 | CC266: 1 | CD266: 1 | CE266: 1 | CF266: 1 | CG266: 1 | CH266: 1 | CI266: 1 | CJ266: 1 | CK266: 1 | CL266: 1 | CM266: 1 | CN266: 1 | CO266: 1 | CP266: 1 | CQ266: 1 | CR266: 1 | CS266: 1 | CT266: 1 | CU266: 1 | CV266: 1 | CW266: 1 | CX266: 1 | CY266: 1 | CZ266: -9.420074148e-17 | DA266: -4.884981308e-16
C267: Nominal wages | D267: =D213*D221 -> 0.75 | E267: 0.75 | F267: 0.75 | G267: 0.75 | H267: 0.75 | I267: 0.75 | J267: 0.75 | K267: 0.7500000001 | L267: 0.7500000001 | M267: 0.7500000001 | N267: 0.7500000001 | O267: 0.7500000001 | P267: 0.7500000001 | Q267: 0.7500000001 | R267: 0.7500000001 | S267: 0.7500000001 | T267: 0.7500000001 | U267: 0.7500000001 | V267: 0.7500000001 | W267: 0.7500000001 | X267: 0.7500000001 | Y267: 0.7500000001 | Z267: 0.7500000001 | AA267: 0.7500000001 | AB267: 0.75 | AC267: 0.75 | AD267: 0.75 | AE267: 0.75 | AF267: 0.75 | AG267: 0.75 | AH267: 0.75 | AI267: 0.75 | AJ267: =AJ213*AJ221 -> 0.75 | AK267: 0.75 | AL267: 0.75 | AM267: 0.75 | AN267: 0.75 | AO267: 0.75 | AP267: 0.75 | AQ267: 0.75 | AR267: 0.75 | AS267: 0.75 | AT267: 0.75 | AU267: 0.75 | AV267: 0.75 | AW267: 0.75 | AX267: 0.75 | AY267: 0.75 | AZ267: 0.75 | BA267: 0.75 | BB267: 0.75 | BC267: 0.75 | BD267: 0.75 | BE267: 0.75 | BF267: 0.75 | BG267: 0.75 | BH267: 0.75 | BI267: 0.75 | BJ267: 0.75 | BK267: 0.75 | BL267: 0.75 | BM267: 0.75 | BN267: 0.75 | BO267: 0.75 | BP267: =BP213*BP221 -> 0.75 | BQ267: 0.75 | BR267: 0.75 | BS267: 0.75 | BT267: 0.75 | BU267: 0.75 | BV267: 0.75 | BW267: 0.75 | BX267: 0.75 | BY267: 0.75 | BZ267: 0.75 | CA267: 0.75 | CB267: 0.75 | CC267: 0.75 | CD267: 0.75 | CE267: 0.75 | CF267: 0.75 | CG267: 0.75 | CH267: 0.75 | CI267: 0.75 | CJ267: 0.75 | CK267: 0.75 | CL267: 0.75 | CM267: 0.75 | CN267: 0.75 | CO267: 0.75 | CP267: 0.75 | CQ267: 0.75 | CR267: 0.75 | CS267: 0.75 | CT267: 0.75 | CU267: 0.75 | CV267: 0.75 | CW267: 0.75 | CX267: 0.75 | CY267: 0.75 | CZ267: -9.420074148e-17 | DA267: -4.662936703e-16
C268: Nominal capital returns | D268: =D212*D223 -> 0.25 | E268: 0.25 | F268: 0.25 | G268: 0.25 | H268: 0.25 | I268: 0.25 | J268: 0.25 | K268: 0.25 | L268: 0.25 | M268: 0.25 | N268: 0.25 | O268: 0.25 | P268: 0.25 | Q268: 0.25 | R268: 0.25 | S268: 0.25 | T268: 0.25 | U268: 0.25 | V268: 0.25 | W268: 0.25 | X268: 0.25 | Y268: 0.25 | Z268: 0.25 | AA268: 0.25 | AB268: 0.25 | AC268: 0.25 | AD268: 0.25 | AE268: 0.25 | AF268: 0.25 | AG268: 0.25 | AH268: 0.25 | AI268: 0.25 | AJ268: =AJ212*AJ223 -> 0.25 | AK268: 0.25 | AL268: 0.25 | AM268: 0.25 | AN268: 0.25 | AO268: 0.25 | AP268: 0.25 | AQ268: 0.25 | AR268: 0.25 | AS268: 0.25 | AT268: 0.25 | AU268: 0.25 | AV268: 0.25 | AW268: 0.25 | AX268: 0.25 | AY268: 0.25 | AZ268: 0.25 | BA268: 0.25 | BB268: 0.25 | BC268: 0.25 | BD268: 0.25 | BE268: 0.25 | BF268: 0.25 | BG268: 0.25 | BH268: 0.25 | BI268: 0.25 | BJ268: 0.25 | BK268: 0.25 | BL268: 0.25 | BM268: 0.25 | BN268: 0.25 | BO268: 0.25 | BP268: =BP212*BP223 -> 0.25 | BQ268: 0.25 | BR268: 0.25 | BS268: 0.25 | BT268: 0.25 | BU268: 0.25 | BV268: 0.25 | BW268: 0.25 | BX268: 0.25 | BY268: 0.25 | BZ268: 0.25 | CA268: 0.25 | CB268: 0.25 | CC268: 0.25 | CD268: 0.25 | CE268: 0.25 | CF268: 0.25 | CG268: 0.25 | CH268: 0.25 | CI268: 0.25 | CJ268: 0.25 | CK268: 0.25 | CL268: 0.25 | CM268: 0.25 | CN268: 0.25 | CO268: 0.25 | CP268: 0.25 | CQ268: 0.25 | CR268: 0.25 | CS268: 0.25 | CT268: 0.25 | CU268: 0.25 | CV268: 0.25 | CW268: 0.25 | CX268: 0.25 | CY268: 0.25 | CZ268: -9.195786669e-17 | DA268: -4.884981308e-16
C269: Nominal budget | D269: =V48 -> 1 | E269: =E212*E223+E213*E221 -> 1 | F269: 1 | G269: 1 | H269: 1 | I269: 1 | J269: 1 | K269: 1 | L269: 1 | M269: 1 | N269: 1 | O269: 1 | P269: 1 | Q269: 1 | R269: 1 | S269: 1 | T269: 1 | U269: 1 | V269: 1 | W269: 1 | X269: 1 | Y269: 1 | Z269: 1 | AA269: 1 | AB269: 1 | AC269: 1 | AD269: 1 | AE269: 1 | AF269: 1 | AG269: 1 | AH269: 1 | AI269: 1 | AJ269: 1 | AK269: =AK212*AK223+AK213*AK221 -> 1 | AL269: 1 | AM269: 1 | AN269: 1 | AO269: 1 | AP269: 1 | AQ269: 1 | AR269: 1 | AS269: 1 | AT269: 1 | AU269: 1 | AV269: 1 | AW269: 1 | AX269: 1 | AY269: 1 | AZ269: 1 | BA269: 1 | BB269: 1 | BC269: 1 | BD269: 1 | BE269: 1 | BF269: 1 | BG269: 1 | BH269: 1 | BI269: 1 | BJ269: 1 | BK269: 1 | BL269: 1 | BM269: 1 | BN269: 1 | BO269: 1 | BP269: 1 | BQ269: =BQ212*BQ223+BQ213*BQ221 -> 1 | BR269: 1 | BS269: 1 | BT269: 1 | BU269: 1 | BV269: 1 | BW269: 1 | BX269: 1 | BY269: 1 | BZ269: 1 | CA269: 1 | CB269: 1 | CC269: 1 | CD269: 1 | CE269: 1 | CF269: 1 | CG269: 1 | CH269: 1 | CI269: 1 | CJ269: 1 | CK269: 1 | CL269: 1 | CM269: 1 | CN269: 1 | CO269: 1 | CP269: 1 | CQ269: 1 | CR269: 1 | CS269: 1 | CT269: 1 | CU269: 1 | CV269: 1 | CW269: 1 | CX269: 1 | CY269: 1 | CZ269: -9.420074148e-17 | DA269: -4.884981308e-16
C270: Maximum wealth, Wmax | D270: =V47 -> 2.25 | E270: =E213*E220+E212*E223 -> 2.25 | F270: 2.25 | G270: 2.25 | H270: 2.25 | I270: 2.25 | J270: 2.25 | K270: 2.25 | L270: 2.25 | M270: 2.25 | N270: 2.25 | O270: 2.25 | P270: 2.25 | Q270: 2.25 | R270: 2.25 | S270: 2.25 | T270: 2.25 | U270: 2.25 | V270: 2.25 | W270: 2.25 | X270: 2.25 | Y270: 2.25 | Z270: 2.25 | AA270: 2.25 | AB270: 2.25 | AC270: 2.25 | AD270: 2.25 | AE270: 2.25 | AF270: 2.25 | AG270: 2.25 | AH270: 2.25 | AI270: 2.25 | AJ270: 2.25 | AK270: =AK213*AK220+AK212*AK223 -> 2.25 | AL270: 2.25 | AM270: 2.25 | AN270: 2.25 | AO270: 2.25 | AP270: 2.25 | AQ270: 2.25 | AR270: 2.25 | AS270: 2.25 | AT270: 2.25 | AU270: 2.25 | AV270: 2.25 | AW270: 2.25 | AX270: 2.25 | AY270: 2.25 | AZ270: 2.25 | BA270: 2.25 | BB270: 2.25 | BC270: 2.25 | BD270: 2.25 | BE270: 2.25 | BF270: 2.25 | BG270: 2.25 | BH270: 2.25 | BI270: 2.25 | BJ270: 2.25 | BK270: 2.25 | BL270: 2.25 | BM270: 2.25 | BN270: 2.25 | BO270: 2.25 | BP270: 2.25 | BQ270: =BQ213*BQ220+BQ212*BQ223 -> 2.25 | BR270: 2.25 | BS270: 2.25 | BT270: 2.25 | BU270: 2.25 | BV270: 2.25 | BW270: 2.25 | BX270: 2.25 | BY270: 2.25 | BZ270: 2.25 | CA270: 2.25 | CB270: 2.25 | CC270: 2.25 | CD270: 2.25 | CE270: 2.25 | CF270: 2.25 | CG270: 2.25 | CH270: 2.25 | CI270: 2.25 | CJ270: 2.25 | CK270: 2.25 | CL270: 2.25 | CM270: 2.25 | CN270: 2.25 | CO270: 2.25 | CP270: 2.25 | CQ270: 2.25 | CR270: 2.25 | CS270: 2.25 | CT270: 2.25 | CU270: 2.25 | CV270: 2.25 | CW270: 2.25 | CX270: 2.25 | CY270: 2.25
C271: Real Consumption, C | D271: =V49 -> 0.75 | E271: =(E254/(1-E257))*E270/E211 -> 0.75 | F271: 0.7500000001 | G271: 0.7500000003 | H271: 0.7500000004 | I271: 0.7500000005 | J271: 0.7500000006 | K271: 0.7500000006 | L271: 0.7500000006 | M271: 0.7500000006 | N271: 0.7500000006 | O271: 0.7500000005 | P271: 0.7500000005 | Q271: 0.7500000004 | R271: 0.7500000004 | S271: 0.7500000003 | T271: 0.7500000003 | U271: 0.7500000002 | V271: 0.7500000002 | W271: 0.7500000002 | X271: 0.7500000001 | Y271: 0.7500000001 | Z271: 0.7500000001 | AA271: 0.75 | AB271: 0.75 | AC271: 0.75 | AD271: 0.75 | AE271: 0.75 | AF271: 0.75 | AG271: 0.75 | AH271: 0.75 | AI271: 0.75 | AJ271: 0.75 | AK271: =(AK254/(1-AK257))*AK270/AK211 -> 0.75 | AL271: 0.75 | AM271: 0.75 | AN271: 0.75 | AO271: 0.75 | AP271: 0.75 | AQ271: 0.75 | AR271: 0.75 | AS271: 0.75 | AT271: 0.75 | AU271: 0.75 | AV271: 0.75 | AW271: 0.75 | AX271: 0.75 | AY271: 0.75 | AZ271: 0.75 | BA271: 0.75 | BB271: 0.75 | BC271: 0.75 | BD271: 0.75 | BE271: 0.75 | BF271: 0.75 | BG271: 0.75 | BH271: 0.75 | BI271: 0.75 | BJ271: 0.75 | BK271: 0.75 | BL271: 0.75 | BM271: 0.75 | BN271: 0.75 | BO271: 0.75 | BP271: 0.75 | BQ271: =(BQ254/(1-BQ257))*BQ270/BQ211 -> 0.75 | BR271: 0.75 | BS271: 0.75 | BT271: 0.75 | BU271: 0.75 | BV271: 0.75 | BW271: 0.75 | BX271: 0.75 | BY271: 0.75 | BZ271: 0.75 | CA271: 0.75 | CB271: 0.75 | CC271: 0.75 | CD271: 0.75 | CE271: 0.75 | CF271: 0.75 | CG271: 0.75 | CH271: 0.75 | CI271: 0.75 | CJ271: 0.75 | CK271: 0.75 | CL271: 0.75 | CM271: 0.75 | CN271: 0.75 | CO271: 0.75 | CP271: 0.75 | CQ271: 0.75 | CR271: 0.75 | CS271: 0.75 | CT271: 0.75 | CU271: 0.75 | CV271: 0.75 | CW271: =(CW254/(1-CW257))*CW270/CW211 -> 0.75 | CX271: 0.75 | CY271: 0.75 | CZ271: -5.270755773e-17 | DA271: -5.329070518e-16
C272: Real Savings, S | D272: =V50 -> 0.25 | E272: =(E255/(1-E257))*E270/E211 -> 0.25 | F272: 0.25 | G272: 0.2500000001 | H272: 0.2500000001 | I272: 0.2500000002 | J272: 0.2500000002 | K272: 0.2500000002 | L272: 0.2500000002 | M272: 0.2500000002 | N272: 0.2500000002 | O272: 0.2500000002 | P272: 0.2500000002 | Q272: 0.2500000001 | R272: 0.2500000001 | S272: 0.2500000001 | T272: 0.2500000001 | U272: 0.2500000001 | V272: 0.2500000001 | W272: 0.2500000001 | X272: 0.25 | Y272: 0.25 | Z272: 0.25 | AA272: 0.25 | AB272: 0.25 | AC272: 0.25 | AD272: 0.25 | AE272: 0.25 | AF272: 0.25 | AG272: 0.25 | AH272: 0.25 | AI272: 0.25 | AJ272: 0.25 | AK272: =(AK255/(1-AK257))*AK270/AK211 -> 0.25 | AL272: 0.25 | AM272: 0.25 | AN272: 0.25 | AO272: 0.25 | AP272: 0.25 | AQ272: 0.25 | AR272: 0.25 | AS272: 0.25 | AT272: 0.25 | AU272: 0.25 | AV272: 0.25 | AW272: 0.25 | AX272: 0.25 | AY272: 0.25 | AZ272: 0.25 | BA272: 0.25 | BB272: 0.25 | BC272: 0.25 | BD272: 0.25 | BE272: 0.25 | BF272: 0.25 | BG272: 0.25 | BH272: 0.25 | BI272: 0.25 | BJ272: 0.25 | BK272: 0.25 | BL272: 0.25 | BM272: 0.25 | BN272: 0.25 | BO272: 0.25 | BP272: 0.25 | BQ272: =(BQ255/(1-BQ257))*BQ270/BQ211 -> 0.25 | BR272: 0.25 | BS272: 0.25 | BT272: 0.25 | BU272: 0.25 | BV272: 0.25 | BW272: 0.25 | BX272: 0.25 | BY272: 0.25 | BZ272: 0.25 | CA272: 0.25 | CB272: 0.25 | CC272: 0.25 | CD272: 0.25 | CE272: 0.25 | CF272: 0.25 | CG272: 0.25 | CH272: 0.25 | CI272: 0.25 | CJ272: 0.25 | CK272: 0.25 | CL272: 0.25 | CM272: 0.25 | CN272: 0.25 | CO272: 0.25 | CP272: 0.25 | CQ272: 0.25 | CR272: 0.25 | CS272: 0.25 | CT272: 0.25 | CU272: 0.25 | CV272: 0.25 | CW272: 0.25 | CX272: 0.25 | CY272: 0.25 | CZ272: -5.158612034e-17 | DA272: -5.329070518e-16
C273: Leisure, l | D273: =V51 -> 1.666666667 | E273: =(E211/E213)*(E256/((1-E257)))*E270/E211 -> 1.666666667 | F273: 1.666666667 | G273: 1.666666667 | H273: 1.666666667 | I273: 1.666666667 | J273: 1.666666667 | K273: 1.666666667 | L273: 1.666666667 | M273: 1.666666667 | N273: 1.666666667 | O273: 1.666666667 | P273: 1.666666667 | Q273: 1.666666667 | R273: 1.666666667 | S273: 1.666666667 | T273: 1.666666667 | U273: 1.666666667 | V273: 1.666666667 | W273: 1.666666667 | X273: 1.666666667 | Y273: 1.666666667 | Z273: 1.666666667 | AA273: 1.666666667 | AB273: 1.666666667 | AC273: 1.666666667 | AD273: 1.666666667 | AE273: 1.666666667 | AF273: 1.666666667 | AG273: 1.666666667 | AH273: 1.666666667 | AI273: 1.666666667 | AJ273: 1.666666667 | AK273: =(AK211/AK213)*(AK256/((1-AK257)))*AK270/AK211 -> 1.666666667 | AL273: 1.666666667 | AM273: 1.666666667 | AN273: 1.666666667 | AO273: 1.666666667 | AP273: 1.666666667 | AQ273: 1.666666667 | AR273: 1.666666667 | AS273: 1.666666667 | AT273: 1.666666667 | AU273: 1.666666667 | AV273: 1.666666667 | AW273: 1.666666667 | AX273: 1.666666667 | AY273: 1.666666667 | AZ273: 1.666666667 | BA273: 1.666666667 | BB273: 1.666666667 | BC273: 1.666666667 | BD273: 1.666666667 | BE273: 1.666666667 | BF273: 1.666666667 | BG273: 1.666666667 | BH273: 1.666666667 | BI273: 1.666666667 | BJ273: 1.666666667 | BK273: 1.666666667 | BL273: 1.666666667 | BM273: 1.666666667 | BN273: 1.666666667 | BO273: 1.666666667 | BP273: 1.666666667 | BQ273: =(BQ211/BQ213)*(BQ256/((1-BQ257)))*BQ270/BQ211 -> 1.666666667 | BR273: 1.666666667 | BS273: 1.666666667 | BT273: 1.666666667 | BU273: 1.666666667 | BV273: 1.666666667 | BW273: 1.666666667 | BX273: 1.666666667 | BY273: 1.666666667 | BZ273: 1.666666667 | CA273: 1.666666667 | CB273: 1.666666667 | CC273: 1.666666667 | CD273: 1.666666667 | CE273: 1.666666667 | CF273: 1.666666667 | CG273: 1.666666667 | CH273: 1.666666667 | CI273: 1.666666667 | CJ273: 1.666666667 | CK273: 1.666666667 | CL273: 1.666666667 | CM273: 1.666666667 | CN273: 1.666666667 | CO273: 1.666666667 | CP273: 1.666666667 | CQ273: 1.666666667 | CR273: 1.666666667 | CS273: 1.666666667 | CT273: 1.666666667 | CU273: 1.666666667 | CV273: 1.666666667 | CW273: 1.666666667 | CX273: 1.666666667 | CY273: 1.666666667 | CZ273: 0 | DA273: 4.440892099e-17
C275: Real Income, W/c | D275: =D266/D$211 -> 1 | E275: 1 | F275: 1 | G275: 1 | H275: 1.000000001 | I275: 1.000000001 | J275: 1.000000001 | K275: 1.000000001 | L275: 1.000000001 | M275: 1.000000001 | N275: 1.000000001 | O275: 1.000000001 | P275: 1.000000001 | Q275: 1.000000001 | R275: 1.000000001 | S275: 1 | T275: 1 | U275: 1 | V275: 1 | W275: 1 | X275: 1 | Y275: 1 | Z275: 1 | AA275: 1 | AB275: 1 | AC275: 1 | AD275: 1 | AE275: 1 | AF275: 1 | AG275: 1 | AH275: 1 | AI275: 1 | AJ275: 1 | AK275: 1 | AL275: 1 | AM275: 1 | AN275: 1 | AO275: 1 | AP275: 1 | AQ275: 1 | AR275: 1 | AS275: 1 | AT275: 1 | AU275: 1 | AV275: 1 | AW275: 1 | AX275: 1 | AY275: 1 | AZ275: 1 | BA275: 1 | BB275: 1 | BC275: 1 | BD275: 1 | BE275: 1 | BF275: 1 | BG275: 1 | BH275: 1 | BI275: 1 | BJ275: 1 | BK275: 1 | BL275: 1 | BM275: 1 | BN275: 1 | BO275: 1 | BP275: =BP266/BP$211 -> 1 | BQ275: 1 | BR275: 1 | BS275: 1 | BT275: 1 | BU275: 1 | BV275: 1 | BW275: 1 | BX275: 1 | BY275: 1 | BZ275: 1 | CA275: 1 | CB275: 1 | CC275: 1 | CD275: 1 | CE275: 1 | CF275: 1 | CG275: 1 | CH275: 1 | CI275: 1 | CJ275: 1 | CK275: 1 | CL275: 1 | CM275: 1 | CN275: 1 | CO275: 1 | CP275: 1 | CQ275: 1 | CR275: 1 | CS275: 1 | CT275: 1 | CU275: 1 | CV275: 1 | CW275: 1 | CX275: 1 | CY275: 1 | CZ275: =IF(OR(D275=0,CY$210-D$210=0),0,LN(CY275/D275)/(CY$210-D$210)) -> -5.382899513e-17 | DA275: =IF(OR(CT275=0,CY$210-CT$210=0),0,LN(CY275/CT275)/(CY$210-CT$210)) -> -6.217248938e-16
C276: Real wages, w/c | D276: =D267/D211 -> 0.75 | E276: 0.75 | F276: 0.7500000001 | G276: 0.7500000003 | H276: 0.7500000004 | I276: 0.7500000005 | J276: 0.7500000005 | K276: 0.7500000006 | L276: 0.7500000006 | M276: 0.7500000006 | N276: 0.7500000006 | O276: 0.7500000005 | P276: 0.7500000005 | Q276: 0.7500000004 | R276: 0.7500000004 | S276: 0.7500000003 | T276: 0.7500000003 | U276: 0.7500000003 | V276: 0.7500000002 | W276: 0.7500000002 | X276: 0.7500000001 | Y276: 0.7500000001 | Z276: 0.7500000001 | AA276: 0.7500000001 | AB276: 0.75 | AC276: 0.75 | AD276: 0.75 | AE276: 0.75 | AF276: 0.75 | AG276: 0.75 | AH276: 0.75 | AI276: 0.75 | AJ276: 0.75 | AK276: 0.75 | AL276: 0.75 | AM276: 0.75 | AN276: 0.75 | AO276: 0.75 | AP276: 0.75 | AQ276: 0.75 | AR276: 0.75 | AS276: 0.75 | AT276: 0.75 | AU276: 0.75 | AV276: 0.75 | AW276: 0.75 | AX276: 0.75 | AY276: 0.75 | AZ276: 0.75 | BA276: 0.75 | BB276: 0.75 | BC276: 0.75 | BD276: 0.75 | BE276: 0.75 | BF276: 0.75 | BG276: 0.75 | BH276: 0.75 | BI276: 0.75 | BJ276: 0.75 | BK276: 0.75 | BL276: 0.75 | BM276: 0.75 | BN276: 0.75 | BO276: 0.75 | BP276: 0.75 | BQ276: 0.75 | BR276: 0.75 | BS276: 0.75 | BT276: 0.75 | BU276: 0.75 | BV276: 0.75 | BW276: 0.75 | BX276: 0.75 | BY276: 0.75 | BZ276: 0.75 | CA276: 0.75 | CB276: 0.75 | CC276: 0.75 | CD276: 0.75 | CE276: 0.75 | CF276: 0.75 | CG276: 0.75 | CH276: 0.75 | CI276: 0.75 | CJ276: 0.75 | CK276: 0.75 | CL276: 0.75 | CM276: 0.75 | CN276: 0.75 | CO276: 0.75 | CP276: 0.75 | CQ276: 0.75 | CR276: 0.75 | CS276: 0.75 | CT276: 0.75 | CU276: 0.75 | CV276: 0.75 | CW276: 0.75 | CX276: 0.75 | CY276: 0.75 | CZ276: -5.382899513e-17 | DA276: -5.995204333e-16
C277: Real capital returns, pK/c | D277: =D268/D211 -> 0.25 | E277: 0.25 | F277: 0.25 | G277: 0.2500000001 | H277: 0.2500000002 | I277: 0.2500000002 | J277: 0.2500000002 | K277: 0.2500000002 | L277: 0.2500000002 | M277: 0.2500000002 | N277: 0.2500000002 | O277: 0.2500000002 | P277: 0.2500000002 | Q277: 0.2500000001 | R277: 0.2500000001 | S277: 0.2500000001 | T277: 0.2500000001 | U277: 0.2500000001 | V277: 0.2500000001 | W277: 0.25 | X277: 0.25 | Y277: 0.25 | Z277: 0.25 | AA277: 0.25 | AB277: 0.25 | AC277: 0.25 | AD277: 0.25 | AE277: 0.25 | AF277: 0.25 | AG277: 0.25 | AH277: 0.25 | AI277: 0.25 | AJ277: 0.25 | AK277: 0.25 | AL277: 0.25 | AM277: 0.25 | AN277: 0.25 | AO277: 0.25 | AP277: 0.25 | AQ277: 0.25 | AR277: 0.25 | AS277: 0.25 | AT277: 0.25 | AU277: 0.25 | AV277: 0.25 | AW277: 0.25 | AX277: 0.25 | AY277: 0.25 | AZ277: 0.25 | BA277: 0.25 | BB277: 0.25 | BC277: 0.25 | BD277: 0.25 | BE277: 0.25 | BF277: 0.25 | BG277: 0.25 | BH277: 0.25 | BI277: 0.25 | BJ277: 0.25 | BK277: 0.25 | BL277: 0.25 | BM277: 0.25 | BN277: 0.25 | BO277: 0.25 | BP277: 0.25 | BQ277: 0.25 | BR277: 0.25 | BS277: 0.25 | BT277: 0.25 | BU277: 0.25 | BV277: 0.25 | BW277: 0.25 | BX277: 0.25 | BY277: 0.25 | BZ277: 0.25 | CA277: 0.25 | CB277: 0.25 | CC277: 0.25 | CD277: 0.25 | CE277: 0.25 | CF277: 0.25 | CG277: 0.25 | CH277: 0.25 | CI277: 0.25 | CJ277: 0.25 | CK277: 0.25 | CL277: 0.25 | CM277: 0.25 | CN277: 0.25 | CO277: 0.25 | CP277: 0.25 | CQ277: 0.25 | CR277: 0.25 | CS277: 0.25 | CT277: 0.25 | CU277: 0.25 | CV277: 0.25 | CW277: 0.25 | CX277: 0.25 | CY277: 0.25 | CZ277: -5.158612034e-17 | DA277: -6.217248938e-16
C278: Nominal consumption, cC | D278: =D271/D$211 -> 0.75 | E278: 0.75 | F278: 0.7500000003 | G278: 0.7500000006 | H278: 0.7500000008 | I278: 0.750000001 | J278: 0.7500000011 | K278: 0.7500000011 | L278: 0.7500000011 | M278: 0.7500000011 | N278: 0.750000001 | O278: 0.7500000009 | P278: 0.7500000009 | Q278: 0.7500000008 | R278: 0.7500000007 | S278: 0.7500000006 | T278: 0.7500000005 | U278: 0.7500000004 | V278: 0.7500000003 | W278: 0.7500000002 | X278: 0.7500000002 | Y278: 0.7500000001 | Z278: 0.7500000001 | AA278: 0.7500000001 | AB278: 0.75 | AC278: 0.75 | AD278: 0.75 | AE278: 0.75 | AF278: 0.75 | AG278: 0.75 | AH278: 0.75 | AI278: 0.75 | AJ278: 0.75 | AK278: 0.75 | AL278: 0.75 | AM278: 0.75 | AN278: 0.75 | AO278: 0.75 | AP278: 0.75 | AQ278: 0.75 | AR278: 0.75 | AS278: 0.75 | AT278: 0.75 | AU278: 0.75 | AV278: 0.75 | AW278: 0.75 | AX278: 0.75 | AY278: 0.75 | AZ278: 0.75 | BA278: 0.75 | BB278: 0.75 | BC278: 0.75 | BD278: 0.75 | BE278: 0.75 | BF278: 0.75 | BG278: 0.75 | BH278: 0.75 | BI278: 0.75 | BJ278: 0.75 | BK278: 0.75 | BL278: 0.75 | BM278: 0.75 | BN278: 0.75 | BO278: 0.75 | BP278: =BP271/BP$211 -> 0.75 | BQ278: 0.75 | BR278: 0.75 | BS278: 0.75 | BT278: 0.75 | BU278: 0.75 | BV278: 0.75 | BW278: 0.75 | BX278: 0.75 | BY278: 0.75 | BZ278: 0.75 | CA278: 0.75 | CB278: 0.75 | CC278: 0.75 | CD278: 0.75 | CE278: 0.75 | CF278: 0.75 | CG278: 0.75 | CH278: 0.75 | CI278: 0.75 | CJ278: 0.75 | CK278: 0.75 | CL278: 0.75 | CM278: 0.75 | CN278: 0.75 | CO278: 0.75 | CP278: 0.75 | CQ278: 0.75 | CR278: 0.75 | CS278: 0.75 | CT278: 0.75 | CU278: 0.75 | CV278: 0.75 | CW278: 0.75 | CX278: 0.75 | CY278: 0.75 | CZ278: -1.233581138e-17 | DA278: -6.439293543e-16
C279: Nominal savings, cS | D279: 0.25 | E279: 0.25 | F279: 0.2500000001 | G279: 0.2500000002 | H279: 0.2500000003 | I279: 0.2500000003 | J279: 0.2500000004 | K279: 0.2500000004 | L279: 0.2500000004 | M279: 0.2500000004 | N279: 0.2500000003 | O279: 0.2500000003 | P279: 0.2500000003 | Q279: 0.2500000003 | R279: 0.2500000002 | S279: 0.2500000002 | T279: 0.2500000002 | U279: 0.2500000001 | V279: 0.2500000001 | W279: 0.2500000001 | X279: 0.2500000001 | Y279: 0.25 | Z279: 0.25 | AA279: 0.25 | AB279: 0.25 | AC279: 0.25 | AD279: 0.25 | AE279: 0.25 | AF279: 0.25 | AG279: 0.25 | AH279: 0.25 | AI279: 0.25 | AJ279: 0.25 | AK279: 0.25 | AL279: 0.25 | AM279: 0.25 | AN279: 0.25 | AO279: 0.25 | AP279: 0.25 | AQ279: 0.25 | AR279: 0.25 | AS279: 0.25 | AT279: 0.25 | AU279: 0.25 | AV279: 0.25 | AW279: 0.25 | AX279: 0.25 | AY279: 0.25 | AZ279: 0.25 | BA279: 0.25 | BB279: 0.25 | BC279: 0.25 | BD279: 0.25 | BE279: 0.25 | BF279: 0.25 | BG279: 0.25 | BH279: 0.25 | BI279: 0.25 | BJ279: 0.25 | BK279: 0.25 | BL279: 0.25 | BM279: 0.25 | BN279: 0.25 | BO279: 0.25 | BP279: 0.25 | BQ279: 0.25 | BR279: 0.25 | BS279: 0.25 | BT279: 0.25 | BU279: 0.25 | BV279: 0.25 | BW279: 0.25 | BX279: 0.25 | BY279: 0.25 | BZ279: 0.25 | CA279: 0.25 | CB279: 0.25 | CC279: 0.25 | CD279: 0.25 | CE279: 0.25 | CF279: 0.25 | CG279: 0.25 | CH279: 0.25 | CI279: 0.25 | CJ279: 0.25 | CK279: 0.25 | CL279: 0.25 | CM279: 0.25 | CN279: 0.25 | CO279: 0.25 | CP279: 0.25 | CQ279: 0.25 | CR279: 0.25 | CS279: 0.25 | CT279: 0.25 | CU279: 0.25 | CV279: 0.25 | CW279: 0.25 | CX279: 0.25 | CY279: 0.25 | CZ279: -1.121437399e-17 | DA279: -6.661338148e-16
C280: "Real" Leisure, l/c | D280: 1.666666667 | E280: 1.666666667 | F280: 1.666666667 | G280: 1.666666667 | H280: 1.666666668 | I280: 1.666666668 | J280: 1.666666668 | K280: 1.666666668 | L280: 1.666666668 | M280: 1.666666668 | N280: 1.666666668 | O280: 1.666666668 | P280: 1.666666667 | Q280: 1.666666667 | R280: 1.666666667 | S280: 1.666666667 | T280: 1.666666667 | U280: 1.666666667 | V280: 1.666666667 | W280: 1.666666667 | X280: 1.666666667 | Y280: 1.666666667 | Z280: 1.666666667 | AA280: 1.666666667 | AB280: 1.666666667 | AC280: 1.666666667 | AD280: 1.666666667 | AE280: 1.666666667 | AF280: 1.666666667 | AG280: 1.666666667 | AH280: 1.666666667 | AI280: 1.666666667 | AJ280: 1.666666667 | AK280: 1.666666667 | AL280: 1.666666667 | AM280: 1.666666667 | AN280: 1.666666667 | AO280: 1.666666667 | AP280: 1.666666667 | AQ280: 1.666666667 | AR280: 1.666666667 | AS280: 1.666666667 | AT280: 1.666666667 | AU280: 1.666666667 | AV280: 1.666666667 | AW280: 1.666666667 | AX280: 1.666666667 | AY280: 1.666666667 | AZ280: 1.666666667 | BA280: 1.666666667 | BB280: 1.666666667 | BC280: 1.666666667 | BD280: 1.666666667 | BE280: 1.666666667 | BF280: 1.666666667 | BG280: 1.666666667 | BH280: 1.666666667 | BI280: 1.666666667 | BJ280: 1.666666667 | BK280: 1.666666667 | BL280: 1.666666667 | BM280: 1.666666667 | BN280: 1.666666667 | BO280: 1.666666667 | BP280: 1.666666667 | BQ280: 1.666666667 | BR280: 1.666666667 | BS280: 1.666666667 | BT280: 1.666666667 | BU280: 1.666666667 | BV280: 1.666666667 | BW280: 1.666666667 | BX280: 1.666666667 | BY280: 1.666666667 | BZ280: 1.666666667 | CA280: 1.666666667 | CB280: 1.666666667 | CC280: 1.666666667 | CD280: 1.666666667 | CE280: 1.666666667 | CF280: 1.666666667 | CG280: 1.666666667 | CH280: 1.666666667 | CI280: 1.666666667 | CJ280: 1.666666667 | CK280: 1.666666667 | CL280: 1.666666667 | CM280: 1.666666667 | CN280: 1.666666667 | CO280: 1.666666667 | CP280: 1.666666667 | CQ280: 1.666666667 | CR280: 1.666666667 | CS280: 1.666666667 | CT280: 1.666666667 | CU280: 1.666666667 | CV280: 1.666666667 | CW280: 1.666666667 | CX280: 1.666666667 | CY280: 1.666666667 | CZ280: 4.037174635e-17 | DA280: -1.110223025e-16
C282: Welfare Measures | D282: =D$210 -> 1 | E282: =E$210 -> 2 | F282: 3 | G282: 4 | H282: 5 | I282: 6 | J282: 7 | K282: 8 | L282: 9 | M282: 10 | N282: 11 | O282: 12 | P282: 13 | Q282: 14 | R282: 15 | S282: 16 | T282: 17 | U282: 18 | V282: 19 | W282: 20 | X282: 21 | Y282: 22 | Z282: 23 | AA282: 24 | AB282: 25 | AC282: 26 | AD282: 27 | AE282: 28 | AF282: 29 | AG282: 30 | AH282: 31 | AI282: 32 | AJ282: 33 | AK282: 34 | AL282: 35 | AM282: 36 | AN282: 37 | AO282: 38 | AP282: 39 | AQ282: 40 | AR282: 41 | AS282: 42 | AT282: 43 | AU282: 44 | AV282: 45 | AW282: 46 | AX282: 47 | AY282: 48 | AZ282: 49 | BA282: 50 | BB282: 51 | BC282: 52 | BD282: 53 | BE282: 54 | BF282: 55 | BG282: 56 | BH282: 57 | BI282: 58 | BJ282: 59 | BK282: 60 | BL282: 61 | BM282: 62 | BN282: 63 | BO282: 64 | BP282: 65 | BQ282: =BQ$210 -> 66 | BR282: 67 | BS282: 68 | BT282: 69 | BU282: 70 | BV282: 71 | BW282: 72 | BX282: 73 | BY282: 74 | BZ282: 75 | CA282: 76 | CB282: 77 | CC282: 78 | CD282: 79 | CE282: 80 | CF282: 81 | CG282: 82 | CH282: 83 | CI282: 84 | CJ282: 85 | CK282: 86 | CL282: 87 | CM282: 88 | CN282: 89 | CO282: 90 | CP282: 91 | CQ282: 92 | CR282: 93 | CS282: 94 | CT282: 95 | CU282: 96 | CV282: 97 | CW282: 98 | CX282: 99 | CY282: 100
C283: Utility/worker, u/n | D283: =Y46 -> 1 | E283: =E265/E$221 -> 1 | F283: 1 | G283: 1 | H283: 1 | I283: 1.000000001 | J283: 1.000000001 | K283: 1.000000001 | L283: 1.000000001 | M283: 1.000000001 | N283: 1 | O283: 1 | P283: 1 | Q283: 1 | R283: 1 | S283: 1 | T283: 1 | U283: 1 | V283: 1 | W283: 1 | X283: 1 | Y283: 1 | Z283: 1 | AA283: 1 | AB283: 1 | AC283: 1 | AD283: 1 | AE283: 1 | AF283: 1 | AG283: 1 | AH283: 1 | AI283: 1 | AJ283: 1 | AK283: 1 | AL283: 1 | AM283: 1 | AN283: 1 | AO283: 1 | AP283: 1 | AQ283: 1 | AR283: 1 | AS283: 1 | AT283: 1 | AU283: 1 | AV283: 1 | AW283: 1 | AX283: 1 | AY283: 1 | AZ283: 1 | BA283: 1 | BB283: 1 | BC283: 1 | BD283: 1 | BE283: 1 | BF283: 1 | BG283: 1 | BH283: 1 | BI283: 1 | BJ283: 1 | BK283: 1 | BL283: 1 | BM283: 1 | BN283: 1 | BO283: 1 | BP283: 1 | BQ283: =BQ265/BQ$221 -> 1 | BR283: 1 | BS283: 1 | BT283: 1 | BU283: 1 | BV283: 1 | BW283: 1 | BX283: 1 | BY283: 1 | BZ283: 1 | CA283: 1 | CB283: 1 | CC283: 1 | CD283: 1 | CE283: 1 | CF283: 1 | CG283: 1 | CH283: 1 | CI283: 1 | CJ283: 1 | CK283: 1 | CL283: 1 | CM283: 1 | CN283: 1 | CO283: 1 | CP283: 1 | CQ283: 1 | CR283: 1 | CS283: 1 | CT283: 1 | CU283: 1 | CV283: 1 | CW283: 1 | CX283: 1 | CY283: 1 | CZ283: =IF(OR(D283=0,CY$210-D$210=0),0,LN(CY283/D283)/(CY$210-D$210)) -> -1.570012358e-17 | DA283: =IF(OR(CT283=0,CY$210-CT$210=0),0,LN(CY283/CT283)/(CY$210-CT$210)) -> -2.886579864e-16
C284: Earnings/worker E/n | D284: =Y47 -> 1 | E284: 1 | F284: 1 | G284: 1 | H284: 1 | I284: 1 | J284: 1 | K284: 1 | L284: 1 | M284: 1 | N284: 1 | O284: 1 | P284: 1 | Q284: 1 | R284: 1 | S284: 1 | T284: 1 | U284: 1 | V284: 1 | W284: 1 | X284: 1 | Y284: 1 | Z284: 1 | AA284: 1 | AB284: 1 | AC284: 1 | AD284: 1 | AE284: 1 | AF284: 1 | AG284: 1 | AH284: 1 | AI284: 1 | AJ284: 1 | AK284: 1 | AL284: 1 | AM284: 1 | AN284: 1 | AO284: 1 | AP284: 1 | AQ284: 1 | AR284: 1 | AS284: 1 | AT284: 1 | AU284: 1 | AV284: 1 | AW284: 1 | AX284: 1 | AY284: 1 | AZ284: 1 | BA284: 1 | BB284: 1 | BC284: 1 | BD284: 1 | BE284: 1 | BF284: 1 | BG284: 1 | BH284: 1 | BI284: 1 | BJ284: 1 | BK284: 1 | BL284: 1 | BM284: 1 | BN284: 1 | BO284: 1 | BP284: 1 | BQ284: 1 | BR284: 1 | BS284: 1 | BT284: 1 | BU284: 1 | BV284: 1 | BW284: 1 | BX284: 1 | BY284: 1 | BZ284: 1 | CA284: 1 | CB284: 1 | CC284: 1 | CD284: 1 | CE284: 1 | CF284: 1 | CG284: 1 | CH284: 1 | CI284: 1 | CJ284: 1 | CK284: 1 | CL284: 1 | CM284: 1 | CN284: 1 | CO284: 1 | CP284: 1 | CQ284: 1 | CR284: 1 | CS284: 1 | CT284: 1 | CU284: 1 | CV284: 1 | CW284: 1 | CX284: 1 | CY284: 1 | CZ284: =IF(OR(D284=0,CY$210-D$210=0),0,LN(CY284/D284)/(CY$210-D$210)) -> -9.420074148e-17 | DA284: =IF(OR(CT284=0,CY$210-CT$210=0),0,LN(CY284/CT284)/(CY$210-CT$210)) -> -4.440892099e-16
C285: Consumption/worker, C/n | D285: =Y48 -> 0.75 | E285: =E271/E$221 -> 0.75 | F285: 0.7500000001 | G285: 0.7500000003 | H285: 0.7500000004 | I285: 0.7500000005 | J285: 0.7500000006 | K285: 0.7500000006 | L285: 0.7500000006 | M285: 0.7500000006 | N285: 0.7500000006 | O285: 0.7500000005 | P285: 0.7500000005 | Q285: 0.7500000004 | R285: 0.7500000004 | S285: 0.7500000003 | T285: 0.7500000003 | U285: 0.7500000002 | V285: 0.7500000002 | W285: 0.7500000002 | X285: 0.7500000001 | Y285: 0.7500000001 | Z285: 0.7500000001 | AA285: 0.75 | AB285: 0.75 | AC285: 0.75 | AD285: 0.75 | AE285: 0.75 | AF285: 0.75 | AG285: 0.75 | AH285: 0.75 | AI285: 0.75 | AJ285: 0.75 | AK285: 0.75 | AL285: 0.75 | AM285: 0.75 | AN285: 0.75 | AO285: 0.75 | AP285: 0.75 | AQ285: 0.75 | AR285: 0.75 | AS285: 0.75 | AT285: 0.75 | AU285: 0.75 | AV285: 0.75 | AW285: 0.75 | AX285: 0.75 | AY285: 0.75 | AZ285: 0.75 | BA285: 0.75 | BB285: 0.75 | BC285: 0.75 | BD285: 0.75 | BE285: 0.75 | BF285: 0.75 | BG285: 0.75 | BH285: 0.75 | BI285: 0.75 | BJ285: 0.75 | BK285: 0.75 | BL285: 0.75 | BM285: 0.75 | BN285: 0.75 | BO285: 0.75 | BP285: 0.75 | BQ285: =BQ271/BQ$221 -> 0.75 | BR285: 0.75 | BS285: 0.75 | BT285: 0.75 | BU285: 0.75 | BV285: 0.75 | BW285: 0.75 | BX285: 0.75 | BY285: 0.75 | BZ285: 0.75 | CA285: 0.75 | CB285: 0.75 | CC285: 0.75 | CD285: 0.75 | CE285: 0.75 | CF285: 0.75 | CG285: 0.75 | CH285: 0.75 | CI285: 0.75 | CJ285: 0.75 | CK285: 0.75 | CL285: 0.75 | CM285: 0.75 | CN285: 0.75 | CO285: 0.75 | CP285: 0.75 | CQ285: 0.75 | CR285: 0.75 | CS285: 0.75 | CT285: 0.75 | CU285: 0.75 | CV285: 0.75 | CW285: 0.75 | CX285: 0.75 | CY285: 0.75 | CZ285: =IF(OR(D285=0,CY$210-D$210=0),0,LN(CY285/D285)/(CY$210-D$210)) -> -5.270755773e-17 | DA285: =IF(OR(CT285=0,CY$210-CT$210=0),0,LN(CY285/CT285)/(CY$210-CT$210)) -> -4.662936703e-16
C286: Savings/worker, S/n | D286: =Y49 -> 0.25 | E286: 0.25 | F286: 0.25 | G286: 0.2500000001 | H286: 0.2500000001 | I286: 0.2500000002 | J286: 0.2500000002 | K286: 0.2500000002 | L286: 0.2500000002 | M286: 0.2500000002 | N286: 0.2500000002 | O286: 0.2500000002 | P286: 0.2500000002 | Q286: 0.2500000001 | R286: 0.2500000001 | S286: 0.2500000001 | T286: 0.2500000001 | U286: 0.2500000001 | V286: 0.2500000001 | W286: 0.2500000001 | X286: 0.25 | Y286: 0.25 | Z286: 0.25 | AA286: 0.25 | AB286: 0.25 | AC286: 0.25 | AD286: 0.25 | AE286: 0.25 | AF286: 0.25 | AG286: 0.25 | AH286: 0.25 | AI286: 0.25 | AJ286: 0.25 | AK286: 0.25 | AL286: 0.25 | AM286: 0.25 | AN286: 0.25 | AO286: 0.25 | AP286: 0.25 | AQ286: 0.25 | AR286: 0.25 | AS286: 0.25 | AT286: 0.25 | AU286: 0.25 | AV286: 0.25 | AW286: 0.25 | AX286: 0.25 | AY286: 0.25 | AZ286: 0.25 | BA286: 0.25 | BB286: 0.25 | BC286: 0.25 | BD286: 0.25 | BE286: 0.25 | BF286: 0.25 | BG286: 0.25 | BH286: 0.25 | BI286: 0.25 | BJ286: 0.25 | BK286: 0.25 | BL286: 0.25 | BM286: 0.25 | BN286: 0.25 | BO286: 0.25 | BP286: 0.25 | BQ286: 0.25 | BR286: 0.25 | BS286: 0.25 | BT286: 0.25 | BU286: 0.25 | BV286: 0.25 | BW286: 0.25 | BX286: 0.25 | BY286: 0.25 | BZ286: 0.25 | CA286: 0.25 | CB286: 0.25 | CC286: 0.25 | CD286: 0.25 | CE286: 0.25 | CF286: 0.25 | CG286: 0.25 | CH286: 0.25 | CI286: 0.25 | CJ286: 0.25 | CK286: 0.25 | CL286: 0.25 | CM286: 0.25 | CN286: 0.25 | CO286: 0.25 | CP286: 0.25 | CQ286: 0.25 | CR286: 0.25 | CS286: 0.25 | CT286: 0.25 | CU286: 0.25 | CV286: 0.25 | CW286: 0.25 | CX286: 0.25 | CY286: 0.25 | CZ286: =IF(OR(D286=0,CY$210-D$210=0),0,LN(CY286/D286)/(CY$210-D$210)) -> -5.158612034e-17 | DA286: =IF(OR(CT286=0,CY$210-CT$210=0),0,LN(CY286/CT286)/(CY$210-CT$210)) -> -4.884981308e-16
C287: Leisure/worker, l/n | D287: =Y50 -> 1.666666667 | E287: 1.666666667 | F287: 1.666666667 | G287: 1.666666667 | H287: 1.666666667 | I287: 1.666666667 | J287: 1.666666667 | K287: 1.666666667 | L287: 1.666666667 | M287: 1.666666667 | N287: 1.666666667 | O287: 1.666666667 | P287: 1.666666667 | Q287: 1.666666667 | R287: 1.666666667 | S287: 1.666666667 | T287: 1.666666667 | U287: 1.666666667 | V287: 1.666666667 | W287: 1.666666667 | X287: 1.666666667 | Y287: 1.666666667 | Z287: 1.666666667 | AA287: 1.666666667 | AB287: 1.666666667 | AC287: 1.666666667 | AD287: 1.666666667 | AE287: 1.666666667 | AF287: 1.666666667 | AG287: 1.666666667 | AH287: 1.666666667 | AI287: 1.666666667 | AJ287: 1.666666667 | AK287: 1.666666667 | AL287: 1.666666667 | AM287: 1.666666667 | AN287: 1.666666667 | AO287: 1.666666667 | AP287: 1.666666667 | AQ287: 1.666666667 | AR287: 1.666666667 | AS287: 1.666666667 | AT287: 1.666666667 | AU287: 1.666666667 | AV287: 1.666666667 | AW287: 1.666666667 | AX287: 1.666666667 | AY287: 1.666666667 | AZ287: 1.666666667 | BA287: 1.666666667 | BB287: 1.666666667 | BC287: 1.666666667 | BD287: 1.666666667 | BE287: 1.666666667 | BF287: 1.666666667 | BG287: 1.666666667 | BH287: 1.666666667 | BI287: 1.666666667 | BJ287: 1.666666667 | BK287: 1.666666667 | BL287: 1.666666667 | BM287: 1.666666667 | BN287: 1.666666667 | BO287: 1.666666667 | BP287: 1.666666667 | BQ287: 1.666666667 | BR287: 1.666666667 | BS287: 1.666666667 | BT287: 1.666666667 | BU287: 1.666666667 | BV287: 1.666666667 | BW287: 1.666666667 | BX287: 1.666666667 | BY287: 1.666666667 | BZ287: 1.666666667 | CA287: 1.666666667 | CB287: 1.666666667 | CC287: 1.666666667 | CD287: 1.666666667 | CE287: 1.666666667 | CF287: 1.666666667 | CG287: 1.666666667 | CH287: 1.666666667 | CI287: 1.666666667 | CJ287: 1.666666667 | CK287: 1.666666667 | CL287: 1.666666667 | CM287: 1.666666667 | CN287: 1.666666667 | CO287: 1.666666667 | CP287: 1.666666667 | CQ287: 1.666666667 | CR287: 1.666666667 | CS287: 1.666666667 | CT287: 1.666666667 | CU287: 1.666666667 | CV287: 1.666666667 | CW287: 1.666666667 | CX287: 1.666666667 | CY287: 1.666666667 | CZ287: =IF(OR(D287=0,CY$210-D$210=0),0,LN(CY287/D287)/(CY$210-D$210)) -> 0 | DA287: =IF(OR(CT287=0,CY$210-CT$210=0),0,LN(CY287/CT287)/(CY$210-CT$210)) -> 8.881784197e-17
C289: Welfare Measures
C290: Utility/person, u/n | D290: =D265/D$220 -> 0.375 | E290: 0.375 | F290: 0.3750000001 | G290: 0.3750000001 | H290: 0.3750000002 | I290: 0.3750000002 | J290: 0.3750000002 | K290: 0.3750000002 | L290: 0.3750000002 | M290: 0.3750000002 | N290: 0.3750000002 | O290: 0.3750000002 | P290: 0.3750000001 | Q290: 0.3750000001 | R290: 0.3750000001 | S290: 0.3750000001 | T290: 0.3750000001 | U290: 0.3750000001 | V290: 0.3750000001 | W290: 0.375 | X290: 0.375 | Y290: 0.375 | Z290: 0.375 | AA290: 0.375 | AB290: 0.375 | AC290: 0.375 | AD290: 0.375 | AE290: 0.375 | AF290: 0.375 | AG290: 0.375 | AH290: 0.375 | AI290: 0.375 | AJ290: 0.375 | AK290: 0.375 | AL290: 0.375 | AM290: 0.375 | AN290: 0.375 | AO290: 0.375 | AP290: 0.375 | AQ290: 0.375 | AR290: 0.375 | AS290: 0.375 | AT290: 0.375 | AU290: 0.375 | AV290: 0.375 | AW290: 0.375 | AX290: 0.375 | AY290: 0.375 | AZ290: 0.375 | BA290: 0.375 | BB290: 0.375 | BC290: 0.375 | BD290: 0.375 | BE290: 0.375 | BF290: 0.375 | BG290: 0.375 | BH290: 0.375 | BI290: 0.375 | BJ290: 0.375 | BK290: 0.375 | BL290: 0.375 | BM290: 0.375 | BN290: 0.375 | BO290: 0.375 | BP290: =BP265/BP$220 -> 0.375 | BQ290: 0.375 | BR290: 0.375 | BS290: 0.375 | BT290: 0.375 | BU290: 0.375 | BV290: 0.375 | BW290: 0.375 | BX290: 0.375 | BY290: 0.375 | BZ290: 0.375 | CA290: 0.375 | CB290: 0.375 | CC290: 0.375 | CD290: 0.375 | CE290: 0.375 | CF290: 0.375 | CG290: 0.375 | CH290: 0.375 | CI290: 0.375 | CJ290: 0.375 | CK290: 0.375 | CL290: 0.375 | CM290: 0.375 | CN290: 0.375 | CO290: 0.375 | CP290: 0.375 | CQ290: 0.375 | CR290: 0.375 | CS290: 0.375 | CT290: 0.375 | CU290: 0.375 | CV290: 0.375 | CW290: 0.375 | CX290: 0.375 | CY290: 0.375 | CZ290: =IF(OR(D290=0,CY$210-D$210=0),0,LN(CY290/D290)/(CY$210-D$210)) -> -1.457868618e-17 | DA290: =IF(OR(CT290=0,CY$210-CT$210=0),0,LN(CY290/CT290)/(CY$210-CT$210)) -> -3.330669074e-16
C291: Earnings/person, E/n | D291: 0.375 | E291: 0.375 | F291: 0.375 | G291: 0.375 | H291: 0.375 | I291: 0.375 | J291: 0.375 | K291: 0.375 | L291: 0.375 | M291: 0.3750000001 | N291: 0.3750000001 | O291: 0.3750000001 | P291: 0.3750000001 | Q291: 0.3750000001 | R291: 0.3750000001 | S291: 0.3750000001 | T291: 0.3750000001 | U291: 0.3750000001 | V291: 0.375 | W291: 0.375 | X291: 0.375 | Y291: 0.375 | Z291: 0.375 | AA291: 0.375 | AB291: 0.375 | AC291: 0.375 | AD291: 0.375 | AE291: 0.375 | AF291: 0.375 | AG291: 0.375 | AH291: 0.375 | AI291: 0.375 | AJ291: 0.375 | AK291: 0.375 | AL291: 0.375 | AM291: 0.375 | AN291: 0.375 | AO291: 0.375 | AP291: 0.375 | AQ291: 0.375 | AR291: 0.375 | AS291: 0.375 | AT291: 0.375 | AU291: 0.375 | AV291: 0.375 | AW291: 0.375 | AX291: 0.375 | AY291: 0.375 | AZ291: 0.375 | BA291: 0.375 | BB291: 0.375 | BC291: 0.375 | BD291: 0.375 | BE291: 0.375 | BF291: 0.375 | BG291: 0.375 | BH291: 0.375 | BI291: 0.375 | BJ291: 0.375 | BK291: 0.375 | BL291: 0.375 | BM291: 0.375 | BN291: 0.375 | BO291: 0.375 | BP291: 0.375 | BQ291: 0.375 | BR291: 0.375 | BS291: 0.375 | BT291: 0.375 | BU291: 0.375 | BV291: 0.375 | BW291: 0.375 | BX291: 0.375 | BY291: 0.375 | BZ291: 0.375 | CA291: 0.375 | CB291: 0.375 | CC291: 0.375 | CD291: 0.375 | CE291: 0.375 | CF291: 0.375 | CG291: 0.375 | CH291: 0.375 | CI291: 0.375 | CJ291: 0.375 | CK291: 0.375 | CL291: 0.375 | CM291: 0.375 | CN291: 0.375 | CO291: 0.375 | CP291: 0.375 | CQ291: 0.375 | CR291: 0.375 | CS291: 0.375 | CT291: 0.375 | CU291: 0.375 | CV291: 0.375 | CW291: 0.375 | CX291: 0.375 | CY291: 0.375 | CZ291: =IF(OR(D291=0,CY$210-D$210=0),0,LN(CY291/D291)/(CY$210-D$210)) -> -9.420074148e-17 | DA291: =IF(OR(CT291=0,CY$210-CT$210=0),0,LN(CY291/CT291)/(CY$210-CT$210)) -> -5.107025913e-16
C292: Consumption/person, C/n | D292: =D271/D$220 -> 0.28125 | E292: 0.28125 | F292: 0.2812500001 | G292: 0.2812500001 | H292: 0.2812500002 | I292: 0.2812500002 | J292: 0.2812500002 | K292: 0.2812500002 | L292: 0.2812500002 | M292: 0.2812500002 | N292: 0.2812500002 | O292: 0.2812500002 | P292: 0.2812500002 | Q292: 0.2812500002 | R292: 0.2812500001 | S292: 0.2812500001 | T292: 0.2812500001 | U292: 0.2812500001 | V292: 0.2812500001 | W292: 0.2812500001 | X292: 0.28125 | Y292: 0.28125 | Z292: 0.28125 | AA292: 0.28125 | AB292: 0.28125 | AC292: 0.28125 | AD292: 0.28125 | AE292: 0.28125 | AF292: 0.28125 | AG292: 0.28125 | AH292: 0.28125 | AI292: 0.28125 | AJ292: 0.28125 | AK292: 0.28125 | AL292: 0.28125 | AM292: 0.28125 | AN292: 0.28125 | AO292: 0.28125 | AP292: 0.28125 | AQ292: 0.28125 | AR292: 0.28125 | AS292: 0.28125 | AT292: 0.28125 | AU292: 0.28125 | AV292: 0.28125 | AW292: 0.28125 | AX292: 0.28125 | AY292: 0.28125 | AZ292: 0.28125 | BA292: 0.28125 | BB292: 0.28125 | BC292: 0.28125 | BD292: 0.28125 | BE292: 0.28125 | BF292: 0.28125 | BG292: 0.28125 | BH292: 0.28125 | BI292: 0.28125 | BJ292: 0.28125 | BK292: 0.28125 | BL292: 0.28125 | BM292: 0.28125 | BN292: 0.28125 | BO292: 0.28125 | BP292: =BP271/BP$220 -> 0.28125 | BQ292: 0.28125 | BR292: 0.28125 | BS292: 0.28125 | BT292: 0.28125 | BU292: 0.28125 | BV292: 0.28125 | BW292: 0.28125 | BX292: 0.28125 | BY292: 0.28125 | BZ292: 0.28125 | CA292: 0.28125 | CB292: 0.28125 | CC292: 0.28125 | CD292: 0.28125 | CE292: 0.28125 | CF292: 0.28125 | CG292: 0.28125 | CH292: 0.28125 | CI292: 0.28125 | CJ292: 0.28125 | CK292: 0.28125 | CL292: 0.28125 | CM292: 0.28125 | CN292: 0.28125 | CO292: 0.28125 | CP292: 0.28125 | CQ292: 0.28125 | CR292: 0.28125 | CS292: 0.28125 | CT292: 0.28125 | CU292: 0.28125 | CV292: 0.28125 | CW292: 0.28125 | CX292: 0.28125 | CY292: 0.28125 | CZ292: =IF(OR(D292=0,CY$210-D$210=0),0,LN(CY292/D292)/(CY$210-D$210)) -> -5.158612034e-17 | DA292: =IF(OR(CT292=0,CY$210-CT$210=0),0,LN(CY292/CT292)/(CY$210-CT$210)) -> -5.551115123e-16
C293: Savings/person, S/n | D293: 0.09375 | E293: 0.09375 | F293: 0.09375000002 | G293: 0.09375000004 | H293: 0.09375000005 | I293: 0.09375000006 | J293: 0.09375000007 | K293: 0.09375000007 | L293: 0.09375000008 | M293: 0.09375000007 | N293: 0.09375000007 | O293: 0.09375000007 | P293: 0.09375000006 | Q293: 0.09375000006 | R293: 0.09375000005 | S293: 0.09375000004 | T293: 0.09375000004 | U293: 0.09375000003 | V293: 0.09375000002 | W293: 0.09375000002 | X293: 0.09375000002 | Y293: 0.09375000001 | Z293: 0.09375000001 | AA293: 0.09375000001 | AB293: 0.09375 | AC293: 0.09375 | AD293: 0.09375 | AE293: 0.09375 | AF293: 0.09375 | AG293: 0.09375 | AH293: 0.09375 | AI293: 0.09375 | AJ293: 0.09375 | AK293: 0.09375 | AL293: 0.09375 | AM293: 0.09375 | AN293: 0.09375 | AO293: 0.09375 | AP293: 0.09375 | AQ293: 0.09375 | AR293: 0.09375 | AS293: 0.09375 | AT293: 0.09375 | AU293: 0.09375 | AV293: 0.09375 | AW293: 0.09375 | AX293: 0.09375 | AY293: 0.09375 | AZ293: 0.09375 | BA293: 0.09375 | BB293: 0.09375 | BC293: 0.09375 | BD293: 0.09375 | BE293: 0.09375 | BF293: 0.09375 | BG293: 0.09375 | BH293: 0.09375 | BI293: 0.09375 | BJ293: 0.09375 | BK293: 0.09375 | BL293: 0.09375 | BM293: 0.09375 | BN293: 0.09375 | BO293: 0.09375 | BP293: 0.09375 | BQ293: 0.09375 | BR293: 0.09375 | BS293: 0.09375 | BT293: 0.09375 | BU293: 0.09375 | BV293: 0.09375 | BW293: 0.09375 | BX293: 0.09375 | BY293: 0.09375 | BZ293: 0.09375 | CA293: 0.09375 | CB293: 0.09375 | CC293: 0.09375 | CD293: 0.09375 | CE293: 0.09375 | CF293: 0.09375 | CG293: 0.09375 | CH293: 0.09375 | CI293: 0.09375 | CJ293: 0.09375 | CK293: 0.09375 | CL293: 0.09375 | CM293: 0.09375 | CN293: 0.09375 | CO293: 0.09375 | CP293: 0.09375 | CQ293: 0.09375 | CR293: 0.09375 | CS293: 0.09375 | CT293: 0.09375 | CU293: 0.09375 | CV293: 0.09375 | CW293: 0.09375 | CX293: 0.09375 | CY293: 0.09375 | CZ293: =IF(OR(D293=0,CY$210-D$210=0),0,LN(CY293/D293)/(CY$210-D$210)) -> -5.270755773e-17 | DA293: =IF(OR(CT293=0,CY$210-CT$210=0),0,LN(CY293/CT293)/(CY$210-CT$210)) -> -5.329070518e-16
C294: Leisure/person, l/n | D294: 0.625 | E294: 0.625 | F294: 0.625 | G294: 0.625 | H294: 0.625 | I294: 0.625 | J294: 0.625 | K294: 0.625 | L294: 0.625 | M294: 0.625 | N294: 0.625 | O294: 0.625 | P294: 0.625 | Q294: 0.625 | R294: 0.625 | S294: 0.625 | T294: 0.625 | U294: 0.625 | V294: 0.625 | W294: 0.625 | X294: 0.625 | Y294: 0.625 | Z294: 0.625 | AA294: 0.625 | AB294: 0.625 | AC294: 0.625 | AD294: 0.625 | AE294: 0.625 | AF294: 0.625 | AG294: 0.625 | AH294: 0.625 | AI294: 0.625 | AJ294: 0.625 | AK294: 0.625 | AL294: 0.625 | AM294: 0.625 | AN294: 0.625 | AO294: 0.625 | AP294: 0.625 | AQ294: 0.625 | AR294: 0.625 | AS294: 0.625 | AT294: 0.625 | AU294: 0.625 | AV294: 0.625 | AW294: 0.625 | AX294: 0.625 | AY294: 0.625 | AZ294: 0.625 | BA294: 0.625 | BB294: 0.625 | BC294: 0.625 | BD294: 0.625 | BE294: 0.625 | BF294: 0.625 | BG294: 0.625 | BH294: 0.625 | BI294: 0.625 | BJ294: 0.625 | BK294: 0.625 | BL294: 0.625 | BM294: 0.625 | BN294: 0.625 | BO294: 0.625 | BP294: 0.625 | BQ294: 0.625 | BR294: 0.625 | BS294: 0.625 | BT294: 0.625 | BU294: 0.625 | BV294: 0.625 | BW294: 0.625 | BX294: 0.625 | BY294: 0.625 | BZ294: 0.625 | CA294: 0.625 | CB294: 0.625 | CC294: 0.625 | CD294: 0.625 | CE294: 0.625 | CF294: 0.625 | CG294: 0.625 | CH294: 0.625 | CI294: 0.625 | CJ294: 0.625 | CK294: 0.625 | CL294: 0.625 | CM294: 0.625 | CN294: 0.625 | CO294: 0.625 | CP294: 0.625 | CQ294: 0.625 | CR294: 0.625 | CS294: 0.625 | CT294: 0.625 | CU294: 0.625 | CV294: 0.625 | CW294: 0.625 | CX294: 0.625 | CY294: 0.625 | CZ294: =IF(OR(D294=0,CY$210-D$210=0),0,LN(CY294/D294)/(CY$210-D$210)) -> 0 | DA294: =IF(OR(CT294=0,CY$210-CT$210=0),0,LN(CY294/CT294)/(CY$210-CT$210)) -> 4.440892099e-17
C296: Budget constraint shadow price | D296: =F64 -> 0.3769895943 | E296: =û*(gamma/E213)*((gamma/(1-pi))*(E270/E211))^pi*(E300^pi) -> 0.3769895944 | F296: 0.3769895944 | G296: 0.3769895944 | H296: 0.3769895944 | I296: 0.3769895944 | J296: 0.3769895944 | K296: 0.3769895944 | L296: 0.3769895944 | M296: 0.3769895944 | N296: 0.3769895944 | O296: 0.3769895944 | P296: 0.3769895943 | Q296: 0.3769895943 | R296: 0.3769895943 | S296: 0.3769895943 | T296: 0.3769895943 | U296: 0.3769895943 | V296: 0.3769895943 | W296: 0.3769895943 | X296: 0.3769895943 | Y296: 0.3769895943 | Z296: 0.3769895943 | AA296: 0.3769895943 | AB296: 0.3769895943 | AC296: 0.3769895943 | AD296: 0.3769895943 | AE296: 0.3769895943 | AF296: 0.3769895943 | AG296: 0.3769895943 | AH296: 0.3769895943 | AI296: 0.3769895943 | AJ296: 0.3769895943 | AK296: =û*(gamma/AK213)*((gamma/(1-pi))*(AK270/AK211))^pi*(AK300^pi) -> 0.3769895943 | AL296: 0.3769895943 | AM296: 0.3769895943 | AN296: 0.3769895943 | AO296: 0.3769895943 | AP296: 0.3769895943 | AQ296: 0.3769895943 | AR296: 0.3769895943 | AS296: 0.3769895943 | AT296: 0.3769895943 | AU296: 0.3769895943 | AV296: 0.3769895943 | AW296: 0.3769895943 | AX296: 0.3769895943 | AY296: 0.3769895943 | AZ296: 0.3769895943 | BA296: 0.3769895943 | BB296: 0.3769895943 | BC296: 0.3769895943 | BD296: 0.3769895943 | BE296: 0.3769895943 | BF296: 0.3769895943 | BG296: 0.3769895943 | BH296: 0.3769895943 | BI296: 0.3769895943 | BJ296: 0.3769895943 | BK296: 0.3769895943 | BL296: 0.3769895943 | BM296: 0.3769895943 | BN296: 0.3769895943 | BO296: 0.3769895943 | BP296: 0.3769895943 | BQ296: =û*(gamma/BQ213)*((gamma/(1-pi))*(BQ270/BQ211))^pi*(BQ300^pi) -> 0.3769895943 | BR296: 0.3769895943 | BS296: 0.3769895943 | BT296: 0.3769895943 | BU296: 0.3769895943 | BV296: 0.3769895943 | BW296: 0.3769895943 | BX296: 0.3769895943 | BY296: 0.3769895943 | BZ296: 0.3769895943 | CA296: 0.3769895943 | CB296: 0.3769895943 | CC296: 0.3769895943 | CD296: 0.3769895943 | CE296: 0.3769895943 | CF296: 0.3769895943 | CG296: 0.3769895943 | CH296: 0.3769895943 | CI296: 0.3769895943 | CJ296: 0.3769895943 | CK296: 0.3769895943 | CL296: 0.3769895943 | CM296: 0.3769895943 | CN296: 0.3769895943 | CO296: 0.3769895943 | CP296: 0.3769895943 | CQ296: 0.3769895943 | CR296: 0.3769895943 | CS296: 0.3769895943 | CT296: 0.3769895943 | CU296: 0.3769895943 | CV296: 0.3769895943 | CW296: 0.3769895943 | CX296: 0.3769895943 | CY296: 0.3769895943 | CZ296: =IF(OR(D296=0,CY$210-D$210=0),0,LN(CY296/D296)/(CY$210-D$210)) -> 9.420074148e-17 | DA296: =IF(OR(CT296=0,CY$210-CT$210=0),0,LN(CY296/CT296)/(CY$210-CT$210)) -> 2.664535259e-16
C298: Natural Capital and Components
C299: Physical Measures | D299: =D$210 -> 1 | E299: =E$210 -> 2 | F299: 3 | G299: 4 | H299: 5 | I299: 6 | J299: 7 | K299: 8 | L299: 9 | M299: 10 | N299: 11 | O299: 12 | P299: 13 | Q299: 14 | R299: 15 | S299: 16 | T299: 17 | U299: 18 | V299: 19 | W299: 20 | X299: 21 | Y299: 22 | Z299: 23 | AA299: 24 | AB299: 25 | AC299: 26 | AD299: 27 | AE299: 28 | AF299: 29 | AG299: 30 | AH299: 31 | AI299: 32 | AJ299: 33 | AK299: 34 | AL299: 35 | AM299: 36 | AN299: 37 | AO299: 38 | AP299: 39 | AQ299: 40 | AR299: 41 | AS299: 42 | AT299: 43 | AU299: 44 | AV299: 45 | AW299: 46 | AX299: 47 | AY299: 48 | AZ299: 49 | BA299: 50 | BB299: 51 | BC299: 52 | BD299: 53 | BE299: 54 | BF299: 55 | BG299: 56 | BH299: 57 | BI299: 58 | BJ299: 59 | BK299: 60 | BL299: 61 | BM299: 62 | BN299: 63 | BO299: 64 | BP299: 65 | BQ299: =BQ$210 -> 66 | BR299: 67 | BS299: 68 | BT299: 69 | BU299: 70 | BV299: 71 | BW299: 72 | BX299: 73 | BY299: 74 | BZ299: 75 | CA299: 76 | CB299: 77 | CC299: 78 | CD299: 79 | CE299: 80 | CF299: 81 | CG299: 82 | CH299: 83 | CI299: 84 | CJ299: 85 | CK299: 86 | CL299: 87 | CM299: 88 | CN299: 89 | CO299: 90 | CP299: 91 | CQ299: 92 | CR299: 93 | CS299: 94 | CT299: 95 | CU299: 96 | CV299: 97 | CW299: 98 | CX299: 99 | CY299: 100
C300: N (natural capital) | D300: =F71 -> 1 | E300: =D300+(E302-E303)+(E305-E307) -> 1.000000001 | F300: =E300+(F302-F303)+(F305-F307) -> 1.000000001 | G300: 1.000000002 | H300: 1.000000002 | I300: 1.000000002 | J300: 1.000000002 | K300: 1.000000002 | L300: 1.000000002 | M300: 1.000000002 | N300: 1.000000002 | O300: 1.000000002 | P300: 1.000000001 | Q300: 1.000000001 | R300: 1.000000001 | S300: 1.000000001 | T300: 1.000000001 | U300: 1 | V300: 1 | W300: 1 | X300: 1 | Y300: 1 | Z300: 1 | AA300: 1 | AB300: 0.9999999999 | AC300: 0.9999999999 | AD300: 0.9999999999 | AE300: 0.9999999999 | AF300: 0.9999999999 | AG300: 0.9999999999 | AH300: 0.9999999999 | AI300: 0.9999999999 | AJ300: 0.9999999999 | AK300: 1 | AL300: 1 | AM300: 1 | AN300: 1 | AO300: 1 | AP300: 1 | AQ300: 1 | AR300: 1 | AS300: 1 | AT300: 1 | AU300: 1 | AV300: 1 | AW300: 1 | AX300: 1 | AY300: 1 | AZ300: 1 | BA300: 1 | BB300: 1 | BC300: 1 | BD300: 1 | BE300: 1 | BF300: 1 | BG300: 1 | BH300: 1 | BI300: 1 | BJ300: 1 | BK300: 1 | BL300: 1 | BM300: 1 | BN300: 1 | BO300: 1 | BP300: 1 | BQ300: 1 | BR300: =BQ300+(BR302-BR303)+(BR305-BR307) -> 1 | BS300: 1 | BT300: 1 | BU300: 1 | BV300: 1 | BW300: 1 | BX300: 1 | BY300: 1 | BZ300: 1 | CA300: 1 | CB300: 1 | CC300: 1 | CD300: 1 | CE300: 1 | CF300: 1 | CG300: 1 | CH300: 1 | CI300: 1 | CJ300: 1 | CK300: 1 | CL300: 1 | CM300: 1 | CN300: 1 | CO300: 1 | CP300: 1 | CQ300: 1 | CR300: 1 | CS300: 1 | CT300: 1 | CU300: 1 | CV300: 1 | CW300: 1 | CX300: 1 | CY300: 1 | CZ300: =IF(OR(D300=0,CY$210-D$210=0),0,LN(CY300/D300)/(CY$210-D$210)) -> 5.607186993e-17 | DA300: =IF(OR(CT300=0,CY$210-CT$210=0),0,LN(CY300/CT300)/(CY$210-CT$210)) -> -1.287858709e-15
C302: R (natural capital replenishment) | D302: =zeta*Ncapacity*(1-EXP(-psi_Replen*(F71-Ncritical))) -> 0.1764947875 | E302: =zeta*Ncapacity*(1-EXP(-psi_Replen*(D300-Ncritical))) -> 0.1764947875 | F302: 0.1764947875 | G302: 0.1764947875 | H302: 0.1764947875 | I302: 0.1764947875 | J302: 0.1764947875 | K302: 0.1764947875 | L302: 0.1764947875 | M302: 0.1764947875 | N302: 0.1764947875 | O302: 0.1764947875 | P302: 0.1764947875 | Q302: 0.1764947875 | R302: 0.1764947875 | S302: 0.1764947875 | T302: 0.1764947875 | U302: 0.1764947875 | V302: 0.1764947875 | W302: 0.1764947875 | X302: 0.1764947875 | Y302: 0.1764947875 | Z302: 0.1764947875 | AA302: 0.1764947875 | AB302: 0.1764947875 | AC302: 0.1764947875 | AD302: 0.1764947875 | AE302: 0.1764947875 | AF302: 0.1764947875 | AG302: 0.1764947875 | AH302: 0.1764947875 | AI302: 0.1764947875 | AJ302: 0.1764947875 | AK302: =zeta*Ncapacity*(1-EXP(-psi_Replen*(AJ300-Ncritical))) -> 0.1764947875 | AL302: 0.1764947875 | AM302: 0.1764947875 | AN302: 0.1764947875 | AO302: 0.1764947875 | AP302: 0.1764947875 | AQ302: 0.1764947875 | AR302: 0.1764947875 | AS302: 0.1764947875 | AT302: 0.1764947875 | AU302: 0.1764947875 | AV302: 0.1764947875 | AW302: 0.1764947875 | AX302: 0.1764947875 | AY302: 0.1764947875 | AZ302: 0.1764947875 | BA302: 0.1764947875 | BB302: 0.1764947875 | BC302: 0.1764947875 | BD302: 0.1764947875 | BE302: 0.1764947875 | BF302: 0.1764947875 | BG302: 0.1764947875 | BH302: 0.1764947875 | BI302: 0.1764947875 | BJ302: 0.1764947875 | BK302: 0.1764947875 | BL302: 0.1764947875 | BM302: 0.1764947875 | BN302: 0.1764947875 | BO302: 0.1764947875 | BP302: 0.1764947875 | BQ302: =zeta*Ncapacity*(1-EXP(-psi_Replen*(BP300-Ncritical))) -> 0.1764947875 | BR302: 0.1764947875 | BS302: 0.1764947875 | BT302: 0.1764947875 | BU302: 0.1764947875 | BV302: 0.1764947875 | BW302: 0.1764947875 | BX302: 0.1764947875 | BY302: 0.1764947875 | BZ302: 0.1764947875 | CA302: 0.1764947875 | CB302: 0.1764947875 | CC302: 0.1764947875 | CD302: 0.1764947875 | CE302: 0.1764947875 | CF302: 0.1764947875 | CG302: 0.1764947875 | CH302: 0.1764947875 | CI302: 0.1764947875 | CJ302: 0.1764947875 | CK302: 0.1764947875 | CL302: 0.1764947875 | CM302: 0.1764947875 | CN302: 0.1764947875 | CO302: 0.1764947875 | CP302: 0.1764947875 | CQ302: 0.1764947875 | CR302: 0.1764947875 | CS302: 0.1764947875 | CT302: 0.1764947875 | CU302: 0.1764947875 | CV302: 0.1764947875 | CW302: 0.1764947875 | CX302: 0.1764947875 | CY302: 0.1764947875 | CZ302: =IF(OR(D302=0,CY$210-D$210=0),0,LN(CY302/D302)/(CY$210-D$210)) -> 6.728624392e-18 | DA302: =IF(OR(CT302=0,CY$210-CT$210=0),0,LN(CY302/CT302)/(CY$210-CT$210)) -> -1.776356839e-16
C303: R (raw resource use) | D303: =D315 -> 0.1764947869 | E303: =D315 -> 0.1764947869 | F303: 0.1764947869 | G303: 0.176494787 | H303: 0.1764947871 | I303: 0.1764947872 | J303: 0.1764947873 | K303: 0.1764947874 | L303: 0.1764947874 | M303: 0.1764947874 | N303: 0.1764947874 | O303: 0.1764947873 | P303: 0.1764947873 | Q303: 0.1764947872 | R303: 0.1764947872 | S303: 0.1764947871 | T303: 0.1764947871 | U303: 0.176494787 | V303: 0.176494787 | W303: 0.176494787 | X303: 0.1764947869 | Y303: 0.1764947869 | Z303: 0.1764947869 | AA303: 0.1764947869 | AB303: 0.1764947869 | AC303: 0.1764947869 | AD303: 0.1764947868 | AE303: 0.1764947868 | AF303: 0.1764947868 | AG303: 0.1764947868 | AH303: 0.1764947868 | AI303: 0.1764947868 | AJ303: 0.1764947868 | AK303: =AJ315 -> 0.1764947868 | AL303: 0.1764947868 | AM303: 0.1764947868 | AN303: 0.1764947868 | AO303: 0.1764947868 | AP303: 0.1764947868 | AQ303: 0.1764947868 | AR303: 0.1764947868 | AS303: 0.1764947868 | AT303: 0.1764947868 | AU303: 0.1764947869 | AV303: 0.1764947869 | AW303: 0.1764947869 | AX303: 0.1764947869 | AY303: 0.1764947869 | AZ303: 0.1764947869 | BA303: 0.1764947869 | BB303: 0.1764947869 | BC303: 0.1764947869 | BD303: 0.1764947869 | BE303: 0.1764947869 | BF303: 0.1764947869 | BG303: 0.1764947869 | BH303: 0.1764947869 | BI303: 0.1764947869 | BJ303: 0.1764947869 | BK303: 0.1764947869 | BL303: 0.1764947869 | BM303: 0.1764947869 | BN303: 0.1764947869 | BO303: 0.1764947869 | BP303: 0.1764947869 | BQ303: =BP315 -> 0.1764947869 | BR303: 0.1764947869 | BS303: 0.1764947869 | BT303: 0.1764947869 | BU303: 0.1764947869 | BV303: 0.1764947869 | BW303: 0.1764947869 | BX303: 0.1764947869 | BY303: 0.1764947869 | BZ303: 0.1764947869 | CA303: 0.1764947869 | CB303: 0.1764947869 | CC303: 0.1764947869 | CD303: 0.1764947869 | CE303: 0.1764947869 | CF303: 0.1764947869 | CG303: 0.1764947869 | CH303: 0.1764947869 | CI303: 0.1764947869 | CJ303: 0.1764947869 | CK303: 0.1764947869 | CL303: 0.1764947869 | CM303: 0.1764947869 | CN303: 0.1764947869 | CO303: 0.1764947869 | CP303: 0.1764947869 | CQ303: 0.1764947869 | CR303: 0.1764947869 | CS303: 0.1764947869 | CT303: 0.1764947869 | CU303: 0.1764947869 | CV303: 0.1764947869 | CW303: 0.1764947869 | CX303: 0.1764947869 | CY303: 0.1764947869 | CZ303: 2.915737236e-17 | DA303: -2.287059431e-15
C304: Absorption capacity | D304: =xi*Ncapacity*(1-EXP(-psi_A*(F71-Ncritical))) -> 0.01764947869 | E304: =xi*Ncapacity*(1-EXP(-psi_A*(D300-Ncritical))) -> 0.01764947869 | F304: 0.01764947869 | G304: 0.01764947869 | H304: 0.01764947869 | I304: 0.01764947869 | J304: 0.01764947869 | K304: 0.01764947869 | L304: 0.01764947869 | M304: 0.01764947869 | N304: 0.01764947869 | O304: 0.01764947869 | P304: 0.01764947869 | Q304: 0.01764947869 | R304: 0.01764947869 | S304: 0.01764947869 | T304: 0.01764947869 | U304: 0.01764947869 | V304: 0.01764947869 | W304: 0.01764947869 | X304: 0.01764947869 | Y304: 0.01764947869 | Z304: 0.01764947869 | AA304: 0.01764947869 | AB304: 0.01764947869 | AC304: 0.01764947869 | AD304: 0.01764947869 | AE304: 0.01764947869 | AF304: 0.01764947869 | AG304: 0.01764947869 | AH304: 0.01764947869 | AI304: 0.01764947869 | AJ304: 0.01764947869 | AK304: =xi*Ncapacity*(1-EXP(-psi_A*(AJ300-Ncritical))) -> 0.01764947869 | AL304: 0.01764947869 | AM304: 0.01764947869 | AN304: 0.01764947869 | AO304: 0.01764947869 | AP304: 0.01764947869 | AQ304: 0.01764947869 | AR304: 0.01764947869 | AS304: 0.01764947869 | AT304: 0.01764947869 | AU304: 0.01764947869 | AV304: 0.01764947869 | AW304: 0.01764947869 | AX304: 0.01764947869 | AY304: 0.01764947869 | AZ304: 0.01764947869 | BA304: 0.01764947869 | BB304: 0.01764947869 | BC304: 0.01764947869 | BD304: 0.01764947869 | BE304: 0.01764947869 | BF304: 0.01764947869 | BG304: 0.01764947869 | BH304: 0.01764947869 | BI304: 0.01764947869 | BJ304: 0.01764947869 | BK304: 0.01764947869 | BL304: 0.01764947869 | BM304: 0.01764947869 | BN304: 0.01764947869 | BO304: 0.01764947869 | BP304: 0.01764947869 | BQ304: =xi*Ncapacity*(1-EXP(-psi_A*(BP300-Ncritical))) -> 0.01764947869 | BR304: 0.01764947869 | BS304: 0.01764947869 | BT304: 0.01764947869 | BU304: 0.01764947869 | BV304: 0.01764947869 | BW304: 0.01764947869 | BX304: 0.01764947869 | BY304: 0.01764947869 | BZ304: 0.01764947869 | CA304: 0.01764947869 | CB304: 0.01764947869 | CC304: 0.01764947869 | CD304: 0.01764947869 | CE304: 0.01764947869 | CF304: 0.01764947869 | CG304: 0.01764947869 | CH304: 0.01764947869 | CI304: 0.01764947869 | CJ304: 0.01764947869 | CK304: 0.01764947869 | CL304: 0.01764947869 | CM304: 0.01764947869 | CN304: 0.01764947869 | CO304: 0.01764947869 | CP304: 0.01764947869 | CQ304: 0.01764947869 | CR304: 0.01764947869 | CS304: 0.01764947869 | CT304: 0.01764947869 | CU304: 0.01764947869 | CV304: 0.01764947869 | CW304: 0.01764947869 | CX304: 0.01764947869 | CY304: 0.01764947869 | CZ304: 0 | DA304: 0
C305: A (actual natural capital absorption of waste) | D305: =MIN(D304,D307) -> 0.01764947869 | E305: =MIN(E304,D307) -> 0.01764947869 | F305: =MIN(F304,E307) -> 0.01764947869 | G305: 0.01764947869 | H305: 0.01764947869 | I305: 0.01764947869 | J305: 0.01764947869 | K305: 0.01764947869 | L305: 0.01764947869 | M305: 0.01764947869 | N305: 0.01764947869 | O305: 0.01764947869 | P305: 0.01764947869 | Q305: 0.01764947869 | R305: 0.01764947869 | S305: 0.01764947869 | T305: 0.01764947869 | U305: 0.01764947869 | V305: 0.01764947869 | W305: 0.01764947869 | X305: 0.01764947869 | Y305: 0.01764947869 | Z305: 0.01764947869 | AA305: 0.01764947869 | AB305: 0.01764947869 | AC305: 0.01764947869 | AD305: 0.01764947869 | AE305: 0.01764947869 | AF305: 0.01764947869 | AG305: 0.01764947869 | AH305: 0.01764947869 | AI305: 0.01764947869 | AJ305: 0.01764947869 | AK305: 0.01764947869 | AL305: 0.01764947869 | AM305: 0.01764947869 | AN305: 0.01764947869 | AO305: 0.01764947869 | AP305: 0.01764947869 | AQ305: 0.01764947869 | AR305: 0.01764947869 | AS305: 0.01764947869 | AT305: 0.01764947869 | AU305: 0.01764947869 | AV305: 0.01764947869 | AW305: 0.01764947869 | AX305: 0.01764947869 | AY305: 0.01764947869 | AZ305: 0.01764947869 | BA305: 0.01764947869 | BB305: 0.01764947869 | BC305: 0.01764947869 | BD305: 0.01764947869 | BE305: 0.01764947869 | BF305: 0.01764947869 | BG305: 0.01764947869 | BH305: 0.01764947869 | BI305: 0.01764947869 | BJ305: 0.01764947869 | BK305: 0.01764947869 | BL305: 0.01764947869 | BM305: 0.01764947869 | BN305: 0.01764947869 | BO305: 0.01764947869 | BP305: 0.01764947869 | BQ305: 0.01764947869 | BR305: =MIN(BR304,BQ307) -> 0.01764947869 | BS305: 0.01764947869 | BT305: 0.01764947869 | BU305: 0.01764947869 | BV305: 0.01764947869 | BW305: 0.01764947869 | BX305: 0.01764947869 | BY305: 0.01764947869 | BZ305: 0.01764947869 | CA305: 0.01764947869 | CB305: 0.01764947869 | CC305: 0.01764947869 | CD305: 0.01764947869 | CE305: 0.01764947869 | CF305: 0.01764947869 | CG305: 0.01764947869 | CH305: 0.01764947869 | CI305: 0.01764947869 | CJ305: 0.01764947869 | CK305: 0.01764947869 | CL305: 0.01764947869 | CM305: 0.01764947869 | CN305: 0.01764947869 | CO305: 0.01764947869 | CP305: 0.01764947869 | CQ305: 0.01764947869 | CR305: 0.01764947869 | CS305: 0.01764947869 | CT305: 0.01764947869 | CU305: 0.01764947869 | CV305: 0.01764947869 | CW305: 0.01764947869 | CX305: 0.01764947869 | CY305: 0.01764947869 | CZ305: 0 | DA305: 0
C306: Annual waste | D306: =D332*epsilon*D303 -> 0.01764947869 | E306: 0.01764947869 | F306: 0.01764947869 | G306: 0.0176494787 | H306: 0.01764947871 | I306: 0.01764947872 | J306: 0.01764947873 | K306: 0.01764947874 | L306: 0.01764947874 | M306: 0.01764947874 | N306: 0.01764947874 | O306: 0.01764947873 | P306: 0.01764947873 | Q306: 0.01764947872 | R306: 0.01764947872 | S306: 0.01764947871 | T306: 0.01764947871 | U306: 0.0176494787 | V306: 0.0176494787 | W306: 0.0176494787 | X306: 0.01764947869 | Y306: 0.01764947869 | Z306: 0.01764947869 | AA306: 0.01764947869 | AB306: 0.01764947869 | AC306: 0.01764947869 | AD306: 0.01764947868 | AE306: 0.01764947868 | AF306: 0.01764947868 | AG306: 0.01764947868 | AH306: 0.01764947868 | AI306: 0.01764947868 | AJ306: =AJ332*epsilon*AJ303 -> 0.01764947868 | AK306: 0.01764947868 | AL306: 0.01764947868 | AM306: 0.01764947868 | AN306: 0.01764947868 | AO306: 0.01764947868 | AP306: 0.01764947868 | AQ306: 0.01764947868 | AR306: 0.01764947868 | AS306: 0.01764947868 | AT306: 0.01764947868 | AU306: 0.01764947869 | AV306: 0.01764947869 | AW306: 0.01764947869 | AX306: 0.01764947869 | AY306: 0.01764947869 | AZ306: 0.01764947869 | BA306: 0.01764947869 | BB306: 0.01764947869 | BC306: 0.01764947869 | BD306: 0.01764947869 | BE306: 0.01764947869 | BF306: 0.01764947869 | BG306: 0.01764947869 | BH306: 0.01764947869 | BI306: 0.01764947869 | BJ306: 0.01764947869 | BK306: 0.01764947869 | BL306: 0.01764947869 | BM306: 0.01764947869 | BN306: 0.01764947869 | BO306: 0.01764947869 | BP306: =BP332*epsilon*BP303 -> 0.01764947869 | BQ306: 0.01764947869 | BR306: 0.01764947869 | BS306: 0.01764947869 | BT306: 0.01764947869 | BU306: 0.01764947869 | BV306: 0.01764947869 | BW306: 0.01764947869 | BX306: 0.01764947869 | BY306: 0.01764947869 | BZ306: 0.01764947869 | CA306: 0.01764947869 | CB306: 0.01764947869 | CC306: 0.01764947869 | CD306: 0.01764947869 | CE306: 0.01764947869 | CF306: 0.01764947869 | CG306: 0.01764947869 | CH306: 0.01764947869 | CI306: 0.01764947869 | CJ306: 0.01764947869 | CK306: 0.01764947869 | CL306: 0.01764947869 | CM306: 0.01764947869 | CN306: 0.01764947869 | CO306: 0.01764947869 | CP306: 0.01764947869 | CQ306: 0.01764947869 | CR306: 0.01764947869 | CS306: 0.01764947869 | CT306: 0.01764947869 | CU306: 0.01764947869 | CV306: 0.01764947869 | CW306: 0.01764947869 | CX306: 0.01764947869 | CY306: 0.01764947869 | CZ306: 2.915737236e-17 | DA306: -2.309263891e-15
C307: W (extant waste) | D307: =D306 -> 0.01764947869 | E307: =D307+(E306-E305) -> 0.01764947869 | F307: 0.01764947869 | G307: 0.0176494787 | H307: 0.01764947873 | I307: 0.01764947876 | J307: 0.01764947881 | K307: 0.01764947886 | L307: 0.01764947891 | M307: 0.01764947897 | N307: 0.01764947902 | O307: 0.01764947906 | P307: 0.01764947911 | Q307: 0.01764947915 | R307: 0.01764947918 | S307: 0.01764947921 | T307: 0.01764947923 | U307: 0.01764947925 | V307: 0.01764947927 | W307: 0.01764947928 | X307: 0.01764947929 | Y307: 0.0176494793 | Z307: 0.0176494793 | AA307: 0.0176494793 | AB307: 0.01764947931 | AC307: 0.01764947931 | AD307: 0.01764947931 | AE307: 0.0176494793 | AF307: 0.0176494793 | AG307: 0.0176494793 | AH307: 0.0176494793 | AI307: 0.0176494793 | AJ307: 0.0176494793 | AK307: 0.0176494793 | AL307: 0.01764947929 | AM307: 0.01764947929 | AN307: 0.01764947929 | AO307: 0.01764947929 | AP307: 0.01764947929 | AQ307: 0.01764947929 | AR307: 0.01764947929 | AS307: 0.01764947929 | AT307: 0.01764947929 | AU307: 0.01764947929 | AV307: 0.01764947929 | AW307: 0.01764947929 | AX307: 0.01764947929 | AY307: 0.01764947929 | AZ307: 0.01764947929 | BA307: 0.01764947929 | BB307: 0.01764947929 | BC307: 0.01764947929 | BD307: 0.01764947929 | BE307: 0.01764947929 | BF307: 0.01764947929 | BG307: 0.01764947929 | BH307: 0.01764947929 | BI307: 0.01764947929 | BJ307: 0.01764947929 | BK307: 0.01764947929 | BL307: 0.01764947929 | BM307: 0.01764947929 | BN307: 0.01764947929 | BO307: 0.01764947929 | BP307: 0.01764947929 | BQ307: =BP307+(BQ306-BQ305) -> 0.01764947929 | BR307: 0.01764947929 | BS307: 0.01764947929 | BT307: 0.01764947929 | BU307: 0.01764947929 | BV307: 0.01764947929 | BW307: 0.01764947929 | BX307: 0.01764947929 | BY307: 0.01764947929 | BZ307: 0.01764947929 | CA307: 0.01764947929 | CB307: 0.01764947929 | CC307: 0.01764947929 | CD307: 0.01764947929 | CE307: 0.01764947929 | CF307: 0.01764947929 | CG307: 0.01764947929 | CH307: 0.01764947929 | CI307: 0.01764947929 | CJ307: 0.01764947929 | CK307: 0.01764947929 | CL307: 0.01764947929 | CM307: 0.01764947929 | CN307: 0.01764947929 | CO307: 0.01764947929 | CP307: 0.01764947929 | CQ307: 0.01764947929 | CR307: 0.01764947929 | CS307: 0.01764947929 | CT307: 0.01764947929 | CU307: 0.01764947929 | CV307: 0.01764947929 | CW307: 0.01764947929 | CX307: 0.01764947929 | CY307: 0.01764947929 | CZ307: 3.474729804e-10 | DA307: 7.416289804e-15
C310: Intermediate Calculations
D312: =D$210 -> 1 | E312: =E$210 -> 2 | F312: 3 | G312: 4 | H312: 5 | I312: 6 | J312: 7 | K312: 8 | L312: 9 | M312: 10 | N312: 11 | O312: 12 | P312: 13 | Q312: 14 | R312: 15 | S312: 16 | T312: 17 | U312: 18 | V312: 19 | W312: 20 | X312: 21 | Y312: 22 | Z312: 23 | AA312: 24 | AB312: 25 | AC312: 26 | AD312: 27 | AE312: 28 | AF312: 29 | AG312: 30 | AH312: 31 | AI312: 32 | AJ312: 33 | AK312: 34 | AL312: 35 | AM312: 36 | AN312: 37 | AO312: 38 | AP312: 39 | AQ312: 40 | AR312: 41 | AS312: 42 | AT312: 43 | AU312: 44 | AV312: 45 | AW312: 46 | AX312: 47 | AY312: 48 | AZ312: 49 | BA312: 50 | BB312: 51 | BC312: 52 | BD312: 53 | BE312: 54 | BF312: 55 | BG312: 56 | BH312: 57 | BI312: 58 | BJ312: 59 | BK312: 60 | BL312: 61 | BM312: 62 | BN312: 63 | BO312: 64 | BP312: 65 | BQ312: =BQ$210 -> 66 | BR312: 67 | BS312: 68 | BT312: 69 | BU312: 70 | BV312: 71 | BW312: 72 | BX312: 73 | BY312: 74 | BZ312: 75 | CA312: 76 | CB312: 77 | CC312: 78 | CD312: 79 | CE312: 80 | CF312: 81 | CG312: 82 | CH312: 83 | CI312: 84 | CJ312: 85 | CK312: 86 | CL312: 87 | CM312: 88 | CN312: 89 | CO312: 90 | CP312: 91 | CQ312: 92 | CR312: 93 | CS312: 94 | CT312: 95 | CU312: 96 | CV312: 97 | CW312: 98 | CX312: 99 | CY312: 100
C313: X | D313: =J46 -> 0.8235052131 | E313: =((E326*E225)^alpha)*((E327*E226)^(1-alpha)) -> 0.8235052131 | F313: 0.8235052132 | G313: 0.8235052133 | H313: 0.8235052133 | I313: 0.8235052134 | J313: 0.8235052134 | K313: 0.8235052134 | L313: 0.8235052134 | M313: 0.8235052134 | N313: 0.8235052134 | O313: 0.8235052134 | P313: 0.8235052134 | Q313: 0.8235052134 | R313: 0.8235052134 | S313: 0.8235052134 | T313: 0.8235052133 | U313: 0.8235052133 | V313: 0.8235052133 | W313: 0.8235052133 | X313: 0.8235052132 | Y313: 0.8235052132 | Z313: 0.8235052132 | AA313: 0.8235052132 | AB313: 0.8235052132 | AC313: 0.8235052132 | AD313: 0.8235052132 | AE313: 0.8235052132 | AF313: 0.8235052132 | AG313: 0.8235052132 | AH313: 0.8235052132 | AI313: 0.8235052131 | AJ313: 0.8235052131 | AK313: =((AK326*AK225)^alpha)*((AK327*AK226)^(1-alpha)) -> 0.8235052131 | AL313: 0.8235052131 | AM313: 0.8235052131 | AN313: 0.8235052131 | AO313: 0.8235052131 | AP313: 0.8235052131 | AQ313: 0.8235052131 | AR313: 0.8235052131 | AS313: 0.8235052131 | AT313: 0.8235052131 | AU313: 0.8235052131 | AV313: 0.8235052131 | AW313: 0.8235052132 | AX313: 0.8235052132 | AY313: 0.8235052132 | AZ313: 0.8235052132 | BA313: 0.8235052132 | BB313: 0.8235052132 | BC313: 0.8235052132 | BD313: 0.8235052132 | BE313: 0.8235052132 | BF313: 0.8235052132 | BG313: 0.8235052132 | BH313: 0.8235052132 | BI313: 0.8235052132 | BJ313: 0.8235052132 | BK313: 0.8235052132 | BL313: 0.8235052132 | BM313: 0.8235052132 | BN313: 0.8235052132 | BO313: 0.8235052131 | BP313: 0.8235052131 | BQ313: =((BQ326*BQ225)^alpha)*((BQ327*BQ226)^(1-alpha)) -> 0.8235052131 | BR313: 0.8235052131 | BS313: 0.8235052131 | BT313: 0.8235052131 | BU313: 0.8235052131 | BV313: 0.8235052131 | BW313: 0.8235052131 | BX313: 0.8235052131 | BY313: 0.8235052131 | BZ313: 0.8235052131 | CA313: 0.8235052131 | CB313: 0.8235052131 | CC313: 0.8235052131 | CD313: 0.8235052131 | CE313: 0.8235052131 | CF313: 0.8235052131 | CG313: 0.8235052131 | CH313: 0.8235052131 | CI313: 0.8235052131 | CJ313: 0.8235052131 | CK313: 0.8235052131 | CL313: 0.8235052131 | CM313: 0.8235052131 | CN313: 0.8235052131 | CO313: 0.8235052131 | CP313: 0.8235052131 | CQ313: 0.8235052131 | CR313: 0.8235052131 | CS313: 0.8235052131 | CT313: 0.8235052131 | CU313: 0.8235052131 | CV313: 0.8235052131 | CW313: 0.8235052131 | CX313: 0.8235052131 | CY313: 0.8235052131 | CZ313: =IF(OR(D313=0,CY$210-D$210=0),0,LN(CY313/D313)/(CY$210-D$210)) -> -6.504336912e-17 | DA313: =IF(OR(CT313=0,CY$210-CT$210=0),0,LN(CY313/CT313)/(CY$210-CT$210)) -> -2.664535259e-16
C314: Rs (Resource services) | D314: =J47 -> 2.060856002 | E314: =(((E325/E331)*E328*E228)^beta)*(((E325/E331)*E329*E229)^(1-beta)) -> 2.060856002 | F314: 2.060856004 | G314: 2.060856006 | H314: 2.060856007 | I314: 2.060856008 | J314: 2.060856008 | K314: 2.060856009 | L314: 2.060856008 | M314: 2.060856008 | N314: 2.060856008 | O314: 2.060856007 | P314: 2.060856007 | Q314: 2.060856006 | R314: 2.060856006 | S314: 2.060856005 | T314: 2.060856005 | U314: 2.060856004 | V314: 2.060856004 | W314: 2.060856003 | X314: 2.060856003 | Y314: 2.060856003 | Z314: 2.060856003 | AA314: 2.060856003 | AB314: 2.060856002 | AC314: 2.060856002 | AD314: 2.060856002 | AE314: 2.060856002 | AF314: 2.060856002 | AG314: 2.060856002 | AH314: 2.060856002 | AI314: 2.060856002 | AJ314: 2.060856002 | AK314: =(((AK325/AK331)*AK328*AK228)^beta)*(((AK325/AK331)*AK329*AK229)^(1-beta)) -> 2.060856002 | AL314: 2.060856002 | AM314: 2.060856002 | AN314: 2.060856002 | AO314: 2.060856002 | AP314: 2.060856002 | AQ314: 2.060856002 | AR314: 2.060856002 | AS314: 2.060856002 | AT314: 2.060856002 | AU314: 2.060856002 | AV314: 2.060856002 | AW314: 2.060856002 | AX314: 2.060856002 | AY314: 2.060856002 | AZ314: 2.060856002 | BA314: 2.060856002 | BB314: 2.060856002 | BC314: 2.060856002 | BD314: 2.060856002 | BE314: 2.060856002 | BF314: 2.060856002 | BG314: 2.060856002 | BH314: 2.060856002 | BI314: 2.060856002 | BJ314: 2.060856002 | BK314: 2.060856002 | BL314: 2.060856002 | BM314: 2.060856002 | BN314: 2.060856002 | BO314: 2.060856002 | BP314: 2.060856002 | BQ314: =(((BQ325/BQ331)*BQ328*BQ228)^beta)*(((BQ325/BQ331)*BQ329*BQ229)^(1-beta)) -> 2.060856002 | BR314: 2.060856002 | BS314: 2.060856002 | BT314: 2.060856002 | BU314: 2.060856002 | BV314: 2.060856002 | BW314: 2.060856002 | BX314: 2.060856002 | BY314: 2.060856002 | BZ314: 2.060856002 | CA314: 2.060856002 | CB314: 2.060856002 | CC314: 2.060856002 | CD314: 2.060856002 | CE314: 2.060856002 | CF314: 2.060856002 | CG314: 2.060856002 | CH314: 2.060856002 | CI314: 2.060856002 | CJ314: 2.060856002 | CK314: 2.060856002 | CL314: 2.060856002 | CM314: 2.060856002 | CN314: 2.060856002 | CO314: 2.060856002 | CP314: 2.060856002 | CQ314: 2.060856002 | CR314: 2.060856002 | CS314: 2.060856002 | CT314: 2.060856002 | CU314: 2.060856002 | CV314: 2.060856002 | CW314: 2.060856002 | CX314: 2.060856002 | CY314: 2.060856002 | CZ314: 1.345724878e-17 | DA314: -1.976196984e-15
... 16 more rows

Sheet Base
B1: © Harry D. Saunders, 2018
C2: Link to User Guide | E2: Return to Test Case #1 | I2: Inputs - parameters | K2: Inputs - init. cond's | M2: Outputs - numeric | O2: Outputs - graphics | Q2: Calculations
C4: Inputs - parameters
D6: HUMAN ECONOMY Household Utility Function Parameters
E7: û | G7: g | I7: n | K7: w | M7: p | CW7: HUMAN ECONOMY Household Utility Function Parameters
E8: 0.96998104 | G8: 0.3 | I8: 0.1 | K8: =1-(gamma+nu+pi) -> 0.5 | M8: 0.1 | CX8: û | CZ8: g | DB8: n | DD8: w | DF8: p
E9: utility scalar | G9: consumption | I9: savings | K9: leisure time | M9: natural capital | CX9: 0.96998104 | CZ9: 0.3 | DB9: 0.1 | DD9: =1-(gamma+nu+pi) -> 0.5 | DF9: 0.1
CX10: utility scalar | CZ10: consumption | DB10: savings | DD10: leisure time | DF10: natural capital
F12: Gamma rate of change | G12: 0 | H12: %/period | L12: Pi rate of change | M12: 0 | N12: %/period
H13: Nu rate of change | I13: 0 | J13: %/period | CY13: Gamma rate of change | CZ13: 0 | DA13: %/period | DE13: Pi rate of change | DF13: 0 | DG13: %/period
DA14: Nu rate of change | DB14: 0 | DC14: %/period
D16: HUMAN ECONOMY Production Function Parameters | L16: Human Economy Growth Inputs | DN16: Initial Conditions Flag
E17: a | F17: a | G17: b | H17: s | I17: r | CW17: HUMAN ECONOMY Production Function Parameters | DE17: Human Economy Growth Inputs | DN17: 1 | DO17: 2 | DP17: 3 | DQ17: 4 | DR17: 1 | DU17: Initial K multiplier | DV17: FALSE
E18: 0.75 | F18: 0.25 | G18: 0.25 | H18: 0.675 | I18: =(sigma-1)/sigma -> -0.4814814815 | L18: n | M18: 0 | N18: Growth rate of workforce (or population proxy) | CX18: a | CY18: a | CZ18: b | DA18: s | DB18: r | DM18: KX0/LX0 | DN18: =1/(((1-alpha)/alpha)*( N47/N48)) -> 1 | DO18: =K_multiplier*DN18 -> 1.5 | DP18: =DN18/L_multiplier -> 2 | DQ18: =K_multiplier/L_multiplier -> 3 | DR18: 2 | DU18: Initial L multiplier | DV18: FALSE
H19: substitution elasticity | L19: d | M19: 0.25 | N19: Capital depreciation rate | CX19: 0.75 | CY19: 0.25 | CZ19: 0.25 | DA19: 0.675 | DB19: =(sigma-1)/sigma -> -0.4814814815 | DE19: n | DF19: 0 | DG19: Growth rate of workforce | DM19: KX0 | DN19: =DN20*DN28 -> 0.8235052131 | DO19: =K_multiplier*DN19 -> 1.23525782 | DP19: =DN19 -> 0.8235052131 | DQ19: =K_multiplier*DN19 -> 1.23525782 | DR19: 3
E20: lKx | F20: lLx | G20: lXR | H20: lKr | I20: lLr | DA20: substitution elasticity | DE20: d | DF20: 0.25 | DG20: Capital depreciation rate | DM20: LX0 | DN20: =DN27/(1+DN27) -> 0.8235052131 | DO20: =DN20 -> 0.8235052131 | DP20: =L_multiplier*DN20 -> 0.4117526066 | DQ20: =L_multiplier*DN20 -> 0.4117526066 | DR20: 4 | DU20: Initial conditions flag | DV20: =IF(AND(Initial_K_multiplier=FALSE,Initial_L_multiplier=FALSE),1,IF( AND(Initial_K_multiplier=TRUE,Initial_L_multiplier=FALSE),2,IF(AND(Initial_K_multiplier=FALSE,Initial_L_multiplier=TRUE),3,4))) -> 1
E21: 0 | F21: 0 | G21: 0 | H21: 0 | I21: 0 | CX21: lKx | CY21: lLx | CZ21: lXR | DA21: lKr | DB21: lLr | DM21: KR0 | DN21: =1-DN19 -> 0.1764947869 | DO21: =K_multiplier*DN21 -> 0.2647421803 | DP21: =DN21 -> 0.1764947869 | DQ21: =K_multiplier*DN21 -> 0.2647421803 | DR21: 5
D22: Tech gains: | E22: capital X | F22: labor X | G22: R efficiency | H22: capital R | I22: labor R | CX22: 0 | CY22: 0 | CZ22: 0 | DA22: 0 | DB22: 0 | DM22: LR0 | DN22: =1-DN20 -> 0.1764947869 | DO22: =DN22 -> 0.1764947869 | DP22: =L_multiplier*DN22 -> 0.08824739343 | DQ22: =L_multiplier*DN22 -> 0.08824739343 | DR22: 6
E23: e | G23: lW | L23: Initial Conditions Adjustors | CW23: Tech gains: | CX23: capital X | CY23: labor X | CZ23: R efficiency | DA23: capital R | DB23: labor R | DM23: X0 | DN23: =(H47*DN19)^alpha*(H48*DN20)^(1-alpha) -> 0.8235052131 | DO23: =(H47*DO19)^alpha*(H48*DO20)^(1-alpha) -> 0.9113583302 | DP23: =(H47*DP19)^alpha*(H48*DP20)^(1-alpha) -> 0.4896591294 | DQ23: =(H47*DQ19)^alpha*(H48*DQ20)^(1-alpha) -> 0.5418969053 | DR23: 7
E24: 0.1 | G24: 0 | M24: Initial K multiplier | N24: 1.5 | CX24: e | CZ24: lW | DE24: Initial Conditions Adjustors | DM24: Rs0 | DN24: =(1/tRbase)*(H46*H49*DN21)^beta*(H46*H50*DN22)^(1-beta) -> 2.060856002 | DO24: =(1/tRbase)*(H46*H49*DO21)^beta*(H46*H50*DO22)^(1-beta) -> 2.280712077 | DP24: =(1/tRbase)*(H46*H49*DP21)^beta*(H46*H50*DP22)^(1-beta) -> 1.22539231 | DQ24: =(1/tRbase)*(H46*H49*DQ21)^beta*(H46*H50*DQ22)^(1-beta) -> 1.356119515 | DR24: 8
E25: waste production | G25: waste improvement | M25: Initial L multiplier | N25: 0.5 | CX25: 0.1 | CZ25: 0 | DF25: Initial K multiplier | DG25: 1.5 | DM25: R0 | DN25: =(1/tRbase)*(H49*DN21)^beta*(H50*DN22)^(1-beta) -> 0.1764947869 | DO25: =(1/tRbase)*(H49*DO21)^beta*(H50*DO22)^(1-beta) -> 0.1953235895 | DP25: =(1/tRbase)*(H49*DP21)^beta*(H50*DP22)^(1-beta) -> 0.1049444281 | DQ25: =(1/tRbase)*(H49*DQ21)^beta*(H50*DQ22)^(1-beta) -> 0.1161401012 | DR25: 9
CX26: waste production | CZ26: waste improvement | DF26: Initial L multiplier | DG26: 0.5 | DM26: KX0/KR0 | DN26: =(â/b˄)*(alpha/beta)*(R46/R47)*(N47/N47)*(R47/R46)^(1/(1-rho)) -> 4.665889729 | DO26: =DO19/DO21 -> 4.665889729 | DP26: 4.665889729 | DQ26: 4.665889729 | DR26: 10
DM27: LX0/LR0 | DN27: =((1-alpha)/(1-beta))*(beta/alpha)*DN26 -> 4.665889729 | DO27: 4.665889729 | DP27: 4.665889729 | DQ27: 4.665889729 | DR27: 11
D28: NATURAL ECONOMY Production Function Parameters | DM28: KX0/LX0 | DN28: =1/(((1-alpha)/alpha)*(N47/N48)) -> 1 | DO28: =DO19/DO20 -> 1.5 | DP28: =DP19/DP20 -> 2 | DQ28: =DQ19/DQ20 -> 3 | DR28: 12
E29: x | H29: z | CW29: NATURAL ECONOMY Production Function Parameters | DM29: Rreference | DN29: =(H49*DN21)^beta*(H50*DN22)^(1-beta) -> 0.1764947869 | DO29: =(H49*DO21)^beta*(H50*DO22)^(1-beta) -> 0.1953235895 | DP29: =(H49*DP21)^beta*(H50*DP22)^(1-beta) -> 0.1049444281 | DQ29: =(H49*DQ21)^beta*(H50*DQ22)^(1-beta) -> 0.1161401012 | DR29: 13
E30: 0.01176631953 | H30: 0.1209685014 | CX30: x | DA30: z
E31: absorptive capacity multiplier | H31: replenishment capacity multiplier | CX31: 0.01176631953 | DA31: 0.1209685014
E32: (fraction of natural capital capacity) | H32: (fraction of natural capital capacity) | CX32: absorptive capacity multiplier | DA32: replenishment capacity multiplier
E33: fA | H33: fR | CX33: (fraction of natural capital capacity) | DA33: (fraction of natural capital capacity)
E34: 19.09468344 | H34: 4 | CX34: fA | DA34: fR
E35: Absorption curve shaping factor | H35: Replenishment curve shaping factor | CX35: 19.09468344 | DA35: 4
CX36: Absorption curve shaping factor | DA36: Replenishment curve shaping factor
D37: ϴ | E37: 0.2 | F37: Ricardian Resource supply curve shaping factor
CW38: ϴ | CX38: 0.2 | CY38: Ricardian Resource supply curve shaping factor
C40: Inputs - initial conditions
D42: Human Economy
E43: Primal (Production) | M43: Dual (Cost) | U43: Welfare
G44: LX-1 | H44: 0.8235052131 | I44: KX-1 | J44: 0.8235052131
E45: Y-1 | F45: 1 | I45: X-1 | J45: 0.8235052131 | M45: c-1 | N45: 1
E46: Y0 | F46: =(a*J46^rho+(1-a)*J47^rho)^(1/rho) -> 1 | G46: tXR0 | H46: 11.67658286 | I46: X0 | J46: =HLOOKUP(Initial_conditions_flag,$DN$17:$DQ$37,DR23) -> 0.8235052131 | M46: c0 | N46: =(â*R46^(rho/(rho-1))+b˄*R47^(rho/(rho-1)))^((rho-1)/rho) -> 1 | O46: share, KX | P46: =N47*F47 -> 0.2058763033 | Q46: Xc | R46: =((N47/H47)^alpha)*((N48/H48)^(1-alpha)) -> 0.5698767642 | U46: u0 | V46: =û*V49^gamma*V50^nu*V51^omega*V52^pi -> 1 | X46: u0/worker | Y46: =V46/$F$58 -> 1
E47: KX0 | F47: =HLOOKUP(Initial_conditions_flag,$DN$17:$DQ$37,DR19) -> 0.8235052131 | G47: tKX0 | H47: 1 | I47: Rs0 | J47: =HLOOKUP(Initial_conditions_flag,$DN$17:$DQ$37,DR24) -> 2.060856002 | M47: pk0 | N47: =N45*a*alpha*(J45/J44)*(F45/J45)^(1-rho) -> 0.25 | O47: share, LX | P47: =N48*F48 -> 0.6176289099 | Q47: Rc | R47: =((N47/(H46*H49))^beta)*((N48/(H46*H50))^(1-beta)) -> 0.04880509745 | U47: Wmax | V47: =N48*(Ł0)+N47*(F47+F49) -> 2.25 | X47: Budget0/worker | Y47: =V48/$F$58 -> 1
E48: LX0 | F48: =HLOOKUP(Initial_conditions_flag,$DN$17:$DQ$37,DR20) -> 0.8235052131 | G48: tLX0 | H48: 1 | I48: R0 | J48: =HLOOKUP(Initial_conditions_flag,$DN$17:$DQ$37,DR25) -> 0.1764947869 | M48: pL0 | N48: =N45*a*(1-alpha)*(J45/H44)*(F45/J45)^(1-rho) -> 0.75 | O48: share, KR | P48: =N47*F49 -> 0.04412369671 | U48: Budget0 | V48: =N48*(F48+F50)+N47*(F47+F49) -> 1 | X48: C0/worker | Y48: =V49/$F$58 -> 0.75
E49: KR0 | F49: =HLOOKUP(Initial_conditions_flag,$DN$17:$DQ$37,DR21) -> 0.1764947869 | G49: tKR0 | H49: 1 | O49: share, LR | P49: =N48*F50 -> 0.1323710901 | U49: C0 | V49: =(gamma/(1-pi))*V47/N46 -> 0.75 | X49: S0/worker | Y49: =V50/$F$58 -> 0.25
E50: LR0 | F50: =HLOOKUP(Initial_conditions_flag,$DN$17:$DQ$37,DR22) -> 0.1764947869 | G50: tLR0 | H50: 1 | I50: KX0/KR0 | J50: =HLOOKUP(Initial_conditions_flag,$DN$17:$DQ$37,DR26) -> 4.665889729 | M50: pR0 | N50: =(N47/$H$49)^beta*(N48/$H$50)^(1-beta)*beta^beta*(1-beta)^(1-beta) -> 0.3247595264 | U50: S0 | V50: =(nu/(1-pi))*V47/N46 -> 0.25 | X50: l0/worker | Y50: =V51/$F$58 -> 1.666666667
I51: LX0/LR0 | J51: =HLOOKUP(Initial_conditions_flag,$DN$17:$DQ$37,DR27) -> 4.665889729 | Q51: â | R51: =a^(1/(1-rho))*(alpha^alpha*(1-alpha)^(1-alpha))^(rho/(1-rho)) -> 0.9886385573 | U51: l0 | V51: =Ł0-(F48+F50) -> 1.666666667 | X51: N0/worker | Y51: =V52/$F$58 -> 1
E52: W | F52: =epsilon*J48 -> 0.01764947869 | I52: KX0/LX0 | J52: =HLOOKUP(Initial_conditions_flag,$DN$17:$DQ$37,DR28) -> 1 | Q52: b˄ | R52: =(1-a)^(1/(1-rho))*(beta^beta*(1-beta)^(1-beta))^(rho/(1-rho)) -> 0.4709563936 | U52: N0 | V52: =F71 -> 1
E55: Initial Labor Force & Employment | M55: Checks:
M56: pk0 | N56: =N46*a*alpha*J46/F47*(F46/J46)^(1-rho) -> 0.25 | P56: pk0 | Q56: =N46*(1-a)*beta*(J47/F49)*(F46/J47)^(1-rho) -> 0.25
E57: Ł0 | F57: 2.666666667 | G57: Initial labor force | M57: pL0 | N57: =N46*a*(1-alpha)*(J46/F48)*(F46/J46)^(1-rho) -> 0.75 | P57: pL0 | Q57: =N46*(1-a)*(1-beta)*(J47/F50)*(F46/J47)^(1-rho) -> 0.75
E58: L0 | F58: =Ł0-V51 -> 1 | G58: Initial labor employed
E62: Initial Shadow Price (Lagrange multiplier)
F64: =û*(gamma/N48)*((gamma/(1-pi))*(V47/N46))^pi*(V52^pi) -> 0.3769895943 | G64: Houshold budget constraint
D67: Natural Economy
E68: Natural Capital | M68: Natural Capital - Base Conditions
E70: N-1 | F70: 1 | G70: Pre-existing Stock of Natural Capital | M70: N-1 | N70: 1 | O70: Pre-existing Stock of Natural Capital
E71: N0 | F71: 1 | G71: Initial Stock of Natural Capital | M71: N0 | N71: 1 | O71: Steady-state Natural Capital Equilibrium Value
E72: Ncapacity | F72: 1.5 | G72: Maximum Capacity (Stock) of Natural Capital | M72: Ncapacity | N72: 1.5 | O72: Maximum Capacity (Stock) of Natural Capital
E73: Ncritical | F73: 0.1 | G73: Critical Threshold for Natural Capital | M73: Ncritical | N73: 0.1 | O73: Critical Threshold for Natural Capital
E75: cN | F75: 1 | G75: Natural capital unit cost function | M75: cN | N75: 1 | O75: Natural capital unit cost function
E77: R0 | F77: =zeta*Ncapacity*(1-EXP(-psi_Replen*(F71-Ncritical))) -> 0.1764947875 | G77: Replenishment | M77: R0 | N77: 0.1764947869 | O77: Replenishment | R77: ϴ | S77: =theta -> 0.2 | T77: Ricardian supply curve shaping factor
E78: R0 | F78: =J48 -> 0.1764947869 | G78: Raw Resource Use | M78: Rreference | N78: 0.1764947869 | O78: "Resources" (w/o tR) | R78: kbase | S78: =1/(N75+(1/S77)*LN((N72-N73)/(1-N73))) -> 0.3116076568
E79: A0 | F79: =MIN(xi*Ncapacity,F80)*(1-EXP(-psi_A*(F71-Ncritical))) -> 0.01764947808 | G79: Absorption | M79: A0 | N79: 0.03529895737 | O79: Absorption | R79: tRbase | S79: =kbase*(cN+(1/theta)*LN((N72-N73)/(N71-N73))) -> 1
E80: W0 | F80: =epsilon*F78 -> 0.01764947869 | G80: Waste Production | M80: W0 | N80: 0.03529895737 | O80: Waste Production
C84: Outputs - Numeric
D86: Period 1 Value | E86: Period 100 Value | F86: Growth rate, period 1 to 100 | G86: Growth rate, period 95 to 100 | I86: Per Worker, period 1 | J86: Per Person, period 1 | K86: Per Worker, period 100 | L86: Per Person, period 100 | N86: Golden Rule Condi-tions | R86: Search Targets
C87: Household Welfare
C88: u (utility) | D88: =D265 -> 1 | E88: =CY265 -> 1 | F88: =CZ265 -> -1.570012358e-17 | G88: =DA265 -> -3.330669074e-16 | I88: =D88/$D$221 -> 1 | J88: =E88/$D$220 -> 0.375 | K88: =E88/$CY$221 -> 1 | L88: =E88/$CY$220 -> 0.375 | N88: =E90/E94 -> 0.25 | O88: Savings rate | R88: =(E88-D88)*10^6 -> -1.554312234e-09
C89: C (consumption) | D89: =D271 -> 0.75 | E89: =CY271 -> 0.75 | F89: -5.270755773e-17 | G89: -5.329070518e-16 | I89: =D89/$D$221 -> 0.75 | J89: =E89/$D$220 -> 0.28125 | K89: =E89/$CY$221 -> 0.75 | L89: =E89/$CY$220 -> 0.28125 | N89: =(E103/E102)*E95/E94 -> 0.25 | O89: "Golden Rule" savings rate | R89: =(E89-D89)*10^6 -> -3.885780586e-09
C90: S (savings) | D90: =D272 -> 0.25 | E90: 0.25 | F90: -5.158612034e-17 | G90: -5.329070518e-16 | I90: =D90/$D$221 -> 0.25 | J90: =E90/$D$220 -> 0.09375 | K90: =E90/$CY$221 -> 0.25 | L90: =E90/$CY$220 -> 0.09375 | R90: -1.276756478e-09 | CX90: =F89*10^9 -> -5.270755773e-08
C91: l (leisure) | D91: =D273 -> 1.666666667 | E91: 1.666666667 | F91: 0 | G91: 4.440892099e-17 | I91: =D91/$D$221 -> 1.666666667 | J91: =E91/$D$220 -> 0.625 | K91: =E91/$CY$221 -> 1.666666667 | L91: =E91/$CY$220 -> 0.625 | N91: =(E103/E102)-d -> -4.996003611e-16 | O91: Real "social" return | R91: 0
C92: N (natural capital) | D92: =D300 -> 1 | E92: =CY300 -> 1 | F92: =CZ300 -> 5.607186993e-17 | G92: =DA300 -> -1.287858709e-15 | I92: =D92/$D$221 -> 1 | J92: =E92/$D$220 -> 0.375 | K92: =E92/$CY$221 -> 1 | L92: =E92/$CY$220 -> 0.375 | N92: =G94 -> -6.217248938e-16 | O92: Real output growth rate | R92: 5.551115123e-09
C93: Producers -Primal
C94: Y (value-added output) | D94: =D232 -> 1 | E94: =CY232 -> 1 | F94: =CZ232 -> -5.607186993e-17 | G94: =DA232 -> -6.217248938e-16 | I94: =D94/$D$221 -> 1 | J94: =E94/$D$220 -> 0.375 | K94: =E94/$CY$221 -> 1 | L94: =E94/$CY$220 -> 0.375 | N94: =E119 -> 0.75 | O94: Consume your wages | AU94: Y (value-added output) | AV94: =D94 -> 1 | CX94: 0.07846973355
C95: K (capital/wealth) | D95: =D223 -> 1 | E95: =CY223 -> 1 | F95: =CZ223 -> -2.826022245e-16 | G95: =DA223 -> -3.552713679e-16 | I95: 1 | J95: 0.375 | K95: 1 | L95: 0.375 | N95: =E120 -> 0.25 | O95: Invest your returns | AU95: K (capital/wealth) | AV95: =D95 -> 1 | CX95: =F94*10^9 -> -5.607186993e-08
C96: L (employed labor force) | D96: =D221 -> 1 | E96: =CY221 -> 1 | F96: =CZ221 -> 0 | G96: =DA221 -> -4.440892099e-17 | I96: 1 | J96: 0.375 | K96: 1 | L96: 0.375 | AU96: L (employed labor force) | AV96: 1
C97: Ł (available labor force) | D97: =D220 -> 2.666666667 | E97: =CY220 -> 2.666666667 | F97: =CZ220 -> 0 | G97: =DA220 -> 0 | I97: 2.666666667 | J97: 1 | K97: 2.666666667 | L97: 1 | AU97: I (investment) | AV97: =D98 -> 0.25
C98: I (investment) | D98: =D222 -> 0.25 | E98: =CY222 -> 0.25 | F98: =CZ222 -> -4.934324554e-17 | G98: =DA222 -> -5.773159728e-16 | I98: 0.25 | J98: 0.09375 | K98: 0.25 | L98: 0.09375 | M98: =E98/E95 -> 0.25 | N98: Investment fraction | AU98: R (raw resource use) | AV98: =D99 -> 0.1764947869
C99: R (raw resource use) | D99: =D315 -> 0.1764947869 | E99: =CY315 -> 0.1764947869 | F99: =CZ315 -> 1.121437399e-17 | G99: =DA315 -> -2.042810365e-15 | I99: 0.1764947869 | J99: 0.06618554507 | K99: 0.1764947869 | L99: 0.06618554507 | AU99: W (waste produced) | AV99: =D100 -> 0.01764947869
C100: W (waste produced) | D100: =D306 -> 0.01764947869 | E100: =CY306 -> 0.01764947869 | F100: =CZ306 -> 2.915737236e-17 | G100: =DA306 -> -2.309263891e-15 | I100: 0.01764947869 | J100: 0.006618554507 | K100: 0.01764947869 | L100: 0.006618554507
C101: Producers -Dual
C102: c (unit cost/price of value-added output) | D102: =D211 -> 1 | E102: =CY211 -> 1 | F102: -4.037174635e-17 | G102: 1.33226763e-16 | I102: =D102/$D$221 -> 1 | J102: =E102/$D$220 -> 0.375 | K102: =E102/$CY$221 -> 1 | L102: =E102/$CY$220 -> 0.375
C103: r=pK (price/cost of capital) | D103: =D212 -> 0.25 | E103: 0.25 | F103: 1.906443578e-16 | G103: -1.33226763e-16 | I103: =D103/$D$221 -> 0.25 | J103: =E103/$D$220 -> 0.09375 | K103: =E103/$CY$221 -> 0.25 | L103: =E103/$CY$220 -> 0.09375 | DA103: =-F102+F105 -> -5.382899513e-17
C104: r-d (net return to capital) | D104: =D215 -> 2.997602166e-15 | E104: =CY215 -> 7.716050021e-15 | F104: =CZ215 -> 0.009550402895 | G104: =DA215 -> -0.004270624894 | I104: =D104/$D$221 -> 2.997602166e-15 | J104: =E104/$D$220 -> 2.893518758e-15 | K104: =E104/$CY$221 -> 7.716050021e-15 | L104: =E104/$CY$220 -> 2.893518758e-15
C105: w=pL (price/cost of labor) | D105: =D213 -> 0.75 | E105: =CY213 -> 0.75 | F105: -9.420074148e-17 | G105: -4.440892099e-16 | I105: =D105/$D$221 -> 0.75 | J105: =E105/$D$220 -> 0.28125 | K105: =E105/$CY$221 -> 0.75 | L105: =E105/$CY$220 -> 0.28125
C106: pR (price/cost of raw resources) | D106: =D214 -> 0.3247595264 | E106: =CY214 -> 0.3247595264 | F106: =CZ214 -> -1.368153626e-16 | G106: =DA214 -> 2.26485497e-15 | I106: =D106/$D$221 -> 0.3247595264 | J106: =E106/$D$220 -> 0.1217848224 | K106: =E106/$CY$221 -> 0.3247595264 | L106: =E106/$CY$220 -> 0.1217848224
C107: Natural Economy
C108: N (natural capital) | D108: =D300 -> 1 | E108: =CY300 -> 1 | F108: =CZ300 -> 5.607186993e-17 | G108: =DA300 -> -1.287858709e-15 | I108: =D108/$D$221 -> 1 | J108: =E108/$D$220 -> 0.375 | K108: =E108/$CY$221 -> 1 | L108: =E108/$CY$220 -> 0.375
C109: *R* (natural capital replenishment) | D109: =E302 -> 0.1764947875 | E109: =CY302 -> 0.1764947875 | F109: =CZ302 -> 6.728624392e-18 | G109: =DA302 -> -1.776356839e-16 | I109: =D109/$D$221 -> 0.1764947875 | J109: =E109/$D$220 -> 0.0661855453 | K109: =E109/$CY$221 -> 0.1764947875 | L109: =E109/$CY$220 -> 0.0661855453
C110: R (raw resource use) | D110: =D99 -> 0.1764947869 | E110: =E99 -> 0.1764947869 | F110: =F99 -> 1.121437399e-17 | G110: =G99 -> -2.042810365e-15 | I110: =D110/$D$221 -> 0.1764947869 | J110: =E110/$D$220 -> 0.06618554507 | K110: =K99 -> 0.1764947869 | L110: =L99 -> 0.06618554507
C111: A (natural capital absorption of waste) | D111: =D305 -> 0.01764947869 | E111: =CY305 -> 0.01764947869 | F111: =CZ305 -> 0 | G111: =DA305 -> 0 | I111: =D111/$D$221 -> 0.01764947869 | J111: =E111/$D$220 -> 0.006618554507 | K111: =E111/$CY$221 -> 0.01764947869 | L111: =E111/$CY$220 -> 0.006618554507
C112: W (waste produced) | D112: =D100 -> 0.01764947869 | E112: =E100 -> 0.01764947869 | F112: =F100 -> 2.915737236e-17 | G112: =G100 -> -2.309263891e-15 | I112: =D112/$D$221 -> 0.01764947869 | J112: =E112/$D$220 -> 0.006618554507 | K112: =K100 -> 0.01764947869 | L112: =L100 -> 0.006618554507
C113: Household Earnings (wages and investment returns)
C114: E (Earnings/Income) | D114: =D266 -> 1 | E114: =CY266 -> 1 | F114: =CZ266 -> -9.420074148e-17 | G114: =DA266 -> -4.884981308e-16 | I114: =D114/$D$221 -> 1 | J114: =E114/$D$220 -> 0.375 | K114: =E114/$CY$221 -> 1 | L114: =E114/$CY$220 -> 0.375
C115: wL (wages) | D115: =D105*D96 -> 0.75 | E115: =E105*E96 -> 0.75 | F115: =F105*F96 -> 0 | G115: =G105*G96 -> 1.972152263e-32 | I115: 0.75 | J115: 0.28125 | K115: 0.75 | L115: 0.28125
C116: rK (returns) | D116: =D103*D95 -> 0.25 | E116: =E103*E95 -> 0.25 | F116: =F103*F95 -> -5.387651958e-32 | G116: =G103*G95 -> 4.733165431e-32 | I116: 0.25 | J116: 0.09375 | K116: 0.25 | L116: 0.09375
C117: Household Budget | D117: =D269 -> 1 | E117: =CY269 -> 1 | F117: =CZ269 -> -9.420074148e-17 | G117: =DA269 -> -4.884981308e-16 | I117: 1 | J117: 0.375 | K117: 1 | L117: 0.375
C118: E/c (real earnings/income) | D118: =D275 -> 1 | E118: =CY275 -> 1 | F118: =CZ275 -> -5.382899513e-17 | G118: =DA275 -> -6.217248938e-16 | I118: 1 | J118: 0.375 | K118: 1 | L118: 0.375 | CY118: =G94 -> -6.217248938e-16
C119: wL/c (real wages) | D119: =D115/$D$102 -> 0.75 | E119: =E115/$E$102 -> 0.75 | F119: 0 | G119: 1.972152263e-32 | I119: 0.75 | J119: 0.28125 | K119: 0.75 | L119: 0.28125
C120: rK/c (real returns) | D120: 0.25 | E120: =E116/$E$102 -> 0.25 | F120: -5.387651958e-32 | G120: 4.733165431e-32 | I120: 0.25 | J120: 0.09375 | K120: 0.25 | L120: 0.09375
C121: cC (consumption, monetary terms) | D121: =D89*D102 -> 0.75 | E121: =E89*E102 -> 0.75 | F121: =CZ271 -> -5.270755773e-17 | G121: =DA271 -> -5.329070518e-16 | I121: 0.75 | J121: 0.28125 | K121: 0.75 | L121: 0.28125
C122: Shadow price of Budget Constraint | D122: =D296 -> 0.3769895943 | E122: =CY296 -> 0.3769895943 | F122: =CZ296 -> 9.420074148e-17 | G122: =DA296 -> 2.664535259e-16 | I122: 0.3769895943 | J122: 0.1413710979 | K122: 0.3769895943 | L122: 0.1413710979
C123: Marginal Utilities and Prices
C124: Marginal utility of Consumption | D124: =D$122*D$102 -> 0.3769895943 | E124: =E$122*E$102 -> 0.3769895943
C125: Marginal utility of Savings | D125: =D$122*D$102 -> 0.3769895943 | E125: =E$122*E$102 -> 0.3769895943
C126: Marginal utility of Leisure | D126: =D$122*D$105 -> 0.2827421957 | E126: =E$122*E$105 -> 0.2827421957
C127: Marginal utility of Natural Capital | D127: =pi*D$88/D$108 -> 0.1 | E127: =pi*E$88/E$108 -> 0.1
C128: Resource Rebound
C129: Rs (resource services) | D129: =D314 -> 2.060856002 | E129: =CY314 -> 2.060856002 | F129: =CZ314 -> 1.345724878e-17 | G129: =DA314 -> -1.976196984e-15 | J129: Relative to Period 1
C130: Ractual (actual raw resource use) | D130: =D99 -> 0.1764947869 | E130: =E99 -> 0.1764947869 | F130: =F99 -> 1.121437399e-17 | G130: =G99 -> -2.042810365e-15 | J130: Period 10 | K130: Period 100
C131: R0 (zero rebound inferred from Leontief production) | D131: =D316 -> 0.1764947869 | E131: =CY316 -> 0.1764947869 | F131: 0 | G131: 0 | I131: Rebound | J131: =IF((M317-M316)=0,"N/A",1-(M317-M315)/(M317-M316)) -> N/A | K131: =IF((E132-E131)=0,"N/A",1-(E132-E130)/(E132-E131)) -> N/A
C132: R100 (100% rebound) | D132: =D317 -> 0.1764947869 | E132: 0.1764947869 | F132: 0 | G132: 0 | I132: Backfire | J132: =IF(M315>M317,"Backfire","N/A") -> Backfire | K132: =IF(E99>E132,"Backfire","N/A") -> N/A
C138: Outputs - Graphic
C204: Calculations
D206: Initial Technologies | G206: tKx | H206: tLx | I206: tR | J206: tKr | K206: tLr | M206: tR | N206: tW
G207: =EXP(lambdaKx) -> 1 | H207: =EXP(lambdaLx) -> 1 | I207: =EXP(lambdaR) -> 1 | J207: =EXP(lambdaKr) -> 1 | K207: =EXP(lambdaLr) -> 1 | M207: =tRbase -> 1 | N207: =EXP(lambdaW) -> 1
C209: Dual-side Calculations
C210: Unit Price Measures | D210: 1 | E210: 2 | F210: 3 | G210: 4 | H210: 5 | I210: 6 | J210: 7 | K210: 8 | L210: 9 | M210: 10 | N210: 11 | O210: 12 | P210: 13 | Q210: 14 | R210: 15 | S210: 16 | T210: 17 | U210: 18 | V210: 19 | W210: 20 | X210: 21 | Y210: 22 | Z210: 23 | AA210: 24 | AB210: 25 | AC210: 26 | AD210: 27 | AE210: 28 | AF210: 29 | AG210: 30 | AH210: 31 | AI210: 32 | AJ210: 33 | AK210: 34 | AL210: 35 | AM210: 36 | AN210: 37 | AO210: 38 | AP210: 39 | AQ210: 40 | AR210: 41 | AS210: 42 | AT210: 43 | AU210: 44 | AV210: 45 | AW210: 46 | AX210: 47 | AY210: 48 | AZ210: 49 | BA210: 50 | BB210: 51 | BC210: 52 | BD210: 53 | BE210: 54 | BF210: 55 | BG210: 56 | BH210: 57 | BI210: 58 | BJ210: 59 | BK210: 60 | BL210: 61 | BM210: 62 | BN210: 63 | BO210: 64 | BP210: 65 | BQ210: 66 | BR210: 67 | BS210: 68 | BT210: 69 | BU210: 70 | BV210: 71 | BW210: 72 | BX210: 73 | BY210: 74 | BZ210: 75 | CA210: 76 | CB210: 77 | CC210: 78 | CD210: 79 | CE210: 80 | CF210: 81 | CG210: 82 | CH210: 83 | CI210: 84 | CJ210: 85 | CK210: 86 | CL210: 87 | CM210: 88 | CN210: 89 | CO210: 90 | CP210: 91 | CQ210: 92 | CR210: 93 | CS210: 94 | CT210: 95 | CU210: 96 | CV210: 97 | CW210: 98 | CX210: 99 | CY210: 100 | CZ210: Growth, 1-100 | DA210: Growth, 95-100
C211: c | D211: =N46 -> 1 | E211: =(â*E318^(rho/(rho-1))+b˄*E319^(rho/(rho-1)))^((rho-1)/rho) -> 1 | F211: =(â*F318^(rho/(rho-1))+b˄*F319^(rho/(rho-1)))^((rho-1)/rho) -> 0.9999999998 | G211: 0.9999999996 | H211: 0.9999999995 | I211: 0.9999999994 | J211: 0.9999999993 | K211: 0.9999999993 | L211: =(â*L318^(rho/(rho-1))+b˄*L319^(rho/(rho-1)))^((rho-1)/rho) -> 0.9999999993 | M211: 0.9999999993 | N211: 0.9999999994 | O211: 0.9999999995 | P211: 0.9999999995 | Q211: 0.9999999996 | R211: 0.9999999996 | S211: 0.9999999997 | T211: 0.9999999998 | U211: 0.9999999998 | V211: 0.9999999999 | W211: 0.9999999999 | X211: 0.9999999999 | Y211: 1 | Z211: 1 | AA211: 1 | AB211: 1 | AC211: 1 | AD211: 1 | AE211: 1 | AF211: 1 | AG211: 1 | AH211: 1 | AI211: 1 | AJ211: 1 | AK211: =(â*AK318^(rho/(rho-1))+b˄*AK319^(rho/(rho-1)))^((rho-1)/rho) -> 1 | AL211: 1 | AM211: 1 | AN211: 1 | AO211: 1 | AP211: 1 | AQ211: 1 | AR211: 1 | AS211: 1 | AT211: 1 | AU211: 1 | AV211: 1 | AW211: 1 | AX211: 1 | AY211: 1 | AZ211: 1 | BA211: 1 | BB211: 1 | BC211: 1 | BD211: 1 | BE211: 1 | BF211: 1 | BG211: 1 | BH211: 1 | BI211: 1 | BJ211: 1 | BK211: 1 | BL211: 1 | BM211: 1 | BN211: 1 | BO211: 1 | BP211: 1 | BQ211: =(â*BQ318^(rho/(rho-1))+b˄*BQ319^(rho/(rho-1)))^((rho-1)/rho) -> 1 | BR211: 1 | BS211: 1 | BT211: 1 | BU211: 1 | BV211: 1 | BW211: 1 | BX211: 1 | BY211: 1 | BZ211: 1 | CA211: 1 | CB211: 1 | CC211: 1 | CD211: 1 | CE211: 1 | CF211: 1 | CG211: 1 | CH211: 1 | CI211: 1 | CJ211: 1 | CK211: 1 | CL211: 1 | CM211: 1 | CN211: 1 | CO211: 1 | CP211: 1 | CQ211: 1 | CR211: 1 | CS211: 1 | CT211: 1 | CU211: 1 | CV211: 1 | CW211: 1 | CX211: 1 | CY211: 1 | CZ211: =IF(OR(D211=0,CY$210-D$210=0),0,LN(CY211/D211)/(CY$210-D$210)) -> -4.037174635e-17 | DA211: =IF(OR(CT211=0,CY$210-CT$210=0),0,LN(CY211/CT211)/(CY$210-CT$210)) -> 1.33226763e-16
C212: pK | D212: =N47 -> 0.25 | E212: =D211*a*alpha*(D313/D225)*(D219/D313)^(1-rho) -> 0.25 | F212: 0.25 | G212: 0.25 | H212: 0.25 | I212: 0.25 | J212: 0.25 | K212: 0.2499999999 | L212: 0.2499999999 | M212: 0.2499999999 | N212: 0.2499999999 | O212: 0.2499999999 | P212: 0.2499999999 | Q212: 0.2499999999 | R212: 0.2499999999 | S212: 0.2499999999 | T212: 0.2499999999 | U212: 0.2499999999 | V212: 0.2499999999 | W212: 0.2499999999 | X212: 0.2499999999 | Y212: 0.2499999999 | Z212: 0.2499999999 | AA212: 0.25 | AB212: 0.25 | AC212: 0.25 | AD212: 0.25 | AE212: 0.25 | AF212: 0.25 | AG212: 0.25 | AH212: 0.25 | AI212: 0.25 | AJ212: 0.25 | AK212: =AJ211*a*alpha*(AJ313/AJ225)*(AJ219/AJ313)^(1-rho) -> 0.25 | AL212: 0.25 | AM212: 0.25 | AN212: 0.25 | AO212: 0.25 | AP212: 0.25 | AQ212: 0.25 | AR212: 0.25 | AS212: 0.25 | AT212: 0.25 | AU212: 0.25 | AV212: 0.25 | AW212: 0.25 | AX212: 0.25 | AY212: 0.25 | AZ212: 0.25 | BA212: 0.25 | BB212: 0.25 | BC212: 0.25 | BD212: 0.25 | BE212: 0.25 | BF212: 0.25 | BG212: 0.25 | BH212: 0.25 | BI212: 0.25 | BJ212: 0.25 | BK212: 0.25 | BL212: 0.25 | BM212: 0.25 | BN212: 0.25 | BO212: 0.25 | BP212: 0.25 | BQ212: =BP211*a*alpha*(BP313/BP225)*(BP219/BP313)^(1-rho) -> 0.25 | BR212: 0.25 | BS212: 0.25 | BT212: 0.25 | BU212: 0.25 | BV212: 0.25 | BW212: 0.25 | BX212: 0.25 | BY212: 0.25 | BZ212: 0.25 | CA212: 0.25 | CB212: 0.25 | CC212: 0.25 | CD212: 0.25 | CE212: 0.25 | CF212: 0.25 | CG212: 0.25 | CH212: 0.25 | CI212: 0.25 | CJ212: 0.25 | CK212: 0.25 | CL212: 0.25 | CM212: 0.25 | CN212: 0.25 | CO212: 0.25 | CP212: 0.25 | CQ212: 0.25 | CR212: 0.25 | CS212: 0.25 | CT212: 0.25 | CU212: 0.25 | CV212: 0.25 | CW212: 0.25 | CX212: 0.25 | CY212: 0.25 | CZ212: =IF(OR(D212=0,CY$210-D$210=0),0,LN(CY212/D212)/(CY$210-D$210)) -> 1.906443578e-16 | DA212: =IF(OR(CT212=0,CY$210-CT$210=0),0,LN(CY212/CT212)/(CY$210-CT$210)) -> -1.33226763e-16
C213: pL | D213: =N48 -> 0.75 | E213: =D211*a*(1-alpha)*(D313/D226)*(D219/D313)^(1-rho) -> 0.75 | F213: 0.75 | G213: 0.75 | H213: 0.75 | I213: 0.75 | J213: 0.75 | K213: 0.7500000001 | L213: 0.7500000001 | M213: 0.7500000001 | N213: 0.7500000001 | O213: 0.7500000001 | P213: 0.7500000001 | Q213: 0.7500000001 | R213: 0.7500000001 | S213: 0.7500000001 | T213: 0.7500000001 | U213: 0.7500000001 | V213: 0.7500000001 | W213: 0.7500000001 | X213: 0.7500000001 | Y213: 0.7500000001 | Z213: 0.7500000001 | AA213: 0.75 | AB213: 0.75 | AC213: 0.75 | AD213: 0.75 | AE213: 0.75 | AF213: 0.75 | AG213: 0.75 | AH213: 0.75 | AI213: 0.75 | AJ213: 0.75 | AK213: =AJ211*a*(1-alpha)*(AJ313/AJ226)*(AJ219/AJ313)^(1-rho) -> 0.75 | AL213: 0.75 | AM213: 0.75 | AN213: 0.75 | AO213: 0.75 | AP213: 0.75 | AQ213: 0.75 | AR213: 0.75 | AS213: 0.75 | AT213: 0.75 | AU213: 0.75 | AV213: 0.75 | AW213: 0.75 | AX213: 0.75 | AY213: 0.75 | AZ213: 0.75 | BA213: 0.75 | BB213: 0.75 | BC213: 0.75 | BD213: 0.75 | BE213: 0.75 | BF213: 0.75 | BG213: 0.75 | BH213: 0.75 | BI213: 0.75 | BJ213: 0.75 | BK213: 0.75 | BL213: 0.75 | BM213: 0.75 | BN213: 0.75 | BO213: 0.75 | BP213: 0.75 | BQ213: =BP211*a*(1-alpha)*(BP313/BP226)*(BP219/BP313)^(1-rho) -> 0.75 | BR213: 0.75 | BS213: 0.75 | BT213: 0.75 | BU213: 0.75 | BV213: 0.75 | BW213: 0.75 | BX213: 0.75 | BY213: 0.75 | BZ213: 0.75 | CA213: 0.75 | CB213: 0.75 | CC213: 0.75 | CD213: 0.75 | CE213: 0.75 | CF213: 0.75 | CG213: 0.75 | CH213: 0.75 | CI213: 0.75 | CJ213: 0.75 | CK213: 0.75 | CL213: 0.75 | CM213: 0.75 | CN213: 0.75 | CO213: 0.75 | CP213: 0.75 | CQ213: 0.75 | CR213: 0.75 | CS213: 0.75 | CT213: 0.75 | CU213: 0.75 | CV213: 0.75 | CW213: 0.75 | CX213: 0.75 | CY213: 0.75 | CZ213: =IF(OR(D213=0,CY$210-D$210=0),0,LN(CY213/D213)/(CY$210-D$210)) -> -9.420074148e-17 | DA213: =IF(OR(CT213=0,CY$210-CT$210=0),0,LN(CY213/CT213)/(CY$210-CT$210)) -> -4.440892099e-16
C214: pR | D214: =N50 -> 0.3247595264 | E214: =E331*(E212/E328)^beta*(E213/E329)^(1-beta)*beta^beta*(1-beta)^(1-beta) -> 0.3247595264 | F214: 0.3247595261 | G214: 0.3247595257 | H214: 0.3247595255 | I214: 0.3247595253 | J214: 0.3247595252 | K214: 0.3247595251 | L214: 0.3247595252 | M214: 0.3247595252 | N214: 0.3247595253 | O214: 0.3247595254 | P214: 0.3247595255 | Q214: 0.3247595256 | R214: 0.3247595258 | S214: 0.3247595259 | T214: 0.324759526 | U214: 0.3247595261 | V214: 0.3247595262 | W214: 0.3247595262 | X214: 0.3247595263 | Y214: 0.3247595263 | Z214: 0.3247595264 | AA214: 0.3247595264 | AB214: 0.3247595264 | AC214: 0.3247595265 | AD214: 0.3247595265 | AE214: 0.3247595265 | AF214: 0.3247595265 | AG214: 0.3247595265 | AH214: 0.3247595265 | AI214: 0.3247595265 | AJ214: 0.3247595265 | AK214: =AK331*(AK212/AK328)^beta*(AK213/AK329)^(1-beta)*beta^beta*(1-beta)^(1-beta) -> 0.3247595265 | AL214: 0.3247595264 | AM214: 0.3247595264 | AN214: 0.3247595264 | AO214: 0.3247595264 | AP214: 0.3247595264 | AQ214: 0.3247595264 | AR214: 0.3247595264 | AS214: 0.3247595264 | AT214: 0.3247595264 | AU214: 0.3247595264 | AV214: 0.3247595264 | AW214: 0.3247595264 | AX214: 0.3247595264 | AY214: 0.3247595264 | AZ214: 0.3247595264 | BA214: 0.3247595264 | BB214: 0.3247595264 | BC214: 0.3247595264 | BD214: 0.3247595264 | BE214: 0.3247595264 | BF214: 0.3247595264 | BG214: 0.3247595264 | BH214: 0.3247595264 | BI214: 0.3247595264 | BJ214: 0.3247595264 | BK214: 0.3247595264 | BL214: 0.3247595264 | BM214: 0.3247595264 | BN214: 0.3247595264 | BO214: 0.3247595264 | BP214: 0.3247595264 | BQ214: =BQ331*(BQ212/BQ328)^beta*(BQ213/BQ329)^(1-beta)*beta^beta*(1-beta)^(1-beta) -> 0.3247595264 | BR214: 0.3247595264 | BS214: 0.3247595264 | BT214: 0.3247595264 | BU214: 0.3247595264 | BV214: 0.3247595264 | BW214: 0.3247595264 | BX214: 0.3247595264 | BY214: 0.3247595264 | BZ214: 0.3247595264 | CA214: 0.3247595264 | CB214: 0.3247595264 | CC214: 0.3247595264 | CD214: 0.3247595264 | CE214: 0.3247595264 | CF214: 0.3247595264 | CG214: 0.3247595264 | CH214: 0.3247595264 | CI214: 0.3247595264 | CJ214: 0.3247595264 | CK214: 0.3247595264 | CL214: 0.3247595264 | CM214: 0.3247595264 | CN214: 0.3247595264 | CO214: 0.3247595264 | CP214: 0.3247595264 | CQ214: 0.3247595264 | CR214: 0.3247595264 | CS214: 0.3247595264 | CT214: 0.3247595264 | CU214: 0.3247595264 | CV214: 0.3247595264 | CW214: =CW331*(CW212/CW328)^beta*(CW213/CW329)^(1-beta)*beta^beta*(1-beta)^(1-beta) -> 0.3247595264 | CX214: 0.3247595264 | CY214: 0.3247595264 | CZ214: =IF(OR(D214=0,CY$210-D$210=0),0,LN(CY214/D214)/(CY$210-D$210)) -> -1.368153626e-16 | DA214: =IF(OR(CT214=0,CY$210-CT$210=0),0,LN(CY214/CT214)/(CY$210-CT$210)) -> 2.26485497e-15
C215: pK - d | D215: =D212-d -> 2.997602166e-15 | E215: 3.053113318e-15 | F215: 4.607425552e-15 | G215: 5.495603972e-15 | H215: -1.029956676e-11 | I215: -2.691624701e-11 | J215: -4.685352106e-11 | K215: -6.725503487e-11 | L215: -8.611866775e-11 | M215: -1.021282503e-10 | N215: -1.145496475e-10 | O215: -1.230958946e-10 | P215: -1.278112061e-10 | Q215: -1.289704454e-10 | R215: -1.26998273e-10 | S215: -1.22402255e-10 | T215: -1.157230978e-10 | U215: -1.074957068e-10 | V215: -9.822190283e-11 | W215: -8.835371323e-11 | X215: -7.828132587e-11 | Y215: -6.832928667e-11 | Z215: -5.875622211e-11 | AA215: -4.975739265e-11 | AB215: -4.147052146e-11 | AC215: -3.398270554e-11 | AD215: -2.733691051e-11 | AE215: -2.154038059e-11 | AF215: -1.657163295e-11 | AG215: -1.238747993e-11 | AH215: -8.929301742e-12 | AI215: -6.128764163e-12 | AJ215: =AJ212-d -> -3.911315716e-12 | AK215: -2.20168328e-12 | AL215: -9.249268018e-13 | AM215: -1.046385201e-14 | AN215: 6.072919945e-13 | AO215: 9.880429808e-13 | AP215: 1.184663478e-12 | AQ215: 1.242339565e-12 | AR215: 1.200040067e-12 | AS215: 1.089961454e-12 | AT215: 9.378609001e-13 | AU215: 7.643330413e-13 | AV215: 5.853095786e-13 | AW215: 4.121702979e-13 | AX215: 2.527977827e-13 | AY215: 1.120215032e-13 | AZ215: -7.299716387e-15 | BA215: -1.040834086e-13 | BB215: -1.789957071e-13 | BC215: -2.335909244e-13 | BD215: -2.695066392e-13 | BE215: -2.895184092e-13 | BF215: -2.960132139e-13 | BG215: -2.914890551e-13 | BH215: -2.78610468e-13 | BI215: -2.594591209e-13 | BJ215: -2.360056595e-13 | BK215: -2.100541963e-13 | BL215: -1.831035323e-13 | BM215: -1.561528684e-13 | BN215: -1.302291608e-13 | BO215: -1.059985433e-13 | BP215: =BP212-d -> -8.382183836e-14 | BQ215: -6.394884622e-14 | BR215: -4.657385588e-14 | BS215: -3.161360063e-14 | BT215: -1.91235916e-14 | BU215: -9.131584378e-15 | BV215: -1.165734176e-15 | BW215: 4.996003611e-15 | BX215: 9.603429163e-15 | BY215: 1.310063169e-14 | BZ215: 1.537658889e-14 | CA215: 1.665334537e-14 | CB215: 1.743050149e-14 | CC215: 1.759703494e-14 | CD215: 1.709743458e-14 | CE215: 1.632027846e-14 | CF215: 1.55986335e-14 | CG215: 1.454392162e-14 | CH215: 1.35447209e-14 | CI215: 1.265654248e-14 | CJ215: 1.210143097e-14 | CK215: 1.10467191e-14 | CL215: 1.032507413e-14 | CM215: 9.603429163e-15 | CN215: 9.159339953e-15 | CO215: 8.770761895e-15 | CP215: 8.271161533e-15 | CQ215: 8.215650382e-15 | CR215: 7.771561172e-15 | CS215: 7.605027719e-15 | CT215: 7.882583475e-15 | CU215: 7.827072324e-15 | CV215: 7.771561172e-15 | CW215: 7.716050021e-15 | CX215: 7.549516567e-15 | CY215: 7.716050021e-15 | CZ215: =IF(OR(D215=0,CY$210-D$210=0),0,LN(7.71605002114484E-15/2.99760216648792E-15)/(CY$210-D$210)) -> 0.009550402895 | DA215: =IF(OR(CT215=0,CY$210-CT$210=0),0,LN(CY215/CT215)/(CY$210-CT$210)) -> -0.004270624894
C217: Primal-side Calculations
C218: Physical Measures | D218: =D$210 -> 1 | E218: =E$210 -> 2 | F218: 3 | G218: 4 | H218: 5 | I218: 6 | J218: 7 | K218: 8 | L218: 9 | M218: 10 | N218: 11 | O218: 12 | P218: 13 | Q218: 14 | R218: 15 | S218: 16 | T218: 17 | U218: 18 | V218: 19 | W218: 20 | X218: 21 | Y218: 22 | Z218: 23 | AA218: 24 | AB218: 25 | AC218: 26 | AD218: 27 | AE218: 28 | AF218: 29 | AG218: 30 | AH218: 31 | AI218: 32 | AJ218: 33 | AK218: 34 | AL218: 35 | AM218: 36 | AN218: 37 | AO218: 38 | AP218: 39 | AQ218: 40 | AR218: 41 | AS218: 42 | AT218: 43 | AU218: 44 | AV218: 45 | AW218: 46 | AX218: 47 | AY218: 48 | AZ218: 49 | BA218: 50 | BB218: 51 | BC218: 52 | BD218: 53 | BE218: 54 | BF218: 55 | BG218: 56 | BH218: 57 | BI218: 58 | BJ218: 59 | BK218: 60 | BL218: 61 | BM218: 62 | BN218: 63 | BO218: 64 | BP218: 65 | BQ218: =BQ$210 -> 66 | BR218: 67 | BS218: 68 | BT218: 69 | BU218: 70 | BV218: 71 | BW218: 72 | BX218: 73 | BY218: 74 | BZ218: 75 | CA218: 76 | CB218: 77 | CC218: 78 | CD218: 79 | CE218: 80 | CF218: 81 | CG218: 82 | CH218: 83 | CI218: 84 | CJ218: 85 | CK218: 86 | CL218: 87 | CM218: 88 | CN218: 89 | CO218: 90 | CP218: 91 | CQ218: 92 | CR218: 93 | CS218: 94 | CT218: 95 | CU218: 96 | CV218: 97 | CW218: 98 | CX218: 99 | CY218: 100
C219: Real final output, Y | D219: =F46 -> 1 | E219: =(a*E313^rho+(1-a)*E314^rho)^(1/rho) -> 1 | F219: =(a*F313^rho+(1-a)*F314^rho)^(1/rho) -> 1 | G219: 1 | H219: 1.000000001 | I219: 1.000000001 | J219: 1.000000001 | K219: 1.000000001 | L219: 1.000000001 | M219: 1.000000001 | N219: 1.000000001 | O219: 1.000000001 | P219: 1.000000001 | Q219: 1.000000001 | R219: 1.000000001 | S219: 1 | T219: 1 | U219: 1 | V219: 1 | W219: 1 | X219: 1 | Y219: 1 | Z219: 1 | AA219: 1 | AB219: 1 | AC219: 1 | AD219: 1 | AE219: 1 | AF219: 1 | AG219: 1 | AH219: 1 | AI219: 1 | AJ219: 1 | AK219: =(a*AK313^rho+(1-a)*AK314^rho)^(1/rho) -> 1 | AL219: 1 | AM219: 1 | AN219: 1 | AO219: 1 | AP219: 1 | AQ219: 1 | AR219: 1 | AS219: 1 | AT219: 1 | AU219: 1 | AV219: 1 | AW219: 1 | AX219: 1 | AY219: 1 | AZ219: 1 | BA219: 1 | BB219: 1 | BC219: 1 | BD219: 1 | BE219: 1 | BF219: 1 | BG219: 1 | BH219: 1 | BI219: 1 | BJ219: 1 | BK219: 1 | BL219: 1 | BM219: 1 | BN219: 1 | BO219: 1 | BP219: 1 | BQ219: =(a*BQ313^rho+(1-a)*BQ314^rho)^(1/rho) -> 1 | BR219: 1 | BS219: 1 | BT219: 1 | BU219: 1 | BV219: 1 | BW219: 1 | BX219: 1 | BY219: 1 | BZ219: 1 | CA219: 1 | CB219: 1 | CC219: 1 | CD219: 1 | CE219: 1 | CF219: 1 | CG219: 1 | CH219: 1 | CI219: 1 | CJ219: 1 | CK219: 1 | CL219: 1 | CM219: 1 | CN219: 1 | CO219: 1 | CP219: 1 | CQ219: 1 | CR219: 1 | CS219: 1 | CT219: 1 | CU219: 1 | CV219: 1 | CW219: 1 | CX219: 1 | CY219: 1 | CZ219: =IF(OR(D219=0,CY$210-D$210=0),0,LN(CY219/D219)/(CY$210-D$210)) -> -5.607186993e-17 | DA219: =IF(OR(CT219=0,CY$210-CT$210=0),0,LN(CY219/CT219)/(CY$210-CT$210)) -> -6.217248938e-16
C220: Workforce, Ł | D220: =Ł0 -> 2.666666667 | E220: =$D$220*EXP(n*E218) -> 2.666666667 | F220: 2.666666667 | G220: 2.666666667 | H220: 2.666666667 | I220: 2.666666667 | J220: 2.666666667 | K220: 2.666666667 | L220: 2.666666667 | M220: 2.666666667 | N220: 2.666666667 | O220: 2.666666667 | P220: 2.666666667 | Q220: 2.666666667 | R220: 2.666666667 | S220: 2.666666667 | T220: 2.666666667 | U220: 2.666666667 | V220: 2.666666667 | W220: 2.666666667 | X220: 2.666666667 | Y220: 2.666666667 | Z220: 2.666666667 | AA220: 2.666666667 | AB220: 2.666666667 | AC220: 2.666666667 | AD220: 2.666666667 | AE220: 2.666666667 | AF220: 2.666666667 | AG220: 2.666666667 | AH220: 2.666666667 | AI220: 2.666666667 | AJ220: 2.666666667 | AK220: =$D$220*EXP(n*AK218) -> 2.666666667 | AL220: 2.666666667 | AM220: 2.666666667 | AN220: 2.666666667 | AO220: 2.666666667 | AP220: 2.666666667 | AQ220: 2.666666667 | AR220: 2.666666667 | AS220: 2.666666667 | AT220: 2.666666667 | AU220: 2.666666667 | AV220: 2.666666667 | AW220: 2.666666667 | AX220: 2.666666667 | AY220: 2.666666667 | AZ220: 2.666666667 | BA220: 2.666666667 | BB220: 2.666666667 | BC220: 2.666666667 | BD220: 2.666666667 | BE220: 2.666666667 | BF220: 2.666666667 | BG220: 2.666666667 | BH220: 2.666666667 | BI220: 2.666666667 | BJ220: 2.666666667 | BK220: 2.666666667 | BL220: 2.666666667 | BM220: 2.666666667 | BN220: 2.666666667 | BO220: 2.666666667 | BP220: 2.666666667 | BQ220: =$D$220*EXP(n*BQ218) -> 2.666666667 | BR220: 2.666666667 | BS220: 2.666666667 | BT220: 2.666666667 | BU220: 2.666666667 | BV220: 2.666666667 | BW220: 2.666666667 | BX220: 2.666666667 | BY220: 2.666666667 | BZ220: 2.666666667 | CA220: 2.666666667 | CB220: 2.666666667 | CC220: 2.666666667 | CD220: 2.666666667 | CE220: 2.666666667 | CF220: 2.666666667 | CG220: 2.666666667 | CH220: 2.666666667 | CI220: 2.666666667 | CJ220: 2.666666667 | CK220: 2.666666667 | CL220: 2.666666667 | CM220: 2.666666667 | CN220: 2.666666667 | CO220: 2.666666667 | CP220: 2.666666667 | CQ220: 2.666666667 | CR220: 2.666666667 | CS220: 2.666666667 | CT220: 2.666666667 | CU220: 2.666666667 | CV220: 2.666666667 | CW220: 2.666666667 | CX220: 2.666666667 | CY220: 2.666666667 | CZ220: =IF(OR(D220=0,CY$210-D$210=0),0,LN(CY220/D220)/(CY$210-D$210)) -> 0 | DA220: =IF(OR(CT220=0,CY$210-CT$210=0),0,LN(CY220/CT220)/(CY$210-CT$210)) -> 0
C221: Employed workforce, L | D221: =L0 -> 1 | E221: =E220-E273 -> 1 | F221: 1 | G221: 1 | H221: 1 | I221: 1 | J221: 1 | K221: 1 | L221: 1 | M221: 1 | N221: 1 | O221: 1 | P221: 1 | Q221: 1 | R221: 1 | S221: 1 | T221: 1 | U221: 1 | V221: 1 | W221: 1 | X221: 1 | Y221: 1 | Z221: 1 | AA221: 1 | AB221: 1 | AC221: 1 | AD221: 1 | AE221: 1 | AF221: 1 | AG221: 1 | AH221: 1 | AI221: 1 | AJ221: 1 | AK221: =AK220-AK273 -> 1 | AL221: 1 | AM221: 1 | AN221: 1 | AO221: 1 | AP221: 1 | AQ221: 1 | AR221: 1 | AS221: 1 | AT221: 1 | AU221: 1 | AV221: 1 | AW221: 1 | AX221: 1 | AY221: 1 | AZ221: 1 | BA221: 1 | BB221: 1 | BC221: 1 | BD221: 1 | BE221: 1 | BF221: 1 | BG221: 1 | BH221: 1 | BI221: 1 | BJ221: 1 | BK221: 1 | BL221: 1 | BM221: 1 | BN221: 1 | BO221: 1 | BP221: 1 | BQ221: =BQ220-BQ273 -> 1 | BR221: 1 | BS221: 1 | BT221: 1 | BU221: 1 | BV221: 1 | BW221: 1 | BX221: 1 | BY221: 1 | BZ221: 1 | CA221: 1 | CB221: 1 | CC221: 1 | CD221: 1 | CE221: 1 | CF221: 1 | CG221: 1 | CH221: 1 | CI221: 1 | CJ221: 1 | CK221: 1 | CL221: 1 | CM221: 1 | CN221: 1 | CO221: 1 | CP221: 1 | CQ221: 1 | CR221: 1 | CS221: 1 | CT221: 1 | CU221: 1 | CV221: 1 | CW221: =CW220-CW273 -> 1 | CX221: 1 | CY221: 1 | CZ221: =IF(OR(D221=0,CY$210-D$210=0),0,LN(CY221/D221)/(CY$210-D$210)) -> 0 | DA221: =IF(OR(CT221=0,CY$210-CT$210=0),0,LN(CY221/CT221)/(CY$210-CT$210)) -> -4.440892099e-17
C222: Investment, I | D222: =D272 -> 0.25 | E222: =D272 -> 0.25 | F222: 0.25 | G222: 0.25 | H222: 0.2500000001 | I222: 0.2500000001 | J222: 0.2500000002 | K222: 0.2500000002 | L222: 0.2500000002 | M222: 0.2500000002 | N222: =M272 -> 0.2500000002 | O222: 0.2500000002 | P222: 0.2500000002 | Q222: 0.2500000002 | R222: =Q272 -> 0.2500000001 | S222: 0.2500000001 | T222: 0.2500000001 | U222: 0.2500000001 | V222: 0.2500000001 | W222: 0.2500000001 | X222: 0.2500000001 | Y222: 0.25 | Z222: 0.25 | AA222: 0.25 | AB222: 0.25 | AC222: 0.25 | AD222: 0.25 | AE222: 0.25 | AF222: 0.25 | AG222: 0.25 | AH222: 0.25 | AI222: 0.25 | AJ222: 0.25 | AK222: 0.25 | AL222: 0.25 | AM222: 0.25 | AN222: 0.25 | AO222: 0.25 | AP222: 0.25 | AQ222: 0.25 | AR222: 0.25 | AS222: 0.25 | AT222: 0.25 | AU222: 0.25 | AV222: 0.25 | AW222: 0.25 | AX222: 0.25 | AY222: 0.25 | AZ222: 0.25 | BA222: 0.25 | BB222: 0.25 | BC222: 0.25 | BD222: 0.25 | BE222: 0.25 | BF222: 0.25 | BG222: 0.25 | BH222: 0.25 | BI222: 0.25 | BJ222: 0.25 | BK222: 0.25 | BL222: 0.25 | BM222: 0.25 | BN222: 0.25 | BO222: 0.25 | BP222: 0.25 | BQ222: =BP272 -> 0.25 | BR222: 0.25 | BS222: 0.25 | BT222: 0.25 | BU222: 0.25 | BV222: 0.25 | BW222: 0.25 | BX222: 0.25 | BY222: 0.25 | BZ222: 0.25 | CA222: 0.25 | CB222: 0.25 | CC222: 0.25 | CD222: 0.25 | CE222: 0.25 | CF222: 0.25 | CG222: 0.25 | CH222: 0.25 | CI222: 0.25 | CJ222: 0.25 | CK222: 0.25 | CL222: 0.25 | CM222: 0.25 | CN222: 0.25 | CO222: 0.25 | CP222: 0.25 | CQ222: 0.25 | CR222: 0.25 | CS222: 0.25 | CT222: 0.25 | CU222: 0.25 | CV222: 0.25 | CW222: 0.25 | CX222: 0.25 | CY222: 0.25 | CZ222: =IF(OR(D222=0,CY$210-D$210=0),0,LN(CY222/D222)/(CY$210-D$210)) -> -4.934324554e-17 | DA222: =IF(OR(CT222=0,CY$210-CT$210=0),0,LN(CY222/CT222)/(CY$210-CT$210)) -> -5.773159728e-16
C223: K | D223: =D225+D228 -> 1 | E223: =(1-d)*D223+E222 -> 1 | F223: 1 | G223: 1 | H223: 1 | I223: 1 | J223: 1 | K223: 1 | L223: 1.000000001 | M223: 1.000000001 | N223: =(1-d)*M223+N222 -> 1.000000001 | O223: 1.000000001 | P223: 1.000000001 | Q223: 1.000000001 | R223: =(1-d)*Q223+R222 -> 1.000000001 | S223: 1.000000001 | T223: 1.000000001 | U223: 1.000000001 | V223: 1 | W223: 1 | X223: 1 | Y223: 1 | Z223: 1 | AA223: 1 | AB223: 1 | AC223: 1 | AD223: 1 | AE223: 1 | AF223: 1 | AG223: 1 | AH223: 1 | AI223: 1 | AJ223: 1 | AK223: =(1-d)*AJ223+AK222 -> 1 | AL223: 1 | AM223: 1 | AN223: 1 | AO223: 1 | AP223: 1 | AQ223: 1 | AR223: 1 | AS223: 1 | AT223: 1 | AU223: 1 | AV223: 1 | AW223: 1 | AX223: 1 | AY223: 1 | AZ223: 1 | BA223: 1 | BB223: 1 | BC223: 1 | BD223: 1 | BE223: 1 | BF223: 1 | BG223: 1 | BH223: 1 | BI223: 1 | BJ223: 1 | BK223: 1 | BL223: 1 | BM223: 1 | BN223: 1 | BO223: 1 | BP223: 1 | BQ223: =(1-d)*BP223+BQ222 -> 1 | BR223: 1 | BS223: 1 | BT223: 1 | BU223: 1 | BV223: 1 | BW223: 1 | BX223: 1 | BY223: 1 | BZ223: 1 | CA223: 1 | CB223: 1 | CC223: 1 | CD223: 1 | CE223: 1 | CF223: 1 | CG223: 1 | CH223: 1 | CI223: 1 | CJ223: 1 | CK223: 1 | CL223: 1 | CM223: 1 | CN223: 1 | CO223: 1 | CP223: 1 | CQ223: 1 | CR223: 1 | CS223: 1 | CT223: 1 | CU223: 1 | CV223: 1 | CW223: =(1-d)*CV223+CW222 -> 1 | CX223: =(1-d)*CW223+CX222 -> 1 | CY223: =(1-d)*CX223+CY222 -> 1 | CZ223: =IF(OR(D223=0,CY$210-D$210=0),0,LN(CY223/D223)/(CY$210-D$210)) -> -2.826022245e-16 | DA223: =IF(OR(CT223=0,CY$210-CT$210=0),0,LN(CY223/CT223)/(CY$210-CT$210)) -> -3.552713679e-16
C225: KX | D225: =F47 -> 0.8235052131 | E225: =(E322/(1+E322))*E223 -> 0.8235052131 | F225: 0.8235052132 | G225: 0.8235052133 | H225: 0.8235052134 | I225: 0.8235052135 | J225: 0.8235052136 | K225: 0.8235052137 | L225: 0.8235052138 | M225: 0.8235052138 | N225: 0.8235052138 | O225: 0.8235052139 | P225: 0.8235052138 | Q225: 0.8235052138 | R225: 0.8235052138 | S225: 0.8235052137 | T225: 0.8235052137 | U225: 0.8235052136 | V225: 0.8235052136 | W225: 0.8235052135 | X225: 0.8235052135 | Y225: 0.8235052134 | Z225: 0.8235052134 | AA225: 0.8235052133 | AB225: 0.8235052133 | AC225: 0.8235052133 | AD225: 0.8235052132 | AE225: 0.8235052132 | AF225: 0.8235052132 | AG225: 0.8235052132 | AH225: 0.8235052132 | AI225: 0.8235052132 | AJ225: 0.8235052132 | AK225: =(AK322/(1+AK322))*AK223 -> 0.8235052132 | AL225: 0.8235052131 | AM225: 0.8235052131 | AN225: 0.8235052131 | AO225: 0.8235052131 | AP225: 0.8235052131 | AQ225: 0.8235052131 | AR225: 0.8235052131 | AS225: 0.8235052131 | AT225: 0.8235052131 | AU225: 0.8235052131 | AV225: 0.8235052131 | AW225: 0.8235052131 | AX225: 0.8235052131 | AY225: 0.8235052132 | AZ225: 0.8235052132 | BA225: 0.8235052132 | BB225: 0.8235052132 | BC225: 0.8235052132 | BD225: 0.8235052132 | BE225: 0.8235052132 | BF225: 0.8235052132 | BG225: 0.8235052132 | BH225: 0.8235052132 | BI225: 0.8235052132 | BJ225: 0.8235052132 | BK225: 0.8235052132 | BL225: 0.8235052132 | BM225: 0.8235052132 | BN225: 0.8235052132 | BO225: 0.8235052132 | BP225: 0.8235052132 | BQ225: =(BQ322/(1+BQ322))*BQ223 -> 0.8235052132 | BR225: 0.8235052132 | BS225: 0.8235052131 | BT225: 0.8235052131 | BU225: 0.8235052131 | BV225: 0.8235052131 | BW225: 0.8235052131 | BX225: 0.8235052131 | BY225: 0.8235052131 | BZ225: 0.8235052131 | CA225: 0.8235052131 | CB225: 0.8235052131 | CC225: 0.8235052131 | CD225: 0.8235052131 | CE225: 0.8235052131 | CF225: 0.8235052131 | CG225: 0.8235052131 | CH225: 0.8235052131 | CI225: 0.8235052131 | CJ225: 0.8235052131 | CK225: 0.8235052131 | CL225: 0.8235052131 | CM225: 0.8235052131 | CN225: 0.8235052131 | CO225: 0.8235052131 | CP225: 0.8235052131 | CQ225: 0.8235052131 | CR225: 0.8235052131 | CS225: 0.8235052131 | CT225: 0.8235052131 | CU225: 0.8235052131 | CV225: 0.8235052131 | CW225: 0.8235052131 | CX225: 0.8235052131 | CY225: 0.8235052131 | CZ225: =IF(OR(D225=0,CY$210-D$210=0),0,LN(CY225/D225)/(CY$210-D$210)) -> -2.769950375e-16 | DA225: =IF(OR(CT225=0,CY$210-CT$210=0),0,LN(CY225/CT225)/(CY$210-CT$210)) -> -5.107025913e-16
C226: LX | D226: =F48 -> 0.8235052131 | E226: =(E321/(1+E321))*E221 -> 0.8235052131 | F226: 0.8235052132 | G226: 0.8235052132 | H226: 0.8235052133 | I226: 0.8235052133 | J226: 0.8235052133 | K226: 0.8235052133 | L226: 0.8235052133 | M226: 0.8235052133 | N226: 0.8235052133 | O226: 0.8235052133 | P226: 0.8235052133 | Q226: 0.8235052133 | R226: 0.8235052132 | S226: 0.8235052132 | T226: 0.8235052132 | U226: 0.8235052132 | V226: 0.8235052132 | W226: 0.8235052132 | X226: 0.8235052132 | Y226: 0.8235052132 | Z226: 0.8235052132 | AA226: 0.8235052132 | AB226: 0.8235052132 | AC226: 0.8235052131 | AD226: 0.8235052131 | AE226: 0.8235052131 | AF226: 0.8235052131 | AG226: 0.8235052131 | AH226: 0.8235052131 | AI226: 0.8235052131 | AJ226: 0.8235052131 | AK226: =(AK321/(1+AK321))*AK221 -> 0.8235052131 | AL226: 0.8235052131 | AM226: 0.8235052131 | AN226: 0.8235052131 | AO226: 0.8235052131 | AP226: 0.8235052131 | AQ226: 0.8235052131 | AR226: 0.8235052131 | AS226: 0.8235052131 | AT226: 0.8235052131 | AU226: 0.8235052132 | AV226: 0.8235052132 | AW226: 0.8235052132 | AX226: 0.8235052132 | AY226: 0.8235052132 | AZ226: 0.8235052132 | BA226: 0.8235052132 | BB226: 0.8235052132 | BC226: 0.8235052132 | BD226: 0.8235052132 | BE226: 0.8235052132 | BF226: 0.8235052132 | BG226: 0.8235052132 | BH226: 0.8235052132 | BI226: 0.8235052132 | BJ226: 0.8235052131 | BK226: 0.8235052131 | BL226: 0.8235052131 | BM226: 0.8235052131 | BN226: 0.8235052131 | BO226: 0.8235052131 | BP226: 0.8235052131 | BQ226: =(BQ321/(1+BQ321))*BQ221 -> 0.8235052131 | BR226: 0.8235052131 | BS226: 0.8235052131 | BT226: 0.8235052131 | BU226: 0.8235052131 | BV226: 0.8235052131 | BW226: 0.8235052131 | BX226: 0.8235052131 | BY226: 0.8235052131 | BZ226: 0.8235052131 | CA226: 0.8235052131 | CB226: 0.8235052131 | CC226: 0.8235052131 | CD226: 0.8235052131 | CE226: 0.8235052131 | CF226: 0.8235052131 | CG226: 0.8235052131 | CH226: 0.8235052131 | CI226: 0.8235052131 | CJ226: 0.8235052131 | CK226: 0.8235052131 | CL226: 0.8235052131 | CM226: 0.8235052131 | CN226: 0.8235052131 | CO226: 0.8235052131 | CP226: 0.8235052131 | CQ226: 0.8235052131 | CR226: 0.8235052131 | CS226: 0.8235052131 | CT226: 0.8235052131 | CU226: 0.8235052131 | CV226: 0.8235052131 | CW226: 0.8235052131 | CX226: 0.8235052131 | CY226: 0.8235052131 | CZ226: =IF(OR(D226=0,CY$210-D$210=0),0,LN(CY226/D226)/(CY$210-D$210)) -> 6.728624392e-18 | DA226: =IF(OR(CT226=0,CY$210-CT$210=0),0,LN(CY226/CT226)/(CY$210-CT$210)) -> -1.998401444e-16
C228: KR | D228: =F49 -> 0.1764947869 | E228: =(1/(1+E322))*E223 -> 0.1764947869 | F228: 0.1764947868 | G228: 0.1764947868 | H228: 0.1764947867 | I228: 0.1764947867 | J228: 0.1764947867 | K228: 0.1764947867 | L228: 0.1764947868 | M228: 0.1764947868 | N228: 0.1764947868 | O228: 0.1764947868 | P228: 0.1764947868 | Q228: 0.1764947869 | R228: 0.1764947869 | S228: 0.1764947869 | T228: 0.1764947869 | U228: 0.1764947869 | V228: 0.1764947869 | W228: 0.1764947869 | X228: 0.1764947869 | Y228: 0.1764947869 | Z228: 0.1764947869 | AA228: 0.1764947869 | AB228: 0.1764947869 | AC228: 0.1764947869 | AD228: 0.1764947869 | AE228: 0.1764947869 | AF228: 0.1764947869 | AG228: 0.1764947869 | AH228: 0.1764947869 | AI228: 0.1764947869 | AJ228: 0.1764947869 | AK228: =(1/(1+AK322))*AK223 -> 0.1764947869 | AL228: 0.1764947869 | AM228: 0.1764947869 | AN228: 0.1764947869 | AO228: 0.1764947869 | AP228: 0.1764947869 | AQ228: 0.1764947868 | AR228: 0.1764947868 | AS228: 0.1764947868 | AT228: 0.1764947868 | AU228: 0.1764947868 | AV228: 0.1764947868 | AW228: 0.1764947868 | AX228: 0.1764947868 | AY228: 0.1764947868 | AZ228: 0.1764947868 | BA228: 0.1764947868 | BB228: 0.1764947868 | BC228: 0.1764947868 | BD228: 0.1764947869 | BE228: 0.1764947869 | BF228: 0.1764947869 | BG228: 0.1764947869 | BH228: 0.1764947869 | BI228: 0.1764947869 | BJ228: 0.1764947869 | BK228: 0.1764947869 | BL228: 0.1764947869 | BM228: 0.1764947869 | BN228: 0.1764947869 | BO228: 0.1764947869 | BP228: 0.1764947869 | BQ228: =(1/(1+BQ322))*BQ223 -> 0.1764947869 | BR228: 0.1764947869 | BS228: 0.1764947869 | BT228: 0.1764947869 | BU228: 0.1764947869 | BV228: 0.1764947869 | BW228: 0.1764947869 | BX228: 0.1764947869 | BY228: 0.1764947869 | BZ228: 0.1764947869 | CA228: 0.1764947869 | CB228: 0.1764947869 | CC228: 0.1764947869 | CD228: 0.1764947869 | CE228: 0.1764947869 | CF228: 0.1764947869 | CG228: 0.1764947869 | CH228: 0.1764947869 | CI228: 0.1764947869 | CJ228: 0.1764947869 | CK228: 0.1764947869 | CL228: 0.1764947869 | CM228: 0.1764947869 | CN228: 0.1764947869 | CO228: 0.1764947869 | CP228: 0.1764947869 | CQ228: 0.1764947869 | CR228: 0.1764947869 | CS228: 0.1764947869 | CT228: 0.1764947869 | CU228: 0.1764947869 | CV228: 0.1764947869 | CW228: 0.1764947869 | CX228: 0.1764947869 | CY228: 0.1764947869 | CZ228: =IF(OR(D228=0,CY$210-D$210=0),0,LN(CY228/D228)/(CY$210-D$210)) -> -3.128810342e-16 | DA228: =IF(OR(CT228=0,CY$210-CT$210=0),0,LN(CY228/CT228)/(CY$210-CT$210)) -> 3.552713679e-16
C229: LR | D229: =F50 -> 0.1764947869 | E229: =(1/(1+E321))*E221 -> 0.1764947869 | F229: 0.1764947868 | G229: 0.1764947867 | H229: 0.1764947867 | I229: 0.1764947867 | J229: 0.1764947867 | K229: 0.1764947867 | L229: 0.1764947867 | M229: 0.1764947867 | N229: 0.1764947867 | O229: 0.1764947867 | P229: 0.1764947867 | Q229: 0.1764947867 | R229: 0.1764947868 | S229: 0.1764947868 | T229: 0.1764947868 | U229: 0.1764947868 | V229: 0.1764947868 | W229: 0.1764947868 | X229: 0.1764947868 | Y229: 0.1764947868 | Z229: 0.1764947868 | AA229: 0.1764947869 | AB229: 0.1764947869 | AC229: 0.1764947869 | AD229: 0.1764947869 | AE229: 0.1764947869 | AF229: 0.1764947869 | AG229: 0.1764947869 | AH229: 0.1764947869 | AI229: 0.1764947869 | AJ229: 0.1764947869 | AK229: =(1/(1+AK321))*AK221 -> 0.1764947869 | AL229: 0.1764947869 | AM229: 0.1764947869 | AN229: 0.1764947869 | AO229: 0.1764947869 | AP229: 0.1764947869 | AQ229: 0.1764947869 | AR229: 0.1764947869 | AS229: 0.1764947869 | AT229: 0.1764947868 | AU229: 0.1764947868 | AV229: 0.1764947868 | AW229: 0.1764947868 | AX229: 0.1764947868 | AY229: 0.1764947868 | AZ229: 0.1764947868 | BA229: 0.1764947868 | BB229: 0.1764947868 | BC229: 0.1764947868 | BD229: 0.1764947868 | BE229: 0.1764947868 | BF229: 0.1764947868 | BG229: 0.1764947868 | BH229: 0.1764947868 | BI229: 0.1764947869 | BJ229: 0.1764947869 | BK229: 0.1764947869 | BL229: 0.1764947869 | BM229: 0.1764947869 | BN229: 0.1764947869 | BO229: 0.1764947869 | BP229: 0.1764947869 | BQ229: =(1/(1+BQ321))*BQ221 -> 0.1764947869 | BR229: 0.1764947869 | BS229: 0.1764947869 | BT229: 0.1764947869 | BU229: 0.1764947869 | BV229: 0.1764947869 | BW229: 0.1764947869 | BX229: 0.1764947869 | BY229: 0.1764947869 | BZ229: 0.1764947869 | CA229: 0.1764947869 | CB229: 0.1764947869 | CC229: 0.1764947869 | CD229: 0.1764947869 | CE229: 0.1764947869 | CF229: 0.1764947869 | CG229: 0.1764947869 | CH229: 0.1764947869 | CI229: 0.1764947869 | CJ229: 0.1764947869 | CK229: 0.1764947869 | CL229: 0.1764947869 | CM229: 0.1764947869 | CN229: 0.1764947869 | CO229: 0.1764947869 | CP229: 0.1764947869 | CQ229: 0.1764947869 | CR229: 0.1764947869 | CS229: 0.1764947869 | CT229: 0.1764947869 | CU229: 0.1764947869 | CV229: 0.1764947869 | CW229: 0.1764947869 | CX229: 0.1764947869 | CY229: 0.1764947869 | CZ229: =IF(OR(D229=0,CY$210-D$210=0),0,LN(CY229/D229)/(CY$210-D$210)) -> -3.027880976e-17 | DA229: =IF(OR(CT229=0,CY$210-CT$210=0),0,LN(CY229/CT229)/(CY$210-CT$210)) -> 6.661338148e-16
C232: Real final output, Y | D232: =D219 -> 1 | E232: =E219 -> 1 | F232: 1 | G232: 1 | H232: 1.000000001 | I232: 1.000000001 | J232: 1.000000001 | K232: 1.000000001 | L232: 1.000000001 | M232: 1.000000001 | N232: 1.000000001 | O232: 1.000000001 | P232: 1.000000001 | Q232: 1.000000001 | R232: 1.000000001 | S232: 1 | T232: 1 | U232: 1 | V232: 1 | W232: 1 | X232: 1 | Y232: 1 | Z232: 1 | AA232: 1 | AB232: 1 | AC232: 1 | AD232: 1 | AE232: 1 | AF232: 1 | AG232: 1 | AH232: 1 | AI232: 1 | AJ232: 1 | AK232: 1 | AL232: 1 | AM232: 1 | AN232: 1 | AO232: 1 | AP232: 1 | AQ232: 1 | AR232: 1 | AS232: 1 | AT232: 1 | AU232: 1 | AV232: 1 | AW232: 1 | AX232: 1 | AY232: 1 | AZ232: 1 | BA232: 1 | BB232: 1 | BC232: 1 | BD232: 1 | BE232: 1 | BF232: 1 | BG232: 1 | BH232: 1 | BI232: 1 | BJ232: 1 | BK232: 1 | BL232: 1 | BM232: 1 | BN232: 1 | BO232: 1 | BP232: =BP219 -> 1 | BQ232: 1 | BR232: 1 | BS232: 1 | BT232: 1 | BU232: 1 | BV232: 1 | BW232: 1 | BX232: 1 | BY232: 1 | BZ232: 1 | CA232: 1 | CB232: 1 | CC232: 1 | CD232: 1 | CE232: 1 | CF232: 1 | CG232: 1 | CH232: 1 | CI232: 1 | CJ232: 1 | CK232: 1 | CL232: 1 | CM232: 1 | CN232: 1 | CO232: 1 | CP232: 1 | CQ232: 1 | CR232: 1 | CS232: 1 | CT232: 1 | CU232: 1 | CV232: 1 | CW232: 1 | CX232: 1 | CY232: 1 | CZ232: =IF(OR(D232=0,CY$210-D$210=0),0,LN(CY232/D232)/(CY$210-D$210)) -> -5.607186993e-17 | DA232: =IF(OR(CT232=0,CY$210-CT$210=0),0,LN(CY232/CT232)/(CY$210-CT$210)) -> -6.217248938e-16
C233: Output dedicated to Consumption, C (physical terms) | D233: =D271 -> 0.75 | E233: 0.75 | F233: 0.7500000001 | G233: 0.7500000003 | H233: 0.7500000004 | I233: 0.7500000005 | J233: 0.7500000006 | K233: 0.7500000006 | L233: 0.7500000006 | M233: 0.7500000006 | N233: 0.7500000006 | O233: 0.7500000005 | P233: 0.7500000005 | Q233: 0.7500000004 | R233: 0.7500000004 | S233: 0.7500000003 | T233: 0.7500000003 | U233: 0.7500000002 | V233: 0.7500000002 | W233: 0.7500000002 | X233: 0.7500000001 | Y233: 0.7500000001 | Z233: 0.7500000001 | AA233: 0.75 | AB233: 0.75 | AC233: 0.75 | AD233: 0.75 | AE233: 0.75 | AF233: 0.75 | AG233: 0.75 | AH233: 0.75 | AI233: 0.75 | AJ233: 0.75 | AK233: 0.75 | AL233: 0.75 | AM233: 0.75 | AN233: 0.75 | AO233: 0.75 | AP233: 0.75 | AQ233: 0.75 | AR233: 0.75 | AS233: 0.75 | AT233: 0.75 | AU233: 0.75 | AV233: 0.75 | AW233: 0.75 | AX233: 0.75 | AY233: 0.75 | AZ233: 0.75 | BA233: 0.75 | BB233: 0.75 | BC233: 0.75 | BD233: 0.75 | BE233: 0.75 | BF233: 0.75 | BG233: 0.75 | BH233: 0.75 | BI233: 0.75 | BJ233: 0.75 | BK233: 0.75 | BL233: 0.75 | BM233: 0.75 | BN233: 0.75 | BO233: 0.75 | BP233: =BP271 -> 0.75 | BQ233: 0.75 | BR233: 0.75 | BS233: 0.75 | BT233: 0.75 | BU233: 0.75 | BV233: 0.75 | BW233: 0.75 | BX233: 0.75 | BY233: 0.75 | BZ233: 0.75 | CA233: 0.75 | CB233: 0.75 | CC233: 0.75 | CD233: 0.75 | CE233: 0.75 | CF233: 0.75 | CG233: 0.75 | CH233: 0.75 | CI233: 0.75 | CJ233: 0.75 | CK233: 0.75 | CL233: 0.75 | CM233: 0.75 | CN233: 0.75 | CO233: 0.75 | CP233: 0.75 | CQ233: 0.75 | CR233: 0.75 | CS233: 0.75 | CT233: 0.75 | CU233: 0.75 | CV233: 0.75 | CW233: 0.75 | CX233: 0.75 | CY233: 0.75 | CZ233: =IF(OR(D233=0,CY$210-D$210=0),0,LN(CY233/D233)/(CY$210-D$210)) -> -5.270755773e-17 | DA233: =IF(OR(CT233=0,CY$210-CT$210=0),0,LN(CY233/CT233)/(CY$210-CT$210)) -> -5.329070518e-16
C234: Output dedicated to reinvestment, I (physical terms) | D234: 0.25 | E234: 0.25 | F234: 0.25 | G234: 0.2500000001 | H234: 0.2500000001 | I234: 0.2500000002 | J234: 0.2500000002 | K234: 0.2500000002 | L234: 0.2500000002 | M234: 0.2500000002 | N234: 0.2500000002 | O234: 0.2500000002 | P234: 0.2500000002 | Q234: 0.2500000001 | R234: 0.2500000001 | S234: 0.2500000001 | T234: 0.2500000001 | U234: 0.2500000001 | V234: 0.2500000001 | W234: 0.2500000001 | X234: 0.25 | Y234: 0.25 | Z234: 0.25 | AA234: 0.25 | AB234: 0.25 | AC234: 0.25 | AD234: 0.25 | AE234: 0.25 | AF234: 0.25 | AG234: 0.25 | AH234: 0.25 | AI234: 0.25 | AJ234: 0.25 | AK234: 0.25 | AL234: 0.25 | AM234: 0.25 | AN234: 0.25 | AO234: 0.25 | AP234: 0.25 | AQ234: 0.25 | AR234: 0.25 | AS234: 0.25 | AT234: 0.25 | AU234: 0.25 | AV234: 0.25 | AW234: 0.25 | AX234: 0.25 | AY234: 0.25 | AZ234: 0.25 | BA234: 0.25 | BB234: 0.25 | BC234: 0.25 | BD234: 0.25 | BE234: 0.25 | BF234: 0.25 | BG234: 0.25 | BH234: 0.25 | BI234: 0.25 | BJ234: 0.25 | BK234: 0.25 | BL234: 0.25 | BM234: 0.25 | BN234: 0.25 | BO234: 0.25 | BP234: 0.25 | BQ234: 0.25 | BR234: 0.25 | BS234: 0.25 | BT234: 0.25 | BU234: 0.25 | BV234: 0.25 | BW234: 0.25 | BX234: 0.25 | BY234: 0.25 | BZ234: 0.25 | CA234: 0.25 | CB234: 0.25 | CC234: 0.25 | CD234: 0.25 | CE234: 0.25 | CF234: 0.25 | CG234: 0.25 | CH234: 0.25 | CI234: 0.25 | CJ234: 0.25 | CK234: 0.25 | CL234: 0.25 | CM234: 0.25 | CN234: 0.25 | CO234: 0.25 | CP234: 0.25 | CQ234: 0.25 | CR234: 0.25 | CS234: 0.25 | CT234: 0.25 | CU234: 0.25 | CV234: 0.25 | CW234: 0.25 | CX234: 0.25 | CY234: 0.25 | CZ234: =IF(OR(D234=0,CY$210-D$210=0),0,LN(CY234/D234)/(CY$210-D$210)) -> -5.158612034e-17 | DA234: =IF(OR(CT234=0,CY$210-CT$210=0),0,LN(CY234/CT234)/(CY$210-CT$210)) -> -5.329070518e-16
C235: Surplus Production | D235: =D232-SUM(D233:D234) -> 0 | E235: 0 | F235: 0 | G235: 0 | H235: 0 | I235: 0 | J235: 0 | K235: 0 | L235: 0 | M235: 0 | N235: 0 | O235: 0 | P235: 0 | Q235: 0 | R235: 0 | S235: 0 | T235: 0 | U235: 0 | V235: 0 | W235: 0 | X235: 0 | Y235: 0 | Z235: 0 | AA235: 0 | AB235: 0 | AC235: 0 | AD235: 0 | AE235: 0 | AF235: 0 | AG235: 0 | AH235: 0 | AI235: 0 | AJ235: 0 | AK235: 0 | AL235: 0 | AM235: 0 | AN235: 0 | AO235: 0 | AP235: 0 | AQ235: 0 | AR235: 0 | AS235: 0 | AT235: 0 | AU235: 0 | AV235: 0 | AW235: 0 | AX235: 0 | AY235: 0 | AZ235: 0 | BA235: 0 | BB235: 0 | BC235: 0 | BD235: 0 | BE235: 0 | BF235: 0 | BG235: 0 | BH235: 0 | BI235: 0 | BJ235: 0 | BK235: 0 | BL235: 0 | BM235: 0 | BN235: 0 | BO235: 0 | BP235: =BP232-SUM(BP233:BP234) -> 0 | BQ235: 0 | BR235: 0 | BS235: 0 | BT235: 0 | BU235: 0 | BV235: 0 | BW235: 0 | BX235: 0 | BY235: 0 | BZ235: 0 | CA235: 0 | CB235: 0 | CC235: -8.881784197e-16 | CD235: 0 | CE235: 0 | CF235: 0 | CG235: 0 | CH235: 0 | CI235: 0 | CJ235: -1.110223025e-15 | CK235: 0 | CL235: 0 | CM235: 0 | CN235: 0 | CO235: -8.881784197e-16 | CP235: 0 | CQ235: -1.110223025e-15 | CR235: 0 | CS235: 0 | CT235: 0 | CU235: 0 | CV235: =CV232-SUM(CV233:CV234) -> 0 | CW235: =CW232-SUM(CW233:CW234) -> -8.881784197e-16 | CX235: =CX232-SUM(CX233:CX234) -> 0 | CY235: =CY232-SUM(CY233:CY234) -> 0 | CZ235: =IF(OR(D235=0,CY235/D235=0,CY$210-D$210=0),0,LN(CY235/D235)/(CY$210-D$210)) ->  | DA235: =IF(OR(CT235=0,CY$210-CT$210=0),0,LN(CY235/CT235)/(CY$210-CT$210)) -> 0
C237: Resources dedicated directly to value-adding production | D237: =D225+D226 -> 1.647010426 | E237: 1.647010426 | F237: 1.647010426 | G237: 1.647010427 | H237: 1.647010427 | I237: 1.647010427 | J237: 1.647010427 | K237: 1.647010427 | L237: 1.647010427 | M237: 1.647010427 | N237: 1.647010427 | O237: 1.647010427 | P237: 1.647010427 | Q237: 1.647010427 | R237: 1.647010427 | S237: 1.647010427 | T237: 1.647010427 | U237: 1.647010427 | V237: 1.647010427 | W237: 1.647010427 | X237: 1.647010427 | Y237: 1.647010427 | Z237: 1.647010427 | AA237: 1.647010426 | AB237: 1.647010426 | AC237: 1.647010426 | AD237: 1.647010426 | AE237: 1.647010426 | AF237: 1.647010426 | AG237: 1.647010426 | AH237: 1.647010426 | AI237: 1.647010426 | AJ237: 1.647010426 | AK237: 1.647010426 | AL237: 1.647010426 | AM237: 1.647010426 | AN237: 1.647010426 | AO237: 1.647010426 | AP237: 1.647010426 | AQ237: 1.647010426 | AR237: 1.647010426 | AS237: 1.647010426 | AT237: 1.647010426 | AU237: 1.647010426 | AV237: 1.647010426 | AW237: 1.647010426 | AX237: 1.647010426 | AY237: 1.647010426 | AZ237: 1.647010426 | BA237: 1.647010426 | BB237: 1.647010426 | BC237: 1.647010426 | BD237: 1.647010426 | BE237: 1.647010426 | BF237: 1.647010426 | BG237: 1.647010426 | BH237: 1.647010426 | BI237: 1.647010426 | BJ237: 1.647010426 | BK237: 1.647010426 | BL237: 1.647010426 | BM237: 1.647010426 | BN237: 1.647010426 | BO237: 1.647010426 | BP237: =BP225+BP226 -> 1.647010426 | BQ237: 1.647010426 | BR237: 1.647010426 | BS237: 1.647010426 | BT237: 1.647010426 | BU237: 1.647010426 | BV237: 1.647010426 | BW237: 1.647010426 | BX237: 1.647010426 | BY237: 1.647010426 | BZ237: 1.647010426 | CA237: 1.647010426 | CB237: 1.647010426 | CC237: 1.647010426 | CD237: 1.647010426 | CE237: 1.647010426 | CF237: 1.647010426 | CG237: 1.647010426 | CH237: 1.647010426 | CI237: 1.647010426 | CJ237: 1.647010426 | CK237: 1.647010426 | CL237: 1.647010426 | CM237: 1.647010426 | CN237: 1.647010426 | CO237: 1.647010426 | CP237: 1.647010426 | CQ237: 1.647010426 | CR237: 1.647010426 | CS237: 1.647010426 | CT237: 1.647010426 | CU237: 1.647010426 | CV237: 1.647010426 | CW237: 1.647010426 | CX237: 1.647010426 | CY237: 1.647010426 | CZ237: =IF(OR(D237=0,CY$210-D$210=0),0,LN(CY237/D237)/(CY$210-D$210)) -> -1.345724878e-16 | DA237: =IF(OR(CT237=0,CY$210-CT$210=0),0,LN(CY237/CT237)/(CY$210-CT$210)) -> -3.552713679e-16
C238: Resources dedicated to raw resource extraction | D238: =D228+D229 -> 0.3529895737 | E238: 0.3529895737 | F238: 0.3529895736 | G238: 0.3529895735 | H238: 0.3529895734 | I238: 0.3529895734 | J238: 0.3529895734 | K238: 0.3529895734 | L238: 0.3529895734 | M238: 0.3529895735 | N238: 0.3529895735 | O238: 0.3529895735 | P238: 0.3529895736 | Q238: 0.3529895736 | R238: 0.3529895736 | S238: 0.3529895737 | T238: 0.3529895737 | U238: 0.3529895737 | V238: 0.3529895737 | W238: 0.3529895737 | X238: 0.3529895737 | Y238: 0.3529895737 | Z238: 0.3529895737 | AA238: 0.3529895737 | AB238: 0.3529895737 | AC238: 0.3529895737 | AD238: 0.3529895737 | AE238: 0.3529895737 | AF238: 0.3529895737 | AG238: 0.3529895737 | AH238: 0.3529895737 | AI238: 0.3529895737 | AJ238: 0.3529895737 | AK238: 0.3529895737 | AL238: 0.3529895737 | AM238: 0.3529895737 | AN238: 0.3529895737 | AO238: 0.3529895737 | AP238: 0.3529895737 | AQ238: 0.3529895737 | AR238: 0.3529895737 | AS238: 0.3529895737 | AT238: 0.3529895737 | AU238: 0.3529895737 | AV238: 0.3529895737 | AW238: 0.3529895737 | AX238: 0.3529895737 | AY238: 0.3529895737 | AZ238: 0.3529895737 | BA238: 0.3529895737 | BB238: 0.3529895737 | BC238: 0.3529895737 | BD238: 0.3529895737 | BE238: 0.3529895737 | BF238: 0.3529895737 | BG238: 0.3529895737 | BH238: 0.3529895737 | BI238: 0.3529895737 | BJ238: 0.3529895737 | BK238: 0.3529895737 | BL238: 0.3529895737 | BM238: 0.3529895737 | BN238: 0.3529895737 | BO238: 0.3529895737 | BP238: =BP228+BP229 -> 0.3529895737 | BQ238: 0.3529895737 | BR238: 0.3529895737 | BS238: 0.3529895737 | BT238: 0.3529895737 | BU238: 0.3529895737 | BV238: 0.3529895737 | BW238: 0.3529895737 | BX238: 0.3529895737 | BY238: 0.3529895737 | BZ238: 0.3529895737 | CA238: 0.3529895737 | CB238: 0.3529895737 | CC238: 0.3529895737 | CD238: 0.3529895737 | CE238: 0.3529895737 | CF238: 0.3529895737 | CG238: 0.3529895737 | CH238: 0.3529895737 | CI238: 0.3529895737 | CJ238: 0.3529895737 | CK238: 0.3529895737 | CL238: 0.3529895737 | CM238: 0.3529895737 | CN238: 0.3529895737 | CO238: 0.3529895737 | CP238: 0.3529895737 | CQ238: 0.3529895737 | CR238: 0.3529895737 | CS238: 0.3529895737 | CT238: 0.3529895737 | CU238: 0.3529895737 | CV238: 0.3529895737 | CW238: 0.3529895737 | CX238: 0.3529895737 | CY238: 0.3529895737 | CZ238: =IF(OR(D238=0,CY$210-D$210=0),0,LN(CY238/D238)/(CY$210-D$210)) -> -1.71579922e-16 | DA238: =IF(OR(CT238=0,CY$210-CT$210=0),0,LN(CY238/CT238)/(CY$210-CT$210)) -> 4.884981308e-16
C239: Total resources dedicated to production | D239: =SUM(D237:D238) -> 2 | E239: 2 | F239: 2 | G239: 2 | H239: 2 | I239: 2 | J239: 2 | K239: 2 | L239: 2.000000001 | M239: 2.000000001 | N239: 2.000000001 | O239: 2.000000001 | P239: 2.000000001 | Q239: 2.000000001 | R239: 2.000000001 | S239: 2.000000001 | T239: 2.000000001 | U239: 2.000000001 | V239: 2 | W239: 2 | X239: 2 | Y239: 2 | Z239: 2 | AA239: 2 | AB239: 2 | AC239: 2 | AD239: 2 | AE239: 2 | AF239: 2 | AG239: 2 | AH239: 2 | AI239: 2 | AJ239: 2 | AK239: 2 | AL239: 2 | AM239: 2 | AN239: 2 | AO239: 2 | AP239: 2 | AQ239: 2 | AR239: 2 | AS239: 2 | AT239: 2 | AU239: 2 | AV239: 2 | AW239: 2 | AX239: 2 | AY239: 2 | AZ239: 2 | BA239: 2 | BB239: 2 | BC239: 2 | BD239: 2 | BE239: 2 | BF239: 2 | BG239: 2 | BH239: 2 | BI239: 2 | BJ239: 2 | BK239: 2 | BL239: 2 | BM239: 2 | BN239: 2 | BO239: 2 | BP239: =SUM(BP237:BP238) -> 2 | BQ239: 2 | BR239: 2 | BS239: 2 | BT239: 2 | BU239: 2 | BV239: 2 | BW239: 2 | BX239: 2 | BY239: 2 | BZ239: 2 | CA239: 2 | CB239: 2 | CC239: 2 | CD239: 2 | CE239: 2 | CF239: 2 | CG239: 2 | CH239: 2 | CI239: 2 | CJ239: 2 | CK239: 2 | CL239: 2 | CM239: 2 | CN239: 2 | CO239: 2 | CP239: 2 | CQ239: 2 | CR239: 2 | CS239: 2 | CT239: 2 | CU239: 2 | CV239: =SUM(CV237:CV238) -> 2 | CW239: =SUM(CW237:CW238) -> 2 | CX239: =SUM(CX237:CX238) -> 2 | CY239: =SUM(CY237:CY238) -> 2 | CZ239: =LN(CY239/D239)/(CY$210-D$210) -> -1.413011122e-16 | DA239: =IF(OR(CT239=0,CY$210-CT$210=0),0,LN(CY239/CT239)/(CY$210-CT$210)) -> -1.998401444e-16
C241: Factor Value Shares
D242: =D$210 -> 1 | E242: =E$210 -> 2 | F242: 3 | G242: 4 | H242: 5 | I242: 6 | J242: 7 | K242: 8 | L242: 9 | M242: 10 | N242: 11 | O242: 12 | P242: 13 | Q242: 14 | R242: 15 | S242: 16 | T242: 17 | U242: 18 | V242: 19 | W242: 20 | X242: 21 | Y242: 22 | Z242: 23 | AA242: 24 | AB242: 25 | AC242: 26 | AD242: 27 | AE242: 28 | AF242: 29 | AG242: 30 | AH242: 31 | AI242: 32 | AJ242: 33 | AK242: 34 | AL242: 35 | AM242: 36 | AN242: 37 | AO242: 38 | AP242: 39 | AQ242: 40 | AR242: 41 | AS242: 42 | AT242: 43 | AU242: 44 | AV242: 45 | AW242: 46 | AX242: 47 | AY242: 48 | AZ242: 49 | BA242: 50 | BB242: 51 | BC242: 52 | BD242: 53 | BE242: 54 | BF242: 55 | BG242: 56 | BH242: 57 | BI242: 58 | BJ242: 59 | BK242: 60 | BL242: 61 | BM242: 62 | BN242: 63 | BO242: 64 | BP242: 65 | BQ242: =BQ$210 -> 66 | BR242: 67 | BS242: 68 | BT242: 69 | BU242: 70 | BV242: 71 | BW242: 72 | BX242: 73 | BY242: 74 | BZ242: 75 | CA242: 76 | CB242: 77 | CC242: 78 | CD242: 79 | CE242: 80 | CF242: 81 | CG242: 82 | CH242: 83 | CI242: 84 | CJ242: 85 | CK242: 86 | CL242: 87 | CM242: 88 | CN242: 89 | CO242: 90 | CP242: 91 | CQ242: 92 | CR242: 93 | CS242: 94 | CT242: 95 | CU242: 96 | CV242: 97 | CW242: 98 | CX242: 99 | CY242: 100
C243: pKK | D243: =D212*D223 -> 0.25 | E243: 0.25 | F243: 0.25 | G243: 0.25 | H243: 0.25 | I243: 0.25 | J243: 0.25 | K243: 0.25 | L243: 0.25 | M243: 0.25 | N243: 0.25 | O243: 0.25 | P243: 0.25 | Q243: 0.25 | R243: 0.25 | S243: 0.25 | T243: 0.25 | U243: 0.25 | V243: 0.25 | W243: 0.25 | X243: 0.25 | Y243: 0.25 | Z243: 0.25 | AA243: 0.25 | AB243: 0.25 | AC243: 0.25 | AD243: 0.25 | AE243: 0.25 | AF243: 0.25 | AG243: 0.25 | AH243: 0.25 | AI243: 0.25 | AJ243: =AJ212*AJ223 -> 0.25 | AK243: 0.25 | AL243: 0.25 | AM243: 0.25 | AN243: 0.25 | AO243: 0.25 | AP243: 0.25 | AQ243: 0.25 | AR243: 0.25 | AS243: 0.25 | AT243: 0.25 | AU243: 0.25 | AV243: 0.25 | AW243: 0.25 | AX243: 0.25 | AY243: 0.25 | AZ243: 0.25 | BA243: 0.25 | BB243: 0.25 | BC243: 0.25 | BD243: 0.25 | BE243: 0.25 | BF243: 0.25 | BG243: 0.25 | BH243: 0.25 | BI243: 0.25 | BJ243: 0.25 | BK243: 0.25 | BL243: 0.25 | BM243: 0.25 | BN243: 0.25 | BO243: 0.25 | BP243: =BP212*BP223 -> 0.25 | BQ243: 0.25 | BR243: 0.25 | BS243: 0.25 | BT243: 0.25 | BU243: 0.25 | BV243: 0.25 | BW243: 0.25 | BX243: 0.25 | BY243: 0.25 | BZ243: 0.25 | CA243: 0.25 | CB243: 0.25 | CC243: 0.25 | CD243: 0.25 | CE243: 0.25 | CF243: 0.25 | CG243: 0.25 | CH243: 0.25 | CI243: 0.25 | CJ243: 0.25 | CK243: 0.25 | CL243: 0.25 | CM243: 0.25 | CN243: 0.25 | CO243: 0.25 | CP243: 0.25 | CQ243: 0.25 | CR243: 0.25 | CS243: 0.25 | CT243: 0.25 | CU243: 0.25 | CV243: 0.25 | CW243: 0.25 | CX243: 0.25 | CY243: 0.25 | CZ243: =IF(OR(D243=0,CY$210-D$210=0),0,LN(CY243/D243)/(CY$210-D$210)) -> -9.195786669e-17 | DA243: =IF(OR(CT243=0,CY$210-CT$210=0),0,LN(CY243/CT243)/(CY$210-CT$210)) -> -4.884981308e-16
C244: pLL | D244: =D213*D221 -> 0.75 | E244: 0.75 | F244: 0.75 | G244: 0.75 | H244: 0.75 | I244: 0.75 | J244: 0.75 | K244: 0.7500000001 | L244: 0.7500000001 | M244: 0.7500000001 | N244: 0.7500000001 | O244: 0.7500000001 | P244: 0.7500000001 | Q244: 0.7500000001 | R244: 0.7500000001 | S244: 0.7500000001 | T244: 0.7500000001 | U244: 0.7500000001 | V244: 0.7500000001 | W244: 0.7500000001 | X244: 0.7500000001 | Y244: 0.7500000001 | Z244: 0.7500000001 | AA244: 0.7500000001 | AB244: 0.75 | AC244: 0.75 | AD244: 0.75 | AE244: 0.75 | AF244: 0.75 | AG244: 0.75 | AH244: 0.75 | AI244: 0.75 | AJ244: =AJ213*AJ221 -> 0.75 | AK244: 0.75 | AL244: 0.75 | AM244: 0.75 | AN244: 0.75 | AO244: 0.75 | AP244: 0.75 | AQ244: 0.75 | AR244: 0.75 | AS244: 0.75 | AT244: 0.75 | AU244: 0.75 | AV244: 0.75 | AW244: 0.75 | AX244: 0.75 | AY244: 0.75 | AZ244: 0.75 | BA244: 0.75 | BB244: 0.75 | BC244: 0.75 | BD244: 0.75 | BE244: 0.75 | BF244: 0.75 | BG244: 0.75 | BH244: 0.75 | BI244: 0.75 | BJ244: 0.75 | BK244: 0.75 | BL244: 0.75 | BM244: 0.75 | BN244: 0.75 | BO244: 0.75 | BP244: =BP213*BP221 -> 0.75 | BQ244: 0.75 | BR244: 0.75 | BS244: 0.75 | BT244: 0.75 | BU244: 0.75 | BV244: 0.75 | BW244: 0.75 | BX244: 0.75 | BY244: 0.75 | BZ244: 0.75 | CA244: 0.75 | CB244: 0.75 | CC244: 0.75 | CD244: 0.75 | CE244: 0.75 | CF244: 0.75 | CG244: 0.75 | CH244: 0.75 | CI244: 0.75 | CJ244: 0.75 | CK244: 0.75 | CL244: 0.75 | CM244: 0.75 | CN244: 0.75 | CO244: 0.75 | CP244: 0.75 | CQ244: 0.75 | CR244: 0.75 | CS244: 0.75 | CT244: 0.75 | CU244: 0.75 | CV244: 0.75 | CW244: 0.75 | CX244: 0.75 | CY244: 0.75 | CZ244: =IF(OR(D244=0,CY$210-D$210=0),0,LN(CY244/D244)/(CY$210-D$210)) -> -9.420074148e-17 | DA244: =IF(OR(CT244=0,CY$210-CT$210=0),0,LN(CY244/CT244)/(CY$210-CT$210)) -> -4.662936703e-16
C246: pKKX | D246: =D212*D225 -> 0.2058763033 | E246: 0.2058763033 | F246: 0.2058763033 | G246: 0.2058763033 | H246: 0.2058763033 | I246: 0.2058763034 | J246: 0.2058763034 | K246: 0.2058763034 | L246: 0.2058763034 | M246: 0.2058763034 | N246: 0.2058763034 | O246: 0.2058763034 | P246: 0.2058763034 | Q246: 0.2058763033 | R246: 0.2058763033 | S246: 0.2058763033 | T246: 0.2058763033 | U246: 0.2058763033 | V246: 0.2058763033 | W246: 0.2058763033 | X246: 0.2058763033 | Y246: 0.2058763033 | Z246: 0.2058763033 | AA246: 0.2058763033 | AB246: 0.2058763033 | AC246: 0.2058763033 | AD246: 0.2058763033 | AE246: 0.2058763033 | AF246: 0.2058763033 | AG246: 0.2058763033 | AH246: 0.2058763033 | AI246: 0.2058763033 | AJ246: =AJ212*AJ225 -> 0.2058763033 | AK246: 0.2058763033 | AL246: 0.2058763033 | AM246: 0.2058763033 | AN246: 0.2058763033 | AO246: 0.2058763033 | AP246: 0.2058763033 | AQ246: 0.2058763033 | AR246: 0.2058763033 | AS246: 0.2058763033 | AT246: 0.2058763033 | AU246: 0.2058763033 | AV246: 0.2058763033 | AW246: 0.2058763033 | AX246: 0.2058763033 | AY246: 0.2058763033 | AZ246: 0.2058763033 | BA246: 0.2058763033 | BB246: 0.2058763033 | BC246: 0.2058763033 | BD246: 0.2058763033 | BE246: 0.2058763033 | BF246: 0.2058763033 | BG246: 0.2058763033 | BH246: 0.2058763033 | BI246: 0.2058763033 | BJ246: 0.2058763033 | BK246: 0.2058763033 | BL246: 0.2058763033 | BM246: 0.2058763033 | BN246: 0.2058763033 | BO246: 0.2058763033 | BP246: =BP212*BP225 -> 0.2058763033 | BQ246: 0.2058763033 | BR246: 0.2058763033 | BS246: 0.2058763033 | BT246: 0.2058763033 | BU246: 0.2058763033 | BV246: 0.2058763033 | BW246: 0.2058763033 | BX246: 0.2058763033 | BY246: 0.2058763033 | BZ246: 0.2058763033 | CA246: 0.2058763033 | CB246: 0.2058763033 | CC246: 0.2058763033 | CD246: 0.2058763033 | CE246: 0.2058763033 | CF246: 0.2058763033 | CG246: 0.2058763033 | CH246: 0.2058763033 | CI246: 0.2058763033 | CJ246: 0.2058763033 | CK246: 0.2058763033 | CL246: 0.2058763033 | CM246: 0.2058763033 | CN246: 0.2058763033 | CO246: 0.2058763033 | CP246: 0.2058763033 | CQ246: 0.2058763033 | CR246: 0.2058763033 | CS246: 0.2058763033 | CT246: 0.2058763033 | CU246: 0.2058763033 | CV246: 0.2058763033 | CW246: 0.2058763033 | CX246: 0.2058763033 | CY246: 0.2058763033 | CZ246: =IF(OR(D246=0,CY$210-D$210=0),0,LN(CY246/D246)/(CY$210-D$210)) -> -8.635067969e-17 | DA246: =IF(OR(CT246=0,CY$210-CT$210=0),0,LN(CY246/CT246)/(CY$210-CT$210)) -> -6.439293543e-16
C247: pLLX | D247: =D213*D226 -> 0.6176289099 | E247: 0.6176289099 | F247: 0.6176289099 | G247: 0.6176289099 | H247: 0.61762891 | I247: 0.61762891 | J247: 0.61762891 | K247: 0.61762891 | L247: 0.6176289101 | M247: 0.6176289101 | N247: 0.6176289101 | O247: 0.6176289101 | P247: 0.6176289101 | Q247: 0.6176289101 | R247: 0.61762891 | S247: 0.61762891 | T247: 0.61762891 | U247: 0.61762891 | V247: 0.61762891 | W247: 0.61762891 | X247: 0.6176289099 | Y247: 0.6176289099 | Z247: 0.6176289099 | AA247: 0.6176289099 | AB247: 0.6176289099 | AC247: 0.6176289099 | AD247: 0.6176289099 | AE247: 0.6176289099 | AF247: 0.6176289099 | AG247: 0.6176289099 | AH247: 0.6176289099 | AI247: 0.6176289099 | AJ247: =AJ213*AJ226 -> 0.6176289099 | AK247: 0.6176289099 | AL247: 0.6176289099 | AM247: 0.6176289099 | AN247: 0.6176289099 | AO247: 0.6176289099 | AP247: 0.6176289099 | AQ247: 0.6176289099 | AR247: 0.6176289099 | AS247: 0.6176289099 | AT247: 0.6176289099 | AU247: 0.6176289099 | AV247: 0.6176289099 | AW247: 0.6176289099 | AX247: 0.6176289099 | AY247: 0.6176289099 | AZ247: 0.6176289099 | BA247: 0.6176289099 | BB247: 0.6176289099 | BC247: 0.6176289099 | BD247: 0.6176289099 | BE247: 0.6176289099 | BF247: 0.6176289099 | BG247: 0.6176289099 | BH247: 0.6176289099 | BI247: 0.6176289099 | BJ247: 0.6176289099 | BK247: 0.6176289099 | BL247: 0.6176289099 | BM247: 0.6176289099 | BN247: 0.6176289099 | BO247: 0.6176289099 | BP247: =BP213*BP226 -> 0.6176289099 | BQ247: 0.6176289099 | BR247: 0.6176289099 | BS247: 0.6176289099 | BT247: 0.6176289099 | BU247: 0.6176289099 | BV247: 0.6176289099 | BW247: 0.6176289099 | BX247: 0.6176289099 | BY247: 0.6176289099 | BZ247: 0.6176289099 | CA247: 0.6176289099 | CB247: 0.6176289099 | CC247: 0.6176289099 | CD247: 0.6176289099 | CE247: 0.6176289099 | CF247: 0.6176289099 | CG247: 0.6176289099 | CH247: 0.6176289099 | CI247: 0.6176289099 | CJ247: 0.6176289099 | CK247: 0.6176289099 | CL247: 0.6176289099 | CM247: 0.6176289099 | CN247: 0.6176289099 | CO247: 0.6176289099 | CP247: 0.6176289099 | CQ247: 0.6176289099 | CR247: 0.6176289099 | CS247: 0.6176289099 | CT247: 0.6176289099 | CU247: 0.6176289099 | CV247: 0.6176289099 | CW247: 0.6176289099 | CX247: 0.6176289099 | CY247: 0.6176289099 | CZ247: =IF(OR(D247=0,CY$210-D$210=0),0,LN(CY247/D247)/(CY$210-D$210)) -> -8.747211709e-17 | DA247: =IF(OR(CT247=0,CY$210-CT$210=0),0,LN(CY247/CT247)/(CY$210-CT$210)) -> -6.439293543e-16
C249: pKKR | D249: =D212*D228 -> 0.04412369671 | E249: 0.04412369671 | F249: 0.0441236967 | G249: 0.04412369669 | H249: 0.04412369668 | I249: 0.04412369668 | J249: 0.04412369667 | K249: 0.04412369667 | L249: 0.04412369667 | M249: 0.04412369668 | N249: 0.04412369668 | O249: 0.04412369668 | P249: 0.04412369669 | Q249: 0.04412369669 | R249: 0.0441236967 | S249: 0.0441236967 | T249: 0.0441236967 | U249: 0.0441236967 | V249: 0.04412369671 | W249: 0.04412369671 | X249: 0.04412369671 | Y249: 0.04412369671 | Z249: 0.04412369671 | AA249: 0.04412369671 | AB249: 0.04412369671 | AC249: 0.04412369671 | AD249: 0.04412369671 | AE249: 0.04412369671 | AF249: 0.04412369671 | AG249: 0.04412369671 | AH249: 0.04412369671 | AI249: 0.04412369671 | AJ249: =AJ212*AJ228 -> 0.04412369671 | AK249: 0.04412369671 | AL249: 0.04412369671 | AM249: 0.04412369671 | AN249: 0.04412369671 | AO249: 0.04412369671 | AP249: 0.04412369671 | AQ249: 0.04412369671 | AR249: 0.04412369671 | AS249: 0.04412369671 | AT249: 0.04412369671 | AU249: 0.04412369671 | AV249: 0.04412369671 | AW249: 0.04412369671 | AX249: 0.04412369671 | AY249: 0.04412369671 | AZ249: 0.04412369671 | BA249: 0.04412369671 | BB249: 0.04412369671 | BC249: 0.04412369671 | BD249: 0.04412369671 | BE249: 0.04412369671 | BF249: 0.04412369671 | BG249: 0.04412369671 | BH249: 0.04412369671 | BI249: 0.04412369671 | BJ249: 0.04412369671 | BK249: 0.04412369671 | BL249: 0.04412369671 | BM249: 0.04412369671 | BN249: 0.04412369671 | BO249: 0.04412369671 | BP249: =BP212*BP228 -> 0.04412369671 | BQ249: 0.04412369671 | BR249: 0.04412369671 | BS249: 0.04412369671 | BT249: 0.04412369671 | BU249: 0.04412369671 | BV249: 0.04412369671 | BW249: 0.04412369671 | BX249: 0.04412369671 | BY249: 0.04412369671 | BZ249: 0.04412369671 | CA249: 0.04412369671 | CB249: 0.04412369671 | CC249: 0.04412369671 | CD249: 0.04412369671 | CE249: 0.04412369671 | CF249: 0.04412369671 | CG249: 0.04412369671 | CH249: 0.04412369671 | CI249: 0.04412369671 | CJ249: 0.04412369671 | CK249: 0.04412369671 | CL249: 0.04412369671 | CM249: 0.04412369671 | CN249: 0.04412369671 | CO249: 0.04412369671 | CP249: 0.04412369671 | CQ249: 0.04412369671 | CR249: 0.04412369671 | CS249: 0.04412369671 | CT249: 0.04412369671 | CU249: 0.04412369671 | CV249: 0.04412369671 | CW249: 0.04412369671 | CX249: 0.04412369671 | CY249: 0.04412369671 | CZ249: =IF(OR(D249=0,CY$210-D$210=0),0,LN(CY249/D249)/(CY$210-D$210)) -> -1.222366764e-16 | DA249: =IF(OR(CT249=0,CY$210-CT$210=0),0,LN(CY249/CT249)/(CY$210-CT$210)) -> 2.220446049e-16
C250: pLLR | D250: =D213*D229 -> 0.1323710901 | E250: 0.1323710901 | F250: 0.1323710901 | G250: 0.1323710901 | H250: 0.13237109 | I250: 0.13237109 | J250: 0.13237109 | K250: 0.13237109 | L250: 0.13237109 | M250: 0.13237109 | N250: 0.13237109 | O250: 0.13237109 | P250: 0.1323710901 | Q250: 0.1323710901 | R250: 0.1323710901 | S250: 0.1323710901 | T250: 0.1323710901 | U250: 0.1323710901 | V250: 0.1323710901 | W250: 0.1323710901 | X250: 0.1323710901 | Y250: 0.1323710901 | Z250: 0.1323710901 | AA250: 0.1323710901 | AB250: 0.1323710901 | AC250: 0.1323710901 | AD250: 0.1323710901 | AE250: 0.1323710901 | AF250: 0.1323710901 | AG250: 0.1323710901 | AH250: 0.1323710901 | AI250: 0.1323710901 | AJ250: =AJ213*AJ229 -> 0.1323710901 | AK250: 0.1323710901 | AL250: 0.1323710901 | AM250: 0.1323710901 | AN250: 0.1323710901 | AO250: 0.1323710901 | AP250: 0.1323710901 | AQ250: 0.1323710901 | AR250: 0.1323710901 | AS250: 0.1323710901 | AT250: 0.1323710901 | AU250: 0.1323710901 | AV250: 0.1323710901 | AW250: 0.1323710901 | AX250: 0.1323710901 | AY250: 0.1323710901 | AZ250: 0.1323710901 | BA250: 0.1323710901 | BB250: 0.1323710901 | BC250: 0.1323710901 | BD250: 0.1323710901 | BE250: 0.1323710901 | BF250: 0.1323710901 | BG250: 0.1323710901 | BH250: 0.1323710901 | BI250: 0.1323710901 | BJ250: 0.1323710901 | BK250: 0.1323710901 | BL250: 0.1323710901 | BM250: 0.1323710901 | BN250: 0.1323710901 | BO250: 0.1323710901 | BP250: =BP213*BP229 -> 0.1323710901 | BQ250: 0.1323710901 | BR250: 0.1323710901 | BS250: 0.1323710901 | BT250: 0.1323710901 | BU250: 0.1323710901 | BV250: 0.1323710901 | BW250: 0.1323710901 | BX250: 0.1323710901 | BY250: 0.1323710901 | BZ250: 0.1323710901 | CA250: 0.1323710901 | CB250: 0.1323710901 | CC250: 0.1323710901 | CD250: 0.1323710901 | CE250: 0.1323710901 | CF250: 0.1323710901 | CG250: 0.1323710901 | CH250: 0.1323710901 | CI250: 0.1323710901 | CJ250: 0.1323710901 | CK250: 0.1323710901 | CL250: 0.1323710901 | CM250: 0.1323710901 | CN250: 0.1323710901 | CO250: 0.1323710901 | CP250: 0.1323710901 | CQ250: 0.1323710901 | CR250: 0.1323710901 | CS250: 0.1323710901 | CT250: 0.1323710901 | CU250: 0.1323710901 | CV250: 0.1323710901 | CW250: 0.1323710901 | CX250: 0.1323710901 | CY250: 0.1323710901 | CZ250: =IF(OR(D250=0,CY$210-D$210=0),0,LN(CY250/D250)/(CY$210-D$210)) -> -1.244795512e-16 | DA250: =IF(OR(CT250=0,CY$210-CT$210=0),0,LN(CY250/CT250)/(CY$210-CT$210)) -> 2.220446049e-16
C252: Wealth, Consumption, Savings and Leisure
C253: Utility function dynamic parameter multipliers | D253: =D$210 -> 1 | E253: =E$210 -> 2 | F253: 3 | G253: 4 | H253: 5 | I253: 6 | J253: 7 | K253: 8 | L253: 9 | M253: 10 | N253: 11 | O253: 12 | P253: 13 | Q253: 14 | R253: 15 | S253: 16 | T253: 17 | U253: 18 | V253: 19 | W253: 20 | X253: 21 | Y253: 22 | Z253: 23 | AA253: 24 | AB253: 25 | AC253: 26 | AD253: 27 | AE253: 28 | AF253: 29 | AG253: 30 | AH253: 31 | AI253: 32 | AJ253: 33 | AK253: 34 | AL253: 35 | AM253: 36 | AN253: 37 | AO253: 38 | AP253: 39 | AQ253: 40 | AR253: 41 | AS253: 42 | AT253: 43 | AU253: 44 | AV253: 45 | AW253: 46 | AX253: 47 | AY253: 48 | AZ253: 49 | BA253: 50 | BB253: 51 | BC253: 52 | BD253: 53 | BE253: 54 | BF253: 55 | BG253: 56 | BH253: 57 | BI253: 58 | BJ253: 59 | BK253: 60 | BL253: 61 | BM253: 62 | BN253: 63 | BO253: 64 | BP253: 65 | BQ253: =BQ$210 -> 66 | BR253: 67 | BS253: 68 | BT253: 69 | BU253: 70 | BV253: 71 | BW253: 72 | BX253: 73 | BY253: 74 | BZ253: 75 | CA253: 76 | CB253: 77 | CC253: 78 | CD253: 79 | CE253: 80 | CF253: 81 | CG253: 82 | CH253: 83 | CI253: 84 | CJ253: 85 | CK253: 86 | CL253: 87 | CM253: 88 | CN253: 89 | CO253: 90 | CP253: 91 | CQ253: 92 | CR253: 93 | CS253: 94 | CT253: 95 | CU253: 96 | CV253: 97 | CW253: 98 | CX253: 99 | CY253: 100
C254: Gamma | D254: =gamma -> 0.3 | E254: =gamma*E260 -> 0.3 | F254: 0.3 | G254: 0.3 | H254: 0.3 | I254: 0.3 | J254: 0.3 | K254: 0.3 | L254: 0.3 | M254: 0.3 | N254: 0.3 | O254: 0.3 | P254: 0.3 | Q254: 0.3 | R254: 0.3 | S254: 0.3 | T254: 0.3 | U254: 0.3 | V254: 0.3 | W254: 0.3 | X254: 0.3 | Y254: 0.3 | Z254: 0.3 | AA254: 0.3 | AB254: 0.3 | AC254: 0.3 | AD254: 0.3 | AE254: 0.3 | AF254: 0.3 | AG254: 0.3 | AH254: 0.3 | AI254: 0.3 | AJ254: 0.3 | AK254: =gamma*AK260 -> 0.3 | AL254: 0.3 | AM254: 0.3 | AN254: 0.3 | AO254: 0.3 | AP254: 0.3 | AQ254: 0.3 | AR254: 0.3 | AS254: 0.3 | AT254: 0.3 | AU254: 0.3 | AV254: 0.3 | AW254: 0.3 | AX254: 0.3 | AY254: 0.3 | AZ254: 0.3 | BA254: 0.3 | BB254: 0.3 | BC254: 0.3 | BD254: 0.3 | BE254: 0.3 | BF254: 0.3 | BG254: 0.3 | BH254: 0.3 | BI254: 0.3 | BJ254: 0.3 | BK254: 0.3 | BL254: 0.3 | BM254: 0.3 | BN254: 0.3 | BO254: 0.3 | BP254: 0.3 | BQ254: =gamma*BQ260 -> 0.3 | BR254: 0.3 | BS254: 0.3 | BT254: 0.3 | BU254: 0.3 | BV254: 0.3 | BW254: 0.3 | BX254: 0.3 | BY254: 0.3 | BZ254: 0.3 | CA254: 0.3 | CB254: 0.3 | CC254: 0.3 | CD254: 0.3 | CE254: 0.3 | CF254: 0.3 | CG254: 0.3 | CH254: 0.3 | CI254: 0.3 | CJ254: 0.3 | CK254: 0.3 | CL254: 0.3 | CM254: 0.3 | CN254: 0.3 | CO254: 0.3 | CP254: 0.3 | CQ254: 0.3 | CR254: 0.3 | CS254: 0.3 | CT254: 0.3 | CU254: 0.3 | CV254: 0.3 | CW254: 0.3 | CX254: 0.3 | CY254: 0.3 | CZ254: =LN(CY254/D254)/(CY$210-D$210) -> 0 | DA254: =IF(OR(CT254=0,CY$210-CT$210=0),0,LN(CY254/CT254)/(CY$210-CT$210)) -> 0
C255: Nu | D255: =nu -> 0.1 | E255: =nu*E261 -> 0.1 | F255: 0.1 | G255: 0.1 | H255: 0.1 | I255: 0.1 | J255: 0.1 | K255: 0.1 | L255: 0.1 | M255: 0.1 | N255: 0.1 | O255: 0.1 | P255: 0.1 | Q255: 0.1 | R255: 0.1 | S255: 0.1 | T255: 0.1 | U255: 0.1 | V255: 0.1 | W255: 0.1 | X255: 0.1 | Y255: 0.1 | Z255: 0.1 | AA255: 0.1 | AB255: 0.1 | AC255: 0.1 | AD255: 0.1 | AE255: 0.1 | AF255: 0.1 | AG255: 0.1 | AH255: 0.1 | AI255: 0.1 | AJ255: 0.1 | AK255: =nu*AK261 -> 0.1 | AL255: 0.1 | AM255: 0.1 | AN255: 0.1 | AO255: 0.1 | AP255: 0.1 | AQ255: 0.1 | AR255: 0.1 | AS255: 0.1 | AT255: 0.1 | AU255: 0.1 | AV255: 0.1 | AW255: 0.1 | AX255: 0.1 | AY255: 0.1 | AZ255: 0.1 | BA255: 0.1 | BB255: 0.1 | BC255: 0.1 | BD255: 0.1 | BE255: 0.1 | BF255: 0.1 | BG255: 0.1 | BH255: 0.1 | BI255: 0.1 | BJ255: 0.1 | BK255: 0.1 | BL255: 0.1 | BM255: 0.1 | BN255: 0.1 | BO255: 0.1 | BP255: 0.1 | BQ255: =nu*BQ261 -> 0.1 | BR255: 0.1 | BS255: 0.1 | BT255: 0.1 | BU255: 0.1 | BV255: 0.1 | BW255: 0.1 | BX255: 0.1 | BY255: 0.1 | BZ255: 0.1 | CA255: 0.1 | CB255: 0.1 | CC255: 0.1 | CD255: 0.1 | CE255: 0.1 | CF255: 0.1 | CG255: 0.1 | CH255: 0.1 | CI255: 0.1 | CJ255: 0.1 | CK255: 0.1 | CL255: 0.1 | CM255: 0.1 | CN255: 0.1 | CO255: 0.1 | CP255: 0.1 | CQ255: 0.1 | CR255: 0.1 | CS255: 0.1 | CT255: 0.1 | CU255: 0.1 | CV255: 0.1 | CW255: 0.1 | CX255: 0.1 | CY255: 0.1 | CZ255: 0 | DA255: 0
C256: Omega | D256: =omega -> 0.5 | E256: =1-SUM(E254:E255)-E257 -> 0.5 | F256: =1-SUM(F254:F255)-F257 -> 0.5 | G256: 0.5 | H256: 0.5 | I256: 0.5 | J256: 0.5 | K256: 0.5 | L256: 0.5 | M256: 0.5 | N256: 0.5 | O256: 0.5 | P256: 0.5 | Q256: 0.5 | R256: 0.5 | S256: 0.5 | T256: 0.5 | U256: 0.5 | V256: 0.5 | W256: 0.5 | X256: 0.5 | Y256: 0.5 | Z256: 0.5 | AA256: 0.5 | AB256: 0.5 | AC256: 0.5 | AD256: 0.5 | AE256: 0.5 | AF256: 0.5 | AG256: 0.5 | AH256: 0.5 | AI256: 0.5 | AJ256: 0.5 | AK256: 0.5 | AL256: 0.5 | AM256: 0.5 | AN256: 0.5 | AO256: 0.5 | AP256: 0.5 | AQ256: 0.5 | AR256: 0.5 | AS256: 0.5 | AT256: 0.5 | AU256: 0.5 | AV256: 0.5 | AW256: 0.5 | AX256: 0.5 | AY256: 0.5 | AZ256: 0.5 | BA256: 0.5 | BB256: 0.5 | BC256: 0.5 | BD256: 0.5 | BE256: 0.5 | BF256: 0.5 | BG256: 0.5 | BH256: 0.5 | BI256: 0.5 | BJ256: 0.5 | BK256: 0.5 | BL256: 0.5 | BM256: 0.5 | BN256: 0.5 | BO256: 0.5 | BP256: 0.5 | BQ256: 0.5 | BR256: =1-SUM(BR254:BR255)-BR257 -> 0.5 | BS256: 0.5 | BT256: 0.5 | BU256: 0.5 | BV256: 0.5 | BW256: 0.5 | BX256: 0.5 | BY256: 0.5 | BZ256: 0.5 | CA256: 0.5 | CB256: 0.5 | CC256: 0.5 | CD256: 0.5 | CE256: 0.5 | CF256: 0.5 | CG256: 0.5 | CH256: 0.5 | CI256: 0.5 | CJ256: 0.5 | CK256: 0.5 | CL256: 0.5 | CM256: 0.5 | CN256: 0.5 | CO256: 0.5 | CP256: 0.5 | CQ256: 0.5 | CR256: 0.5 | CS256: 0.5 | CT256: 0.5 | CU256: 0.5 | CV256: 0.5 | CW256: 0.5 | CX256: 0.5 | CY256: 0.5 | CZ256: 0 | DA256: 0
C257: Pi | D257: =pi -> 0.1 | E257: =pi*E262 -> 0.1 | F257: 0.1 | G257: 0.1 | H257: 0.1 | I257: 0.1 | J257: 0.1 | K257: 0.1 | L257: 0.1 | M257: 0.1 | N257: 0.1 | O257: 0.1 | P257: 0.1 | Q257: 0.1 | R257: 0.1 | S257: 0.1 | T257: 0.1 | U257: 0.1 | V257: 0.1 | W257: 0.1 | X257: 0.1 | Y257: 0.1 | Z257: 0.1 | AA257: 0.1 | AB257: 0.1 | AC257: 0.1 | AD257: 0.1 | AE257: 0.1 | AF257: 0.1 | AG257: 0.1 | AH257: 0.1 | AI257: 0.1 | AJ257: 0.1 | AK257: =pi*AK262 -> 0.1 | AL257: 0.1 | AM257: 0.1 | AN257: 0.1 | AO257: 0.1 | AP257: 0.1 | AQ257: 0.1 | AR257: 0.1 | AS257: 0.1 | AT257: 0.1 | AU257: 0.1 | AV257: 0.1 | AW257: 0.1 | AX257: 0.1 | AY257: 0.1 | AZ257: 0.1 | BA257: 0.1 | BB257: 0.1 | BC257: 0.1 | BD257: 0.1 | BE257: 0.1 | BF257: 0.1 | BG257: 0.1 | BH257: 0.1 | BI257: 0.1 | BJ257: 0.1 | BK257: 0.1 | BL257: 0.1 | BM257: 0.1 | BN257: 0.1 | BO257: 0.1 | BP257: 0.1 | BQ257: =pi*BQ262 -> 0.1 | BR257: 0.1 | BS257: 0.1 | BT257: 0.1 | BU257: 0.1 | BV257: 0.1 | BW257: 0.1 | BX257: 0.1 | BY257: 0.1 | BZ257: 0.1 | CA257: 0.1 | CB257: 0.1 | CC257: 0.1 | CD257: 0.1 | CE257: 0.1 | CF257: 0.1 | CG257: 0.1 | CH257: 0.1 | CI257: 0.1 | CJ257: 0.1 | CK257: 0.1 | CL257: 0.1 | CM257: 0.1 | CN257: 0.1 | CO257: 0.1 | CP257: 0.1 | CQ257: 0.1 | CR257: 0.1 | CS257: 0.1 | CT257: 0.1 | CU257: 0.1 | CV257: 0.1 | CW257: 0.1 | CX257: 0.1 | CY257: 0.1 | CZ257: 0 | DA257: 0
C258: Sum (= unity for CRS) | D258: =SUM(D254:D257) -> 1 | E258: =SUM(E254:E257) -> 1 | F258: =SUM(F254:F257) -> 1 | G258: 1 | H258: 1 | I258: 1 | J258: 1 | K258: 1 | L258: 1 | M258: 1 | N258: 1 | O258: 1 | P258: 1 | Q258: 1 | R258: 1 | S258: 1 | T258: 1 | U258: 1 | V258: 1 | W258: 1 | X258: 1 | Y258: 1 | Z258: 1 | AA258: 1 | AB258: 1 | AC258: 1 | AD258: 1 | AE258: 1 | AF258: 1 | AG258: 1 | AH258: 1 | AI258: 1 | AJ258: 1 | AK258: 1 | AL258: 1 | AM258: 1 | AN258: 1 | AO258: 1 | AP258: 1 | AQ258: 1 | AR258: 1 | AS258: 1 | AT258: 1 | AU258: 1 | AV258: 1 | AW258: 1 | AX258: 1 | AY258: 1 | AZ258: 1 | BA258: 1 | BB258: 1 | BC258: 1 | BD258: 1 | BE258: 1 | BF258: 1 | BG258: 1 | BH258: 1 | BI258: 1 | BJ258: 1 | BK258: 1 | BL258: 1 | BM258: 1 | BN258: 1 | BO258: 1 | BP258: 1 | BQ258: 1 | BR258: =SUM(BR254:BR257) -> 1 | BS258: 1 | BT258: 1 | BU258: 1 | BV258: 1 | BW258: 1 | BX258: 1 | BY258: 1 | BZ258: 1 | CA258: 1 | CB258: 1 | CC258: 1 | CD258: 1 | CE258: 1 | CF258: 1 | CG258: 1 | CH258: 1 | CI258: 1 | CJ258: 1 | CK258: 1 | CL258: 1 | CM258: 1 | CN258: 1 | CO258: 1 | CP258: 1 | CQ258: 1 | CR258: 1 | CS258: 1 | CT258: 1 | CU258: 1 | CV258: 1 | CW258: 1 | CX258: 1 | CY258: 1
C260: Gamma multiplier | D260: 1 | E260: 1 | F260: =E260*EXP(Gamma_rate_of_change) -> 1 | G260: 1 | H260: 1 | I260: 1 | J260: 1 | K260: 1 | L260: 1 | M260: 1 | N260: =M260*EXP(Gamma_rate_of_change) -> 1 | O260: 1 | P260: 1 | Q260: 1 | R260: =Q260*EXP(Gamma_rate_of_change) -> 1 | S260: 1 | T260: 1 | U260: 1 | V260: 1 | W260: 1 | X260: 1 | Y260: 1 | Z260: 1 | AA260: 1 | AB260: 1 | AC260: 1 | AD260: 1 | AE260: 1 | AF260: 1 | AG260: 1 | AH260: 1 | AI260: 1 | AJ260: 1 | AK260: =AJ260*EXP(Gamma_rate_of_change) -> 1 | AL260: 1 | AM260: 1 | AN260: 1 | AO260: 1 | AP260: 1 | AQ260: 1 | AR260: 1 | AS260: 1 | AT260: 1 | AU260: 1 | AV260: 1 | AW260: 1 | AX260: 1 | AY260: 1 | AZ260: 1 | BA260: 1 | BB260: 1 | BC260: 1 | BD260: 1 | BE260: 1 | BF260: 1 | BG260: 1 | BH260: 1 | BI260: 1 | BJ260: 1 | BK260: 1 | BL260: 1 | BM260: 1 | BN260: 1 | BO260: 1 | BP260: 1 | BQ260: =BP260*EXP(Gamma_rate_of_change) -> 1 | BR260: 1 | BS260: 1 | BT260: 1 | BU260: 1 | BV260: 1 | BW260: 1 | BX260: 1 | BY260: 1 | BZ260: 1 | CA260: 1 | CB260: 1 | CC260: 1 | CD260: 1 | CE260: 1 | CF260: 1 | CG260: 1 | CH260: 1 | CI260: 1 | CJ260: 1 | CK260: 1 | CL260: 1 | CM260: 1 | CN260: 1 | CO260: 1 | CP260: 1 | CQ260: 1 | CR260: 1 | CS260: 1 | CT260: 1 | CU260: 1 | CV260: 1 | CW260: 1 | CX260: 1 | CY260: 1 | CZ260: =LN(CY260/D260)/(CY$210-D$210) -> 0 | DA260: =IF(OR(CT260=0,CY$210-CT$210=0),0,LN(CY260/CT260)/(CY$210-CT$210)) -> 0
C261: Nu multiplier | D261: 1 | E261: =D261*EXP(Nu_rate_of_change) -> 1 | F261: 1 | G261: 1 | H261: 1 | I261: 1 | J261: 1 | K261: 1 | L261: 1 | M261: 1 | N261: =M261*EXP(Nu_rate_of_change) -> 1 | O261: 1 | P261: 1 | Q261: 1 | R261: =Q261*EXP(Nu_rate_of_change) -> 1 | S261: 1 | T261: 1 | U261: 1 | V261: 1 | W261: 1 | X261: 1 | Y261: 1 | Z261: 1 | AA261: 1 | AB261: 1 | AC261: 1 | AD261: 1 | AE261: 1 | AF261: 1 | AG261: 1 | AH261: 1 | AI261: 1 | AJ261: 1 | AK261: =AJ261*EXP(Nu_rate_of_change) -> 1 | AL261: 1 | AM261: 1 | AN261: 1 | AO261: 1 | AP261: 1 | AQ261: 1 | AR261: 1 | AS261: 1 | AT261: 1 | AU261: 1 | AV261: 1 | AW261: 1 | AX261: 1 | AY261: 1 | AZ261: 1 | BA261: 1 | BB261: 1 | BC261: 1 | BD261: 1 | BE261: 1 | BF261: 1 | BG261: 1 | BH261: 1 | BI261: 1 | BJ261: 1 | BK261: 1 | BL261: 1 | BM261: 1 | BN261: 1 | BO261: 1 | BP261: 1 | BQ261: =BP261*EXP(Nu_rate_of_change) -> 1 | BR261: 1 | BS261: 1 | BT261: 1 | BU261: 1 | BV261: 1 | BW261: 1 | BX261: 1 | BY261: 1 | BZ261: 1 | CA261: 1 | CB261: 1 | CC261: 1 | CD261: 1 | CE261: 1 | CF261: 1 | CG261: 1 | CH261: 1 | CI261: 1 | CJ261: 1 | CK261: 1 | CL261: 1 | CM261: 1 | CN261: 1 | CO261: 1 | CP261: 1 | CQ261: 1 | CR261: 1 | CS261: 1 | CT261: 1 | CU261: 1 | CV261: 1 | CW261: 1 | CX261: 1 | CY261: 1 | CZ261: 0 | DA261: 0
C262: Pi multiplier | D262: 1 | E262: =D262*EXP(Pi_rate_of_change) -> 1 | F262: 1 | G262: 1 | H262: 1 | I262: 1 | J262: 1 | K262: 1 | L262: 1 | M262: 1 | N262: 1 | O262: 1 | P262: 1 | Q262: 1 | R262: 1 | S262: 1 | T262: 1 | U262: 1 | V262: 1 | W262: 1 | X262: 1 | Y262: 1 | Z262: 1 | AA262: 1 | AB262: 1 | AC262: 1 | AD262: 1 | AE262: 1 | AF262: 1 | AG262: 1 | AH262: 1 | AI262: 1 | AJ262: 1 | AK262: =AJ262*EXP(Pi_rate_of_change) -> 1 | AL262: 1 | AM262: 1 | AN262: 1 | AO262: 1 | AP262: 1 | AQ262: 1 | AR262: 1 | AS262: 1 | AT262: 1 | AU262: 1 | AV262: 1 | AW262: 1 | AX262: 1 | AY262: 1 | AZ262: 1 | BA262: 1 | BB262: 1 | BC262: 1 | BD262: 1 | BE262: 1 | BF262: 1 | BG262: 1 | BH262: 1 | BI262: 1 | BJ262: 1 | BK262: 1 | BL262: 1 | BM262: 1 | BN262: 1 | BO262: 1 | BP262: 1 | BQ262: =BP262*EXP(Pi_rate_of_change) -> 1 | BR262: 1 | BS262: 1 | BT262: 1 | BU262: 1 | BV262: 1 | BW262: 1 | BX262: 1 | BY262: 1 | BZ262: 1 | CA262: 1 | CB262: 1 | CC262: 1 | CD262: 1 | CE262: 1 | CF262: 1 | CG262: 1 | CH262: 1 | CI262: 1 | CJ262: 1 | CK262: 1 | CL262: 1 | CM262: 1 | CN262: 1 | CO262: 1 | CP262: 1 | CQ262: 1 | CR262: 1 | CS262: 1 | CT262: 1 | CU262: 1 | CV262: 1 | CW262: 1 | CX262: 1 | CY262: 1 | CZ262: 0 | DA262: 0
D264: =D$210 -> 1 | E264: =E$210 -> 2 | F264: 3 | G264: 4 | H264: 5 | I264: 6 | J264: 7 | K264: 8 | L264: 9 | M264: 10 | N264: 11 | O264: 12 | P264: 13 | Q264: 14 | R264: 15 | S264: 16 | T264: 17 | U264: 18 | V264: 19 | W264: 20 | X264: 21 | Y264: 22 | Z264: 23 | AA264: 24 | AB264: 25 | AC264: 26 | AD264: 27 | AE264: 28 | AF264: 29 | AG264: 30 | AH264: 31 | AI264: 32 | AJ264: 33 | AK264: 34 | AL264: 35 | AM264: 36 | AN264: 37 | AO264: 38 | AP264: 39 | AQ264: 40 | AR264: 41 | AS264: 42 | AT264: 43 | AU264: 44 | AV264: 45 | AW264: 46 | AX264: 47 | AY264: 48 | AZ264: 49 | BA264: 50 | BB264: 51 | BC264: 52 | BD264: 53 | BE264: 54 | BF264: 55 | BG264: 56 | BH264: 57 | BI264: 58 | BJ264: 59 | BK264: 60 | BL264: 61 | BM264: 62 | BN264: 63 | BO264: 64 | BP264: 65 | BQ264: =BQ$210 -> 66 | BR264: 67 | BS264: 68 | BT264: 69 | BU264: 70 | BV264: 71 | BW264: 72 | BX264: 73 | BY264: 74 | BZ264: 75 | CA264: 76 | CB264: 77 | CC264: 78 | CD264: 79 | CE264: 80 | CF264: 81 | CG264: 82 | CH264: 83 | CI264: 84 | CJ264: 85 | CK264: 86 | CL264: 87 | CM264: 88 | CN264: 89 | CO264: 90 | CP264: 91 | CQ264: 92 | CR264: 93 | CS264: 94 | CT264: 95 | CU264: 96 | CV264: 97 | CW264: 98 | CX264: 99 | CY264: 100
C265: Utility, u | D265: =V46 -> 1 | E265: =û*E271^(E254)*E272^(E255)*E273^(E256)*E300^E257 -> 1 | F265: 1 | G265: 1 | H265: 1 | I265: 1 | J265: 1.000000001 | K265: 1.000000001 | L265: 1.000000001 | M265: 1.000000001 | N265: 1 | O265: 1 | P265: 1 | Q265: 1 | R265: 1 | S265: 1 | T265: 1 | U265: 1 | V265: 1 | W265: 1 | X265: 1 | Y265: 1 | Z265: 1 | AA265: 1 | AB265: 1 | AC265: 1 | AD265: 1 | AE265: 1 | AF265: 1 | AG265: 1 | AH265: 1 | AI265: 1 | AJ265: 1 | AK265: =û*AK271^(AK254)*AK272^(AK255)*AK273^(AK256)*AK300^AK257 -> 1 | AL265: 1 | AM265: 1 | AN265: 1 | AO265: 1 | AP265: 1 | AQ265: 1 | AR265: 1 | AS265: 1 | AT265: 1 | AU265: 1 | AV265: 1 | AW265: 1 | AX265: 1 | AY265: 1 | AZ265: 1 | BA265: 1 | BB265: 1 | BC265: 1 | BD265: 1 | BE265: 1 | BF265: 1 | BG265: 1 | BH265: 1 | BI265: 1 | BJ265: 1 | BK265: 1 | BL265: 1 | BM265: 1 | BN265: 1 | BO265: 1 | BP265: 1 | BQ265: =û*BQ271^(BQ254)*BQ272^(BQ255)*BQ273^(BQ256)*BQ300^BQ257 -> 1 | BR265: 1 | BS265: 1 | BT265: 1 | BU265: 1 | BV265: 1 | BW265: 1 | BX265: 1 | BY265: 1 | BZ265: 1 | CA265: 1 | CB265: 1 | CC265: 1 | CD265: 1 | CE265: 1 | CF265: 1 | CG265: 1 | CH265: 1 | CI265: 1 | CJ265: 1 | CK265: 1 | CL265: 1 | CM265: 1 | CN265: 1 | CO265: 1 | CP265: 1 | CQ265: 1 | CR265: 1 | CS265: 1 | CT265: 1 | CU265: 1 | CV265: 1 | CW265: 1 | CX265: 1 | CY265: 1 | CZ265: =IF(OR(D265=0,CY$210-D$210=0),0,LN(CY265/D265)/(CY$210-D$210)) -> -1.570012358e-17 | DA265: =IF(OR(CT265=0,CY$210-CT$210=0),0,LN(CY265/CT265)/(CY$210-CT$210)) -> -3.330669074e-16
C266: Earnings/Income, E | D266: =V48 -> 1 | E266: =E212*E223+E213*E221 -> 1 | F266: 1 | G266: 1 | H266: 1 | I266: 1 | J266: 1 | K266: 1 | L266: 1 | M266: 1 | N266: 1 | O266: 1 | P266: 1 | Q266: 1 | R266: 1 | S266: 1 | T266: 1 | U266: 1 | V266: 1 | W266: 1 | X266: 1 | Y266: 1 | Z266: 1 | AA266: 1 | AB266: 1 | AC266: 1 | AD266: 1 | AE266: 1 | AF266: 1 | AG266: 1 | AH266: 1 | AI266: 1 | AJ266: 1 | AK266: =AK212*AK223+AK213*AK221 -> 1 | AL266: 1 | AM266: 1 | AN266: 1 | AO266: 1 | AP266: 1 | AQ266: 1 | AR266: 1 | AS266: 1 | AT266: 1 | AU266: 1 | AV266: 1 | AW266: 1 | AX266: 1 | AY266: 1 | AZ266: 1 | BA266: 1 | BB266: 1 | BC266: 1 | BD266: 1 | BE266: 1 | BF266: 1 | BG266: 1 | BH266: 1 | BI266: 1 | BJ266: 1 | BK266: 1 | BL266: 1 | BM266: 1 | BN266: 1 | BO266: 1 | BP266: 1 | BQ266: =BQ212*BQ223+BQ213*BQ221 -> 1 | BR266: 1 | BS266: 1 | BT266: 1 | BU266: 1 | BV266: 1 | BW266: 1 | BX266: 1 | BY266: 1 | BZ266: 1 | CA266: 1 | CB266: 1 | CC266: 1 | CD266: 1 | CE266: 1 | CF266: 1 | CG266: 1 | CH266: 1 | CI266: 1 | CJ266: 1 | CK266: 1 | CL266: 1 | CM266: 1 | CN266: 1 | CO266: 1 | CP266: 1 | CQ266: 1 | CR266: 1 | CS266: 1 | CT266: 1 | CU266: 1 | CV266: 1 | CW266: 1 | CX266: 1 | CY266: 1 | CZ266: -9.420074148e-17 | DA266: -4.884981308e-16
C267: Nominal wages | D267: =D213*D221 -> 0.75 | E267: 0.75 | F267: 0.75 | G267: 0.75 | H267: 0.75 | I267: 0.75 | J267: 0.75 | K267: 0.7500000001 | L267: 0.7500000001 | M267: 0.7500000001 | N267: 0.7500000001 | O267: 0.7500000001 | P267: 0.7500000001 | Q267: 0.7500000001 | R267: 0.7500000001 | S267: 0.7500000001 | T267: 0.7500000001 | U267: 0.7500000001 | V267: 0.7500000001 | W267: 0.7500000001 | X267: 0.7500000001 | Y267: 0.7500000001 | Z267: 0.7500000001 | AA267: 0.7500000001 | AB267: 0.75 | AC267: 0.75 | AD267: 0.75 | AE267: 0.75 | AF267: 0.75 | AG267: 0.75 | AH267: 0.75 | AI267: 0.75 | AJ267: =AJ213*AJ221 -> 0.75 | AK267: 0.75 | AL267: 0.75 | AM267: 0.75 | AN267: 0.75 | AO267: 0.75 | AP267: 0.75 | AQ267: 0.75 | AR267: 0.75 | AS267: 0.75 | AT267: 0.75 | AU267: 0.75 | AV267: 0.75 | AW267: 0.75 | AX267: 0.75 | AY267: 0.75 | AZ267: 0.75 | BA267: 0.75 | BB267: 0.75 | BC267: 0.75 | BD267: 0.75 | BE267: 0.75 | BF267: 0.75 | BG267: 0.75 | BH267: 0.75 | BI267: 0.75 | BJ267: 0.75 | BK267: 0.75 | BL267: 0.75 | BM267: 0.75 | BN267: 0.75 | BO267: 0.75 | BP267: =BP213*BP221 -> 0.75 | BQ267: 0.75 | BR267: 0.75 | BS267: 0.75 | BT267: 0.75 | BU267: 0.75 | BV267: 0.75 | BW267: 0.75 | BX267: 0.75 | BY267: 0.75 | BZ267: 0.75 | CA267: 0.75 | CB267: 0.75 | CC267: 0.75 | CD267: 0.75 | CE267: 0.75 | CF267: 0.75 | CG267: 0.75 | CH267: 0.75 | CI267: 0.75 | CJ267: 0.75 | CK267: 0.75 | CL267: 0.75 | CM267: 0.75 | CN267: 0.75 | CO267: 0.75 | CP267: 0.75 | CQ267: 0.75 | CR267: 0.75 | CS267: 0.75 | CT267: 0.75 | CU267: 0.75 | CV267: 0.75 | CW267: 0.75 | CX267: 0.75 | CY267: 0.75 | CZ267: -9.420074148e-17 | DA267: -4.662936703e-16
C268: Nominal capital returns | D268: =D212*D223 -> 0.25 | E268: 0.25 | F268: 0.25 | G268: 0.25 | H268: 0.25 | I268: 0.25 | J268: 0.25 | K268: 0.25 | L268: 0.25 | M268: 0.25 | N268: 0.25 | O268: 0.25 | P268: 0.25 | Q268: 0.25 | R268: 0.25 | S268: 0.25 | T268: 0.25 | U268: 0.25 | V268: 0.25 | W268: 0.25 | X268: 0.25 | Y268: 0.25 | Z268: 0.25 | AA268: 0.25 | AB268: 0.25 | AC268: 0.25 | AD268: 0.25 | AE268: 0.25 | AF268: 0.25 | AG268: 0.25 | AH268: 0.25 | AI268: 0.25 | AJ268: =AJ212*AJ223 -> 0.25 | AK268: 0.25 | AL268: 0.25 | AM268: 0.25 | AN268: 0.25 | AO268: 0.25 | AP268: 0.25 | AQ268: 0.25 | AR268: 0.25 | AS268: 0.25 | AT268: 0.25 | AU268: 0.25 | AV268: 0.25 | AW268: 0.25 | AX268: 0.25 | AY268: 0.25 | AZ268: 0.25 | BA268: 0.25 | BB268: 0.25 | BC268: 0.25 | BD268: 0.25 | BE268: 0.25 | BF268: 0.25 | BG268: 0.25 | BH268: 0.25 | BI268: 0.25 | BJ268: 0.25 | BK268: 0.25 | BL268: 0.25 | BM268: 0.25 | BN268: 0.25 | BO268: 0.25 | BP268: =BP212*BP223 -> 0.25 | BQ268: 0.25 | BR268: 0.25 | BS268: 0.25 | BT268: 0.25 | BU268: 0.25 | BV268: 0.25 | BW268: 0.25 | BX268: 0.25 | BY268: 0.25 | BZ268: 0.25 | CA268: 0.25 | CB268: 0.25 | CC268: 0.25 | CD268: 0.25 | CE268: 0.25 | CF268: 0.25 | CG268: 0.25 | CH268: 0.25 | CI268: 0.25 | CJ268: 0.25 | CK268: 0.25 | CL268: 0.25 | CM268: 0.25 | CN268: 0.25 | CO268: 0.25 | CP268: 0.25 | CQ268: 0.25 | CR268: 0.25 | CS268: 0.25 | CT268: 0.25 | CU268: 0.25 | CV268: 0.25 | CW268: 0.25 | CX268: 0.25 | CY268: 0.25 | CZ268: -9.195786669e-17 | DA268: -4.884981308e-16
C269: Nominal budget | D269: =V48 -> 1 | E269: =E212*E223+E213*E221 -> 1 | F269: 1 | G269: 1 | H269: 1 | I269: 1 | J269: 1 | K269: 1 | L269: 1 | M269: 1 | N269: 1 | O269: 1 | P269: 1 | Q269: 1 | R269: 1 | S269: 1 | T269: 1 | U269: 1 | V269: 1 | W269: 1 | X269: 1 | Y269: 1 | Z269: 1 | AA269: 1 | AB269: 1 | AC269: 1 | AD269: 1 | AE269: 1 | AF269: 1 | AG269: 1 | AH269: 1 | AI269: 1 | AJ269: 1 | AK269: =AK212*AK223+AK213*AK221 -> 1 | AL269: 1 | AM269: 1 | AN269: 1 | AO269: 1 | AP269: 1 | AQ269: 1 | AR269: 1 | AS269: 1 | AT269: 1 | AU269: 1 | AV269: 1 | AW269: 1 | AX269: 1 | AY269: 1 | AZ269: 1 | BA269: 1 | BB269: 1 | BC269: 1 | BD269: 1 | BE269: 1 | BF269: 1 | BG269: 1 | BH269: 1 | BI269: 1 | BJ269: 1 | BK269: 1 | BL269: 1 | BM269: 1 | BN269: 1 | BO269: 1 | BP269: 1 | BQ269: =BQ212*BQ223+BQ213*BQ221 -> 1 | BR269: 1 | BS269: 1 | BT269: 1 | BU269: 1 | BV269: 1 | BW269: 1 | BX269: 1 | BY269: 1 | BZ269: 1 | CA269: 1 | CB269: 1 | CC269: 1 | CD269: 1 | CE269: 1 | CF269: 1 | CG269: 1 | CH269: 1 | CI269: 1 | CJ269: 1 | CK269: 1 | CL269: 1 | CM269: 1 | CN269: 1 | CO269: 1 | CP269: 1 | CQ269: 1 | CR269: 1 | CS269: 1 | CT269: 1 | CU269: 1 | CV269: 1 | CW269: 1 | CX269: 1 | CY269: 1 | CZ269: -9.420074148e-17 | DA269: -4.884981308e-16
C270: Maximum wealth, Wmax | D270: =V47 -> 2.25 | E270: =E213*E220+E212*E223 -> 2.25 | F270: 2.25 | G270: 2.25 | H270: 2.25 | I270: 2.25 | J270: 2.25 | K270: 2.25 | L270: 2.25 | M270: 2.25 | N270: 2.25 | O270: 2.25 | P270: 2.25 | Q270: 2.25 | R270: 2.25 | S270: 2.25 | T270: 2.25 | U270: 2.25 | V270: 2.25 | W270: 2.25 | X270: 2.25 | Y270: 2.25 | Z270: 2.25 | AA270: 2.25 | AB270: 2.25 | AC270: 2.25 | AD270: 2.25 | AE270: 2.25 | AF270: 2.25 | AG270: 2.25 | AH270: 2.25 | AI270: 2.25 | AJ270: 2.25 | AK270: =AK213*AK220+AK212*AK223 -> 2.25 | AL270: 2.25 | AM270: 2.25 | AN270: 2.25 | AO270: 2.25 | AP270: 2.25 | AQ270: 2.25 | AR270: 2.25 | AS270: 2.25 | AT270: 2.25 | AU270: 2.25 | AV270: 2.25 | AW270: 2.25 | AX270: 2.25 | AY270: 2.25 | AZ270: 2.25 | BA270: 2.25 | BB270: 2.25 | BC270: 2.25 | BD270: 2.25 | BE270: 2.25 | BF270: 2.25 | BG270: 2.25 | BH270: 2.25 | BI270: 2.25 | BJ270: 2.25 | BK270: 2.25 | BL270: 2.25 | BM270: 2.25 | BN270: 2.25 | BO270: 2.25 | BP270: 2.25 | BQ270: =BQ213*BQ220+BQ212*BQ223 -> 2.25 | BR270: 2.25 | BS270: 2.25 | BT270: 2.25 | BU270: 2.25 | BV270: 2.25 | BW270: 2.25 | BX270: 2.25 | BY270: 2.25 | BZ270: 2.25 | CA270: 2.25 | CB270: 2.25 | CC270: 2.25 | CD270: 2.25 | CE270: 2.25 | CF270: 2.25 | CG270: 2.25 | CH270: 2.25 | CI270: 2.25 | CJ270: 2.25 | CK270: 2.25 | CL270: 2.25 | CM270: 2.25 | CN270: 2.25 | CO270: 2.25 | CP270: 2.25 | CQ270: 2.25 | CR270: 2.25 | CS270: 2.25 | CT270: 2.25 | CU270: 2.25 | CV270: 2.25 | CW270: 2.25 | CX270: 2.25 | CY270: 2.25
C271: Real Consumption, C | D271: =V49 -> 0.75 | E271: =(E254/(1-E257))*E270/E211 -> 0.75 | F271: 0.7500000001 | G271: 0.7500000003 | H271: 0.7500000004 | I271: 0.7500000005 | J271: 0.7500000006 | K271: 0.7500000006 | L271: 0.7500000006 | M271: 0.7500000006 | N271: 0.7500000006 | O271: 0.7500000005 | P271: 0.7500000005 | Q271: 0.7500000004 | R271: 0.7500000004 | S271: 0.7500000003 | T271: 0.7500000003 | U271: 0.7500000002 | V271: 0.7500000002 | W271: 0.7500000002 | X271: 0.7500000001 | Y271: 0.7500000001 | Z271: 0.7500000001 | AA271: 0.75 | AB271: 0.75 | AC271: 0.75 | AD271: 0.75 | AE271: 0.75 | AF271: 0.75 | AG271: 0.75 | AH271: 0.75 | AI271: 0.75 | AJ271: 0.75 | AK271: =(AK254/(1-AK257))*AK270/AK211 -> 0.75 | AL271: 0.75 | AM271: 0.75 | AN271: 0.75 | AO271: 0.75 | AP271: 0.75 | AQ271: 0.75 | AR271: 0.75 | AS271: 0.75 | AT271: 0.75 | AU271: 0.75 | AV271: 0.75 | AW271: 0.75 | AX271: 0.75 | AY271: 0.75 | AZ271: 0.75 | BA271: 0.75 | BB271: 0.75 | BC271: 0.75 | BD271: 0.75 | BE271: 0.75 | BF271: 0.75 | BG271: 0.75 | BH271: 0.75 | BI271: 0.75 | BJ271: 0.75 | BK271: 0.75 | BL271: 0.75 | BM271: 0.75 | BN271: 0.75 | BO271: 0.75 | BP271: 0.75 | BQ271: =(BQ254/(1-BQ257))*BQ270/BQ211 -> 0.75 | BR271: 0.75 | BS271: 0.75 | BT271: 0.75 | BU271: 0.75 | BV271: 0.75 | BW271: 0.75 | BX271: 0.75 | BY271: 0.75 | BZ271: 0.75 | CA271: 0.75 | CB271: 0.75 | CC271: 0.75 | CD271: 0.75 | CE271: 0.75 | CF271: 0.75 | CG271: 0.75 | CH271: 0.75 | CI271: 0.75 | CJ271: 0.75 | CK271: 0.75 | CL271: 0.75 | CM271: 0.75 | CN271: 0.75 | CO271: 0.75 | CP271: 0.75 | CQ271: 0.75 | CR271: 0.75 | CS271: 0.75 | CT271: 0.75 | CU271: 0.75 | CV271: 0.75 | CW271: =(CW254/(1-CW257))*CW270/CW211 -> 0.75 | CX271: 0.75 | CY271: 0.75 | CZ271: -5.270755773e-17 | DA271: -5.329070518e-16
C272: Real Savings, S | D272: =V50 -> 0.25 | E272: =(E255/(1-E257))*E270/E211 -> 0.25 | F272: 0.25 | G272: 0.2500000001 | H272: 0.2500000001 | I272: 0.2500000002 | J272: 0.2500000002 | K272: 0.2500000002 | L272: 0.2500000002 | M272: 0.2500000002 | N272: 0.2500000002 | O272: 0.2500000002 | P272: 0.2500000002 | Q272: 0.2500000001 | R272: 0.2500000001 | S272: 0.2500000001 | T272: 0.2500000001 | U272: 0.2500000001 | V272: 0.2500000001 | W272: 0.2500000001 | X272: 0.25 | Y272: 0.25 | Z272: 0.25 | AA272: 0.25 | AB272: 0.25 | AC272: 0.25 | AD272: 0.25 | AE272: 0.25 | AF272: 0.25 | AG272: 0.25 | AH272: 0.25 | AI272: 0.25 | AJ272: 0.25 | AK272: =(AK255/(1-AK257))*AK270/AK211 -> 0.25 | AL272: 0.25 | AM272: 0.25 | AN272: 0.25 | AO272: 0.25 | AP272: 0.25 | AQ272: 0.25 | AR272: 0.25 | AS272: 0.25 | AT272: 0.25 | AU272: 0.25 | AV272: 0.25 | AW272: 0.25 | AX272: 0.25 | AY272: 0.25 | AZ272: 0.25 | BA272: 0.25 | BB272: 0.25 | BC272: 0.25 | BD272: 0.25 | BE272: 0.25 | BF272: 0.25 | BG272: 0.25 | BH272: 0.25 | BI272: 0.25 | BJ272: 0.25 | BK272: 0.25 | BL272: 0.25 | BM272: 0.25 | BN272: 0.25 | BO272: 0.25 | BP272: 0.25 | BQ272: =(BQ255/(1-BQ257))*BQ270/BQ211 -> 0.25 | BR272: 0.25 | BS272: 0.25 | BT272: 0.25 | BU272: 0.25 | BV272: 0.25 | BW272: 0.25 | BX272: 0.25 | BY272: 0.25 | BZ272: 0.25 | CA272: 0.25 | CB272: 0.25 | CC272: 0.25 | CD272: 0.25 | CE272: 0.25 | CF272: 0.25 | CG272: 0.25 | CH272: 0.25 | CI272: 0.25 | CJ272: 0.25 | CK272: 0.25 | CL272: 0.25 | CM272: 0.25 | CN272: 0.25 | CO272: 0.25 | CP272: 0.25 | CQ272: 0.25 | CR272: 0.25 | CS272: 0.25 | CT272: 0.25 | CU272: 0.25 | CV272: 0.25 | CW272: 0.25 | CX272: 0.25 | CY272: 0.25 | CZ272: -5.158612034e-17 | DA272: -5.329070518e-16
C273: Leisure, l | D273: =V51 -> 1.666666667 | E273: =(E211/E213)*(E256/((1-E257)))*E270/E211 -> 1.666666667 | F273: 1.666666667 | G273: 1.666666667 | H273: 1.666666667 | I273: 1.666666667 | J273: 1.666666667 | K273: 1.666666667 | L273: 1.666666667 | M273: 1.666666667 | N273: 1.666666667 | O273: 1.666666667 | P273: 1.666666667 | Q273: 1.666666667 | R273: 1.666666667 | S273: 1.666666667 | T273: 1.666666667 | U273: 1.666666667 | V273: 1.666666667 | W273: 1.666666667 | X273: 1.666666667 | Y273: 1.666666667 | Z273: 1.666666667 | AA273: 1.666666667 | AB273: 1.666666667 | AC273: 1.666666667 | AD273: 1.666666667 | AE273: 1.666666667 | AF273: 1.666666667 | AG273: 1.666666667 | AH273: 1.666666667 | AI273: 1.666666667 | AJ273: 1.666666667 | AK273: =(AK211/AK213)*(AK256/((1-AK257)))*AK270/AK211 -> 1.666666667 | AL273: 1.666666667 | AM273: 1.666666667 | AN273: 1.666666667 | AO273: 1.666666667 | AP273: 1.666666667 | AQ273: 1.666666667 | AR273: 1.666666667 | AS273: 1.666666667 | AT273: 1.666666667 | AU273: 1.666666667 | AV273: 1.666666667 | AW273: 1.666666667 | AX273: 1.666666667 | AY273: 1.666666667 | AZ273: 1.666666667 | BA273: 1.666666667 | BB273: 1.666666667 | BC273: 1.666666667 | BD273: 1.666666667 | BE273: 1.666666667 | BF273: 1.666666667 | BG273: 1.666666667 | BH273: 1.666666667 | BI273: 1.666666667 | BJ273: 1.666666667 | BK273: 1.666666667 | BL273: 1.666666667 | BM273: 1.666666667 | BN273: 1.666666667 | BO273: 1.666666667 | BP273: 1.666666667 | BQ273: =(BQ211/BQ213)*(BQ256/((1-BQ257)))*BQ270/BQ211 -> 1.666666667 | BR273: 1.666666667 | BS273: 1.666666667 | BT273: 1.666666667 | BU273: 1.666666667 | BV273: 1.666666667 | BW273: 1.666666667 | BX273: 1.666666667 | BY273: 1.666666667 | BZ273: 1.666666667 | CA273: 1.666666667 | CB273: 1.666666667 | CC273: 1.666666667 | CD273: 1.666666667 | CE273: 1.666666667 | CF273: 1.666666667 | CG273: 1.666666667 | CH273: 1.666666667 | CI273: 1.666666667 | CJ273: 1.666666667 | CK273: 1.666666667 | CL273: 1.666666667 | CM273: 1.666666667 | CN273: 1.666666667 | CO273: 1.666666667 | CP273: 1.666666667 | CQ273: 1.666666667 | CR273: 1.666666667 | CS273: 1.666666667 | CT273: 1.666666667 | CU273: 1.666666667 | CV273: 1.666666667 | CW273: 1.666666667 | CX273: 1.666666667 | CY273: 1.666666667 | CZ273: 0 | DA273: 4.440892099e-17
C275: Real Income, W/c | D275: =D266/D$211 -> 1 | E275: 1 | F275: 1 | G275: 1 | H275: 1.000000001 | I275: 1.000000001 | J275: 1.000000001 | K275: 1.000000001 | L275: 1.000000001 | M275: 1.000000001 | N275: 1.000000001 | O275: 1.000000001 | P275: 1.000000001 | Q275: 1.000000001 | R275: 1.000000001 | S275: 1 | T275: 1 | U275: 1 | V275: 1 | W275: 1 | X275: 1 | Y275: 1 | Z275: 1 | AA275: 1 | AB275: 1 | AC275: 1 | AD275: 1 | AE275: 1 | AF275: 1 | AG275: 1 | AH275: 1 | AI275: 1 | AJ275: 1 | AK275: 1 | AL275: 1 | AM275: 1 | AN275: 1 | AO275: 1 | AP275: 1 | AQ275: 1 | AR275: 1 | AS275: 1 | AT275: 1 | AU275: 1 | AV275: 1 | AW275: 1 | AX275: 1 | AY275: 1 | AZ275: 1 | BA275: 1 | BB275: 1 | BC275: 1 | BD275: 1 | BE275: 1 | BF275: 1 | BG275: 1 | BH275: 1 | BI275: 1 | BJ275: 1 | BK275: 1 | BL275: 1 | BM275: 1 | BN275: 1 | BO275: 1 | BP275: =BP266/BP$211 -> 1 | BQ275: 1 | BR275: 1 | BS275: 1 | BT275: 1 | BU275: 1 | BV275: 1 | BW275: 1 | BX275: 1 | BY275: 1 | BZ275: 1 | CA275: 1 | CB275: 1 | CC275: 1 | CD275: 1 | CE275: 1 | CF275: 1 | CG275: 1 | CH275: 1 | CI275: 1 | CJ275: 1 | CK275: 1 | CL275: 1 | CM275: 1 | CN275: 1 | CO275: 1 | CP275: 1 | CQ275: 1 | CR275: 1 | CS275: 1 | CT275: 1 | CU275: 1 | CV275: 1 | CW275: 1 | CX275: 1 | CY275: 1 | CZ275: =IF(OR(D275=0,CY$210-D$210=0),0,LN(CY275/D275)/(CY$210-D$210)) -> -5.382899513e-17 | DA275: =IF(OR(CT275=0,CY$210-CT$210=0),0,LN(CY275/CT275)/(CY$210-CT$210)) -> -6.217248938e-16
C276: Real wages, w/c | D276: =D267/D211 -> 0.75 | E276: 0.75 | F276: 0.7500000001 | G276: 0.7500000003 | H276: 0.7500000004 | I276: 0.7500000005 | J276: 0.7500000005 | K276: 0.7500000006 | L276: 0.7500000006 | M276: 0.7500000006 | N276: 0.7500000006 | O276: 0.7500000005 | P276: 0.7500000005 | Q276: 0.7500000004 | R276: 0.7500000004 | S276: 0.7500000003 | T276: 0.7500000003 | U276: 0.7500000003 | V276: 0.7500000002 | W276: 0.7500000002 | X276: 0.7500000001 | Y276: 0.7500000001 | Z276: 0.7500000001 | AA276: 0.7500000001 | AB276: 0.75 | AC276: 0.75 | AD276: 0.75 | AE276: 0.75 | AF276: 0.75 | AG276: 0.75 | AH276: 0.75 | AI276: 0.75 | AJ276: 0.75 | AK276: 0.75 | AL276: 0.75 | AM276: 0.75 | AN276: 0.75 | AO276: 0.75 | AP276: 0.75 | AQ276: 0.75 | AR276: 0.75 | AS276: 0.75 | AT276: 0.75 | AU276: 0.75 | AV276: 0.75 | AW276: 0.75 | AX276: 0.75 | AY276: 0.75 | AZ276: 0.75 | BA276: 0.75 | BB276: 0.75 | BC276: 0.75 | BD276: 0.75 | BE276: 0.75 | BF276: 0.75 | BG276: 0.75 | BH276: 0.75 | BI276: 0.75 | BJ276: 0.75 | BK276: 0.75 | BL276: 0.75 | BM276: 0.75 | BN276: 0.75 | BO276: 0.75 | BP276: 0.75 | BQ276: 0.75 | BR276: 0.75 | BS276: 0.75 | BT276: 0.75 | BU276: 0.75 | BV276: 0.75 | BW276: 0.75 | BX276: 0.75 | BY276: 0.75 | BZ276: 0.75 | CA276: 0.75 | CB276: 0.75 | CC276: 0.75 | CD276: 0.75 | CE276: 0.75 | CF276: 0.75 | CG276: 0.75 | CH276: 0.75 | CI276: 0.75 | CJ276: 0.75 | CK276: 0.75 | CL276: 0.75 | CM276: 0.75 | CN276: 0.75 | CO276: 0.75 | CP276: 0.75 | CQ276: 0.75 | CR276: 0.75 | CS276: 0.75 | CT276: 0.75 | CU276: 0.75 | CV276: 0.75 | CW276: 0.75 | CX276: 0.75 | CY276: 0.75 | CZ276: -5.382899513e-17 | DA276: -5.995204333e-16
C277: Real capital returns, pK/c | D277: =D268/D211 -> 0.25 | E277: 0.25 | F277: 0.25 | G277: 0.2500000001 | H277: 0.2500000002 | I277: 0.2500000002 | J277: 0.2500000002 | K277: 0.2500000002 | L277: 0.2500000002 | M277: 0.2500000002 | N277: 0.2500000002 | O277: 0.2500000002 | P277: 0.2500000002 | Q277: 0.2500000001 | R277: 0.2500000001 | S277: 0.2500000001 | T277: 0.2500000001 | U277: 0.2500000001 | V277: 0.2500000001 | W277: 0.25 | X277: 0.25 | Y277: 0.25 | Z277: 0.25 | AA277: 0.25 | AB277: 0.25 | AC277: 0.25 | AD277: 0.25 | AE277: 0.25 | AF277: 0.25 | AG277: 0.25 | AH277: 0.25 | AI277: 0.25 | AJ277: 0.25 | AK277: 0.25 | AL277: 0.25 | AM277: 0.25 | AN277: 0.25 | AO277: 0.25 | AP277: 0.25 | AQ277: 0.25 | AR277: 0.25 | AS277: 0.25 | AT277: 0.25 | AU277: 0.25 | AV277: 0.25 | AW277: 0.25 | AX277: 0.25 | AY277: 0.25 | AZ277: 0.25 | BA277: 0.25 | BB277: 0.25 | BC277: 0.25 | BD277: 0.25 | BE277: 0.25 | BF277: 0.25 | BG277: 0.25 | BH277: 0.25 | BI277: 0.25 | BJ277: 0.25 | BK277: 0.25 | BL277: 0.25 | BM277: 0.25 | BN277: 0.25 | BO277: 0.25 | BP277: 0.25 | BQ277: 0.25 | BR277: 0.25 | BS277: 0.25 | BT277: 0.25 | BU277: 0.25 | BV277: 0.25 | BW277: 0.25 | BX277: 0.25 | BY277: 0.25 | BZ277: 0.25 | CA277: 0.25 | CB277: 0.25 | CC277: 0.25 | CD277: 0.25 | CE277: 0.25 | CF277: 0.25 | CG277: 0.25 | CH277: 0.25 | CI277: 0.25 | CJ277: 0.25 | CK277: 0.25 | CL277: 0.25 | CM277: 0.25 | CN277: 0.25 | CO277: 0.25 | CP277: 0.25 | CQ277: 0.25 | CR277: 0.25 | CS277: 0.25 | CT277: 0.25 | CU277: 0.25 | CV277: 0.25 | CW277: 0.25 | CX277: 0.25 | CY277: 0.25 | CZ277: -5.158612034e-17 | DA277: -6.217248938e-16
C278: Nominal consumption, cC | D278: =D271/D$211 -> 0.75 | E278: 0.75 | F278: 0.7500000003 | G278: 0.7500000006 | H278: 0.7500000008 | I278: 0.750000001 | J278: 0.7500000011 | K278: 0.7500000011 | L278: 0.7500000011 | M278: 0.7500000011 | N278: 0.750000001 | O278: 0.7500000009 | P278: 0.7500000009 | Q278: 0.7500000008 | R278: 0.7500000007 | S278: 0.7500000006 | T278: 0.7500000005 | U278: 0.7500000004 | V278: 0.7500000003 | W278: 0.7500000002 | X278: 0.7500000002 | Y278: 0.7500000001 | Z278: 0.7500000001 | AA278: 0.7500000001 | AB278: 0.75 | AC278: 0.75 | AD278: 0.75 | AE278: 0.75 | AF278: 0.75 | AG278: 0.75 | AH278: 0.75 | AI278: 0.75 | AJ278: 0.75 | AK278: 0.75 | AL278: 0.75 | AM278: 0.75 | AN278: 0.75 | AO278: 0.75 | AP278: 0.75 | AQ278: 0.75 | AR278: 0.75 | AS278: 0.75 | AT278: 0.75 | AU278: 0.75 | AV278: 0.75 | AW278: 0.75 | AX278: 0.75 | AY278: 0.75 | AZ278: 0.75 | BA278: 0.75 | BB278: 0.75 | BC278: 0.75 | BD278: 0.75 | BE278: 0.75 | BF278: 0.75 | BG278: 0.75 | BH278: 0.75 | BI278: 0.75 | BJ278: 0.75 | BK278: 0.75 | BL278: 0.75 | BM278: 0.75 | BN278: 0.75 | BO278: 0.75 | BP278: =BP271/BP$211 -> 0.75 | BQ278: 0.75 | BR278: 0.75 | BS278: 0.75 | BT278: 0.75 | BU278: 0.75 | BV278: 0.75 | BW278: 0.75 | BX278: 0.75 | BY278: 0.75 | BZ278: 0.75 | CA278: 0.75 | CB278: 0.75 | CC278: 0.75 | CD278: 0.75 | CE278: 0.75 | CF278: 0.75 | CG278: 0.75 | CH278: 0.75 | CI278: 0.75 | CJ278: 0.75 | CK278: 0.75 | CL278: 0.75 | CM278: 0.75 | CN278: 0.75 | CO278: 0.75 | CP278: 0.75 | CQ278: 0.75 | CR278: 0.75 | CS278: 0.75 | CT278: 0.75 | CU278: 0.75 | CV278: 0.75 | CW278: 0.75 | CX278: 0.75 | CY278: 0.75 | CZ278: -1.233581138e-17 | DA278: -6.439293543e-16
C279: Nominal savings, cS | D279: 0.25 | E279: 0.25 | F279: 0.2500000001 | G279: 0.2500000002 | H279: 0.2500000003 | I279: 0.2500000003 | J279: 0.2500000004 | K279: 0.2500000004 | L279: 0.2500000004 | M279: 0.2500000004 | N279: 0.2500000003 | O279: 0.2500000003 | P279: 0.2500000003 | Q279: 0.2500000003 | R279: 0.2500000002 | S279: 0.2500000002 | T279: 0.2500000002 | U279: 0.2500000001 | V279: 0.2500000001 | W279: 0.2500000001 | X279: 0.2500000001 | Y279: 0.25 | Z279: 0.25 | AA279: 0.25 | AB279: 0.25 | AC279: 0.25 | AD279: 0.25 | AE279: 0.25 | AF279: 0.25 | AG279: 0.25 | AH279: 0.25 | AI279: 0.25 | AJ279: 0.25 | AK279: 0.25 | AL279: 0.25 | AM279: 0.25 | AN279: 0.25 | AO279: 0.25 | AP279: 0.25 | AQ279: 0.25 | AR279: 0.25 | AS279: 0.25 | AT279: 0.25 | AU279: 0.25 | AV279: 0.25 | AW279: 0.25 | AX279: 0.25 | AY279: 0.25 | AZ279: 0.25 | BA279: 0.25 | BB279: 0.25 | BC279: 0.25 | BD279: 0.25 | BE279: 0.25 | BF279: 0.25 | BG279: 0.25 | BH279: 0.25 | BI279: 0.25 | BJ279: 0.25 | BK279: 0.25 | BL279: 0.25 | BM279: 0.25 | BN279: 0.25 | BO279: 0.25 | BP279: 0.25 | BQ279: 0.25 | BR279: 0.25 | BS279: 0.25 | BT279: 0.25 | BU279: 0.25 | BV279: 0.25 | BW279: 0.25 | BX279: 0.25 | BY279: 0.25 | BZ279: 0.25 | CA279: 0.25 | CB279: 0.25 | CC279: 0.25 | CD279: 0.25 | CE279: 0.25 | CF279: 0.25 | CG279: 0.25 | CH279: 0.25 | CI279: 0.25 | CJ279: 0.25 | CK279: 0.25 | CL279: 0.25 | CM279: 0.25 | CN279: 0.25 | CO279: 0.25 | CP279: 0.25 | CQ279: 0.25 | CR279: 0.25 | CS279: 0.25 | CT279: 0.25 | CU279: 0.25 | CV279: 0.25 | CW279: 0.25 | CX279: 0.25 | CY279: 0.25 | CZ279: -1.121437399e-17 | DA279: -6.661338148e-16
C280: "Real" Leisure, l/c | D280: 1.666666667 | E280: 1.666666667 | F280: 1.666666667 | G280: 1.666666667 | H280: 1.666666668 | I280: 1.666666668 | J280: 1.666666668 | K280: 1.666666668 | L280: 1.666666668 | M280: 1.666666668 | N280: 1.666666668 | O280: 1.666666668 | P280: 1.666666667 | Q280: 1.666666667 | R280: 1.666666667 | S280: 1.666666667 | T280: 1.666666667 | U280: 1.666666667 | V280: 1.666666667 | W280: 1.666666667 | X280: 1.666666667 | Y280: 1.666666667 | Z280: 1.666666667 | AA280: 1.666666667 | AB280: 1.666666667 | AC280: 1.666666667 | AD280: 1.666666667 | AE280: 1.666666667 | AF280: 1.666666667 | AG280: 1.666666667 | AH280: 1.666666667 | AI280: 1.666666667 | AJ280: 1.666666667 | AK280: 1.666666667 | AL280: 1.666666667 | AM280: 1.666666667 | AN280: 1.666666667 | AO280: 1.666666667 | AP280: 1.666666667 | AQ280: 1.666666667 | AR280: 1.666666667 | AS280: 1.666666667 | AT280: 1.666666667 | AU280: 1.666666667 | AV280: 1.666666667 | AW280: 1.666666667 | AX280: 1.666666667 | AY280: 1.666666667 | AZ280: 1.666666667 | BA280: 1.666666667 | BB280: 1.666666667 | BC280: 1.666666667 | BD280: 1.666666667 | BE280: 1.666666667 | BF280: 1.666666667 | BG280: 1.666666667 | BH280: 1.666666667 | BI280: 1.666666667 | BJ280: 1.666666667 | BK280: 1.666666667 | BL280: 1.666666667 | BM280: 1.666666667 | BN280: 1.666666667 | BO280: 1.666666667 | BP280: 1.666666667 | BQ280: 1.666666667 | BR280: 1.666666667 | BS280: 1.666666667 | BT280: 1.666666667 | BU280: 1.666666667 | BV280: 1.666666667 | BW280: 1.666666667 | BX280: 1.666666667 | BY280: 1.666666667 | BZ280: 1.666666667 | CA280: 1.666666667 | CB280: 1.666666667 | CC280: 1.666666667 | CD280: 1.666666667 | CE280: 1.666666667 | CF280: 1.666666667 | CG280: 1.666666667 | CH280: 1.666666667 | CI280: 1.666666667 | CJ280: 1.666666667 | CK280: 1.666666667 | CL280: 1.666666667 | CM280: 1.666666667 | CN280: 1.666666667 | CO280: 1.666666667 | CP280: 1.666666667 | CQ280: 1.666666667 | CR280: 1.666666667 | CS280: 1.666666667 | CT280: 1.666666667 | CU280: 1.666666667 | CV280: 1.666666667 | CW280: 1.666666667 | CX280: 1.666666667 | CY280: 1.666666667 | CZ280: 4.037174635e-17 | DA280: -1.110223025e-16
C282: Welfare Measures | D282: =D$210 -> 1 | E282: =E$210 -> 2 | F282: 3 | G282: 4 | H282: 5 | I282: 6 | J282: 7 | K282: 8 | L282: 9 | M282: 10 | N282: 11 | O282: 12 | P282: 13 | Q282: 14 | R282: 15 | S282: 16 | T282: 17 | U282: 18 | V282: 19 | W282: 20 | X282: 21 | Y282: 22 | Z282: 23 | AA282: 24 | AB282: 25 | AC282: 26 | AD282: 27 | AE282: 28 | AF282: 29 | AG282: 30 | AH282: 31 | AI282: 32 | AJ282: 33 | AK282: 34 | AL282: 35 | AM282: 36 | AN282: 37 | AO282: 38 | AP282: 39 | AQ282: 40 | AR282: 41 | AS282: 42 | AT282: 43 | AU282: 44 | AV282: 45 | AW282: 46 | AX282: 47 | AY282: 48 | AZ282: 49 | BA282: 50 | BB282: 51 | BC282: 52 | BD282: 53 | BE282: 54 | BF282: 55 | BG282: 56 | BH282: 57 | BI282: 58 | BJ282: 59 | BK282: 60 | BL282: 61 | BM282: 62 | BN282: 63 | BO282: 64 | BP282: 65 | BQ282: =BQ$210 -> 66 | BR282: 67 | BS282: 68 | BT282: 69 | BU282: 70 | BV282: 71 | BW282: 72 | BX282: 73 | BY282: 74 | BZ282: 75 | CA282: 76 | CB282: 77 | CC282: 78 | CD282: 79 | CE282: 80 | CF282: 81 | CG282: 82 | CH282: 83 | CI282: 84 | CJ282: 85 | CK282: 86 | CL282: 87 | CM282: 88 | CN282: 89 | CO282: 90 | CP282: 91 | CQ282: 92 | CR282: 93 | CS282: 94 | CT282: 95 | CU282: 96 | CV282: 97 | CW282: 98 | CX282: 99 | CY282: 100
C283: Utility/worker, u/n | D283: =Y46 -> 1 | E283: =E265/E$221 -> 1 | F283: 1 | G283: 1 | H283: 1 | I283: 1.000000001 | J283: 1.000000001 | K283: 1.000000001 | L283: 1.000000001 | M283: 1.000000001 | N283: 1 | O283: 1 | P283: 1 | Q283: 1 | R283: 1 | S283: 1 | T283: 1 | U283: 1 | V283: 1 | W283: 1 | X283: 1 | Y283: 1 | Z283: 1 | AA283: 1 | AB283: 1 | AC283: 1 | AD283: 1 | AE283: 1 | AF283: 1 | AG283: 1 | AH283: 1 | AI283: 1 | AJ283: 1 | AK283: 1 | AL283: 1 | AM283: 1 | AN283: 1 | AO283: 1 | AP283: 1 | AQ283: 1 | AR283: 1 | AS283: 1 | AT283: 1 | AU283: 1 | AV283: 1 | AW283: 1 | AX283: 1 | AY283: 1 | AZ283: 1 | BA283: 1 | BB283: 1 | BC283: 1 | BD283: 1 | BE283: 1 | BF283: 1 | BG283: 1 | BH283: 1 | BI283: 1 | BJ283: 1 | BK283: 1 | BL283: 1 | BM283: 1 | BN283: 1 | BO283: 1 | BP283: 1 | BQ283: =BQ265/BQ$221 -> 1 | BR283: 1 | BS283: 1 | BT283: 1 | BU283: 1 | BV283: 1 | BW283: 1 | BX283: 1 | BY283: 1 | BZ283: 1 | CA283: 1 | CB283: 1 | CC283: 1 | CD283: 1 | CE283: 1 | CF283: 1 | CG283: 1 | CH283: 1 | CI283: 1 | CJ283: 1 | CK283: 1 | CL283: 1 | CM283: 1 | CN283: 1 | CO283: 1 | CP283: 1 | CQ283: 1 | CR283: 1 | CS283: 1 | CT283: 1 | CU283: 1 | CV283: 1 | CW283: 1 | CX283: 1 | CY283: 1 | CZ283: =IF(OR(D283=0,CY$210-D$210=0),0,LN(CY283/D283)/(CY$210-D$210)) -> -1.570012358e-17 | DA283: =IF(OR(CT283=0,CY$210-CT$210=0),0,LN(CY283/CT283)/(CY$210-CT$210)) -> -2.886579864e-16
